Workbook

Sheet Overview
A1: Overview of the model
B3: 'Inputs' sheet | H3: Working sheets | N3: 'Output' sheets
H35: * the 'unindexed RAB approach' is one option to target a nominal rate of return as opposed to the current AER approach to target the real rate of return.
B36: Notes: | H36: ** the 'all-lagged approach' applies a consistent one-year lagged inflation value to all aspects of the RAB, and updates year 1 allowed revenue for actual (lagged) inflation.
B37: - no revenue adjustments (e.g. incentive schemes)
B38: - no debt raising costs
B39: - no equity raising costs
B40: - asset lives must be whole numbers between 1 and 50 years.

Sheet Guide
A1: Guide to the model
B2: What does this model do?
C3: This model simulates the key calculations of the RFM, PTRM and Annual pricing processes over a 4 period (20 year) timeframe.
C4: Different expected inflation estimates can be modelled to show the different outcomes on Revenue, RAB, cash flows and returns.
D5: - 'Approach B' and 'Approach C' allow for different expected inflation estimates to be modelled).
C6: Two approaches that are changes to the current workings of the RFMs and PTRMs can also be modelled to show the outcomes of these changged
D7: - 'Approach D - unindexed RAB' models the impact of an unindexed RAB - equivalent to targetting a nominal rate of return.
D8: - 'Approach E - all lagged' models the impact of applying a consistent (one-year lagged) inflation observation to all components of the framework.
C9: Different actual inflation outcomes can be modelled to show how they impact the outcomes of each case.
C10: This simulator model avoids requiring multiple versions of the RFM and PTRM to be opened and adjusted to perform this analysis.
B13: How to use this model?
C14: 1. Input desired values into the blue cells on the input sheet.
D15: Inputs to be changed are (key inputs in bold):
D16: - Inflation estimates for each approach. Generally these would be the same for each period, but each period can be different if required.
D17: - Allowed rate of returns (gearing level, return on debt, and return on equity) for each approach. Generally these would be the same for each period, but each period can be different if required.
D18: - Opening RAB and remaining lives. Default values for capex aim to maintain the RAB in $real over time.
D19: - Opex. Annual opex values can be inserted. Note: changing this has little impact on the returns.
D20: - Actual inflation outcomes. May be a constant value each year (to see how approaches perform with systemic under/over-estimation, or may differ every year.
C21: 2. Run scenario
D22: Any time a change to inputs is made a red warning will show that the scenario needs updating.
D23: Press the 'Run scenario' button to update the calculations and outputs.
D24: - Pressing this button performs iterative tax calculations and runs the revenue smoothing process consistent with the default smoothing in the PTRM
C25: 3. Check outputs
D26: Key outputs over the long term (such as allowed revenue, RAB, cashflows, and consumer impact) are displayed in the 'Output | General' sheet.
D27: Charts of these key outputs are displayed on the 'Outputs | Charts' sheet, including comparisons of expected and actual rates of return.
B29: What are some things to try?
C30: 1. How does the framework perform if the estimate of expected inflation persistently over-estimates actual inflation?
C31: How to:
D32: 1. Leave inputs as default (2.50% base-case expected inflation estimate)
D33: 2. Overide each year's actual inflation value with 2.00%.
D34: 3. Run scenario
D35: 4. Check outputs
D36: It should show that (in the base case):
D37: - the achieved real rate of return is very close to the expected real rate of return (target is being achieved)
D38: - but the nominal rate achieved is lower than expected (target real rate + actual inflation)
C40: 2. How does the framework perform if the estimate of expected inflation persistently under-estimates actual inflation?
C41: How to:
D42: 1. Leave inputs as default (2.50% base-case expected inflation estimate)
D43: 2. Override each year's actual inflation value with 3.00%.
D44: 3. Run scenario
D45: 4. Check outputs
D46: It should show that (in the base case):
D47: - the achieved real rate of return is very close to the expected real rate of return (target is being achieved)
D48: - but the nominal rate achieved is higher than expected (target real rate + actual inflation)
C50: 3. What is the impact of a lower estimate of expected inflation on revenues and returns?
C51: How to:
D52: 1. Leave inputs as default (2.50% base-case expected inflation estimate)
D53: 2. Input a lower value for expected inflation in Approach B (name it something like 'low expectation')
D54: 3. Input actual inflation value for each year (whatever values you want constant or varying).
D55: 4. Run scenario
D56: 5. Check outputs
D57: It should show that:
D58: - the achieved real rate of return for both Approach B and the base case is very close to the expected real rate of return for that approach.
D59: - the expected real and nominal rates of return for Approach B are higher than the base case.
D60: - the achieved real and nominal rates of return for Approach B are higher than the base case.
D61: - allowed revenues for Approach B are consistently above the base case.
C63: 4. Why is the expected real rate of return not perfectly achieved?
C64: How to:
D65: 1. Ensure Approach E inflation estimate equals base case (as default)
D66: 2. Override each year's actual inflation value with anything (constant or varying)
D67: 3. Run scenario
D68: 4. Check outputs
D69: It should show that:
D70: - the real rate of return achieved in the base case is 'close' to the expected rate.
D71: - the real rate of return achieved in 'Approach E - all lagged' is equal to the expected rate.
D72: - The difference observed in the base case is the impact of the 'inflation lags' applied.
D73: - Particularly the fact that year 1 revenues in each reset are not updated for actual inflation like future years are.
D74: - Also that unlagged actual inflation is used to escalate some parts of the RAB roll-forward, but lagged observations are used for others.
D75: - Where actual inflation in year 0, 5, 10, and 15 are above (below) expected inflation, achieved returns will be lower (higher) than otherwise. As revenues are not escalcated by these higher (lower) values of inflation.
C77: 5. What might a 'nominal framework' look like?
C78: How to:
D79: 1. Ensure Approach D inflation estimate equals base case (as default)
D80: 2. Override each year's actual inflation value with anything (constant or varying)
D81: 3. Run scenario
D82: 4. Check outputs
D83: The outputs for Approach D show the result of an nominal return applied to an unindexed RAB.
D84: This is an approach that targets the expected nominal rate of return you should see:
D85: - the real rate of return may not match the expected real rate.
D86: - the nominal rate of return achieved should be very close to the expected nominal rate.
D87: - the difference observed should relate to the inflation lags (as per the difference in the real return for the base case).

Sheet Inputs
A1: Inputs | C1: Year | D1: 1 | E1: 2 | F1: 3 | G1: 4 | H1: 5 | I1: 6 | J1: 7 | K1: 8 | L1: 9 | M1: 10 | N1: 11 | O1: 12 | P1: 13 | Q1: 14 | R1: 15 | S1: 16 | T1: 17 | U1: 18 | V1: 19 | W1: 20 | X1: 21 | Y1: 22 | Z1: 23 | AA1: 24 | AB1: 25 | AC1: 26 | AD1: 27 | AE1: 28 | AF1: 29 | AG1: 30 | AH1: 31 | AI1: 32 | AJ1: 33 | AK1: 34 | AL1: 35 | AM1: 36 | AN1: 37 | AO1: 38 | AP1: 39 | AQ1: 40 | AR1: 41 | AS1: 42 | AT1: 43 | AU1: 44 | AV1: 45 | AW1: 46 | AX1: 47 | AY1: 48 | AZ1: 49 | BA1: 50 | BB1: 51 | BC1: 52 | BD1: 53 | BE1: 54 | BF1: 55 | BG1: 56 | BH1: 57 | BI1: 58 | BJ1: 59 | BK1: 60 | BL1: 61 | BM1: 62 | BN1: 63 | BO1: 64 | BP1: 65 | BQ1: 66 | BR1: 67 | BS1: 68 | BT1: 69 | BU1: 70
A2: Expected inflation | B2: Name | D2: Period 1 | I2: Period 2 | N2: Period 3 | S2: Period 4
A3: Base case | B3: base | D3: 0.025 | E3: =D3 -> 0.025 | F3: 0.025 | G3: 0.025 | H3: 0.025 | I3: =D3 -> 0.025 | J3: =I3 -> 0.025 | K3: 0.025 | L3: 0.025 | M3: 0.025 | N3: =I3 -> 0.025 | O3: =N3 -> 0.025 | P3: 0.025 | Q3: 0.025 | R3: 0.025 | S3: =N3 -> 0.025 | T3: =S3 -> 0.025 | U3: =T3 -> 0.025 | V3: =U3 -> 0.025 | W3: =V3 -> 0.025 | X3: =W3 -> 0.025 | Y3: =X3 -> 0.025 | Z3: 0.025 | AA3: 0.025 | AB3: 0.025 | AC3: 0.025 | AD3: 0.025 | AE3: 0.025 | AF3: 0.025 | AG3: 0.025 | AH3: 0.025 | AI3: 0.025 | AJ3: 0.025 | AK3: 0.025 | AL3: 0.025 | AM3: 0.025 | AN3: 0.025 | AO3: 0.025 | AP3: 0.025 | AQ3: 0.025 | AR3: 0.025 | AS3: 0.025 | AT3: 0.025 | AU3: 0.025 | AV3: 0.025 | AW3: 0.025 | AX3: 0.025 | AY3: 0.025 | AZ3: 0.025 | BA3: 0.025 | BB3: 0.025 | BC3: 0.025 | BD3: 0.025 | BE3: 0.025 | BF3: 0.025 | BG3: 0.025 | BH3: 0.025 | BI3: 0.025 | BJ3: 0.025 | BK3: 0.025 | BL3: 0.025 | BM3: 0.025 | BN3: 0.025 | BO3: 0.025 | BP3: 0.025 | BQ3: 0.025 | BR3: 0.025 | BS3: 0.025 | BT3: 0.025 | BU3: 0.025
A4: - Approach B | B4: alternate estimate | D4: 0.02 | E4: 0.02 | F4: 0.02 | G4: 0.02 | H4: 0.02 | I4: =D4 -> 0.02 | J4: 0.02 | K4: 0.02 | L4: 0.02 | M4: 0.02 | N4: =I4 -> 0.02 | O4: 0.02 | P4: 0.02 | Q4: 0.02 | R4: 0.02 | S4: =N4 -> 0.02 | T4: =S4 -> 0.02 | U4: 0.02 | V4: 0.02 | W4: 0.02 | X4: =W4 -> 0.02 | Y4: 0.02 | Z4: 0.02 | AA4: 0.02 | AB4: 0.02 | AC4: 0.02 | AD4: 0.02 | AE4: 0.02 | AF4: 0.02 | AG4: 0.02 | AH4: 0.02 | AI4: 0.02 | AJ4: 0.02 | AK4: 0.02 | AL4: 0.02 | AM4: 0.02 | AN4: 0.02 | AO4: 0.02 | AP4: 0.02 | AQ4: 0.02 | AR4: 0.02 | AS4: 0.02 | AT4: 0.02 | AU4: 0.02 | AV4: 0.02 | AW4: 0.02 | AX4: 0.02 | AY4: 0.02 | AZ4: 0.02 | BA4: 0.02 | BB4: 0.02 | BC4: 0.02 | BD4: 0.02 | BE4: 0.02 | BF4: 0.02 | BG4: 0.02 | BH4: 0.02 | BI4: 0.02 | BJ4: 0.02 | BK4: 0.02 | BL4: 0.02 | BM4: 0.02 | BN4: 0.02 | BO4: 0.02 | BP4: 0.02 | BQ4: 0.02 | BR4: 0.02 | BS4: 0.02 | BT4: 0.02 | BU4: 0.02
A5: - Approach C | B5: perfect estimate of actual | D5: =GEOMEAN(1+D26:M26)-1 -> 0.01746256951 | E5: 0.01746256951 | F5: 0.01746256951 | G5: 0.01746256951 | H5: 0.01746256951 | I5: =GEOMEAN(1+I26:R26)-1 -> 0.0265105177 | J5: 0.0265105177 | K5: 0.0265105177 | L5: 0.0265105177 | M5: 0.0265105177 | N5: =GEOMEAN(1+N26:W26)-1 -> 0.0311509211 | O5: 0.0311509211 | P5: 0.0311509211 | Q5: 0.0311509211 | R5: 0.0311509211 | S5: =GEOMEAN(1+S26:AB26)-1 -> 0.02246583364 | T5: 0.02246583364 | U5: 0.02246583364 | V5: 0.02246583364 | W5: 0.02246583364 | X5: =W5 -> 0.02246583364 | Y5: 0.02246583364 | Z5: 0.02246583364 | AA5: 0.02246583364 | AB5: 0.02246583364 | AC5: 0.02246583364 | AD5: 0.02246583364 | AE5: 0.02246583364 | AF5: 0.02246583364 | AG5: 0.02246583364 | AH5: 0.02246583364 | AI5: 0.02246583364 | AJ5: 0.02246583364 | AK5: 0.02246583364 | AL5: 0.02246583364 | AM5: 0.02246583364 | AN5: 0.02246583364 | AO5: 0.02246583364 | AP5: 0.02246583364 | AQ5: 0.02246583364 | AR5: 0.02246583364 | AS5: 0.02246583364 | AT5: 0.02246583364 | AU5: 0.02246583364 | AV5: 0.02246583364 | AW5: 0.02246583364 | AX5: 0.02246583364 | AY5: 0.02246583364 | AZ5: 0.02246583364 | BA5: 0.02246583364 | BB5: 0.02246583364 | BC5: 0.02246583364 | BD5: =BC5 -> 0.02246583364 | BE5: 0.02246583364 | BF5: 0.02246583364 | BG5: 0.02246583364 | BH5: 0.02246583364 | BI5: 0.02246583364 | BJ5: 0.02246583364 | BK5: 0.02246583364 | BL5: 0.02246583364 | BM5: 0.02246583364 | BN5: 0.02246583364 | BO5: 0.02246583364 | BP5: 0.02246583364 | BQ5: 0.02246583364 | BR5: 0.02246583364 | BS5: 0.02246583364 | BT5: 0.02246583364 | BU5: 0.02246583364
A6: - Approach D | B6: unindexed RAB | D6: =D3 -> 0.025 | E6: 0.025 | F6: 0.025 | G6: 0.025 | H6: 0.025 | I6: =I3 -> 0.025 | J6: 0.025 | K6: 0.025 | L6: 0.025 | M6: 0.025 | N6: =N3 -> 0.025 | O6: 0.025 | P6: 0.025 | Q6: 0.025 | R6: 0.025 | S6: =S3 -> 0.025 | T6: 0.025 | U6: 0.025 | V6: 0.025 | W6: 0.025 | X6: =W6 -> 0.025 | Y6: 0.025 | Z6: 0.025 | AA6: 0.025 | AB6: 0.025 | AC6: 0.025 | AD6: 0.025 | AE6: 0.025 | AF6: 0.025 | AG6: 0.025 | AH6: 0.025 | AI6: 0.025 | AJ6: 0.025 | AK6: 0.025 | AL6: 0.025 | AM6: 0.025 | AN6: 0.025 | AO6: 0.025 | AP6: 0.025 | AQ6: 0.025 | AR6: 0.025 | AS6: 0.025 | AT6: 0.025 | AU6: 0.025 | AV6: 0.025 | AW6: 0.025 | AX6: 0.025 | AY6: 0.025 | AZ6: 0.025 | BA6: 0.025 | BB6: 0.025 | BC6: 0.025 | BD6: =BC6 -> 0.025 | BE6: 0.025 | BF6: 0.025 | BG6: 0.025 | BH6: 0.025 | BI6: 0.025 | BJ6: 0.025 | BK6: 0.025 | BL6: 0.025 | BM6: 0.025 | BN6: 0.025 | BO6: 0.025 | BP6: 0.025 | BQ6: 0.025 | BR6: 0.025 | BS6: 0.025 | BT6: 0.025 | BU6: 0.025
A7: - Approach E | B7: consistent lag | D7: =D3 -> 0.025 | E7: 0.025 | F7: 0.025 | G7: 0.025 | H7: 0.025 | I7: =I3 -> 0.025 | J7: 0.025 | K7: 0.025 | L7: 0.025 | M7: 0.025 | N7: =N3 -> 0.025 | O7: 0.025 | P7: 0.025 | Q7: 0.025 | R7: 0.025 | S7: =S3 -> 0.025 | T7: 0.025 | U7: 0.025 | V7: 0.025 | W7: 0.025 | X7: =W7 -> 0.025 | Y7: 0.025 | Z7: 0.025 | AA7: 0.025 | AB7: 0.025 | AC7: 0.025 | AD7: 0.025 | AE7: 0.025 | AF7: 0.025 | AG7: 0.025 | AH7: 0.025 | AI7: 0.025 | AJ7: 0.025 | AK7: 0.025 | AL7: 0.025 | AM7: 0.025 | AN7: 0.025 | AO7: 0.025 | AP7: 0.025 | AQ7: 0.025 | AR7: 0.025 | AS7: 0.025 | AT7: 0.025 | AU7: 0.025 | AV7: 0.025 | AW7: 0.025 | AX7: 0.025 | AY7: 0.025 | AZ7: 0.025 | BA7: 0.025 | BB7: 0.025 | BC7: 0.025 | BD7: 0.025 | BE7: 0.025 | BF7: 0.025 | BG7: 0.025 | BH7: 0.025 | BI7: 0.025 | BJ7: 0.025 | BK7: 0.025 | BL7: 0.025 | BM7: 0.025 | BN7: 0.025 | BO7: 0.025 | BP7: 0.025 | BQ7: 0.025 | BR7: 0.025 | BS7: 0.025 | BT7: 0.025 | BU7: 0.025
A8: Rate of return
A9: RoD | C9: 0.6 | D9: 0.05 | E9: 0.05 | F9: 0.05 | G9: 0.05 | H9: 0.05 | I9: =D9 -> 0.05 | J9: 0.05 | K9: 0.05 | L9: 0.05 | M9: 0.05 | N9: =I9 -> 0.05 | O9: 0.05 | P9: 0.05 | Q9: 0.05 | R9: 0.05 | S9: =N9 -> 0.05 | T9: 0.05 | U9: 0.05 | V9: 0.05 | W9: 0.05
A10: RoE | C10: =1-C9 -> 0.4 | D10: 0.065 | E10: 0.065 | F10: 0.065 | G10: 0.065 | H10: 0.065 | I10: =D10 -> 0.065 | J10: 0.065 | K10: 0.065 | L10: 0.065 | M10: 0.065 | N10: =I10 -> 0.065 | O10: 0.065 | P10: 0.065 | Q10: 0.065 | R10: 0.065 | S10: =N10 -> 0.065 | T10: 0.065 | U10: 0.065 | V10: 0.065 | W10: 0.065
A11: Nominal rate of return | D11: =(D9*$C$9)+(D10*$C$10) -> 0.056 | E11: =(E9*$C$9)+(E10*$C$10) -> 0.056 | F11: 0.056 | G11: 0.056 | H11: 0.056 | I11: 0.056 | J11: 0.056 | K11: 0.056 | L11: 0.056 | M11: 0.056 | N11: 0.056 | O11: 0.056 | P11: 0.056 | Q11: 0.056 | R11: 0.056 | S11: 0.056 | T11: 0.056 | U11: 0.056 | V11: 0.056 | W11: 0.056
A12: ="Real rate or return ("&A3&")" -> Real rate or return (Base case) | D12: =(1+D$11)/(1+D3)-1 -> 0.03024390244 | E12: 0.03024390244 | F12: 0.03024390244 | G12: 0.03024390244 | H12: 0.03024390244 | I12: 0.03024390244 | J12: 0.03024390244 | K12: 0.03024390244 | L12: 0.03024390244 | M12: 0.03024390244 | N12: 0.03024390244 | O12: 0.03024390244 | P12: 0.03024390244 | Q12: 0.03024390244 | R12: 0.03024390244 | S12: 0.03024390244 | T12: 0.03024390244 | U12: 0.03024390244 | V12: 0.03024390244 | W12: 0.03024390244
A13: =A4&" ("&B4&")" -> - Approach B (alternate estimate) | D13: =(1+D$11)/(1+D4)-1 -> 0.03529411765 | E13: 0.03529411765 | F13: 0.03529411765 | G13: 0.03529411765 | H13: 0.03529411765 | I13: 0.03529411765 | J13: 0.03529411765 | K13: 0.03529411765 | L13: 0.03529411765 | M13: 0.03529411765 | N13: 0.03529411765 | O13: 0.03529411765 | P13: 0.03529411765 | Q13: 0.03529411765 | R13: 0.03529411765 | S13: 0.03529411765 | T13: 0.03529411765 | U13: 0.03529411765 | V13: 0.03529411765 | W13: 0.03529411765
A14: =A5&" ("&B5&")" -> - Approach C (perfect estimate of actual) | D14: =(1+D$11)/(1+D5)-1 -> 0.0378760179 | E14: 0.0378760179 | F14: 0.0378760179 | G14: 0.0378760179 | H14: 0.0378760179 | I14: 0.02872789104 | J14: 0.02872789104 | K14: 0.02872789104 | L14: 0.02872789104 | M14: 0.02872789104 | N14: 0.0240983918 | O14: 0.0240983918 | P14: 0.0240983918 | Q14: 0.0240983918 | R14: 0.0240983918 | S14: 0.03279734662 | T14: 0.03279734662 | U14: 0.03279734662 | V14: 0.03279734662 | W14: 0.03279734662
A15: =A6&" ("&B6&")" -> - Approach D (unindexed RAB) | D15: =(1+D$11)/(1+D6)-1 -> 0.03024390244 | E15: 0.03024390244 | F15: 0.03024390244 | G15: 0.03024390244 | H15: 0.03024390244 | I15: 0.03024390244 | J15: 0.03024390244 | K15: 0.03024390244 | L15: 0.03024390244 | M15: 0.03024390244 | N15: 0.03024390244 | O15: 0.03024390244 | P15: 0.03024390244 | Q15: 0.03024390244 | R15: 0.03024390244 | S15: 0.03024390244 | T15: 0.03024390244 | U15: 0.03024390244 | V15: 0.03024390244 | W15: 0.03024390244
A16: =A7&" ("&B7&")" -> - Approach E (consistent lag) | D16: =(1+D$11)/(1+D7)-1 -> 0.03024390244 | E16: 0.03024390244 | F16: 0.03024390244 | G16: 0.03024390244 | H16: 0.03024390244 | I16: 0.03024390244 | J16: 0.03024390244 | K16: 0.03024390244 | L16: 0.03024390244 | M16: 0.03024390244 | N16: 0.03024390244 | O16: 0.03024390244 | P16: 0.03024390244 | Q16: 0.03024390244 | R16: 0.03024390244 | S16: 0.03024390244 | T16: 0.03024390244 | U16: 0.03024390244 | V16: 0.03024390244 | W16: 0.03024390244
A17: RAB/capex
A18: Opening RAB | D18: 3000
A19: Remaining life (years) | D19: 30
A20: Capex (actual and forecast) ($real - EOY) | D20: =($D$18/$D$19)/((1+D12)^0.5) -> 98.52126366 | E20: =D20+(D20/D21) -> 101.8053058 | F20: =E20+(E20/E21) -> 105.198816 | G20: 108.7054432 | H20: 112.328958 | I20: 116.0732565 | J20: 119.9423651 | K20: 123.9404439 | L20: 128.0717921 | M20: 132.3408518 | N20: 136.7522135 | O20: 141.3106206 | P20: 146.0209747 | Q20: 150.8883405 | R20: 155.9179518 | S20: 161.1152169 | T20: 166.4857241 | U20: 172.0352483 | V20: 177.7697565 | W20: 183.6954151
A21: Standard life (years) | D21: 30 | E21: =D21 -> 30 | F21: =E21 -> 30 | G21: 30 | H21: 30 | I21: 30 | J21: 30 | K21: 30 | L21: 30 | M21: 30 | N21: 30 | O21: 30 | P21: 30 | Q21: 30 | R21: 30 | S21: 30 | T21: 30 | U21: 30 | V21: 30 | W21: 30
A22: Opex
A23: Opex ($real) | D23: 50 | E23: 50 | F23: 50 | G23: 50 | H23: 50 | I23: 50 | J23: 50 | K23: 50 | L23: 50 | M23: 50 | N23: 50 | O23: 50 | P23: 50 | Q23: 50 | R23: 50 | S23: 50 | T23: 50 | U23: 50 | V23: 50 | W23: 50
A25: Actual inflation
A26: Actual inflation | C26: 0.02446488897 | D26: 0.01597211384 | E26: 0.02746837801 | F26: -0.006186307445 | G26: 0.01316893798 | H26: 0.02450716846 | I26: 0.005157768326 | J26: 0.02722695814 | K26: 0.0132664276 | L26: 0.0465776132 | M26: 0.008408692961 | N26: 0.0317835635 | O26: 0.02499417464 | P26: 0.03447974807 | Q26: 0.04156024609 | R26: 0.03248874873 | S26: 0.04067076112 | T26: 0.02149920447 | U26: 0.01638657987 | V26: 0.03801299401 | W26: 0.02992956304 | X26: 0.01865492962 | Y26: 0.01590093255 | Z26: 0.008768817339 | AA26: 0.01507392922 | AB26: 0.0202336698 | AC26: 0.02691246992 | AD26: 0.005365548249 | AE26: 0.03781839065 | AF26: 0.04070382865 | AG26: 0.04017103558 | AH26: 0.03625168888 | AI26: 0.03262199691 | AJ26: 0.04213978952 | AK26: 0.03260856996 | AL26: 0.00593443334 | AM26: 0.01794286784 | AN26: 0.03259127076 | AO26: 0.02251761628 | AP26: 0.02396032383 | AQ26: 0.01446595114 | AR26: 0.02676151356 | AS26: 0.04723590784 | AT26: 0.03138331297 | AU26: 0.01741078571 | AV26: 0.004468809648 | AW26: 0.04487212767 | AX26: 0.01935723094 | AY26: 0.02764070786 | AZ26: 0.01434978543 | BA26: 0.05055398393 | BB26: 0.03284320419 | BC26: 0.001329614791 | BD26: 0.008557506271 | BE26: 0.03259899945 | BF26: 0.01406613893 | BG26: -0.00238465447 | BH26: 0.04401722864 | BI26: 0.01771666128 | BJ26: 0.03962869852 | BK26: 0.05688585148 | BL26: 0.008839554552 | BM26: 0.03821709378 | BN26: 0.008969750695 | BO26: 0.0453400985 | BP26: 0.002659396605 | BQ26: 0.0289892733 | BR26: 0.05226477323 | BS26: 0.008595683095 | BT26: 0.01548818467 | BU26: 0.006962488794
A27: Actual inflation index (lagged) | C27: 1 | D27: =C27*(1+C26) -> 1.024464889 | E27: =D27*(1+D26) -> 1.040827759 | F27: 1.069417609 | G27: 1.062801863 | H27: 1.076797835 | I27: 1.103187101 | J27: 1.108877084 | K27: 1.139068434 | L27: 1.154179803 | M27: 1.207938744 | N27: 1.21809593 | O27: 1.256811359 | P27: 1.288224321 | Q27: 1.332641972 | R27: 1.3880269 | S27: 1.433122157 | T27: 1.491408326 | U27: 1.523472418 | V27: 1.548436921 | W27: 1.607297644 | X27: =W27*(1+W26) -> 1.65540336 | Y27: 1.686284794 | Z27: 1.713098294 | AA27: 1.72812014 | AB27: 1.754169701 | AC27: 1.789662992 | AD27: 1.837827243 | AE27: 1.847688194 | AF27: 1.917564788 | AG27: 1.995617016 | AH27: 2.075783018 | AI27: 2.151033659 | AJ27: 2.221204672 | AK27: 2.314805769 | AL27: 2.390288275 | AM27: 2.404473282 | AN27: 2.447616428 | AO27: 2.527387358 | AP27: 2.584298096 | AQ27: 2.646218716 | AR27: 2.684498786 | AS27: 2.756340037 | AT27: 2.886538261 | AU27: 2.977127395 | AV27: 3.028961522 | AW27: 3.042497374 | AX27: 3.179020705 | AY27: 3.240557743 | AZ27: 3.330129053 | BA27: 3.37791569 | BB27: 3.548682785 | BC27: 3.665232899 | BD27: =BC27*(1+BC26) -> 3.670106247 | BE27: 3.701513204 | BF27: 3.822178831 | BG27: 3.875942129 | BH27: 3.866699346 | BI27: 4.036900736 | BJ27: 4.108421139 | BK27: 4.271232521 | BL27: 4.51420522 | BM27: 4.554108783 | BN27: 4.728153586 | BO27: 4.770563945 | BP27: 4.986861784 | BQ27: 5.000123827 | BR27: 5.145073783 | BS27: 5.413979898 | BT27: 5.460516753 | BU27: 5.545090245
A28: Nominal RoR (fixed real time varying) | D28: =(1+D12)*(1+D$26)-1 -> 0.04669907533 | E28: 0.05854303139 | F28: 0.02387049692 | G28: 0.04381112049 | H28: 0.05549226331 | I28: 0.03555766181 | J28: 0.05829431005 | K28: 0.04391155858 | L28: 0.07823020442 | M28: 0.03890690709 | N28: 0.06298872493 | O28: 0.05599399846 | P28: 0.06576645265 | Q28: 0.07306109256 | R28: 0.06371523772 | S28: 0.07214470609 | T28: 0.05239332675 | U28: 0.04712607644 | V28: 0.06940655773 | W28: 0.06107865227
A29: =A4&" ("&B4&")" -> - Approach B (alternate estimate) | D29: =(1+D13)*(1+D$26)-1 -> 0.05182995316 | E29: 0.06373196782 | F29: 0.02888946994 | G29: 0.04892784167 | H29: 0.06066624499 | I29: 0.04063392485 | J29: 0.06348202725 | K29: 0.0490287721 | L29: 0.0835156466 | M29: 0.04399958801 | N29: 0.06819945398 | O29: 0.06117043963 | P29: 0.07099079801 | Q29: 0.07832119595 | R29: 0.0689295281 | S29: 0.07740031739 | T29: 0.05755211757 | U29: 0.0522590474 | V29: 0.07464874674 | W29: 0.06628001821
A30: =A5&" ("&B5&")" -> - Approach C (perfect estimate of actual) | D30: =(1+D14)*(1+D$26)-1 -> 0.05445309181 | E30: 0.06638478868 | F30: 0.03145539776 | G30: 0.0515437428 | H30: 0.0633114203 | I30: 0.03403383117 | J30: 0.05673702227 | K30: 0.04237543512 | L30: 0.07664358083 | M30: 0.03737814801 | N30: 0.05664788806 | O30: 0.04969488585 | P30: 0.05940904635 | Q30: 0.06666017298 | R30: 0.05737006713 | S30: 0.07480200079 | T30: 0.05500166796 | U30: 0.04972136284 | V30: 0.07205706598 | W30: 0.06370851992
A31: =A6&" ("&B6&")" -> - Approach D (unindexed RAB) | D31: =(1+D15)*(1+D$26)-1 -> 0.04669907533 | E31: 0.05854303139 | F31: 0.02387049692 | G31: 0.04381112049 | H31: 0.05549226331 | I31: 0.03555766181 | J31: 0.05829431005 | K31: 0.04391155858 | L31: 0.07823020442 | M31: 0.03890690709 | N31: 0.06298872493 | O31: 0.05599399846 | P31: 0.06576645265 | Q31: 0.07306109256 | R31: 0.06371523772 | S31: 0.07214470609 | T31: 0.05239332675 | U31: 0.04712607644 | V31: 0.06940655773 | W31: 0.06107865227
A32: =A7&" ("&B7&")" -> - Approach E (consistent lag) | D32: =(1+D16)*(1+D$26)-1 -> 0.04669907533 | E32: 0.05854303139 | F32: 0.02387049692 | G32: 0.04381112049 | H32: 0.05549226331 | I32: 0.03555766181 | J32: 0.05829431005 | K32: 0.04391155858 | L32: 0.07823020442 | M32: 0.03890690709 | N32: 0.06298872493 | O32: 0.05599399846 | P32: 0.06576645265 | Q32: 0.07306109256 | R32: 0.06371523772 | S32: 0.07214470609 | T32: 0.05239332675 | U32: 0.04712607644 | V32: 0.06940655773 | W32: 0.06107865227
C34: Randomised inflation formula -> | F34: =_xlfn.NORM.INV(RAND(),'Actual CPI'!$E$7,'Actual CPI'!$E$8) -> 0.04318913624
A36: =IF(ROUND(SUM(BaseSmooth1_NPVdiff,BaseSmooth2_NPVdiff,BaseSmooth3_NPVdiff,BaseSmooth4_NPVdiff, BSmooth1_NPVdiff,BSmooth2_NPVdiff,BSmooth3_NPVdiff,BSmooth4_NPVdiff, DSmooth1_NPVdiff,DSmooth2_NPVdiff,DSmooth3_NPVdiff,DSmooth4_NPVdiff, CSmooth1_NPVdiff,CSmooth2_NPVdiff,CSmooth3_NPVdiff,CSmooth4_NPVdiff),2)=0,"Scenario updated","Scenario changed - update") -> Scenario updated | C36: Current AER estimation approach
A37: Check outputs | C37: Year | D37: Estimate | E37: Source | F37: Outcome
C38: 1 | D38: 0.025 | E38: RBA SMP | F38: =GEOMEAN(1+D38:D47)-1 -> 0.025
C39: 2 | D39: 0.025 | E39: RBA SMP
C40: 3 | D40: 0.025 | E40: RBA mid-band
C41: 4 | D41: =D40 -> 0.025 | E41: RBA mid-band
C42: 5 | D42: =D41 -> 0.025 | E42: RBA mid-band
C43: 6 | D43: 0.025 | E43: RBA mid-band
C44: 7 | D44: 0.025 | E44: RBA mid-band
C45: 8 | D45: 0.025 | E45: RBA mid-band
C46: 9 | D46: 0.025 | E46: RBA mid-band
C47: 10 | D47: 0.025 | E47: RBA mid-band

Sheet Output | General
A2: Regulatory asset base | B2: Year | C2: 0 | D2: 1 | E2: 2 | F2: 3 | G2: 4 | H2: 5 | I2: 6 | J2: 7 | K2: 8 | L2: 9 | M2: 10 | N2: 11 | O2: 12 | P2: 13 | Q2: 14 | R2: 15 | S2: 16 | T2: 17 | U2: 18 | V2: 19 | W2: 20
A3: Nominal (actual) opening RAB
A4: =Inputs!A3 -> Base case | D4: ='Working | Base case'!D121 -> 3000 | E4: ='Working | Base case'!E121 -> 3047.916342 | F4: ='Working | Base case'!F121 -> 3131.63766 | G4: ='Working | Base case'!G121 -> 3112.264386 | H4: ='Working | Base case'!H121 -> 3153.249603 | I4: ='Working | Base case'!I257 -> 3230.526822 | J4: ='Working | Base case'!J257 -> 3247.183767 | K4: ='Working | Base case'!K257 -> 3335.589312 | L4: ='Working | Base case'!L257 -> 3379.835128 | M4: ='Working | Base case'!M257 -> 3537.254169 | N4: ='Working | Base case'!N393 -> 3566.99198 | O4: ='Working | Base case'!O393 -> 3683.014653 | P4: ='Working | Base case'!P393 -> 3777.803778 | Q4: ='Working | Base case'!Q393 -> 3910.865079 | R4: ='Working | Base case'!R393 -> 4076.301838 | S4: ='Working | Base case'!S529 -> 4211.756564 | T4: ='Working | Base case'!T529 -> 4380.669604 | U4: ='Working | Base case'!U529 -> 4472.37132 | V4: ='Working | Base case'!V529 -> 4543.125694 | W4: ='Working | Base case'!W529 -> 4713.249509
A5: =RIGHT(Inputs!A4,LEN(Inputs!A4)-3)&" ("&Inputs!B4&")" -> Approach B (alternate estimate) | D5: ='Working | Approach B'!D121 -> 3000 | E5: ='Working | Approach B'!E121 -> 3048.167129 | F5: ='Working | Approach B'!F121 -> 3132.150129 | G5: ='Working | Approach B'!G121 -> 3113.035477 | H5: ='Working | Approach B'!H121 -> 3154.29102 | I5: ='Working | Approach B'!I257 -> 3231.85736 | J5: ='Working | Approach B'!J257 -> 3248.790721 | K5: ='Working | Approach B'!K257 -> 3337.510963 | L5: ='Working | Approach B'!L257 -> 3382.060593 | M5: ='Working | Approach B'!M257 -> 3539.865305 | N5: ='Working | Approach B'!N393 -> 3569.920221 | O5: ='Working | Approach B'!O393 -> 3686.335116 | P5: ='Working | Approach B'!P393 -> 3781.515893 | Q5: ='Working | Approach B'!Q393 -> 3915.021561 | R5: ='Working | Approach B'!R393 -> 4080.958349 | S5: ='Working | Approach B'!S529 -> 4216.905244 | T5: ='Working | Approach B'!T529 -> 4386.376681 | U5: ='Working | Approach B'!U529 -> 4478.564286 | V5: ='Working | Approach B'!V529 -> 4549.79114 | W5: ='Working | Approach B'!W529 -> 4720.545407
A6: =RIGHT(Inputs!A5,LEN(Inputs!A5)-3)&" ("&Inputs!B5&")" -> Approach C (perfect estimate of actual) | D6: ='Working | Approach C'!D121 -> 3000 | E6: ='Working | Approach C'!E121 -> 3048.295107 | F6: ='Working | Approach C'!F121 -> 3132.411644 | G6: ='Working | Approach C'!G121 -> 3113.428967 | H6: ='Working | Approach C'!H121 -> 3154.822459 | I6: ='Working | Approach C'!I257 -> 3232.536338 | J6: ='Working | Approach C'!J257 -> 3249.034559 | K6: ='Working | Approach C'!K257 -> 3337.320534 | L6: ='Working | Approach C'!L257 -> 3381.414729 | M6: ='Working | Approach C'!M257 -> 3538.730439 | N6: ='Working | Approach C'!N393 -> 3568.295519 | O6: ='Working | Approach C'!O393 -> 3683.793501 | P6: ='Working | Approach C'!P393 -> 3778.017977 | Q6: ='Working | Approach C'!Q393 -> 3910.487947 | R6: ='Working | Approach C'!R393 -> 4075.289675 | S6: ='Working | Approach C'!S529 -> 4210.066417 | T6: ='Working | Approach C'!T529 -> 4379.23135 | U6: ='Working | Approach C'!U529 -> 4471.235817 | V6: ='Working | Approach C'!V529 -> 4542.312431 | W6: ='Working | Approach C'!W529 -> 4712.751763
A7: =RIGHT(Inputs!A6,LEN(Inputs!A6)-3)&" ("&Inputs!B6&")" -> Approach D (unindexed RAB) | D7: ='Working | Approach D'!D121 -> 3000 | E7: ='Working | Approach D'!E121 -> 3002.446489 | F7: ='Working | Approach D'!F121 -> 3006.582024 | G7: ='Working | Approach D'!G121 -> 3013.736574 | H7: ='Working | Approach D'!H121 -> 3020.134563 | I7: ='Working | Approach D'!I257 -> 3027.977468 | J7: ='Working | Approach D'!J257 -> 3039.216561 | K7: ='Working | Approach D'!K257 -> 3051.146283 | L7: ='Working | Approach D'!L257 -> 3066.78306 | M7: ='Working | Approach D'!M257 -> 3084.298157 | N7: ='Working | Approach D'!N393 -> 3108.885467 | O7: ='Working | Approach D'!O393 -> 3135.351838 | P7: ='Working | Approach D'!P393 -> 3167.278497 | Q7: ='Working | Approach D'!Q393 -> 3203.802246 | R7: ='Working | Approach D'!R393 -> 3247.066478 | S7: ='Working | Approach D'!S529 -> 3299.092271 | T7: ='Working | Approach D'!T529 -> 3358.771384 | U7: ='Working | Approach D'!U529 -> 3428.356621 | V7: ='Working | Approach D'!V529 -> 3503.727323 | W7: ='Working | Approach D'!W529 -> 3583.769732
A8: =RIGHT(Inputs!A7,LEN(Inputs!A7)-3)&" ("&Inputs!B7&")" -> Approach E (consistent lag) | D8: ='Working | Approach E'!D121 -> 3000 | E8: ='Working | Approach E'!E121 -> 3073.394667 | F8: ='Working | Approach E'!F121 -> 3122.483276 | G8: ='Working | Approach E'!G121 -> 3208.252827 | H8: ='Working | Approach E'!H121 -> 3188.405589 | I8: ='Working | Approach E'!I257 -> 3230.393504 | J8: ='Working | Approach E'!J257 -> 3309.561302 | K8: ='Working | Approach E'!K257 -> 3326.631253 | L8: ='Working | Approach E'!L257 -> 3417.205303 | M8: ='Working | Approach E'!M257 -> 3462.539409 | N8: ='Working | Approach E'!N393 -> 3623.816231 | O8: ='Working | Approach E'!O393 -> 3654.287789 | P8: ='Working | Approach E'!P393 -> 3770.434077 | Q8: ='Working | Approach E'!Q393 -> 3864.672964 | R8: ='Working | Approach E'!R393 -> 3997.925915 | S8: ='Working | Approach E'!S529 -> 4164.080699 | T8: ='Working | Approach E'!T529 -> 4299.366471 | U8: ='Working | Approach E'!U529 -> 4474.224978 | V8: ='Working | Approach E'!V529 -> 4570.417255 | W8: ='Working | Approach E'!W529 -> 4645.310763
A10: Real (actual) opening RAB ($y1)
A11: =A4 -> Base case | D11: =D4/(Inputs!D$27/Inputs!$D$27) -> 3000 | E11: =E4/(Inputs!E$27/Inputs!$D$27) -> 3000 | F11: =F4/(Inputs!F$27/Inputs!$D$27) -> 3000 | G11: =G4/(Inputs!G$27/Inputs!$D$27) -> 3000 | H11: =H4/(Inputs!H$27/Inputs!$D$27) -> 3000 | I11: =I4/(Inputs!I$27/Inputs!$D$27) -> 3000 | J11: =J4/(Inputs!J$27/Inputs!$D$27) -> 2999.995044 | K11: =K4/(Inputs!K$27/Inputs!$D$27) -> 2999.990195 | L11: =L4/(Inputs!L$27/Inputs!$D$27) -> 2999.985279 | M11: =M4/(Inputs!M$27/Inputs!$D$27) -> 2999.98052 | N11: =N4/(Inputs!N$27/Inputs!$D$27) -> 2999.97558 | O11: =O4/(Inputs!O$27/Inputs!$D$27) -> 3002.136455 | P11: =P4/(Inputs!P$27/Inputs!$D$27) -> 3004.311643 | Q11: =Q4/(Inputs!Q$27/Inputs!$D$27) -> 3006.466886 | R11: =R4/(Inputs!R$27/Inputs!$D$27) -> 3008.607478 | S11: =S4/(Inputs!S$27/Inputs!$D$27) -> 3010.766877 | T11: =T4/(Inputs!T$27/Inputs!$D$27) -> 3009.130445 | U11: =U4/(Inputs!U$27/Inputs!$D$27) -> 3007.463301 | V11: =V4/(Inputs!V$27/Inputs!$D$27) -> 3005.78777 | W11: =W4/(Inputs!W$27/Inputs!$D$27) -> 3004.147148
A12: =A5 -> Approach B (alternate estimate) | D12: =D5/(Inputs!D$27/Inputs!$D$27) -> 3000 | E12: =E5/(Inputs!E$27/Inputs!$D$27) -> 3000.246845 | F12: =F5/(Inputs!F$27/Inputs!$D$27) -> 3000.490928 | G12: =G5/(Inputs!G$27/Inputs!$D$27) -> 3000.743276 | H12: =H5/(Inputs!H$27/Inputs!$D$27) -> 3000.990804 | I12: =I5/(Inputs!I$27/Inputs!$D$27) -> 3001.235592 | J12: =J5/(Inputs!J$27/Inputs!$D$27) -> 3001.479671 | K12: =K5/(Inputs!K$27/Inputs!$D$27) -> 3001.718506 | L12: =L5/(Inputs!L$27/Inputs!$D$27) -> 3001.960631 | M12: =M5/(Inputs!M$27/Inputs!$D$27) -> 3002.19505 | N12: =N5/(Inputs!N$27/Inputs!$D$27) -> 3002.438342 | O12: =O5/(Inputs!O$27/Inputs!$D$27) -> 3004.843065 | P12: =P5/(Inputs!P$27/Inputs!$D$27) -> 3007.263716 | Q12: =Q5/(Inputs!Q$27/Inputs!$D$27) -> 3009.662171 | R12: =R5/(Inputs!R$27/Inputs!$D$27) -> 3012.044321 | S12: =S5/(Inputs!S$27/Inputs!$D$27) -> 3014.447402 | T12: =T5/(Inputs!T$27/Inputs!$D$27) -> 3013.0507 | U12: =U5/(Inputs!U$27/Inputs!$D$27) -> 3011.627784 | V12: =V5/(Inputs!V$27/Inputs!$D$27) -> 3010.197711 | W12: =W5/(Inputs!W$27/Inputs!$D$27) -> 3008.797433
A13: =A6 -> Approach C (perfect estimate of actual) | D13: =D6/(Inputs!D$27/Inputs!$D$27) -> 3000 | E13: =E6/(Inputs!E$27/Inputs!$D$27) -> 3000.37281 | F13: =F6/(Inputs!F$27/Inputs!$D$27) -> 3000.74145 | G13: =G6/(Inputs!G$27/Inputs!$D$27) -> 3001.122572 | H13: =H6/(Inputs!H$27/Inputs!$D$27) -> 3001.496414 | I13: =I6/(Inputs!I$27/Inputs!$D$27) -> 3001.866119 | J13: =J6/(Inputs!J$27/Inputs!$D$27) -> 3001.704946 | K13: =K6/(Inputs!K$27/Inputs!$D$27) -> 3001.547236 | L13: =L6/(Inputs!L$27/Inputs!$D$27) -> 3001.387353 | M13: =M6/(Inputs!M$27/Inputs!$D$27) -> 3001.232559 | N13: =N6/(Inputs!N$27/Inputs!$D$27) -> 3001.071906 | O13: =O6/(Inputs!O$27/Inputs!$D$27) -> 3002.771318 | P13: =P6/(Inputs!P$27/Inputs!$D$27) -> 3004.481985 | Q13: =Q6/(Inputs!Q$27/Inputs!$D$27) -> 3006.176968 | R13: =R6/(Inputs!R$27/Inputs!$D$27) -> 3007.860427 | S13: =S6/(Inputs!S$27/Inputs!$D$27) -> 3009.558678 | T13: =T6/(Inputs!T$27/Inputs!$D$27) -> 3008.142492 | U13: =U6/(Inputs!U$27/Inputs!$D$27) -> 3006.699727 | V13: =V6/(Inputs!V$27/Inputs!$D$27) -> 3005.249705 | W13: =W6/(Inputs!W$27/Inputs!$D$27) -> 3003.829893
A14: =A7 -> Approach D (unindexed RAB) | D14: =D7/(Inputs!D$27/Inputs!$D$27) -> 3000 | E14: =E7/(Inputs!E$27/Inputs!$D$27) -> 2955.24498 | F14: =F7/(Inputs!F$27/Inputs!$D$27) -> 2880.201049 | G14: =G7/(Inputs!G$27/Inputs!$D$27) -> 2905.026244 | H14: =H7/(Inputs!H$27/Inputs!$D$27) -> 2873.354422 | I14: =I7/(Inputs!I$27/Inputs!$D$27) -> 2811.904344 | J14: =J7/(Inputs!J$27/Inputs!$D$27) -> 2807.85914 | K14: =K7/(Inputs!K$27/Inputs!$D$27) -> 2744.165446 | L14: =L7/(Inputs!L$27/Inputs!$D$27) -> 2722.116224 | M14: =M7/(Inputs!M$27/Inputs!$D$27) -> 2615.824011 | N14: =N7/(Inputs!N$27/Inputs!$D$27) -> 2614.690623 | O14: =O7/(Inputs!O$27/Inputs!$D$27) -> 2555.719957 | P14: =P7/(Inputs!P$27/Inputs!$D$27) -> 2518.789282 | Q14: =Q7/(Inputs!Q$27/Inputs!$D$27) -> 2462.914258 | R14: =R7/(Inputs!R$27/Inputs!$D$27) -> 2396.57142 | S14: =S7/(Inputs!S$27/Inputs!$D$27) -> 2358.35039 | T14: =T7/(Inputs!T$27/Inputs!$D$27) -> 2307.177245 | U14: =U7/(Inputs!U$27/Inputs!$D$27) -> 2305.4116 | V14: =V7/(Inputs!V$27/Inputs!$D$27) -> 2318.109039 | W14: =W7/(Inputs!W$27/Inputs!$D$27) -> 2284.235452
A15: =A8 -> Approach E (consistent lag) | D15: =D8/(Inputs!D$27/Inputs!$D$27) -> 3000 | E15: =E8/(Inputs!E$27/Inputs!$D$27) -> 3025.07778 | F15: =F8/(Inputs!F$27/Inputs!$D$27) -> 2991.230419 | G15: =G8/(Inputs!G$27/Inputs!$D$27) -> 3092.525983 | H15: =H8/(Inputs!H$27/Inputs!$D$27) -> 3033.447386 | I15: =I8/(Inputs!I$27/Inputs!$D$27) -> 2999.876196 | J15: =J8/(Inputs!J$27/Inputs!$D$27) -> 3057.62415 | K15: =K8/(Inputs!K$27/Inputs!$D$27) -> 2991.933421 | L15: =L8/(Inputs!L$27/Inputs!$D$27) -> 3033.155529 | M15: =M8/(Inputs!M$27/Inputs!$D$27) -> 2936.614187 | N15: =N8/(Inputs!N$27/Inputs!$D$27) -> 3047.766931 | O15: =O8/(Inputs!O$27/Inputs!$D$27) -> 2978.72032 | P15: =P8/(Inputs!P$27/Inputs!$D$27) -> 2998.450862 | Q15: =Q8/(Inputs!Q$27/Inputs!$D$27) -> 2970.956824 | R15: =R8/(Inputs!R$27/Inputs!$D$27) -> 2950.760341 | S15: =S8/(Inputs!S$27/Inputs!$D$27) -> 2976.685868 | T15: =T8/(Inputs!T$27/Inputs!$D$27) -> 2953.282423 | U15: =U8/(Inputs!U$27/Inputs!$D$27) -> 3008.7098 | V15: =V8/(Inputs!V$27/Inputs!$D$27) -> 3023.844202 | W15: =W8/(Inputs!W$27/Inputs!$D$27) -> 2960.844117
A17: Revenues | B17: Year | C17: 0 | D17: 1 | E17: 2 | F17: 3 | G17: 4 | H17: 5 | I17: 6 | J17: 7 | K17: 8 | L17: 9 | M17: 10 | N17: 11 | O17: 12 | P17: 13 | Q17: 14 | R17: 15 | S17: 16 | T17: 17 | U17: 18 | V17: 19 | W17: 20
A18: Nominal allowed revenue
A19: =A4 -> Base case | C19: 240 | D19: ='Working | Base case'!D111 -> 247.5321245 | E19: ='Working | Base case'!E111 -> 254.9794977 | F19: ='Working | Base case'!F111 -> 265.6229711 | G19: ='Working | Base case'!G111 -> 267.6470805 | H19: ='Working | Base case'!H111 -> 274.9389574 | I19: ='Working | Base case'!I247 -> 285.4972721 | J19: ='Working | Base case'!J247 -> 291.6279218 | K19: ='Working | Base case'!K247 -> 304.4306801 | L19: ='Working | Base case'!L247 -> 313.476492 | M19: ='Working | Base case'!M247 -> 333.4028634 | N19: ='Working | Base case'!N383 -> 342.8523782 | O19: ='Working | Base case'!O383 -> 360.280953 | P19: ='Working | Base case'!P383 -> 376.1042416 | Q19: ='Working | Base case'!Q383 -> 396.2559127 | R19: ='Working | Base case'!R383 -> 420.3448031 | S19: ='Working | Base case'!S519 -> 442.2356982 | T19: ='Working | Base case'!T519 -> 468.9870892 | U19: ='Working | Base case'!U519 -> 488.1942472 | V19: ='Working | Base case'!V519 -> 505.6445343 | W19: ='Working | Base case'!W519 -> 534.8621243
A20: =A5 -> Approach B (alternate estimate) | C20: 240 | D20: ='Working | Approach B'!D111 -> 263.8440891 | E20: ='Working | Approach B'!E111 -> 271.4855905 | F20: ='Working | Approach B'!F111 -> 282.5093821 | G20: ='Working | Approach B'!G111 -> 284.3514703 | H20: ='Working | Approach B'!H111 -> 291.7796316 | I20: ='Working | Approach B'!I247 -> 303.0574539 | J20: ='Working | Approach B'!J247 -> 309.1947834 | K20: ='Working | Approach B'!K247 -> 322.3825459 | L20: ='Working | Approach B'!L247 -> 331.5645788 | M20: ='Working | Approach B'!M247 -> 352.2187922 | N20: ='Working | Approach B'!N383 -> 362.219511 | O20: ='Working | Approach B'!O383 -> 380.1735349 | P20: ='Working | Approach B'!P383 -> 396.3918476 | Q20: ='Working | Approach B'!Q383 -> 417.1268471 | R20: ='Working | Approach B'!R383 -> 441.9508506 | S20: ='Working | Approach B'!S519 -> 465.0759279 | T20: ='Working | Approach B'!T519 -> 492.6127188 | U20: ='Working | Approach B'!U519 -> 512.1675516 | V20: ='Working | Approach B'!V519 -> 529.8334695 | W20: ='Working | Approach B'!W519 -> 559.7712459
A21: =A6 -> Approach C (perfect estimate of actual) | C21: 240 | D21: ='Working | Approach C'!D111 -> 272.1221743 | E21: ='Working | Approach C'!E111 -> 279.862438 | F21: ='Working | Approach C'!F111 -> 291.079735 | G21: ='Working | Approach C'!G111 -> 292.8301838 | H21: ='Working | Approach C'!H111 -> 300.3285365 | I21: ='Working | Approach C'!I247 -> 280.8986033 | J21: ='Working | Approach C'!J247 -> 286.7790693 | K21: ='Working | Approach C'!K247 -> 299.2109596 | L21: ='Working | Approach C'!L247 -> 307.939066 | M21: ='Working | Approach C'!M247 -> 327.3405944 | N21: ='Working | Approach C'!N383 -> 321.1895967 | O21: ='Working | Approach C'!O383 -> 337.4673146 | P21: ='Working | Approach C'!P383 -> 352.2368212 | Q21: ='Working | Approach C'!Q383 -> 371.055084 | R21: ='Working | Approach C'!R383 -> 393.5540828 | S21: ='Working | Approach C'!S519 -> 450.4058097 | T21: ='Working | Approach C'!T519 -> 478.6774228 | U21: ='Working | Approach C'!U519 -> 499.3517595 | V21: ='Working | Approach C'!V519 -> 518.3118215 | W21: ='Working | Approach C'!W519 -> 549.4390366
A22: =A7 -> Approach D (unindexed RAB) | C22: 240 | D22: ='Working | Approach D'!D111 -> 330.3419475 | E22: ='Working | Approach D'!E111 -> 332.1259815 | F22: ='Working | Approach D'!F111 -> 337.6981286 | G22: ='Working | Approach D'!G111 -> 332.1168946 | H22: ='Working | Approach D'!H111 -> 332.9892195 | I22: ='Working | Approach D'!I247 -> 352.7387863 | J22: ='Working | Approach D'!J247 -> 352.280206 | K22: ='Working | Approach D'!K247 -> 359.5468117 | L22: ='Working | Approach D'!L247 -> 361.9760924 | M22: ='Working | Approach D'!M247 -> 376.4021714 | N22: ='Working | Approach D'!N383 -> 387.0308223 | O22: ='Working | Approach D'!O383 -> 398.9370907 | P22: ='Working | Approach D'!P383 -> 408.5037727 | Q22: ='Working | Approach D'!Q383 -> 422.170928 | R22: ='Working | Approach D'!R383 -> 439.2815641 | S22: ='Working | Approach D'!S519 -> 439.0937828 | T22: ='Working | Approach D'!T519 -> 459.3673434 | U22: ='Working | Approach D'!U519 -> 471.7236256 | V22: ='Working | Approach D'!V519 -> 481.9877795 | W22: ='Working | Approach D'!W519 -> 502.9540325
A23: =A8 -> Approach E (consistent lag) | C23: 240 | D23: ='Working | Approach E'!D111 -> 247.4029596 | E23: ='Working | Approach E'!E111 -> 254.8464467 | F23: ='Working | Approach E'!F111 -> 265.4843663 | G23: ='Working | Approach E'!G111 -> 267.5074195 | H23: ='Working | Approach E'!H111 -> 274.7954913 | I23: ='Working | Approach E'!I247 -> 285.3474026 | J23: ='Working | Approach E'!J247 -> 291.4753809 | K23: ='Working | Approach E'!K247 -> 304.2720134 | L23: ='Working | Approach E'!L247 -> 313.3136984 | M23: ='Working | Approach E'!M247 -> 333.2303468 | N23: ='Working | Approach E'!N383 -> 342.0823203 | O23: ='Working | Approach E'!O383 -> 359.3012225 | P23: ='Working | Approach E'!P383 -> 374.9035497 | Q23: ='Working | Approach E'!Q383 -> 394.8035106 | R23: ='Working | Approach E'!R383 -> 418.6054341 | S23: ='Working | Approach E'!S519 -> 441.2443852 | T23: ='Working | Approach E'!T519 -> 468.0908553 | U23: ='Working | Approach E'!U519 -> 487.4227566 | V23: ='Working | Approach E'!V519 -> 505.0127415 | W23: ='Working | Approach E'!W519 -> 534.3708234
A25: Real allowed revenue ($y0)
A26: =A19 -> Base case | C26: =C19/Inputs!C$27 -> 240 | D26: =D19/Inputs!D$27 -> 241.6208961 | E26: =E19/Inputs!E$27 -> 244.9776109 | F26: =F19/Inputs!F$27 -> 248.3809588 | G26: =G19/Inputs!G$27 -> 251.8315877 | H26: =H19/Inputs!H$27 -> 255.3301543 | I26: =I19/Inputs!I$27 -> 258.7931566 | J26: =J19/Inputs!J$27 -> 262.9939116 | K26: =K19/Inputs!K$27 -> 267.2628536 | L26: =L19/Inputs!L$27 -> 271.6010895 | M26: =M19/Inputs!M$27 -> 276.009744 | N26: =N19/Inputs!N$27 -> 281.4658271 | O26: =O19/Inputs!O$27 -> 286.6627123 | P26: =P19/Inputs!P$27 -> 291.955551 | Q26: =Q19/Inputs!Q$27 -> 297.3461148 | R26: =R19/Inputs!R$27 -> 302.8362081 | S26: =S19/Inputs!S$27 -> 308.5819977 | T26: =T19/Inputs!T$27 -> 314.4592135 | U26: =U19/Inputs!U$27 -> 320.448366 | V26: =V19/Inputs!V$27 -> 326.5515873 | W26: =W19/Inputs!W$27 -> 332.7710497
A27: =A20 -> Approach B (alternate estimate) | C27: =C20/Inputs!C$27 -> 240 | D27: =D20/Inputs!D$27 -> 257.5433204 | E27: =E20/Inputs!E$27 -> 260.8362317 | F27: =F20/Inputs!F$27 -> 264.1712458 | G27: =G20/Inputs!G$27 -> 267.5489009 | H27: =H20/Inputs!H$27 -> 270.9697421 | I27: =I20/Inputs!I$27 -> 274.7108389 | J27: =J20/Inputs!J$27 -> 278.8359393 | K27: =K20/Inputs!K$27 -> 283.0229829 | L27: =L20/Inputs!L$27 -> 287.2728997 | M27: =M20/Inputs!M$27 -> 291.5866339 | N27: =N20/Inputs!N$27 -> 297.3653406 | O27: =O20/Inputs!O$27 -> 302.4905307 | P27: =P20/Inputs!P$27 -> 307.7040551 | Q27: =Q20/Inputs!Q$27 -> 313.0074363 | R27: =R20/Inputs!R$27 -> 318.4022231 | S27: =S20/Inputs!S$27 -> 324.5193898 | T27: =T20/Inputs!T$27 -> 330.3003679 | U27: =U20/Inputs!U$27 -> 336.1843282 | V27: =V20/Inputs!V$27 -> 342.1731052 | W27: =W20/Inputs!W$27 -> 348.2685661
A28: =A21 -> Approach C (perfect estimate of actual) | C28: =C21/Inputs!C$27 -> 240 | D28: =D21/Inputs!D$27 -> 265.6237195 | E28: =E21/Inputs!E$27 -> 268.884487 | F28: =F21/Inputs!F$27 -> 272.1852834 | G28: =G21/Inputs!G$27 -> 275.5266 | H28: =H21/Inputs!H$27 -> 278.9089342 | I28: =I21/Inputs!I$27 -> 254.6246264 | J28: =J21/Inputs!J$27 -> 258.6211523 | K28: =K21/Inputs!K$27 -> 262.6804068 | L28: =L21/Inputs!L$27 -> 266.8033743 | M28: =M21/Inputs!M$27 -> 270.9910549 | N28: =N21/Inputs!N$27 -> 263.6816928 | O28: =O21/Inputs!O$27 -> 268.5107134 | P28: =P21/Inputs!P$27 -> 273.4281719 | Q28: =Q21/Inputs!Q$27 -> 278.4356878 | R28: =R21/Inputs!R$27 -> 283.5349105 | S28: =S21/Inputs!S$27 -> 314.2829155 | T28: =T21/Inputs!T$27 -> 320.9566518 | U28: =U21/Inputs!U$27 -> 327.7721037 | V28: =V21/Inputs!V$27 -> 334.7322804 | W28: =W21/Inputs!W$27 -> 341.840255
A29: =A22 -> Approach D (unindexed RAB) | C29: =C22/Inputs!C$27 -> 240 | D29: =D22/Inputs!D$27 -> 322.4531665 | E29: =E22/Inputs!E$27 -> 319.0979283 | F29: =F22/Inputs!F$27 -> 315.7776024 | G29: =G22/Inputs!G$27 -> 312.4918257 | H29: =H22/Inputs!H$27 -> 309.2402387 | I29: =I22/Inputs!I$27 -> 319.7452055 | J29: =J22/Inputs!J$27 -> 317.6909425 | K29: =K22/Inputs!K$27 -> 315.6498775 | L29: =L22/Inputs!L$27 -> 313.6219256 | M29: =M22/Inputs!M$27 -> 311.6070027 | N29: =N22/Inputs!N$27 -> 317.7342711 | O29: =O22/Inputs!O$27 -> 317.4200232 | P29: =P22/Inputs!P$27 -> 317.1060862 | Q29: =Q22/Inputs!Q$27 -> 316.7924596 | R29: =R22/Inputs!R$27 -> 316.4791433 | S29: =S22/Inputs!S$27 -> 306.3896407 | T29: =T22/Inputs!T$27 -> 308.0091049 | U29: =U22/Inputs!U$27 -> 309.6371289 | V29: =V22/Inputs!V$27 -> 311.2737581 | W29: =W22/Inputs!W$27 -> 312.9190379
A30: =A23 -> Approach E (consistent lag) | C30: =C23/Inputs!C$27 -> 240 | D30: =D23/Inputs!D$27 -> 241.4948158 | E30: =E23/Inputs!E$27 -> 244.849779 | F30: =F23/Inputs!F$27 -> 248.251351 | G30: =G23/Inputs!G$27 -> 251.7001793 | H30: =H23/Inputs!H$27 -> 255.1969204 | I30: =I23/Inputs!I$27 -> 258.6573052 | J30: =J23/Inputs!J$27 -> 262.8563482 | K30: =K23/Inputs!K$27 -> 267.1235584 | L30: =L23/Inputs!L$27 -> 271.4600425 | M30: =M23/Inputs!M$27 -> 275.8669251 | N30: =N23/Inputs!N$27 -> 280.8336454 | O30: =O23/Inputs!O$27 -> 285.8831757 | P30: =P23/Inputs!P$27 -> 291.0234991 | Q30: =Q23/Inputs!Q$27 -> 296.2562482 | R30: =R23/Inputs!R$27 -> 301.5830847 | S30: =S23/Inputs!S$27 -> 307.8902821 | T30: =T23/Inputs!T$27 -> 313.8582822 | U30: =U23/Inputs!U$27 -> 319.9419633 | V30: =V23/Inputs!V$27 -> 326.1435676 | W30: =W23/Inputs!W$27 -> 332.4653808
A32: Achieved cash flows | B32: Year | C32: 0 | D32: 1 | E32: 2 | F32: 3 | G32: 4 | H32: 5 | I32: 6 | J32: 7 | K32: 8 | L32: 9 | M32: 10 | N32: 11 | O32: 12 | P32: 13 | Q32: 14 | R32: 15 | S32: 16 | T32: 17 | U32: 18 | V32: 19 | W32: 20 | X32: 21 | Y32: 22 | Z32: 23 | AA32: 24 | AB32: 25 | AC32: 26 | AD32: 27 | AE32: 28 | AF32: 29 | AG32: 30 | AH32: 31 | AI32: 32 | AJ32: 33 | AK32: 34 | AL32: 35 | AM32: 36 | AN32: 37 | AO32: 38 | AP32: 39 | AQ32: 40 | AR32: 41 | AS32: 42 | AT32: 43 | AU32: 44 | AV32: 45 | AW32: 46 | AX32: 47 | AY32: 48 | AZ32: 49 | BA32: 50 | BB32: 51 | BC32: 52 | BD32: 53 | BE32: 54 | BF32: 55 | BG32: 56 | BH32: 57 | BI32: 58 | BJ32: 59 | BK32: 60 | BL32: 61 | BM32: 62 | BN32: 63 | BO32: 64 | BP32: 65 | BQ32: 66 | BR32: 67 | BS32: 68 | BT32: 69 | BU32: 70
A33: =Inputs!A3 -> Base case
A34: Revenue | C34: 0 | D34: ='Working | Base case'!D111 -> 247.5321245 | E34: ='Working | Base case'!E111 -> 254.9794977 | F34: ='Working | Base case'!F111 -> 265.6229711 | G34: ='Working | Base case'!G111 -> 267.6470805 | H34: ='Working | Base case'!H111 -> 274.9389574 | I34: ='Working | Base case'!I247 -> 285.4972721 | J34: ='Working | Base case'!J247 -> 291.6279218 | K34: ='Working | Base case'!K247 -> 304.4306801 | L34: ='Working | Base case'!L247 -> 313.476492 | M34: ='Working | Base case'!M247 -> 333.4028634 | N34: ='Working | Base case'!N383 -> 342.8523782 | O34: ='Working | Base case'!O383 -> 360.280953 | P34: ='Working | Base case'!P383 -> 376.1042416 | Q34: ='Working | Base case'!Q383 -> 396.2559127 | R34: ='Working | Base case'!R383 -> 420.3448031 | S34: ='Working | Base case'!S519 -> 442.2356982 | T34: ='Working | Base case'!T519 -> 468.9870892 | U34: ='Working | Base case'!U519 -> 488.1942472 | V34: ='Working | Base case'!V519 -> 505.6445343 | W34: ='Working | Base case'!W519 -> 534.8621243 | X34: ='Working | Base case'!X519/'Working | Base case'!X411*Inputs!X27 -> 483.5059106 | Y34: ='Working | Base case'!Y519/'Working | Base case'!Y411*Inputs!Y27 -> 484.8920067 | Z34: ='Working | Base case'!Z519/'Working | Base case'!Z411*Inputs!Z27 -> 484.6601809 | AA34: ='Working | Base case'!AA519/'Working | Base case'!AA411*Inputs!AA27 -> 480.7260086 | AB34: ='Working | Base case'!AB519/'Working | Base case'!AB411*Inputs!AB27 -> 479.5051018 | AC34: ='Working | Base case'!AC519/'Working | Base case'!AC411*Inputs!AC27 -> 480.4194581 | AD34: ='Working | Base case'!AD519/'Working | Base case'!AD411*Inputs!AD27 -> 484.1844087 | AE34: ='Working | Base case'!AE519/'Working | Base case'!AE411*Inputs!AE27 -> 477.4400642 | AF34: ='Working | Base case'!AF519/'Working | Base case'!AF411*Inputs!AF27 -> 485.6782486 | AG34: ='Working | Base case'!AG519/'Working | Base case'!AG411*Inputs!AG27 -> 495.1133113 | AH34: ='Working | Base case'!AH519/'Working | Base case'!AH411*Inputs!AH27 -> 279.5353133 | AI34: ='Working | Base case'!AI519/'Working | Base case'!AI411*Inputs!AI27 -> 274.5725691 | AJ34: ='Working | Base case'!AJ519/'Working | Base case'!AJ411*Inputs!AJ27 -> 269.6391799 | AK34: ='Working | Base case'!AK519/'Working | Base case'!AK411*Inputs!AK27 -> 266.304125 | AL34: ='Working | Base case'!AL519/'Working | Base case'!AL411*Inputs!AL27 -> 259.7794724 | AM34: ='Working | Base case'!AM519/'Working | Base case'!AM411*Inputs!AM27 -> 245.8211237 | AN34: ='Working | Base case'!AN519/'Working | Base case'!AN411*Inputs!AN27 -> 234.2493071 | AO34: ='Working | Base case'!AO519/'Working | Base case'!AO411*Inputs!AO27 -> 225.3235447 | AP34: ='Working | Base case'!AP519/'Working | Base case'!AP411*Inputs!AP27 -> 213.2209982 | AQ34: ='Working | Base case'!AQ519/'Working | Base case'!AQ411*Inputs!AQ27 -> 200.6871774 | AR34: ='Working | Base case'!AR519/'Working | Base case'!AR411*Inputs!AR27 -> 185.3670835 | AS34: ='Working | Base case'!AS519/'Working | Base case'!AS411*Inputs!AS27 -> 171.4235963 | AT34: ='Working | Base case'!AT519/'Working | Base case'!AT411*Inputs!AT27 -> 159.45175 | AU34: ='Working | Base case'!AU519/'Working | Base case'!AU411*Inputs!AU27 -> 143.6445728 | AV34: ='Working | Base case'!AV519/'Working | Base case'!AV411*Inputs!AV27 -> 153.9195734 | AW34: ='Working | Base case'!AW519/'Working | Base case'!AW411*Inputs!AW27 -> 103.6444769 | AX34: ='Working | Base case'!AX519/'Working | Base case'!AX411*Inputs!AX27 -> 85.95228366 | AY34: ='Working | Base case'!AY519/'Working | Base case'!AY411*Inputs!AY27 -> 64.73411777 | AZ34: ='Working | Base case'!AZ519/'Working | Base case'!AZ411*Inputs!AZ27 -> 42.82919011 | BA34: ='Working | Base case'!BA519/'Working | Base case'!BA411*Inputs!BA27 -> 21.62897542 | BB34: ='Working | Base case'!BB519/'Working | Base case'!BB411*Inputs!BB27 -> -1.740259258e-13 | BC34: ='Working | Base case'!BC519/'Working | Base case'!BC411*Inputs!BC27 -> -1.797414948e-13 | BD34: ='Working | Base case'!BD519/'Working | Base case'!BD411*Inputs!BD27 -> -1.799804817e-13 | BE34: ='Working | Base case'!BE519/'Working | Base case'!BE411*Inputs!BE27 -> -1.815206658e-13 | BF34: ='Working | Base case'!BF519/'Working | Base case'!BF411*Inputs!BF27 -> -1.874380579e-13 | BG34: ='Working | Base case'!BG519/'Working | Base case'!BG411*Inputs!BG27 -> -1.900745877e-13 | BH34: ='Working | Base case'!BH519/'Working | Base case'!BH411*Inputs!BH27 -> -1.896213255e-13 | BI34: ='Working | Base case'!BI519/'Working | Base case'!BI411*Inputs!BI27 -> -1.979679307e-13 | BJ34: ='Working | Base case'!BJ519/'Working | Base case'!BJ411*Inputs!BJ27 -> -2.014752615e-13 | BK34: ='Working | Base case'!BK519/'Working | Base case'!BK411*Inputs!BK27 -> -2.094594639e-13 | BL34: ='Working | Base case'!BL519/'Working | Base case'!BL411*Inputs!BL27 -> -2.213747438e-13 | BM34: ='Working | Base case'!BM519/'Working | Base case'!BM411*Inputs!BM27 -> -2.23331598e-13 | BN34: ='Working | Base case'!BN519/'Working | Base case'!BN411*Inputs!BN27 -> -2.318666826e-13 | BO34: ='Working | Base case'!BO519/'Working | Base case'!BO411*Inputs!BO27 -> -2.339464689e-13 | BP34: ='Working | Base case'!BP519/'Working | Base case'!BP411*Inputs!BP27 -> -2.445536249e-13 | BQ34: ='Working | Base case'!BQ519/'Working | Base case'!BQ411*Inputs!BQ27 -> -2.452039899e-13 | BR34: ='Working | Base case'!BR519/'Working | Base case'!BR411*Inputs!BR27 -> -2.523122754e-13 | BS34: ='Working | Base case'!BS519/'Working | Base case'!BS411*Inputs!BS27 -> -2.654993193e-13 | BT34: ='Working | Base case'!BT519/'Working | Base case'!BT411*Inputs!BT27 -> -2.677814673e-13 | BU34: ='Working | Base case'!BU519/'Working | Base case'!BU411*Inputs!BU27 -> -2.719289161e-13
A35: Capex | C35: ='Working | Base case'!D121 -> 3000 | D35: ='Working | Base case'!D122 -> 102.4464889 | E35: ='Working | Base case'!E122 -> 107.5522017 | F35: ='Working | Base case'!F122 -> 114.1900358 | G35: ='Working | Base case'!G122 -> 117.2664085 | H35: ='Working | Base case'!H122 -> 122.7710387 | I35: ='Working | Base case'!I258 -> 129.9724695 | J35: ='Working | Base case'!J258 -> 134.9975986 | K35: ='Working | Base case'!K258 -> 143.2956117 | L35: ='Working | Base case'!L258 -> 150.0365203 | M35: ='Working | Base case'!M258 -> 162.2590254 | N35: ='Working | Base case'!N394 -> 169.0775255 | O35: ='Working | Base case'!O394 -> 180.2664588 | P35: ='Working | Base case'!P394 -> 190.9311391 | Q35: ='Working | Base case'!Q394 -> 204.0982099 | R35: ='Working | Base case'!R394 -> 219.6666012 | S35: ='Working | Base case'!S530 -> 234.363404 | T35: ='Working | Base case'!T530 -> 252.0249801 | U35: ='Working | Base case'!U530 -> 266.0247605 | V35: ='Working | Base case'!V530 -> 279.3967964 | W35: ='Working | Base case'!W530 -> 299.6847553 | X35: 0 | Y35: 0 | Z35: 0 | AA35: 0 | AB35: 0 | AC35: 0 | AD35: 0 | AE35: 0 | AF35: 0 | AG35: 0 | AH35: 0 | AI35: 0 | AJ35: 0 | AK35: 0 | AL35: 0 | AM35: 0 | AN35: 0 | AO35: 0 | AP35: 0 | AQ35: 0 | AR35: 0 | AS35: 0 | AT35: 0 | AU35: 0 | AV35: 0 | AW35: 0 | AX35: 0 | AY35: 0 | AZ35: 0 | BA35: 0 | BB35: 0 | BC35: 0 | BD35: 0 | BE35: 0 | BF35: 0 | BG35: 0 | BH35: 0 | BI35: 0 | BJ35: 0 | BK35: 0 | BL35: 0 | BM35: 0 | BN35: 0 | BO35: 0 | BP35: 0 | BQ35: 0 | BR35: 0 | BS35: 0 | BT35: 0 | BU35: 0
A36: Interest Payments | C36: 0 | D36: =('Working | Base case'!D121*Inputs!$C$9)*Inputs!D9 -> 90 | E36: =('Working | Base case'!E121*Inputs!$C$9)*Inputs!E9 -> 91.43749025 | F36: =('Working | Base case'!F121*Inputs!$C$9)*Inputs!F9 -> 93.94912979 | G36: =('Working | Base case'!G121*Inputs!$C$9)*Inputs!G9 -> 93.36793159 | H36: =('Working | Base case'!H121*Inputs!$C$9)*Inputs!H9 -> 94.59748809 | I36: =('Working | Base case'!I257*Inputs!$C$9)*Inputs!I9 -> 96.91580467 | J36: =('Working | Base case'!J257*Inputs!$C$9)*Inputs!J9 -> 97.41551302 | K36: =('Working | Base case'!K257*Inputs!$C$9)*Inputs!K9 -> 100.0676794 | L36: =('Working | Base case'!L257*Inputs!$C$9)*Inputs!L9 -> 101.3950538 | M36: =('Working | Base case'!M257*Inputs!$C$9)*Inputs!M9 -> 106.1176251 | N36: =('Working | Base case'!N393*Inputs!$C$9)*Inputs!N9 -> 107.0097594 | O36: =('Working | Base case'!O393*Inputs!$C$9)*Inputs!O9 -> 110.4904396 | P36: =('Working | Base case'!P393*Inputs!$C$9)*Inputs!P9 -> 113.3341133 | Q36: =('Working | Base case'!Q393*Inputs!$C$9)*Inputs!Q9 -> 117.3259524 | R36: =('Working | Base case'!R393*Inputs!$C$9)*Inputs!R9 -> 122.2890551 | S36: =('Working | Base case'!S529*Inputs!$C$9)*Inputs!S9 -> 126.3526969 | T36: =('Working | Base case'!T529*Inputs!$C$9)*Inputs!T9 -> 131.4200881 | U36: =('Working | Base case'!U529*Inputs!$C$9)*Inputs!U9 -> 134.1711396 | V36: =('Working | Base case'!V529*Inputs!$C$9)*Inputs!V9 -> 136.2937708 | W36: =('Working | Base case'!W529*Inputs!$C$9)*Inputs!W9 -> 141.3974853 | X36: =('Working | Base case'!X529*Inputs!$C$9)*Inputs!$W$9 -> 145.549295 | Y36: =('Working | Base case'!Y529*Inputs!$C$9)*Inputs!$W$9 -> 138.6136728 | Z36: =('Working | Base case'!Z529*Inputs!$C$9)*Inputs!$W$9 -> 130.9868897 | AA36: =('Working | Base case'!AA529*Inputs!$C$9)*Inputs!$W$9 -> 122.1483001 | AB36: =('Working | Base case'!AB529*Inputs!$C$9)*Inputs!$W$9 -> 113.9147894 | AC36: =('Working | Base case'!AC529*Inputs!$C$9)*Inputs!$W$9 -> 105.9930718 | AD36: =('Working | Base case'!AD529*Inputs!$C$9)*Inputs!$W$9 -> 98.41205299 | AE36: =('Working | Base case'!AE529*Inputs!$C$9)*Inputs!$W$9 -> 88.22574075 | AF36: =('Working | Base case'!AF529*Inputs!$C$9)*Inputs!$W$9 -> 80.79046107 | AG36: =('Working | Base case'!AG529*Inputs!$C$9)*Inputs!$W$9 -> 72.89973348 | AH36: =('Working | Base case'!AH529*Inputs!$C$9)*Inputs!$W$9 -> 64.193946 | AI36: =('Working | Base case'!AI529*Inputs!$C$9)*Inputs!$W$9 -> 60.69505367 | AJ36: =('Working | Base case'!AJ529*Inputs!$C$9)*Inputs!$W$9 -> 56.8545819 | AK36: =('Working | Base case'!AK529*Inputs!$C$9)*Inputs!$W$9 -> 53.47138309 | AL36: =('Working | Base case'!AL529*Inputs!$C$9)*Inputs!$W$9 -> 49.44152593 | AM36: =('Working | Base case'!AM529*Inputs!$C$9)*Inputs!$W$9 -> 44.03896556 | AN36: =('Working | Base case'!AN529*Inputs!$C$9)*Inputs!$W$9 -> 39.37564962 | AO36: =('Working | Base case'!AO529*Inputs!$C$9)*Inputs!$W$9 -> 35.39818746 | AP36: =('Working | Base case'!AP529*Inputs!$C$9)*Inputs!$W$9 -> 31.07311135 | AQ36: =('Working | Base case'!AQ529*Inputs!$C$9)*Inputs!$W$9 -> 26.90774607 | AR36: =('Working | Base case'!AR529*Inputs!$C$9)*Inputs!$W$9 -> 22.61610493 | AS36: =('Working | Base case'!AS529*Inputs!$C$9)*Inputs!$W$9 -> 18.83612406 | AT36: =('Working | Base case'!AT529*Inputs!$C$9)*Inputs!$W$9 -> 15.61498313 | AU36: =('Working | Base case'!AU529*Inputs!$C$9)*Inputs!$W$9 -> 12.22383962 | AV36: =('Working | Base case'!AV529*Inputs!$C$9)*Inputs!$W$9 -> 8.885413236 | AW36: =('Working | Base case'!AW529*Inputs!$C$9)*Inputs!$W$9 -> 5.786967963 | AX36: =('Working | Base case'!AX529*Inputs!$C$9)*Inputs!$W$9 -> 3.387420024 | AY36: =('Working | Base case'!AY529*Inputs!$C$9)*Inputs!$W$9 -> 1.194320873 | AZ36: =('Working | Base case'!AZ529*Inputs!$C$9)*Inputs!$W$9 -> -0.5274548509 | BA36: =('Working | Base case'!BA529*Inputs!$C$9)*Inputs!$W$9 -> -1.756816478 | BB36: =('Working | Base case'!BB529*Inputs!$C$9)*Inputs!$W$9 -> -0.08881407199 | BC36: =('Working | Base case'!BC529*Inputs!$C$9)*Inputs!$W$9 -> -0.002916938701 | BD36: =('Working | Base case'!BD529*Inputs!$C$9)*Inputs!$W$9 -> -3.878404843e-06 | BE36: =('Working | Base case'!BE529*Inputs!$C$9)*Inputs!$W$9 -> -3.318947376e-08 | BF36: =('Working | Base case'!BF529*Inputs!$C$9)*Inputs!$W$9 -> -1.081943637e-09 | BG36: =('Working | Base case'!BG529*Inputs!$C$9)*Inputs!$W$9 -> -1.521876951e-11 | BH36: =('Working | Base case'!BH529*Inputs!$C$9)*Inputs!$W$9 -> 3.629150674e-14 | BI36: =('Working | Base case'!BI529*Inputs!$C$9)*Inputs!$W$9 -> 1.59745155e-15 | BJ36: =('Working | Base case'!BJ529*Inputs!$C$9)*Inputs!$W$9 -> 2.830150802e-17 | BK36: =('Working | Base case'!BK529*Inputs!$C$9)*Inputs!$W$9 -> 1.121551929e-18 | BL36: =('Working | Base case'!BL529*Inputs!$C$9)*Inputs!$W$9 -> 6.380043646e-20 | BM36: =('Working | Base case'!BM529*Inputs!$C$9)*Inputs!$W$9 -> 5.639674385e-22 | BN36: =('Working | Base case'!BN529*Inputs!$C$9)*Inputs!$W$9 -> 2.155319648e-23 | BO36: =('Working | Base case'!BO529*Inputs!$C$9)*Inputs!$W$9 -> 1.933267991e-25 | BP36: =('Working | Base case'!BP529*Inputs!$C$9)*Inputs!$W$9 -> 8.765456115e-27 | BQ36: =('Working | Base case'!BQ529*Inputs!$C$9)*Inputs!$W$9 -> 2.331082423e-29 | BR36: =('Working | Base case'!BR529*Inputs!$C$9)*Inputs!$W$9 -> 6.757638546e-31 | BS36: =('Working | Base case'!BS529*Inputs!$C$9)*Inputs!$W$9 -> 3.531864462e-32 | BT36: =('Working | Base case'!BT529*Inputs!$C$9)*Inputs!$W$9 -> 3.035878765e-34 | BU36: =('Working | Base case'!BU529*Inputs!$C$9)*Inputs!$W$9 -> 4.702025094e-36
A37: Repayment of Debt | C37: =('Working | Base case'!C121-'Working | Base case'!D121)*Inputs!$C$9 -> -1800 | D37: =('Working | Base case'!D121-'Working | Base case'!E121)*Inputs!$C$9 -> -28.74980492 | E37: =('Working | Base case'!E121-'Working | Base case'!F121)*Inputs!$C$9 -> -50.23279092 | F37: =('Working | Base case'!F121-'Working | Base case'!G121)*Inputs!$C$9 -> 11.62396402 | G37: =('Working | Base case'!G121-'Working | Base case'!H121)*Inputs!$C$9 -> -24.59113001 | H37: =('Working | Base case'!H121-'Working | Base case'!I257)*Inputs!$C$9 -> -46.36633152 | I37: =('Working | Base case'!I257-'Working | Base case'!J257)*Inputs!$C$9 -> -9.994166987 | J37: =('Working | Base case'!J257-'Working | Base case'!K257)*Inputs!$C$9 -> -53.04332694 | K37: =('Working | Base case'!K257-'Working | Base case'!L257)*Inputs!$C$9 -> -26.54748942 | L37: =('Working | Base case'!L257-'Working | Base case'!M257)*Inputs!$C$9 -> -94.45142482 | M37: =('Working | Base case'!M257-'Working | Base case'!N393)*Inputs!$C$9 -> -17.84268658 | N37: =('Working | Base case'!N393-'Working | Base case'!O393)*Inputs!$C$9 -> -69.6136037 | O37: =('Working | Base case'!O393-'Working | Base case'!P393)*Inputs!$C$9 -> -56.87347501 | P37: =('Working | Base case'!P393-'Working | Base case'!Q393)*Inputs!$C$9 -> -79.83678032 | Q37: =('Working | Base case'!Q393-'Working | Base case'!R393)*Inputs!$C$9 -> -99.26205585 | R37: =('Working | Base case'!R393-'Working | Base case'!S529)*Inputs!$C$9 -> -81.27283544 | S37: =('Working | Base case'!S529-'Working | Base case'!T529)*Inputs!$C$9 -> -101.3478239 | T37: =('Working | Base case'!T529-'Working | Base case'!U529)*Inputs!$C$9 -> -55.02102969 | U37: =('Working | Base case'!U529-'Working | Base case'!V529)*Inputs!$C$9 -> -42.45262425 | V37: =('Working | Base case'!V529-'Working | Base case'!W529)*Inputs!$C$9 -> -102.0742888 | W37: =('Working | Base case'!W529-'Working | Base case'!X529)*Inputs!$C$9 -> -83.0361948 | X37: =('Working | Base case'!X529-'Working | Base case'!Y529)*Inputs!$C$9 -> 138.7124446 | Y37: =('Working | Base case'!Y529-'Working | Base case'!Z529)*Inputs!$C$9 -> 152.535661 | Z37: =('Working | Base case'!Z529-'Working | Base case'!AA529)*Inputs!$C$9 -> 176.771792 | AA37: =('Working | Base case'!AA529-'Working | Base case'!AB529)*Inputs!$C$9 -> 164.6702144 | AB37: =('Working | Base case'!AB529-'Working | Base case'!AC529)*Inputs!$C$9 -> 158.4343524 | AC37: =('Working | Base case'!AC529-'Working | Base case'!AD529)*Inputs!$C$9 -> 151.6203758 | AD37: =('Working | Base case'!AD529-'Working | Base case'!AE529)*Inputs!$C$9 -> 203.7262448 | AE37: =('Working | Base case'!AE529-'Working | Base case'!AF529)*Inputs!$C$9 -> 148.7055935 | AF37: =('Working | Base case'!AF529-'Working | Base case'!AG529)*Inputs!$C$9 -> 157.8145518 | AG37: =('Working | Base case'!AG529-'Working | Base case'!AH529)*Inputs!$C$9 -> 174.1157496 | AH37: =('Working | Base case'!AH529-'Working | Base case'!AI529)*Inputs!$C$9 -> 69.9778465 | AI37: =('Working | Base case'!AI529-'Working | Base case'!AJ529)*Inputs!$C$9 -> 76.80943552 | AJ37: =('Working | Base case'!AJ529-'Working | Base case'!AK529)*Inputs!$C$9 -> 67.66397611 | AK37: =('Working | Base case'!AK529-'Working | Base case'!AL529)*Inputs!$C$9 -> 80.59714335 | AL37: =('Working | Base case'!AL529-'Working | Base case'!AM529)*Inputs!$C$9 -> 108.0512073 | AM37: =('Working | Base case'!AM529-'Working | Base case'!AN529)*Inputs!$C$9 -> 93.26631893 | AN37: =('Working | Base case'!AN529-'Working | Base case'!AO529)*Inputs!$C$9 -> 79.54924321 | AO37: =('Working | Base case'!AO529-'Working | Base case'!AP529)*Inputs!$C$9 -> 86.50152213 | AP37: =('Working | Base case'!AP529-'Working | Base case'!AQ529)*Inputs!$C$9 -> 83.30730559 | AQ37: =('Working | Base case'!AQ529-'Working | Base case'!AR529)*Inputs!$C$9 -> 85.83282283 | AR37: =('Working | Base case'!AR529-'Working | Base case'!AS529)*Inputs!$C$9 -> 75.59961744 | AS37: =('Working | Base case'!AS529-'Working | Base case'!AT529)*Inputs!$C$9 -> 64.42281854 | AT37: =('Working | Base case'!AT529-'Working | Base case'!AU529)*Inputs!$C$9 -> 67.82287008 | AU37: =('Working | Base case'!AU529-'Working | Base case'!AV529)*Inputs!$C$9 -> 66.76852778 | AV37: =('Working | Base case'!AV529-'Working | Base case'!AW529)*Inputs!$C$9 -> 61.96890546 | AW37: =('Working | Base case'!AW529-'Working | Base case'!AX529)*Inputs!$C$9 -> 47.99095878 | AX37: =('Working | Base case'!AX529-'Working | Base case'!AY529)*Inputs!$C$9 -> 43.86198301 | AY37: =('Working | Base case'!AY529-'Working | Base case'!AZ529)*Inputs!$C$9 -> 34.43551448 | AZ37: =('Working | Base case'!AZ529-'Working | Base case'!BA529)*Inputs!$C$9 -> 24.58723254 | BA37: =('Working | Base case'!BA529-'Working | Base case'!BB529)*Inputs!$C$9 -> -33.36004812 | BB37: =('Working | Base case'!BB529-'Working | Base case'!BC529)*Inputs!$C$9 -> -1.717942666 | BC37: =('Working | Base case'!BC529-'Working | Base case'!BD529)*Inputs!$C$9 -> -0.05826120592 | BD37: =('Working | Base case'!BD529-'Working | Base case'!BE529)*Inputs!$C$9 -> -7.690430738e-05 | BE37: =('Working | Base case'!BE529-'Working | Base case'!BF529)*Inputs!$C$9 -> -6.421506025e-07 | BF37: =('Working | Base case'!BF529-'Working | Base case'!BG529)*Inputs!$C$9 -> -2.133449735e-08 | BG37: =('Working | Base case'!BG529-'Working | Base case'!BH529)*Inputs!$C$9 -> -3.051012203e-10 | BH37: =('Working | Base case'!BH529-'Working | Base case'!BI529)*Inputs!$C$9 -> 6.938811037e-13 | BI37: =('Working | Base case'!BI529-'Working | Base case'!BJ529)*Inputs!$C$9 -> 3.138300084e-14 | BJ37: =('Working | Base case'!BJ529-'Working | Base case'!BK529)*Inputs!$C$9 -> 5.435991218e-16 | BK37: =('Working | Base case'!BK529-'Working | Base case'!BL529)*Inputs!$C$9 -> 2.115502985e-17 | BL37: =('Working | Base case'!BL529-'Working | Base case'!BM529)*Inputs!$C$9 -> 1.26472938e-18 | BM37: =('Working | Base case'!BM529-'Working | Base case'!BN529)*Inputs!$C$9 -> 1.084828484e-20 | BN37: =('Working | Base case'!BN529-'Working | Base case'!BO529)*Inputs!$C$9 -> 4.271973937e-22 | BO37: =('Working | Base case'!BO529-'Working | Base case'!BP529)*Inputs!$C$9 -> 3.69122686e-24 | BP37: =('Working | Base case'!BP529-'Working | Base case'!BQ529)*Inputs!$C$9 -> 1.748429058e-25 | BQ37: =('Working | Base case'!BQ529-'Working | Base case'!BR529)*Inputs!$C$9 -> 4.527012075e-28 | BR37: =('Working | Base case'!BR529-'Working | Base case'!BS529)*Inputs!$C$9 -> 1.28089042e-29 | BS37: =('Working | Base case'!BS529-'Working | Base case'!BT529)*Inputs!$C$9 -> 7.003011348e-31 | BT37: =('Working | Base case'!BT529-'Working | Base case'!BU529)*Inputs!$C$9 -> 5.977717028e-33 | BU37: =('Working | Base case'!BU529-'Working | Base case'!BV529)*Inputs!$C$9 -> 9.404050188e-35
A38: Opex | C38: 0 | D38: ='Working | Base case'!D102/'Working | Base case'!D4*Inputs!D27 -> 51.22324445 | E38: ='Working | Base case'!E102/'Working | Base case'!E4*Inputs!E27 -> 52.04138794 | F38: ='Working | Base case'!F102/'Working | Base case'!F4*Inputs!F27 -> 53.47088046 | G38: ='Working | Base case'!G102/'Working | Base case'!G4*Inputs!G27 -> 53.14009315 | H38: ='Working | Base case'!H102/'Working | Base case'!H4*Inputs!H27 -> 53.83989174 | I38: ='Working | Base case'!I238/'Working | Base case'!I139*Inputs!I27 -> 55.15935504 | J38: ='Working | Base case'!J238/'Working | Base case'!J139*Inputs!J27 -> 55.44385421 | K38: ='Working | Base case'!K238/'Working | Base case'!K139*Inputs!K27 -> 56.95342171 | L38: ='Working | Base case'!L238/'Working | Base case'!L139*Inputs!L27 -> 57.70899016 | M38: ='Working | Base case'!M238/'Working | Base case'!M139*Inputs!M27 -> 60.39693718 | N38: ='Working | Base case'!N374/'Working | Base case'!N275*Inputs!N27 -> 60.90479648 | O38: ='Working | Base case'!O374/'Working | Base case'!O275*Inputs!O27 -> 62.84056794 | P38: ='Working | Base case'!P374/'Working | Base case'!P275*Inputs!P27 -> 64.41121607 | Q38: ='Working | Base case'!Q374/'Working | Base case'!Q275*Inputs!Q27 -> 66.63209858 | R38: ='Working | Base case'!R374/'Working | Base case'!R275*Inputs!R27 -> 69.40134499 | S38: ='Working | Base case'!S510/'Working | Base case'!S411*Inputs!S27 -> 71.65610785 | T38: ='Working | Base case'!T510/'Working | Base case'!T411*Inputs!T27 -> 74.57041629 | U38: ='Working | Base case'!U510/'Working | Base case'!U411*Inputs!U27 -> 76.17362092 | V38: ='Working | Base case'!V510/'Working | Base case'!V411*Inputs!V27 -> 77.42184605 | W38: ='Working | Base case'!W510/'Working | Base case'!W411*Inputs!W27 -> 80.36488222 | X38: 0 | Y38: 0 | Z38: 0 | AA38: 0 | AB38: 0 | AC38: 0 | AD38: 0 | AE38: 0 | AF38: 0 | AG38: 0 | AH38: 0 | AI38: 0 | AJ38: 0 | AK38: 0 | AL38: 0 | AM38: 0 | AN38: 0 | AO38: 0 | AP38: 0 | AQ38: 0 | AR38: 0 | AS38: 0 | AT38: 0 | AU38: 0 | AV38: 0 | AW38: 0 | AX38: 0 | AY38: 0 | AZ38: 0 | BA38: 0 | BB38: 0 | BC38: 0 | BD38: 0 | BE38: 0 | BF38: 0 | BG38: 0 | BH38: 0 | BI38: 0 | BJ38: 0 | BK38: 0 | BL38: 0 | BM38: 0 | BN38: 0 | BO38: 0 | BP38: 0 | BQ38: 0 | BR38: 0 | BS38: 0 | BT38: 0 | BU38: 0
A39: Tax payable+ gamma | C39: 0 | D39: ='Working | Base case'!D103/'Working | Base case'!D4*Inputs!D27 -> 0.7817161847 | E39: ='Working | Base case'!E103/'Working | Base case'!E4*Inputs!E27 -> 0.6913320294 | F39: ='Working | Base case'!F103/'Working | Base case'!F4*Inputs!F27 -> 0.6673638018 | G39: ='Working | Base case'!G103/'Working | Base case'!G4*Inputs!G27 -> 0.6777314371 | H39: ='Working | Base case'!H103/'Working | Base case'!H4*Inputs!H27 -> 0.7545710727 | I39: ='Working | Base case'!I239/'Working | Base case'!I139*Inputs!I27 -> 0.1246333568 | J39: ='Working | Base case'!J239/'Working | Base case'!J139*Inputs!J27 -> 0.3164421439 | K39: ='Working | Base case'!K239/'Working | Base case'!K139*Inputs!K27 -> 0.5644796266 | L39: ='Working | Base case'!L239/'Working | Base case'!L139*Inputs!L27 -> 0.8549726453 | M39: ='Working | Base case'!M239/'Working | Base case'!M139*Inputs!M27 -> 1.230263948 | N39: ='Working | Base case'!N375/'Working | Base case'!N275*Inputs!N27 -> 1.184499467 | O39: ='Working | Base case'!O375/'Working | Base case'!O275*Inputs!O27 -> 1.641488266 | P39: ='Working | Base case'!P375/'Working | Base case'!P275*Inputs!P27 -> 2.147146167 | Q39: ='Working | Base case'!Q375/'Working | Base case'!Q275*Inputs!Q27 -> 2.735740733 | R39: ='Working | Base case'!R375/'Working | Base case'!R275*Inputs!R27 -> 3.418791412 | S39: ='Working | Base case'!S511/'Working | Base case'!S411*Inputs!S27 -> 5.546527766 | T39: ='Working | Base case'!T511/'Working | Base case'!T411*Inputs!T27 -> 6.4090633 | U39: ='Working | Base case'!U511/'Working | Base case'!U411*Inputs!U27 -> 7.232742481 | V39: ='Working | Base case'!V511/'Working | Base case'!V411*Inputs!V27 -> 8.082755935 | W39: ='Working | Base case'!W511/'Working | Base case'!W411*Inputs!W27 -> 9.183698524 | X39: =SUM('Working | Base case'!X477:X478)/'Working | Base case'!X411*Inputs!X27 -> 10.31033587 | Y39: =SUM('Working | Base case'!Y477:Y478)/'Working | Base case'!Y411*Inputs!Y27 -> 12.77979733 | Z39: =SUM('Working | Base case'!Z477:Z478)/'Working | Base case'!Z411*Inputs!Z27 -> 15.1093335 | AA39: =SUM('Working | Base case'!AA477:AA478)/'Working | Base case'!AA411*Inputs!AA27 -> 17.21442977 | AB39: =SUM('Working | Base case'!AB477:AB478)/'Working | Base case'!AB411*Inputs!AB27 -> 19.31635748 | AC39: =SUM('Working | Base case'!AC477:AC478)/'Working | Base case'!AC411*Inputs!AC27 -> 21.43778644 | AD39: =SUM('Working | Base case'!AD477:AD478)/'Working | Base case'!AD411*Inputs!AD27 -> 23.65186199 | AE39: =SUM('Working | Base case'!AE477:AE478)/'Working | Base case'!AE411*Inputs!AE27 -> 25.29591904 | AF39: =SUM('Working | Base case'!AF477:AF478)/'Working | Base case'!AF411*Inputs!AF27 -> 27.70483603 | AG39: =SUM('Working | Base case'!AG477:AG478)/'Working | Base case'!AG411*Inputs!AG27 -> 30.22746007 | AH39: =SUM('Working | Base case'!AH477:AH478)/'Working | Base case'!AH411*Inputs!AH27 -> 17.3602969 | AI39: =SUM('Working | Base case'!AI477:AI478)/'Working | Base case'!AI411*Inputs!AI27 -> 16.20522108 | AJ39: =SUM('Working | Base case'!AJ477:AJ478)/'Working | Base case'!AJ411*Inputs!AJ27 -> 16.61264254 | AK39: =SUM('Working | Base case'!AK477:AK478)/'Working | Base case'!AK411*Inputs!AK27 -> 16.98942962 | AL39: =SUM('Working | Base case'!AL477:AL478)/'Working | Base case'!AL411*Inputs!AL27 -> 17.20452189 | AM39: =SUM('Working | Base case'!AM477:AM478)/'Working | Base case'!AM411*Inputs!AM27 -> 16.79194398 | AN39: =SUM('Working | Base case'!AN477:AN478)/'Working | Base case'!AN411*Inputs!AN27 -> 16.39344341 | AO39: =SUM('Working | Base case'!AO477:AO478)/'Working | Base case'!AO411*Inputs!AO27 -> 16.17922268 | AP39: =SUM('Working | Base case'!AP477:AP478)/'Working | Base case'!AP411*Inputs!AP27 -> 15.56767783 | AQ39: =SUM('Working | Base case'!AQ477:AQ478)/'Working | Base case'!AQ411*Inputs!AQ27 -> 14.92116637 | AR39: =SUM('Working | Base case'!AR477:AR478)/'Working | Base case'!AR411*Inputs!AR27 -> 13.81362104 | AS39: =SUM('Working | Base case'!AS477:AS478)/'Working | Base case'!AS411*Inputs!AS27 -> 12.8747838 | AT39: =SUM('Working | Base case'!AT477:AT478)/'Working | Base case'!AT411*Inputs!AT27 -> 11.88281122 | AU39: =SUM('Working | Base case'!AU477:AU478)/'Working | Base case'!AU411*Inputs!AU27 -> 10.53814372 | AV39: =SUM('Working | Base case'!AV477:AV478)/'Working | Base case'!AV411*Inputs!AV27 -> 37.96913646 | AW39: =SUM('Working | Base case'!AW477:AW478)/'Working | Base case'!AW411*Inputs!AW27 -> 6.785509793 | AX39: =SUM('Working | Base case'!AX477:AX478)/'Working | Base case'!AX411*Inputs!AX27 -> 4.877391783 | AY39: =SUM('Working | Base case'!AY477:AY478)/'Working | Base case'!AY411*Inputs!AY27 -> 2.664425109 | AZ39: =SUM('Working | Base case'!AZ477:AZ478)/'Working | Base case'!AZ411*Inputs!AZ27 -> 0.2450794985 | BA39: =SUM('Working | Base case'!BA477:BA478)/'Working | Base case'!BA411*Inputs!BA27 -> 0 | BB39: =SUM('Working | Base case'!BB477:BB478)/'Working | Base case'!BB411*Inputs!BB27 -> 0 | BC39: =SUM('Working | Base case'!BC477:BC478)/'Working | Base case'!BC411*Inputs!BC27 -> 0 | BD39: =SUM('Working | Base case'!BD477:BD478)/'Working | Base case'!BD411*Inputs!BD27 -> 0 | BE39: =SUM('Working | Base case'!BE477:BE478)/'Working | Base case'!BE411*Inputs!BE27 -> 0 | BF39: =SUM('Working | Base case'!BF477:BF478)/'Working | Base case'!BF411*Inputs!BF27 -> 0 | BG39: =SUM('Working | Base case'!BG477:BG478)/'Working | Base case'!BG411*Inputs!BG27 -> 0 | BH39: =SUM('Working | Base case'!BH477:BH478)/'Working | Base case'!BH411*Inputs!BH27 -> 0 | BI39: =SUM('Working | Base case'!BI477:BI478)/'Working | Base case'!BI411*Inputs!BI27 -> 0 | BJ39: =SUM('Working | Base case'!BJ477:BJ478)/'Working | Base case'!BJ411*Inputs!BJ27 -> 0 | BK39: =SUM('Working | Base case'!BK477:BK478)/'Working | Base case'!BK411*Inputs!BK27 -> 0 | BL39: =SUM('Working | Base case'!BL477:BL478)/'Working | Base case'!BL411*Inputs!BL27 -> 0 | BM39: =SUM('Working | Base case'!BM477:BM478)/'Working | Base case'!BM411*Inputs!BM27 -> 0 | BN39: =SUM('Working | Base case'!BN477:BN478)/'Working | Base case'!BN411*Inputs!BN27 -> 0 | BO39: =SUM('Working | Base case'!BO477:BO478)/'Working | Base case'!BO411*Inputs!BO27 -> 0 | BP39: =SUM('Working | Base case'!BP477:BP478)/'Working | Base case'!BP411*Inputs!BP27 -> 0 | BQ39: =SUM('Working | Base case'!BQ477:BQ478)/'Working | Base case'!BQ411*Inputs!BQ27 -> 0 | BR39: =SUM('Working | Base case'!BR477:BR478)/'Working | Base case'!BR411*Inputs!BR27 -> 0 | BS39: =SUM('Working | Base case'!BS477:BS478)/'Working | Base case'!BS411*Inputs!BS27 -> 0 | BT39: =SUM('Working | Base case'!BT477:BT478)/'Working | Base case'!BT411*Inputs!BT27 -> 0 | BU39: =SUM('Working | Base case'!BU477:BU478)/'Working | Base case'!BU411*Inputs!BU27 -> 0
A40: Returns achieved
A41: Post-tax CF to Equity | B41: =IRR(C41:BU41) -> 0.06016836886 | C41: =C34-C35-C36-C37-C38-C39 -> -1200 | D41: =D34-D35-D36-D37-D38-D39 -> 31.83047989 | E41: 53.48987667 | F41: -8.278402778 | G41: 27.78604584 | H41: 49.34229931 | I41: 13.31917657 | J41: 56.49784078 | K41: 30.09697718 | L41: 97.93237985 | M41: 21.24169832 | N41: 74.28940113 | O41: 61.91547343 | P41: 85.1174072 | Q41: 104.7259669 | R41: 86.84184576 | S41: 105.6647856 | T41: 59.58357108 | U41: 47.04460792 | V41: 106.523654 | W41: 87.26749779 | X41: 188.9338352 | Y41: 180.9628756 | Z41: 161.7921657 | AA41: 176.6930643 | AB41: 187.8396025 | AC41: 201.3682241 | AD41: 158.3942489 | AE41: 215.212811 | AF41: 219.3683997 | AG41: 217.8703681 | AH41: 128.0032239 | AI41: 120.8628588 | AJ41: 128.5079794 | AK41: 115.246169 | AL41: 85.08221728 | AM41: 91.72389524 | AN41: 98.93097087 | AO41: 87.2446124 | AP41: 83.27290339 | AQ41: 73.02544209 | AR41: 73.33774014 | AS41: 75.28986987 | AT41: 64.13108555 | AU41: 54.11406164 | AV41: 45.09611827 | AW41: 43.0810404 | AX41: 33.82548884 | AY41: 26.43985731 | AZ41: 18.52433292 | BA41: 56.74584001 | BB41: 1.806756738 | BC41: 0.06117814463 | BD41: 8.078271204e-05 | BE41: 6.753398947e-07 | BF41: 2.241625355e-08 | BG41: 3.201299152e-10 | BH41: -9.19793936e-13 | BI41: -2.309483831e-13 | BJ41: -2.020471621e-13 | BK41: -2.094817405e-13 | BL41: -2.213760724e-13 | BM41: -2.233316094e-13 | BN41: -2.31866683e-13 | BO41: -2.339464689e-13 | BP41: =BP34-BP35-BP36-BP37-BP38-BP39 -> -2.445536249e-13 | BQ41: -2.452039899e-13 | BR41: -2.523122754e-13 | BS41: -2.654993193e-13 | BT41: -2.677814673e-13 | BU41: -2.719289161e-13
A42: Real post-tax CF to Equity | B42: =IRR(C42:BU42) -> 0.0365768955 | C42: =C41/Inputs!C27 -> -1200 | D42: =D41/Inputs!D27 -> 31.07034729 | E42: =E41/Inputs!E27 -> 51.39166996 | F42: =F41/Inputs!F27 -> -7.7410384 | G42: =G41/Inputs!G27 -> 26.14414484 | H42: =H41/Inputs!H27 -> 45.82317842 | I42: =I41/Inputs!I27 -> 12.07336141 | J42: =J41/Inputs!J27 -> 50.95049901 | K42: =K41/Inputs!K27 -> 26.42244862 | L42: =L41/Inputs!L27 -> 84.85019369 | M42: =M41/Inputs!M27 -> 17.58507908 | N42: =N41/Inputs!N27 -> 60.98813676 | O42: =O41/Inputs!O27 -> 49.26393527 | P42: =P41/Inputs!P27 -> 66.07343595 | Q42: =Q41/Inputs!Q27 -> 78.5852233 | R42: =R41/Inputs!R27 -> 62.56495877 | S42: =S41/Inputs!S27 -> 73.73048072 | T42: =T41/Inputs!T27 -> 39.95121259 | U42: =U41/Inputs!U27 -> 30.87985535 | V42: =V41/Inputs!V27 -> 68.79431285 | W42: =W41/Inputs!W27 -> 54.29454718 | X42: =X41/Inputs!X27 -> 114.1316006 | Y42: =Y41/Inputs!Y27 -> 107.3145392 | Z42: =Z41/Inputs!Z27 -> 94.44418118 | AA42: =AA41/Inputs!AA27 -> 102.245822 | AB42: =AB41/Inputs!AB27 -> 107.0817734 | AC42: =AC41/Inputs!AC27 -> 112.5173985 | AD42: =AD41/Inputs!AD27 -> 86.18560287 | AE42: =AE41/Inputs!AE27 -> 116.4768015 | AF42: =AF41/Inputs!AF27 -> 114.3994722 | AG42: =AG41/Inputs!AG27 -> 109.174439 | AH42: =AH41/Inputs!AH27 -> 61.66503088 | AI42: =AI41/Inputs!AI27 -> 56.18826946 | AJ42: =AJ41/Inputs!AJ27 -> 57.85508243 | AK42: =AK41/Inputs!AK27 -> 49.78653954 | AL42: =AL41/Inputs!AL27 -> 35.59496073 | AM42: =AM41/Inputs!AM27 -> 38.14718839 | AN42: =AN41/Inputs!AN27 -> 40.41931152 | AO42: =AO41/Inputs!AO27 -> 34.51968379 | AP42: =AP41/Inputs!AP27 -> 32.22263852 | AQ42: =AQ41/Inputs!AQ27 -> 27.59614754 | AR42: =AR41/Inputs!AR27 -> 27.31896938 | AS42: =AS41/Inputs!AS27 -> 27.31516027 | AT42: =AT41/Inputs!AT27 -> 22.21729967 | AU42: =AU41/Inputs!AU27 -> 18.17660263 | AV42: =AV41/Inputs!AV27 -> 14.88831005 | AW42: =AW41/Inputs!AW27 -> 14.15976256 | AX42: =AX41/Inputs!AX27 -> 10.64022288 | AY42: =AY41/Inputs!AY27 -> 8.159045265 | AZ42: =AZ41/Inputs!AZ27 -> 5.562647161 | BA42: =BA41/Inputs!BA27 -> 16.79906937 | BB42: =BB41/Inputs!BB27 -> 0.5091344725 | BC42: =BC41/Inputs!BC27 -> 0.01669147536 | BD42: =BD41/Inputs!BD27 -> 2.201100094e-05 | BE42: =BE41/Inputs!BE27 -> 1.824496787e-07 | BF42: =BF41/Inputs!BF27 -> 5.864784078e-09 | BG42: =BG41/Inputs!BG27 -> 8.259409056e-11 | BH42: =BH41/Inputs!BH27 -> -2.378757316e-13 | BI42: =BI41/Inputs!BI27 -> -5.720932919e-14 | BJ42: =BJ41/Inputs!BJ27 -> -4.917878555e-14 | BK42: =BK41/Inputs!BK27 -> -4.904479899e-14 | BL42: =BL41/Inputs!BL27 -> -4.90398778e-14 | BM42: =BM41/Inputs!BM27 -> -4.903958601e-14 | BN42: =BN41/Inputs!BN27 -> -4.90395836e-14 | BO42: =BO41/Inputs!BO27 -> -4.90395835e-14 | BP42: =BP41/Inputs!BP27 -> -4.90395835e-14 | BQ42: =BQ41/Inputs!BQ27 -> -4.90395835e-14 | BR42: =BR41/Inputs!BR27 -> -4.90395835e-14 | BS42: =BS41/Inputs!BS27 -> -4.90395835e-14 | BT42: =BT41/Inputs!BT27 -> -4.90395835e-14 | BU42: =BU41/Inputs!BU27 -> -4.90395835e-14
A43: Nominal cash flows to assets | B43: =IRR(C43:BU43) -> 0.05617562622 | C43: =C34-C35-C38 -> -3000 | D43: =D34-D35-D38 -> 93.86239115 | E43: 95.38590802 | F43: 97.96205484 | G43: 97.24057886 | H43: 98.32802695 | I43: 100.3654476 | J43: 101.186469 | K43: 104.1816468 | L43: 105.7309815 | M43: 110.7469008 | N43: 112.8700563 | O43: 117.1739263 | P43: 120.7618864 | Q43: 125.5256042 | R43: 131.2768569 | S43: 136.2161863 | T43: 142.3916928 | U43: 145.9958657 | V43: 148.8258919 | W43: 154.8124868 | X43: 483.5059106 | Y43: 484.8920067 | Z43: 484.6601809 | AA43: 480.7260086 | AB43: 479.5051018 | AC43: 480.4194581 | AD43: 484.1844087 | AE43: 477.4400642 | AF43: 485.6782486 | AG43: 495.1133113 | AH43: 279.5353133 | AI43: 274.5725691 | AJ43: 269.6391799 | AK43: 266.304125 | AL43: 259.7794724 | AM43: 245.8211237 | AN43: 234.2493071 | AO43: 225.3235447 | AP43: 213.2209982 | AQ43: 200.6871774 | AR43: 185.3670835 | AS43: 171.4235963 | AT43: 159.45175 | AU43: 143.6445728 | AV43: 153.9195734 | AW43: 103.6444769 | AX43: 85.95228366 | AY43: 64.73411777 | AZ43: 42.82919011 | BA43: 21.62897542 | BB43: -1.740259258e-13 | BC43: -1.797414948e-13 | BD43: -1.799804817e-13 | BE43: -1.815206658e-13 | BF43: -1.874380579e-13 | BG43: -1.900745877e-13 | BH43: -1.896213255e-13 | BI43: -1.979679307e-13 | BJ43: -2.014752615e-13 | BK43: -2.094594639e-13 | BL43: -2.213747438e-13 | BM43: -2.23331598e-13 | BN43: -2.318666826e-13 | BO43: -2.339464689e-13 | BP43: =BP34-BP35-BP38 -> -2.445536249e-13 | BQ43: -2.452039899e-13 | BR43: -2.523122754e-13 | BS43: -2.654993193e-13 | BT43: -2.677814673e-13 | BU43: -2.719289161e-13
A44: Nominal vanilla WACC | B44: =IRR(C44:BU44) -> 0.05427921719 | C44: =C43-C39 -> -3000 | D44: =D43-D39 -> 93.08067497 | E44: 94.69457599 | F44: 97.29469104 | G44: 96.56284743 | H44: 97.57345588 | I44: 100.2408143 | J44: 100.8700269 | K44: 103.6171671 | L44: 104.8760089 | M44: 109.5166368 | N44: 111.6855568 | O44: 115.532438 | P44: 118.6147402 | Q44: 122.7898634 | R44: 127.8580655 | S44: 130.6696586 | T44: 135.9826295 | U44: 138.7631233 | V44: 140.7431359 | W44: 145.6287882 | X44: 473.1955747 | Y44: 472.1122094 | Z44: 469.5508474 | AA44: 463.5115788 | AB44: 460.1887443 | AC44: 458.9816716 | AD44: 460.5325467 | AE44: 452.1441452 | AF44: 457.9734126 | AG44: 464.8858512 | AH44: 262.1750164 | AI44: 258.367348 | AJ44: 253.0265374 | AK44: 249.3146954 | AL44: 242.5749505 | AM44: 229.0291797 | AN44: 217.8558637 | AO44: 209.144322 | AP44: 197.6533203 | AQ44: 185.766011 | AR44: 171.5534625 | AS44: 158.5488125 | AT44: 147.5689388 | AU44: 133.106429 | AV44: 115.950437 | AW44: 96.85896714 | AX44: 81.07489188 | AY44: 62.06969266 | AZ44: 42.58411061 | BA44: 21.62897542 | BB44: -1.740259258e-13 | BC44: -1.797414948e-13 | BD44: -1.799804817e-13 | BE44: -1.815206658e-13 | BF44: -1.874380579e-13 | BG44: -1.900745877e-13 | BH44: -1.896213255e-13 | BI44: -1.979679307e-13 | BJ44: -2.014752615e-13 | BK44: -2.094594639e-13 | BL44: -2.213747438e-13 | BM44: -2.23331598e-13 | BN44: -2.318666826e-13 | BO44: -2.339464689e-13 | BP44: =BP43-BP39 -> -2.445536249e-13 | BQ44: -2.452039899e-13 | BR44: -2.523122754e-13 | BS44: -2.654993193e-13 | BT44: -2.677814673e-13 | BU44: -2.719289161e-13
A45: Real WACC (real) | B45: =IRR(C45:BU45) -> 0.03059853127 | C45: =C44/Inputs!C27 -> -3000 | D45: =D44/Inputs!D27 -> 90.85784781 | E45: =E44/Inputs!E27 -> 90.98006389 | F45: =F44/Inputs!F27 -> 90.97913687 | G45: =G44/Inputs!G27 -> 90.85686692 | H45: =H44/Inputs!H27 -> 90.61446144 | I45: =I44/Inputs!I27 -> 90.86474469 | J45: =J44/Inputs!J27 -> 90.96592245 | K45: =K44/Inputs!K27 -> 90.96658639 | L45: =L44/Inputs!L27 -> 90.86626588 | M45: =M44/Inputs!M27 -> 90.66406505 | N45: =N44/Inputs!N27 -> 91.68863808 | O45: =O44/Inputs!O27 -> 91.92504284 | P45: =P44/Inputs!P27 -> 92.07615339 | Q45: =Q44/Inputs!Q27 -> 92.14017421 | R45: =R44/Inputs!R27 -> 92.11497666 | S45: =S44/Inputs!S27 -> 91.17831158 | T45: =T44/Inputs!T27 -> 91.17733028 | U45: =U44/Inputs!U27 -> 91.08344962 | V45: =V44/Inputs!V27 -> 90.89368384 | W45: =W44/Inputs!W27 -> 90.60474192 | X45: =X44/Inputs!X27 -> 285.8491084 | Y45: =Y44/Inputs!Y27 -> 279.9718121 | Z45: =Z44/Inputs!Z27 -> 274.0945157 | AA45: =AA44/Inputs!AA27 -> 268.2172194 | AB45: =AB44/Inputs!AB27 -> 262.339923 | AC45: =AC44/Inputs!AC27 -> 256.4626266 | AD45: =AD44/Inputs!AD27 -> 250.5853303 | AE45: =AE44/Inputs!AE27 -> 244.7080339 | AF45: =AF44/Inputs!AF27 -> 238.8307376 | AG45: =AG44/Inputs!AG27 -> 232.9534412 | AH45: =AH44/Inputs!AH27 -> 126.3017445 | AI45: =AI44/Inputs!AI27 -> 120.1131126 | AJ45: =AJ44/Inputs!AJ27 -> 113.9141028 | AK45: =AK44/Inputs!AK27 -> 107.7043693 | AL45: =AL44/Inputs!AL27 -> 101.4835545 | AM45: =AM44/Inputs!AM27 -> 95.25128912 | AN45: =AN44/Inputs!AN27 -> 89.00735475 | AO45: =AO44/Inputs!AO27 -> 82.75119417 | AP45: =AP44/Inputs!AP27 -> 76.48239985 | AQ45: =AQ44/Inputs!AQ27 -> 70.20055065 | AR45: =AR44/Inputs!AR27 -> 63.90521142 | AS45: =AS44/Inputs!AS27 -> 57.52149965 | AT45: =AT44/Inputs!AT27 -> 51.12315356 | AU45: =AU44/Inputs!AU27 -> 44.70968535 | AV45: =AV44/Inputs!AV27 -> 38.28059094 | AW45: =AW44/Inputs!AW27 -> 31.83534946 | AX45: =AX44/Inputs!AX27 -> 25.50310281 | AY45: =AY44/Inputs!AY27 -> 19.15401532 | AZ45: =AZ44/Inputs!AZ27 -> 12.78752563 | BA45: =BA44/Inputs!BA27 -> 6.403053658 | BB45: =BB44/Inputs!BB27 -> -4.90395835e-14 | BC45: =BC44/Inputs!BC27 -> -4.90395835e-14 | BD45: =BD44/Inputs!BD27 -> -4.90395835e-14 | BE45: =BE44/Inputs!BE27 -> -4.90395835e-14 | BF45: =BF44/Inputs!BF27 -> -4.90395835e-14 | BG45: =BG44/Inputs!BG27 -> -4.90395835e-14 | BH45: =BH44/Inputs!BH27 -> -4.90395835e-14 | BI45: =BI44/Inputs!BI27 -> -4.90395835e-14 | BJ45: =BJ44/Inputs!BJ27 -> -4.90395835e-14 | BK45: =BK44/Inputs!BK27 -> -4.90395835e-14 | BL45: =BL44/Inputs!BL27 -> -4.90395835e-14 | BM45: =BM44/Inputs!BM27 -> -4.90395835e-14 | BN45: =BN44/Inputs!BN27 -> -4.90395835e-14 | BO45: =BO44/Inputs!BO27 -> -4.90395835e-14 | BP45: =BP44/Inputs!BP27 -> -4.90395835e-14 | BQ45: =BQ44/Inputs!BQ27 -> -4.90395835e-14 | BR45: =BR44/Inputs!BR27 -> -4.90395835e-14 | BS45: =BS44/Inputs!BS27 -> -4.90395835e-14 | BT45: =BT44/Inputs!BT27 -> -4.90395835e-14 | BU45: =BU44/Inputs!BU27 -> -4.90395835e-14
A46: ="Nominal NPV at "&ROUND((GEOMEAN(1+Inputs!$D$11:$W$11)-1)*100,2)&"%" -> Nominal NPV at 5.6% | B46: =NPV((GEOMEAN(1+Inputs!$D$11:$W$11)-1),D44:BU44)+C44 -> -96.01929181
A47: ="Real NPV at "&ROUND((GEOMEAN(1+Inputs!$D$12:$W$12)-1)*100,2)&"%" -> Real NPV at 3.02% | B47: =NPV((GEOMEAN(1+Inputs!$D$12:$W$12)-1),D45:BU45)+C45 -> 20.50262653
A49: =RIGHT(Inputs!A4,LEN(Inputs!A4)-3)&" ("&Inputs!B4&")" -> Approach B (alternate estimate)
A50: Revenue | C50: 0 | D50: ='Working | Approach B'!D111 -> 263.8440891 | E50: ='Working | Approach B'!E111 -> 271.4855905 | F50: ='Working | Approach B'!F111 -> 282.5093821 | G50: ='Working | Approach B'!G111 -> 284.3514703 | H50: ='Working | Approach B'!H111 -> 291.7796316 | I50: ='Working | Approach B'!I247 -> 303.0574539 | J50: ='Working | Approach B'!J247 -> 309.1947834 | K50: ='Working | Approach B'!K247 -> 322.3825459 | L50: ='Working | Approach B'!L247 -> 331.5645788 | M50: ='Working | Approach B'!M247 -> 352.2187922 | N50: ='Working | Approach B'!N383 -> 362.219511 | O50: ='Working | Approach B'!O383 -> 380.1735349 | P50: ='Working | Approach B'!P383 -> 396.3918476 | Q50: ='Working | Approach B'!Q383 -> 417.1268471 | R50: ='Working | Approach B'!R383 -> 441.9508506 | S50: ='Working | Approach B'!S519 -> 465.0759279 | T50: ='Working | Approach B'!T519 -> 492.6127188 | U50: ='Working | Approach B'!U519 -> 512.1675516 | V50: ='Working | Approach B'!V519 -> 529.8334695 | W50: ='Working | Approach B'!W519 -> 559.7712459 | X50: ='Working | Approach B'!X519/'Working | Approach B'!X411*Inputs!X27 -> 512.1294975 | Y50: ='Working | Approach B'!Y519/'Working | Approach B'!Y411*Inputs!Y27 -> 512.0315936 | Z50: ='Working | Approach B'!Z519/'Working | Approach B'!Z411*Inputs!Z27 -> 510.1981506 | AA50: ='Working | Approach B'!AA519/'Working | Approach B'!AA411*Inputs!AA27 -> 504.4518758 | AB50: ='Working | Approach B'!AB519/'Working | Approach B'!AB411*Inputs!AB27 -> 501.5351767 | AC50: ='Working | Approach B'!AC519/'Working | Approach B'!AC411*Inputs!AC27 -> 500.8121735 | AD50: ='Working | Approach B'!AD519/'Working | Approach B'!AD411*Inputs!AD27 -> 502.9974337 | AE50: ='Working | Approach B'!AE519/'Working | Approach B'!AE411*Inputs!AE27 -> 494.2234636 | AF50: ='Working | Approach B'!AF519/'Working | Approach B'!AF411*Inputs!AF27 -> 500.8937026 | AG50: ='Working | Approach B'!AG519/'Working | Approach B'!AG411*Inputs!AG27 -> 508.6634555 | AH50: ='Working | Approach B'!AH519/'Working | Approach B'!AH411*Inputs!AH27 -> 292.4271429 | AI50: ='Working | Approach B'!AI519/'Working | Approach B'!AI411*Inputs!AI27 -> 286.6076741 | AJ50: ='Working | Approach B'!AJ519/'Working | Approach B'!AJ411*Inputs!AJ27 -> 280.8964254 | AK50: ='Working | Approach B'!AK519/'Working | Approach B'!AK411*Inputs!AK27 -> 276.8580751 | AL50: ='Working | Approach B'!AL519/'Working | Approach B'!AL411*Inputs!AL27 -> 269.5244338 | AM50: ='Working | Approach B'!AM519/'Working | Approach B'!AM411*Inputs!AM27 -> 254.5113802 | AN50: ='Working | Approach B'!AN519/'Working | Approach B'!AN411*Inputs!AN27 -> 242.0111573 | AO50: ='Working | Approach B'!AO519/'Working | Approach B'!AO411*Inputs!AO27 -> 232.2867207 | AP50: ='Working | Approach B'!AP519/'Working | Approach B'!AP411*Inputs!AP27 -> 219.3147983 | AQ50: ='Working | Approach B'!AQ519/'Working | Approach B'!AQ411*Inputs!AQ27 -> 205.9515186 | AR50: ='Working | Approach B'!AR519/'Working | Approach B'!AR411*Inputs!AR27 -> 189.7609102 | AS50: ='Working | Approach B'!AS519/'Working | Approach B'!AS411*Inputs!AS27 -> 175.0581864 | AT50: ='Working | Approach B'!AT519/'Working | Approach B'!AT411*Inputs!AT27 -> 162.400666 | AU50: ='Working | Approach B'!AU519/'Working | Approach B'!AU411*Inputs!AU27 -> 145.8905723 | AV50: ='Working | Approach B'!AV519/'Working | Approach B'!AV411*Inputs!AV27 -> 160.0811069 | AW50: ='Working | Approach B'!AW519/'Working | Approach B'!AW411*Inputs!AW27 -> 104.5554589 | AX50: ='Working | Approach B'!AX519/'Working | Approach B'!AX411*Inputs!AX27 -> 86.34460335 | AY50: ='Working | Approach B'!AY519/'Working | Approach B'!AY411*Inputs!AY27 -> 64.67359014 | AZ50: ='Working | Approach B'!AZ519/'Working | Approach B'!AZ411*Inputs!AZ27 -> 42.9993169 | BA50: ='Working | Approach B'!BA519/'Working | Approach B'!BA411*Inputs!BA27 -> 21.78820674 | BB50: ='Working | Approach B'!BB519/'Working | Approach B'!BB411*Inputs!BB27 -> -2.838705895e-13 | BC50: ='Working | Approach B'!BC519/'Working | Approach B'!BC411*Inputs!BC27 -> -2.931938092e-13 | BD50: ='Working | Approach B'!BD519/'Working | Approach B'!BD411*Inputs!BD27 -> -2.935836441e-13 | BE50: ='Working | Approach B'!BE519/'Working | Approach B'!BE411*Inputs!BE27 -> -2.960959879e-13 | BF50: ='Working | Approach B'!BF519/'Working | Approach B'!BF411*Inputs!BF27 -> -3.057484209e-13 | BG50: ='Working | Approach B'!BG519/'Working | Approach B'!BG411*Inputs!BG27 -> -3.100491206e-13 | BH50: ='Working | Approach B'!BH519/'Working | Approach B'!BH411*Inputs!BH27 -> -3.093097606e-13 | BI50: ='Working | Approach B'!BI519/'Working | Approach B'!BI411*Inputs!BI27 -> -3.229247191e-13 | BJ50: ='Working | Approach B'!BJ519/'Working | Approach B'!BJ411*Inputs!BJ27 -> -3.286458669e-13 | BK50: ='Working | Approach B'!BK519/'Working | Approach B'!BK411*Inputs!BK27 -> -3.416696749e-13 | BL50: ='Working | Approach B'!BL519/'Working | Approach B'!BL411*Inputs!BL27 -> -3.611058453e-13 | BM50: ='Working | Approach B'!BM519/'Working | Approach B'!BM411*Inputs!BM27 -> -3.642978601e-13 | BN50: ='Working | Approach B'!BN519/'Working | Approach B'!BN411*Inputs!BN27 -> -3.782202656e-13 | BO50: ='Working | Approach B'!BO519/'Working | Approach B'!BO411*Inputs!BO27 -> -3.816128071e-13 | BP50: ='Working | Approach B'!BP519/'Working | Approach B'!BP411*Inputs!BP27 -> -3.989151694e-13 | BQ50: ='Working | Approach B'!BQ519/'Working | Approach B'!BQ411*Inputs!BQ27 -> -3.99976043e-13 | BR50: ='Working | Approach B'!BR519/'Working | Approach B'!BR411*Inputs!BR27 -> -4.115710578e-13 | BS50: ='Working | Approach B'!BS519/'Working | Approach B'!BS411*Inputs!BS27 -> -4.330817258e-13 | BT50: ='Working | Approach B'!BT519/'Working | Approach B'!BT411*Inputs!BT27 -> -4.368043591e-13 | BU50: ='Working | Approach B'!BU519/'Working | Approach B'!BU411*Inputs!BU27 -> -4.435696657e-13
A51: Capex | C51: ='Working | Approach B'!D121 -> 3000 | D51: ='Working | Approach B'!D122 -> 102.6972763 | E51: ='Working | Approach B'!E122 -> 107.8154878 | F51: ='Working | Approach B'!F122 -> 114.4695712 | G51: ='Working | Approach B'!G122 -> 117.5534748 | H51: ='Working | Approach B'!H122 -> 123.0715802 | I51: ='Working | Approach B'!I258 -> 130.29064 | J51: ='Working | Approach B'!J258 -> 135.3280706 | K51: ='Working | Approach B'!K258 -> 143.6463971 | L51: ='Working | Approach B'!L258 -> 150.4038073 | M51: ='Working | Approach B'!M258 -> 162.6562329 | N51: ='Working | Approach B'!N394 -> 169.4914246 | O51: ='Working | Approach B'!O394 -> 180.7077482 | P51: ='Working | Approach B'!P394 -> 191.3985355 | Q51: ='Working | Approach B'!Q394 -> 204.5978391 | R51: ='Working | Approach B'!R394 -> 220.2043415 | S51: ='Working | Approach B'!S530 -> 234.9371219 | T51: ='Working | Approach B'!T530 -> 252.6419332 | U51: ='Working | Approach B'!U530 -> 266.6759849 | V51: ='Working | Approach B'!V530 -> 280.0807553 | W51: ='Working | Approach B'!W530 -> 300.4183788 | X51: 0 | Y51: 0 | Z51: 0 | AA51: 0 | AB51: 0 | AC51: 0 | AD51: 0 | AE51: 0 | AF51: 0 | AG51: 0 | AH51: 0 | AI51: 0 | AJ51: 0 | AK51: 0 | AL51: 0 | AM51: 0 | AN51: 0 | AO51: 0 | AP51: 0 | AQ51: 0 | AR51: 0 | AS51: 0 | AT51: 0 | AU51: 0 | AV51: 0 | AW51: 0 | AX51: 0 | AY51: 0 | AZ51: 0 | BA51: 0 | BB51: 0 | BC51: 0 | BD51: 0 | BE51: 0 | BF51: 0 | BG51: 0 | BH51: 0 | BI51: 0 | BJ51: 0 | BK51: 0 | BL51: 0 | BM51: 0 | BN51: 0 | BO51: 0 | BP51: 0 | BQ51: 0 | BR51: 0 | BS51: 0 | BT51: 0 | BU51: 0
A52: Interest Payments | C52: 0 | D52: =('Working | Approach B'!D121*Inputs!$C$9)*Inputs!D9 -> 90 | E52: =('Working | Approach B'!E121*Inputs!$C$9)*Inputs!E9 -> 91.44501387 | F52: =('Working | Approach B'!F121*Inputs!$C$9)*Inputs!F9 -> 93.96450386 | G52: =('Working | Approach B'!G121*Inputs!$C$9)*Inputs!G9 -> 93.39106431 | H52: =('Working | Approach B'!H121*Inputs!$C$9)*Inputs!H9 -> 94.62873061 | I52: =('Working | Approach B'!I257*Inputs!$C$9)*Inputs!I9 -> 96.9557208 | J52: =('Working | Approach B'!J257*Inputs!$C$9)*Inputs!J9 -> 97.46372164 | K52: =('Working | Approach B'!K257*Inputs!$C$9)*Inputs!K9 -> 100.1253289 | L52: =('Working | Approach B'!L257*Inputs!$C$9)*Inputs!L9 -> 101.4618178 | M52: =('Working | Approach B'!M257*Inputs!$C$9)*Inputs!M9 -> 106.1959592 | N52: =('Working | Approach B'!N393*Inputs!$C$9)*Inputs!N9 -> 107.0976066 | O52: =('Working | Approach B'!O393*Inputs!$C$9)*Inputs!O9 -> 110.5900535 | P52: =('Working | Approach B'!P393*Inputs!$C$9)*Inputs!P9 -> 113.4454768 | Q52: =('Working | Approach B'!Q393*Inputs!$C$9)*Inputs!Q9 -> 117.4506468 | R52: =('Working | Approach B'!R393*Inputs!$C$9)*Inputs!R9 -> 122.4287505 | S52: =('Working | Approach B'!S529*Inputs!$C$9)*Inputs!S9 -> 126.5071573 | T52: =('Working | Approach B'!T529*Inputs!$C$9)*Inputs!T9 -> 131.5913004 | U52: =('Working | Approach B'!U529*Inputs!$C$9)*Inputs!U9 -> 134.3569286 | V52: =('Working | Approach B'!V529*Inputs!$C$9)*Inputs!V9 -> 136.4937342 | W52: =('Working | Approach B'!W529*Inputs!$C$9)*Inputs!W9 -> 141.6163622 | X52: =('Working | Approach B'!X529*Inputs!$C$9)*Inputs!$W$9 -> 145.7864652 | Y52: =('Working | Approach B'!Y529*Inputs!$C$9)*Inputs!$W$9 -> 138.8439382 | Z52: =('Working | Approach B'!Z529*Inputs!$C$9)*Inputs!$W$9 -> 131.2092761 | AA52: =('Working | Approach B'!AA529*Inputs!$C$9)*Inputs!$W$9 -> 122.3609125 | AB52: =('Working | Approach B'!AB529*Inputs!$C$9)*Inputs!$W$9 -> 114.1187798 | AC52: =('Working | Approach B'!AC529*Inputs!$C$9)*Inputs!$W$9 -> 106.1891846 | AD52: =('Working | Approach B'!AD529*Inputs!$C$9)*Inputs!$W$9 -> 98.60119564 | AE52: =('Working | Approach B'!AE529*Inputs!$C$9)*Inputs!$W$9 -> 88.40332061 | AF52: =('Working | Approach B'!AF529*Inputs!$C$9)*Inputs!$W$9 -> 80.96211158 | AG52: =('Working | Approach B'!AG529*Inputs!$C$9)*Inputs!$W$9 -> 73.06524747 | AH52: =('Working | Approach B'!AH529*Inputs!$C$9)*Inputs!$W$9 -> 64.35245134 | AI52: =('Working | Approach B'!AI529*Inputs!$C$9)*Inputs!$W$9 -> 60.84507349 | AJ52: =('Working | Approach B'!AJ529*Inputs!$C$9)*Inputs!$W$9 -> 56.9952779 | AK52: =('Working | Approach B'!AK529*Inputs!$C$9)*Inputs!$W$9 -> 53.6038917 | AL52: =('Working | Approach B'!AL529*Inputs!$C$9)*Inputs!$W$9 -> 49.56425304 | AM52: =('Working | Approach B'!AM529*Inputs!$C$9)*Inputs!$W$9 -> 44.14850827 | AN52: =('Working | Approach B'!AN529*Inputs!$C$9)*Inputs!$W$9 -> 39.47383773 | AO52: =('Working | Approach B'!AO529*Inputs!$C$9)*Inputs!$W$9 -> 35.48672558 | AP52: =('Working | Approach B'!AP529*Inputs!$C$9)*Inputs!$W$9 -> 31.15113085 | AQ52: =('Working | Approach B'!AQ529*Inputs!$C$9)*Inputs!$W$9 -> 26.97564028 | AR52: =('Working | Approach B'!AR529*Inputs!$C$9)*Inputs!$W$9 -> 22.67354505 | AS52: =('Working | Approach B'!AS529*Inputs!$C$9)*Inputs!$W$9 -> 18.88438636 | AT52: =('Working | Approach B'!AT529*Inputs!$C$9)*Inputs!$W$9 -> 15.65547841 | AU52: =('Working | Approach B'!AU529*Inputs!$C$9)*Inputs!$W$9 -> 12.25611797 | AV52: =('Working | Approach B'!AV529*Inputs!$C$9)*Inputs!$W$9 -> 8.909569447 | AW52: =('Working | Approach B'!AW529*Inputs!$C$9)*Inputs!$W$9 -> 5.803554776 | AX52: =('Working | Approach B'!AX529*Inputs!$C$9)*Inputs!$W$9 -> 3.398241391 | AY52: =('Working | Approach B'!AY529*Inputs!$C$9)*Inputs!$W$9 -> 1.199822524 | AZ52: =('Working | Approach B'!AZ529*Inputs!$C$9)*Inputs!$W$9 -> -0.5260968229 | BA52: =('Working | Approach B'!BA529*Inputs!$C$9)*Inputs!$W$9 -> -1.758429892 | BB52: =('Working | Approach B'!BB529*Inputs!$C$9)*Inputs!$W$9 -> -0.08889563649 | BC52: =('Working | Approach B'!BC529*Inputs!$C$9)*Inputs!$W$9 -> -0.002919617541 | BD52: =('Working | Approach B'!BD529*Inputs!$C$9)*Inputs!$W$9 -> -3.881966667e-06 | BE52: =('Working | Approach B'!BE529*Inputs!$C$9)*Inputs!$W$9 -> -3.32199541e-08 | BF52: =('Working | Approach B'!BF529*Inputs!$C$9)*Inputs!$W$9 -> -1.082937265e-09 | BG52: =('Working | Approach B'!BG529*Inputs!$C$9)*Inputs!$W$9 -> -1.523274602e-11 | BH52: =('Working | Approach B'!BH529*Inputs!$C$9)*Inputs!$W$9 -> 3.63248359e-14 | BI52: =('Working | Approach B'!BI529*Inputs!$C$9)*Inputs!$W$9 -> 1.598918607e-15 | BJ52: =('Working | Approach B'!BJ529*Inputs!$C$9)*Inputs!$W$9 -> 2.832749938e-17 | BK52: =('Working | Approach B'!BK529*Inputs!$C$9)*Inputs!$W$9 -> 1.122581933e-18 | BL52: =('Working | Approach B'!BL529*Inputs!$C$9)*Inputs!$W$9 -> 6.385902909e-20 | BM52: =('Working | Approach B'!BM529*Inputs!$C$9)*Inputs!$W$9 -> 5.644853713e-22 | BN52: =('Working | Approach B'!BN529*Inputs!$C$9)*Inputs!$W$9 -> 2.157299037e-23 | BO52: =('Working | Approach B'!BO529*Inputs!$C$9)*Inputs!$W$9 -> 1.935043454e-25 | BP52: =('Working | Approach B'!BP529*Inputs!$C$9)*Inputs!$W$9 -> 8.773506078e-27 | BQ52: =('Working | Approach B'!BQ529*Inputs!$C$9)*Inputs!$W$9 -> 2.333223228e-29 | BR52: =('Working | Approach B'!BR529*Inputs!$C$9)*Inputs!$W$9 -> 6.763844583e-31 | BS52: =('Working | Approach B'!BS529*Inputs!$C$9)*Inputs!$W$9 -> 3.535108033e-32 | BT52: =('Working | Approach B'!BT529*Inputs!$C$9)*Inputs!$W$9 -> 3.038666836e-34 | BU52: =('Working | Approach B'!BU529*Inputs!$C$9)*Inputs!$W$9 -> 4.70634331e-36
A53: Repayment of Debt | C53: =('Working | Approach B'!C121-'Working | Approach B'!D121)*Inputs!$C$9 -> -1800 | D53: =('Working | Approach B'!D121-'Working | Approach B'!E121)*Inputs!$C$9 -> -28.90027734 | E53: =('Working | Approach B'!E121-'Working | Approach B'!F121)*Inputs!$C$9 -> -50.38979994 | F53: =('Working | Approach B'!F121-'Working | Approach B'!G121)*Inputs!$C$9 -> 11.46879116 | G53: =('Working | Approach B'!G121-'Working | Approach B'!H121)*Inputs!$C$9 -> -24.75332599 | H53: =('Working | Approach B'!H121-'Working | Approach B'!I257)*Inputs!$C$9 -> -46.53980387 | I53: =('Working | Approach B'!I257-'Working | Approach B'!J257)*Inputs!$C$9 -> -10.16001689 | J53: =('Working | Approach B'!J257-'Working | Approach B'!K257)*Inputs!$C$9 -> -53.23214495 | K53: =('Working | Approach B'!K257-'Working | Approach B'!L257)*Inputs!$C$9 -> -26.7297782 | L53: =('Working | Approach B'!L257-'Working | Approach B'!M257)*Inputs!$C$9 -> -94.68282705 | M53: =('Working | Approach B'!M257-'Working | Approach B'!N393)*Inputs!$C$9 -> -18.03294974 | N53: =('Working | Approach B'!N393-'Working | Approach B'!O393)*Inputs!$C$9 -> -69.84893681 | O53: =('Working | Approach B'!O393-'Working | Approach B'!P393)*Inputs!$C$9 -> -57.10846636 | P53: =('Working | Approach B'!P393-'Working | Approach B'!Q393)*Inputs!$C$9 -> -80.10340083 | Q53: =('Working | Approach B'!Q393-'Working | Approach B'!R393)*Inputs!$C$9 -> -99.56207246 | R53: =('Working | Approach B'!R393-'Working | Approach B'!S529)*Inputs!$C$9 -> -81.56813708 | S53: =('Working | Approach B'!S529-'Working | Approach B'!T529)*Inputs!$C$9 -> -101.6828624 | T53: =('Working | Approach B'!T529-'Working | Approach B'!U529)*Inputs!$C$9 -> -55.31256272 | U53: =('Working | Approach B'!U529-'Working | Approach B'!V529)*Inputs!$C$9 -> -42.73611261 | V53: =('Working | Approach B'!V529-'Working | Approach B'!W529)*Inputs!$C$9 -> -102.4525601 | W53: =('Working | Approach B'!W529-'Working | Approach B'!X529)*Inputs!$C$9 -> -83.40206005 | X53: =('Working | Approach B'!X529-'Working | Approach B'!Y529)*Inputs!$C$9 -> 138.8505403 | Y53: =('Working | Approach B'!Y529-'Working | Approach B'!Z529)*Inputs!$C$9 -> 152.6932429 | Z53: =('Working | Approach B'!Z529-'Working | Approach B'!AA529)*Inputs!$C$9 -> 176.9672713 | AA53: =('Working | Approach B'!AA529-'Working | Approach B'!AB529)*Inputs!$C$9 -> 164.8426531 | AB53: =('Working | Approach B'!AB529-'Working | Approach B'!AC529)*Inputs!$C$9 -> 158.5919052 | AC53: =('Working | Approach B'!AC529-'Working | Approach B'!AD529)*Inputs!$C$9 -> 151.7597787 | AD53: =('Working | Approach B'!AD529-'Working | Approach B'!AE529)*Inputs!$C$9 -> 203.9575007 | AE53: =('Working | Approach B'!AE529-'Working | Approach B'!AF529)*Inputs!$C$9 -> 148.8241805 | AF53: =('Working | Approach B'!AF529-'Working | Approach B'!AG529)*Inputs!$C$9 -> 157.9372822 | AG53: =('Working | Approach B'!AG529-'Working | Approach B'!AH529)*Inputs!$C$9 -> 174.2559227 | AH53: =('Working | Approach B'!AH529-'Working | Approach B'!AI529)*Inputs!$C$9 -> 70.14755694 | AI53: =('Working | Approach B'!AI529-'Working | Approach B'!AJ529)*Inputs!$C$9 -> 76.99591184 | AJ53: =('Working | Approach B'!AJ529-'Working | Approach B'!AK529)*Inputs!$C$9 -> 67.82772393 | AK53: =('Working | Approach B'!AK529-'Working | Approach B'!AL529)*Inputs!$C$9 -> 80.79277317 | AL53: =('Working | Approach B'!AL529-'Working | Approach B'!AM529)*Inputs!$C$9 -> 108.3148954 | AM53: =('Working | Approach B'!AM529-'Working | Approach B'!AN529)*Inputs!$C$9 -> 93.49341088 | AN53: =('Working | Approach B'!AN529-'Working | Approach B'!AO529)*Inputs!$C$9 -> 79.74224292 | AO53: =('Working | Approach B'!AO529-'Working | Approach B'!AP529)*Inputs!$C$9 -> 86.71189476 | AP53: =('Working | Approach B'!AP529-'Working | Approach B'!AQ529)*Inputs!$C$9 -> 83.50981138 | AQ53: =('Working | Approach B'!AQ529-'Working | Approach B'!AR529)*Inputs!$C$9 -> 86.04190445 | AR53: =('Working | Approach B'!AR529-'Working | Approach B'!AS529)*Inputs!$C$9 -> 75.78317396 | AS53: =('Working | Approach B'!AS529-'Working | Approach B'!AT529)*Inputs!$C$9 -> 64.57815886 | AT53: =('Working | Approach B'!AT529-'Working | Approach B'!AU529)*Inputs!$C$9 -> 67.98720884 | AU53: =('Working | Approach B'!AU529-'Working | Approach B'!AV529)*Inputs!$C$9 -> 66.93097049 | AV53: =('Working | Approach B'!AV529-'Working | Approach B'!AW529)*Inputs!$C$9 -> 62.12029342 | AW53: =('Working | Approach B'!AW529-'Working | Approach B'!AX529)*Inputs!$C$9 -> 48.1062677 | AX53: =('Working | Approach B'!AX529-'Working | Approach B'!AY529)*Inputs!$C$9 -> 43.96837735 | AY53: =('Working | Approach B'!AY529-'Working | Approach B'!AZ529)*Inputs!$C$9 -> 34.51838693 | AZ53: =('Working | Approach B'!AZ529-'Working | Approach B'!BA529)*Inputs!$C$9 -> 24.64666138 | BA53: =('Working | Approach B'!BA529-'Working | Approach B'!BB529)*Inputs!$C$9 -> -33.39068511 | BB53: =('Working | Approach B'!BB529-'Working | Approach B'!BC529)*Inputs!$C$9 -> -1.719520379 | BC53: =('Working | Approach B'!BC529-'Working | Approach B'!BD529)*Inputs!$C$9 -> -0.05831471148 | BD53: =('Working | Approach B'!BD529-'Working | Approach B'!BE529)*Inputs!$C$9 -> -7.697493426e-05 | BE53: =('Working | Approach B'!BE529-'Working | Approach B'!BF529)*Inputs!$C$9 -> -6.427403367e-07 | BF53: =('Working | Approach B'!BF529-'Working | Approach B'!BG529)*Inputs!$C$9 -> -2.135409039e-08 | BG53: =('Working | Approach B'!BG529-'Working | Approach B'!BH529)*Inputs!$C$9 -> -3.053814172e-10 | BH53: =('Working | Approach B'!BH529-'Working | Approach B'!BI529)*Inputs!$C$9 -> 6.945183458e-13 | BI53: =('Working | Approach B'!BI529-'Working | Approach B'!BJ529)*Inputs!$C$9 -> 3.141182216e-14 | BJ53: =('Working | Approach B'!BJ529-'Working | Approach B'!BK529)*Inputs!$C$9 -> 5.440983489e-16 | BK53: =('Working | Approach B'!BK529-'Working | Approach B'!BL529)*Inputs!$C$9 -> 2.117445807e-17 | BL53: =('Working | Approach B'!BL529-'Working | Approach B'!BM529)*Inputs!$C$9 -> 1.265890874e-18 | BM53: =('Working | Approach B'!BM529-'Working | Approach B'!BN529)*Inputs!$C$9 -> 1.085824762e-20 | BN53: =('Working | Approach B'!BN529-'Working | Approach B'!BO529)*Inputs!$C$9 -> 4.275897205e-22 | BO53: =('Working | Approach B'!BO529-'Working | Approach B'!BP529)*Inputs!$C$9 -> 3.694616786e-24 | BP53: =('Working | Approach B'!BP529-'Working | Approach B'!BQ529)*Inputs!$C$9 -> 1.750034769e-25 | BQ53: =('Working | Approach B'!BQ529-'Working | Approach B'!BR529)*Inputs!$C$9 -> 4.531169564e-28 | BR53: =('Working | Approach B'!BR529-'Working | Approach B'!BS529)*Inputs!$C$9 -> 1.282066756e-29 | BS53: =('Working | Approach B'!BS529-'Working | Approach B'!BT529)*Inputs!$C$9 -> 7.009442729e-31 | BT53: =('Working | Approach B'!BT529-'Working | Approach B'!BU529)*Inputs!$C$9 -> 5.983206805e-33 | BU53: =('Working | Approach B'!BU529-'Working | Approach B'!BV529)*Inputs!$C$9 -> 9.412686619e-35
A54: Opex | C54: 0 | D54: ='Working | Approach B'!D102/'Working | Approach B'!D4*Inputs!D27 -> 51.22324445 | E54: ='Working | Approach B'!E102/'Working | Approach B'!E4*Inputs!E27 -> 52.04138794 | F54: ='Working | Approach B'!F102/'Working | Approach B'!F4*Inputs!F27 -> 53.47088046 | G54: ='Working | Approach B'!G102/'Working | Approach B'!G4*Inputs!G27 -> 53.14009315 | H54: ='Working | Approach B'!H102/'Working | Approach B'!H4*Inputs!H27 -> 53.83989174 | I54: ='Working | Approach B'!I238/'Working | Approach B'!I139*Inputs!I27 -> 55.15935504 | J54: ='Working | Approach B'!J238/'Working | Approach B'!J139*Inputs!J27 -> 55.44385421 | K54: ='Working | Approach B'!K238/'Working | Approach B'!K139*Inputs!K27 -> 56.95342171 | L54: ='Working | Approach B'!L238/'Working | Approach B'!L139*Inputs!L27 -> 57.70899016 | M54: ='Working | Approach B'!M238/'Working | Approach B'!M139*Inputs!M27 -> 60.39693718 | N54: ='Working | Approach B'!N374/'Working | Approach B'!N275*Inputs!N27 -> 60.90479648 | O54: ='Working | Approach B'!O374/'Working | Approach B'!O275*Inputs!O27 -> 62.84056794 | P54: ='Working | Approach B'!P374/'Working | Approach B'!P275*Inputs!P27 -> 64.41121607 | Q54: ='Working | Approach B'!Q374/'Working | Approach B'!Q275*Inputs!Q27 -> 66.63209858 | R54: ='Working | Approach B'!R374/'Working | Approach B'!R275*Inputs!R27 -> 69.40134499 | S54: ='Working | Approach B'!S510/'Working | Approach B'!S411*Inputs!S27 -> 71.65610785 | T54: ='Working | Approach B'!T510/'Working | Approach B'!T411*Inputs!T27 -> 74.57041629 | U54: ='Working | Approach B'!U510/'Working | Approach B'!U411*Inputs!U27 -> 76.17362092 | V54: ='Working | Approach B'!V510/'Working | Approach B'!V411*Inputs!V27 -> 77.42184605 | W54: ='Working | Approach B'!W510/'Working | Approach B'!W411*Inputs!W27 -> 80.36488222 | X54: 0 | Y54: 0 | Z54: 0 | AA54: 0 | AB54: 0 | AC54: 0 | AD54: 0 | AE54: 0 | AF54: 0 | AG54: 0 | AH54: 0 | AI54: 0 | AJ54: 0 | AK54: 0 | AL54: 0 | AM54: 0 | AN54: 0 | AO54: 0 | AP54: 0 | AQ54: 0 | AR54: 0 | AS54: 0 | AT54: 0 | AU54: 0 | AV54: 0 | AW54: 0 | AX54: 0 | AY54: 0 | AZ54: 0 | BA54: 0 | BB54: 0 | BC54: 0 | BD54: 0 | BE54: 0 | BF54: 0 | BG54: 0 | BH54: 0 | BI54: 0 | BJ54: 0 | BK54: 0 | BL54: 0 | BM54: 0 | BN54: 0 | BO54: 0 | BP54: 0 | BQ54: 0 | BR54: 0 | BS54: 0 | BT54: 0 | BU54: 0
A55: Tax payable+ gamma | C55: 0 | D55: ='Working | Approach B'!D103/'Working | Approach B'!D4*Inputs!D27 -> 2.856538643 | E55: ='Working | Approach B'!E103/'Working | Approach B'!E4*Inputs!E27 -> 2.728395398 | F55: ='Working | Approach B'!F103/'Working | Approach B'!F4*Inputs!F27 -> 2.686568388 | G55: ='Working | Approach B'!G103/'Working | Approach B'!G4*Inputs!G27 -> 2.610608682 | H55: ='Working | Approach B'!H103/'Working | Approach B'!H4*Inputs!H27 -> 2.638023774 | I55: ='Working | Approach B'!I239/'Working | Approach B'!I139*Inputs!I27 -> 2.34981924 | J55: ='Working | Approach B'!J239/'Working | Approach B'!J139*Inputs!J27 -> 2.463325481 | K55: ='Working | Approach B'!K239/'Working | Approach B'!K139*Inputs!K27 -> 2.6790881 | L55: ='Working | Approach B'!L239/'Working | Approach B'!L139*Inputs!L27 -> 2.907388003 | M55: ='Working | Approach B'!M239/'Working | Approach B'!M139*Inputs!M27 -> 3.285726519 | N55: ='Working | Approach B'!N375/'Working | Approach B'!N275*Inputs!N27 -> 3.600470545 | O55: ='Working | Approach B'!O375/'Working | Approach B'!O275*Inputs!O27 -> 4.025456642 | P55: ='Working | Approach B'!P375/'Working | Approach B'!P275*Inputs!P27 -> 4.482549216 | Q55: ='Working | Approach B'!Q375/'Working | Approach B'!Q275*Inputs!Q27 -> 5.043203409 | R55: ='Working | Approach B'!R375/'Working | Approach B'!R275*Inputs!R27 -> 5.712658963 | S55: ='Working | Approach B'!S511/'Working | Approach B'!S411*Inputs!S27 -> 8.476405927 | T55: ='Working | Approach B'!T511/'Working | Approach B'!T411*Inputs!T27 -> 9.318110981 | U55: ='Working | Approach B'!U511/'Working | Approach B'!U411*Inputs!U27 -> 10.06641835 | V55: ='Working | Approach B'!V511/'Working | Approach B'!V411*Inputs!V27 -> 10.82761102 | W55: ='Working | Approach B'!W511/'Working | Approach B'!W411*Inputs!W27 -> 11.89734467 | X55: =SUM('Working | Approach B'!X477:X478)/'Working | Approach B'!X411*Inputs!X27 -> 12.9703234 | Y55: =SUM('Working | Approach B'!Y477:Y478)/'Working | Approach B'!Y411*Inputs!Y27 -> 15.13994646 | Z55: =SUM('Working | Approach B'!Z477:Z478)/'Working | Approach B'!Z411*Inputs!Z27 -> 17.16889081 | AA55: =SUM('Working | Approach B'!AA477:AA478)/'Working | Approach B'!AA411*Inputs!AA27 -> 18.96591181 | AB55: =SUM('Working | Approach B'!AB477:AB478)/'Working | Approach B'!AB411*Inputs!AB27 -> 20.7764869 | AC55: =SUM('Working | Approach B'!AC477:AC478)/'Working | Approach B'!AC411*Inputs!AC27 -> 22.61515015 | AD55: =SUM('Working | Approach B'!AD477:AD478)/'Working | Approach B'!AD411*Inputs!AD27 -> 24.5508585 | AE55: =SUM('Working | Approach B'!AE477:AE478)/'Working | Approach B'!AE411*Inputs!AE27 -> 25.89738414 | AF55: =SUM('Working | Approach B'!AF477:AF478)/'Working | Approach B'!AF411*Inputs!AF27 -> 28.02373389 | AG55: =SUM('Working | Approach B'!AG477:AG478)/'Working | Approach B'!AG411*Inputs!AG27 -> 30.24928373 | AH55: =SUM('Working | Approach B'!AH477:AH478)/'Working | Approach B'!AH411*Inputs!AH27 -> 18.23341441 | AI55: =SUM('Working | Approach B'!AI477:AI478)/'Working | Approach B'!AI411*Inputs!AI27 -> 16.83723542 | AJ55: =SUM('Working | Approach B'!AJ477:AJ478)/'Working | Approach B'!AJ411*Inputs!AJ27 -> 17.14270486 | AK55: =SUM('Working | Approach B'!AK477:AK478)/'Working | Approach B'!AK411*Inputs!AK27 -> 17.41559579 | AL55: =SUM('Working | Approach B'!AL477:AL478)/'Working | Approach B'!AL411*Inputs!AL27 -> 17.53383403 | AM55: =SUM('Working | Approach B'!AM477:AM478)/'Working | Approach B'!AM411*Inputs!AM27 -> 17.01419801 | AN55: =SUM('Working | Approach B'!AN477:AN478)/'Working | Approach B'!AN411*Inputs!AN27 -> 16.50945528 | AO55: =SUM('Working | Approach B'!AO477:AO478)/'Working | Approach B'!AO411*Inputs!AO27 -> 16.20266455 | AP55: =SUM('Working | Approach B'!AP477:AP478)/'Working | Approach B'!AP411*Inputs!AP27 -> 15.48885848 | AQ55: =SUM('Working | Approach B'!AQ477:AQ478)/'Working | Approach B'!AQ411*Inputs!AQ27 -> 14.75397061 | AR55: =SUM('Working | Approach B'!AR477:AR478)/'Working | Approach B'!AR411*Inputs!AR27 -> 13.53992452 | AS55: =SUM('Working | Approach B'!AS477:AS478)/'Working | Approach B'!AS411*Inputs!AS27 -> 12.51968462 | AT55: =SUM('Working | Approach B'!AT477:AT478)/'Working | Approach B'!AT411*Inputs!AT27 -> 11.42512524 | AU55: =SUM('Working | Approach B'!AU477:AU478)/'Working | Approach B'!AU411*Inputs!AU27 -> 9.992724903 | AV55: =SUM('Working | Approach B'!AV477:AV478)/'Working | Approach B'!AV411*Inputs!AV27 -> 41.94787276 | AW55: =SUM('Working | Approach B'!AW477:AW478)/'Working | Approach B'!AW411*Inputs!AW27 -> 6.083715744 | AX55: =SUM('Working | Approach B'!AX477:AX478)/'Working | Approach B'!AX411*Inputs!AX27 -> 4.102732428 | AY55: =SUM('Working | Approach B'!AY477:AY478)/'Working | Approach B'!AY411*Inputs!AY27 -> 1.853229816 | AZ55: =SUM('Working | Approach B'!AZ477:AZ478)/'Working | Approach B'!AZ411*Inputs!AZ27 -> 0 | BA55: =SUM('Working | Approach B'!BA477:BA478)/'Working | Approach B'!BA411*Inputs!BA27 -> 0 | BB55: =SUM('Working | Approach B'!BB477:BB478)/'Working | Approach B'!BB411*Inputs!BB27 -> 0 | BC55: =SUM('Working | Approach B'!BC477:BC478)/'Working | Approach B'!BC411*Inputs!BC27 -> 0 | BD55: =SUM('Working | Approach B'!BD477:BD478)/'Working | Approach B'!BD411*Inputs!BD27 -> 0 | BE55: =SUM('Working | Approach B'!BE477:BE478)/'Working | Approach B'!BE411*Inputs!BE27 -> 0 | BF55: =SUM('Working | Approach B'!BF477:BF478)/'Working | Approach B'!BF411*Inputs!BF27 -> 0 | BG55: =SUM('Working | Approach B'!BG477:BG478)/'Working | Approach B'!BG411*Inputs!BG27 -> 0 | BH55: =SUM('Working | Approach B'!BH477:BH478)/'Working | Approach B'!BH411*Inputs!BH27 -> 0 | BI55: =SUM('Working | Approach B'!BI477:BI478)/'Working | Approach B'!BI411*Inputs!BI27 -> 0 | BJ55: =SUM('Working | Approach B'!BJ477:BJ478)/'Working | Approach B'!BJ411*Inputs!BJ27 -> 0 | BK55: =SUM('Working | Approach B'!BK477:BK478)/'Working | Approach B'!BK411*Inputs!BK27 -> 0 | BL55: =SUM('Working | Approach B'!BL477:BL478)/'Working | Approach B'!BL411*Inputs!BL27 -> 0 | BM55: =SUM('Working | Approach B'!BM477:BM478)/'Working | Approach B'!BM411*Inputs!BM27 -> 0 | BN55: =SUM('Working | Approach B'!BN477:BN478)/'Working | Approach B'!BN411*Inputs!BN27 -> 0 | BO55: =SUM('Working | Approach B'!BO477:BO478)/'Working | Approach B'!BO411*Inputs!BO27 -> 0 | BP55: =SUM('Working | Approach B'!BP477:BP478)/'Working | Approach B'!BP411*Inputs!BP27 -> 0 | BQ55: =SUM('Working | Approach B'!BQ477:BQ478)/'Working | Approach B'!BQ411*Inputs!BQ27 -> 0 | BR55: =SUM('Working | Approach B'!BR477:BR478)/'Working | Approach B'!BR411*Inputs!BR27 -> 0 | BS55: =SUM('Working | Approach B'!BS477:BS478)/'Working | Approach B'!BS411*Inputs!BS27 -> 0 | BT55: =SUM('Working | Approach B'!BT477:BT478)/'Working | Approach B'!BT411*Inputs!BT27 -> 0 | BU55: =SUM('Working | Approach B'!BU477:BU478)/'Working | Approach B'!BU411*Inputs!BU27 -> 0
A56: Returns achieved
A57: Post-tax CF to Equity | B57: =IRR(C57:BU57) -> 0.07120492357 | C57: =C50-C51-C52-C53-C54-C55 -> -1200 | D57: =D50-D51-D52-D53-D54-D55 -> 45.96730707 | E57: 67.8451054 | F57: 6.449066994 | G57: 42.4095553 | H57: 64.14120915 | I57: 28.46193572 | J57: 71.72795638 | K57: 45.70808837 | L57: 113.7654026 | M57: 37.7168862 | N57: 90.97414957 | O57: 79.118175 | P57: 102.7574708 | Q57: 122.9651316 | R57: 105.7718918 | S57: 125.1819973 | T57: 79.80352056 | U57: 67.63071142 | V57: 127.462083 | W57: 108.876338 | X57: 214.5221685 | Y57: 205.3544661 | Z57: 184.8527124 | AA57: 198.2823984 | AB57: 208.0480048 | AC57: 220.2480602 | AD57: 175.8878789 | AE57: 231.0985784 | AF57: 233.9705749 | AG57: 231.0930016 | AH57: 139.6937202 | AI57: 131.9294533 | AJ57: 138.9307187 | AK57: 125.0458145 | AL57: 94.11145137 | AM57: 99.85526305 | AN57: 106.2856214 | AO57: 93.88543584 | AP57: 89.16499759 | AQ57: 78.18000326 | AR57: 77.76426661 | AS57: 79.07595658 | AT57: 67.33285347 | AU57: 56.71075895 | AV57: 47.10337128 | AW57: 44.56192071 | AX57: 34.87525218 | AY57: 27.10215087 | AZ57: 18.87875235 | BA57: 56.93732174 | BB57: 1.808416016 | BC57: 0.06123432902 | BD57: 8.085690064e-05 | BE57: 6.759599947e-07 | BF57: 2.243672191e-08 | BG57: 3.203041141e-10 | BH57: -1.040152942e-12 | BI57: -3.559354598e-13 | BJ57: -3.292182928e-13 | BK57: -3.41691972e-13 | BL57: -3.611071751e-13 | BM57: -3.642978716e-13 | BN57: -3.782202661e-13 | BO57: -3.816128071e-13 | BP57: =BP50-BP51-BP52-BP53-BP54-BP55 -> -3.989151694e-13 | BQ57: -3.99976043e-13 | BR57: -4.115710578e-13 | BS57: -4.330817258e-13 | BT57: -4.368043591e-13 | BU57: -4.435696657e-13
A58: Real post-tax CF to Equity | B58: =IRR(C58:BU58) -> 0.04766714906 | C58: =C57/Inputs!C27 -> -1200 | D58: =D57/Inputs!D27 -> 44.86957783 | E58: =E57/Inputs!E27 -> 65.18379706 | F58: =F57/Inputs!F27 -> 6.030447731 | G58: =G57/Inputs!G27 -> 39.90353873 | H58: =H57/Inputs!H27 -> 59.56662159 | I58: =I57/Inputs!I27 -> 25.79973579 | J58: =J57/Inputs!J27 -> 64.68521841 | K58: =K57/Inputs!K27 -> 40.12760515 | L58: =L57/Inputs!L27 -> 98.56818001 | M58: =M57/Inputs!M27 -> 31.22417126 | N58: =N57/Inputs!N27 -> 74.68553779 | O58: =O57/Inputs!O27 -> 62.95151173 | P58: =P57/Inputs!P27 -> 79.76675264 | Q58: =Q57/Inputs!Q27 -> 92.27169353 | R58: =R57/Inputs!R27 -> 76.20305615 | S58: =S57/Inputs!S27 -> 87.34914657 | T58: =T57/Inputs!T27 -> 53.50883401 | U58: =U57/Inputs!U27 -> 44.39247511 | V58: =V57/Inputs!V27 -> 82.31661312 | W58: =W57/Inputs!W27 -> 67.73875291 | X58: =X57/Inputs!X27 -> 129.5890619 | Y58: =Y57/Inputs!Y27 -> 121.7792314 | Z58: =Z57/Inputs!Z27 -> 107.9054909 | AA58: =AA57/Inputs!AA27 -> 114.7387811 | AB58: =AB57/Inputs!AB27 -> 118.6019828 | AC58: =AC57/Inputs!AC27 -> 123.0667792 | AD58: =AD57/Inputs!AD27 -> 95.70425054 | AE58: =AE57/Inputs!AE27 -> 125.0744467 | AF58: =AF57/Inputs!AF27 -> 122.0144302 | AG58: =AG57/Inputs!AG27 -> 115.8002762 | AH58: =AH57/Inputs!AH27 -> 67.29687977 | AI58: =AI57/Inputs!AI27 -> 61.33304924 | AJ58: =AJ57/Inputs!AJ27 -> 62.54746377 | AK58: =AK57/Inputs!AK27 -> 54.02000294 | AL58: =AL57/Inputs!AL27 -> 39.37242731 | AM58: =AM57/Inputs!AM27 -> 41.52895514 | AN58: =AN57/Inputs!AN27 -> 43.42413304 | AO58: =AO57/Inputs!AO27 -> 37.14722856 | AP58: =AP57/Inputs!AP27 -> 34.50259771 | AQ58: =AQ57/Inputs!AQ27 -> 29.54404441 | AR58: =AR57/Inputs!AR27 -> 28.9678904 | AS58: =AS57/Inputs!AS27 -> 28.6887523 | AT58: =AT57/Inputs!AT27 -> 23.32650649 | AU58: =AU57/Inputs!AU27 -> 19.04881835 | AV58: =AV57/Inputs!AV27 -> 15.55099691 | AW58: =AW57/Inputs!AW27 -> 14.64649439 | AX58: =AX57/Inputs!AX27 -> 10.97043883 | AY58: =AY57/Inputs!AY27 -> 8.363421676 | AZ58: =AZ57/Inputs!AZ27 -> 5.669075297 | BA58: =BA57/Inputs!BA27 -> 16.85575573 | BB58: =BB57/Inputs!BB27 -> 0.5096020481 | BC58: =BC57/Inputs!BC27 -> 0.01670680437 | BD58: =BD57/Inputs!BD27 -> 2.203121523e-05 | BE58: =BE57/Inputs!BE27 -> 1.826172048e-07 | BF58: =BF57/Inputs!BF27 -> 5.870139232e-09 | BG58: =BG57/Inputs!BG27 -> 8.263903419e-11 | BH58: =BH57/Inputs!BH27 -> -2.690027978e-13 | BI58: =BI57/Inputs!BI27 -> -8.81704761e-14 | BJ58: =BJ57/Inputs!BJ27 -> -8.013255742e-14 | BK58: =BK57/Inputs!BK27 -> -7.999844782e-14 | BL58: =BL57/Inputs!BL27 -> -7.99935221e-14 | BM58: =BM57/Inputs!BM27 -> -7.999323004e-14 | BN58: =BN57/Inputs!BN27 -> -7.999322763e-14 | BO58: =BO57/Inputs!BO27 -> -7.999322753e-14 | BP58: =BP57/Inputs!BP27 -> -7.999322753e-14 | BQ58: =BQ57/Inputs!BQ27 -> -7.999322753e-14 | BR58: =BR57/Inputs!BR27 -> -7.999322753e-14 | BS58: =BS57/Inputs!BS27 -> -7.999322753e-14 | BT58: =BT57/Inputs!BT27 -> -7.999322753e-14 | BU58: =BU57/Inputs!BU27 -> -7.999322753e-14
A59: Nominal cash flows to assets | B59: =IRR(C59:BU59) -> 0.06126053163 | C59: =C50-C51-C54 -> -3000 | D59: =D50-D51-D54 -> 109.9235684 | E59: 111.6287147 | F59: 114.5689304 | G59: 113.6579023 | H59: 114.8681597 | I59: 117.6074589 | J59: 118.4228586 | K59: 121.7827272 | L59: 123.4517813 | M59: 129.1656221 | N59: 131.82329 | O59: 136.6252188 | P59: 140.582096 | Q59: 145.8969094 | R59: 152.3451641 | S59: 158.4826981 | T59: 165.4003693 | U59: 169.3179457 | V59: 172.3308681 | W59: 178.9879848 | X59: 512.1294975 | Y59: 512.0315936 | Z59: 510.1981506 | AA59: 504.4518758 | AB59: 501.5351767 | AC59: 500.8121735 | AD59: 502.9974337 | AE59: 494.2234636 | AF59: 500.8937026 | AG59: 508.6634555 | AH59: 292.4271429 | AI59: 286.6076741 | AJ59: 280.8964254 | AK59: 276.8580751 | AL59: 269.5244338 | AM59: 254.5113802 | AN59: 242.0111573 | AO59: 232.2867207 | AP59: 219.3147983 | AQ59: 205.9515186 | AR59: 189.7609102 | AS59: 175.0581864 | AT59: 162.400666 | AU59: 145.8905723 | AV59: 160.0811069 | AW59: 104.5554589 | AX59: 86.34460335 | AY59: 64.67359014 | AZ59: 42.9993169 | BA59: 21.78820674 | BB59: -2.838705895e-13 | BC59: -2.931938092e-13 | BD59: -2.935836441e-13 | BE59: -2.960959879e-13 | BF59: -3.057484209e-13 | BG59: -3.100491206e-13 | BH59: -3.093097606e-13 | BI59: -3.229247191e-13 | BJ59: -3.286458669e-13 | BK59: -3.416696749e-13 | BL59: -3.611058453e-13 | BM59: -3.642978601e-13 | BN59: -3.782202656e-13 | BO59: -3.816128071e-13 | BP59: =BP50-BP51-BP54 -> -3.989151694e-13 | BQ59: -3.99976043e-13 | BR59: -4.115710578e-13 | BS59: -4.330817258e-13 | BT59: -4.368043591e-13 | BU59: -4.435696657e-13
A60: Nominal vanilla WACC | B60: =IRR(C60:BU60) -> 0.05893318939 | C60: =C59-C55 -> -3000 | D60: =D59-D55 -> 107.0670297 | E60: 108.9003193 | F60: 111.882362 | G60: 111.0472936 | H60: 112.2301359 | I60: 115.2576396 | J60: 115.9595331 | K60: 119.1036391 | L60: 120.5443933 | M60: 125.8798956 | N60: 128.2228194 | O60: 132.5997621 | P60: 136.0995468 | Q60: 140.853706 | R60: 146.6325052 | S60: 150.0062922 | T60: 156.0822583 | U60: 159.2515274 | V60: 161.5032571 | W60: 167.0906401 | X60: 499.1591741 | Y60: 496.8916472 | Z60: 493.0292598 | AA60: 485.485964 | AB60: 480.7586898 | AC60: 478.1970234 | AD60: 478.4465752 | AE60: 468.3260795 | AF60: 472.8699687 | AG60: 478.4141718 | AH60: 274.1937285 | AI60: 269.7704386 | AJ60: 263.7537206 | AK60: 259.4424793 | AL60: 251.9905998 | AM60: 237.4971822 | AN60: 225.5017021 | AO60: 216.0840562 | AP60: 203.8259398 | AQ60: 191.197548 | AR60: 176.2209856 | AS60: 162.5385018 | AT60: 150.9755407 | AU60: 135.8978474 | AV60: 118.1332341 | AW60: 98.47174319 | AX60: 82.24187092 | AY60: 62.82036032 | AZ60: 42.9993169 | BA60: 21.78820674 | BB60: -2.838705895e-13 | BC60: -2.931938092e-13 | BD60: -2.935836441e-13 | BE60: -2.960959879e-13 | BF60: -3.057484209e-13 | BG60: -3.100491206e-13 | BH60: -3.093097606e-13 | BI60: -3.229247191e-13 | BJ60: -3.286458669e-13 | BK60: -3.416696749e-13 | BL60: -3.611058453e-13 | BM60: -3.642978601e-13 | BN60: -3.782202656e-13 | BO60: -3.816128071e-13 | BP60: =BP59-BP55 -> -3.989151694e-13 | BQ60: -3.99976043e-13 | BR60: -4.115710578e-13 | BS60: -4.330817258e-13 | BT60: -4.368043591e-13 | BU60: -4.435696657e-13
A61: Real WACC (real) | B61: =IRR(C61:BU61) -> 0.03527329515 | C61: =C60/Inputs!C27 -> -3000 | D61: =D60/Inputs!D27 -> 104.5101993 | E61: =E60/Inputs!E27 -> 104.6285693 | F61: =F60/Inputs!F27 -> 104.6198988 | G61: =G60/Inputs!G27 -> 104.4854149 | H61: =H60/Inputs!H27 -> 104.2258187 | I61: =I60/Inputs!I27 -> 104.4769646 | J61: =J60/Inputs!J27 -> 104.5738385 | K61: =K60/Inputs!K27 -> 104.5623208 | L61: =L60/Inputs!L27 -> 104.4416069 | M61: =M60/Inputs!M27 -> 104.210496 | N61: =N60/Inputs!N27 -> 105.2649601 | O61: =O60/Inputs!O27 -> 105.5049043 | P61: =P60/Inputs!P27 -> 105.6489499 | Q61: =Q60/Inputs!Q27 -> 105.6950846 | R61: =R60/Inputs!R27 -> 105.6409679 | S61: =S60/Inputs!S27 -> 104.6709741 | T61: =T60/Inputs!T27 -> 104.6542758 | U61: =U60/Inputs!U27 -> 104.53194 | V61: =V60/Inputs!V27 -> 104.3008307 | W61: =W60/Inputs!W27 -> 103.9574971 | X61: =X60/Inputs!X27 -> 301.5332613 | Y61: =Y60/Inputs!Y27 -> 294.6665053 | Z61: =Z60/Inputs!Z27 -> 287.7997494 | AA61: =AA60/Inputs!AA27 -> 280.9329934 | AB61: =AB60/Inputs!AB27 -> 274.0662374 | AC61: =AC60/Inputs!AC27 -> 267.1994815 | AD61: =AD60/Inputs!AD27 -> 260.3327255 | AE61: =AE60/Inputs!AE27 -> 253.4659696 | AF61: =AF60/Inputs!AF27 -> 246.5992136 | AG61: =AG60/Inputs!AG27 -> 239.7324576 | AH61: =AH60/Inputs!AH27 -> 132.09171 | AI61: =AI60/Inputs!AI27 -> 125.414327 | AJ61: =AJ60/Inputs!AJ27 -> 118.7435466 | AK61: =AK60/Inputs!AK27 -> 112.079589 | AL61: =AL60/Inputs!AL27 -> 105.4226816 | AM61: =AM60/Inputs!AM27 -> 98.77305937 | AN61: =AN60/Inputs!AN27 -> 92.1311442 | AO61: =AO60/Inputs!AO27 -> 85.49700762 | AP61: =AP60/Inputs!AP27 -> 78.87090893 | AQ61: =AQ60/Inputs!AQ27 -> 72.25311606 | AR61: =AR60/Inputs!AR27 -> 65.64390587 | AS61: =AS60/Inputs!AS27 -> 58.9689587 | AT61: =AT60/Inputs!AT27 -> 52.30332221 | AU61: =AU60/Inputs!AU27 -> 45.64730675 | AV61: =AV60/Inputs!AV27 -> 39.00123303 | AW61: =AW60/Inputs!AW27 -> 32.36543243 | AX61: =AX60/Inputs!AX27 -> 25.8701904 | AY61: =AY60/Inputs!AY27 -> 19.385663 | AZ61: =AZ60/Inputs!AZ27 -> 12.91220737 | BA61: =BA60/Inputs!BA27 -> 6.450192586 | BB61: =BB60/Inputs!BB27 -> -7.999322753e-14 | BC61: =BC60/Inputs!BC27 -> -7.999322753e-14 | BD61: =BD60/Inputs!BD27 -> -7.999322753e-14 | BE61: =BE60/Inputs!BE27 -> -7.999322753e-14 | BF61: =BF60/Inputs!BF27 -> -7.999322753e-14 | BG61: =BG60/Inputs!BG27 -> -7.999322753e-14 | BH61: =BH60/Inputs!BH27 -> -7.999322753e-14 | BI61: =BI60/Inputs!BI27 -> -7.999322753e-14 | BJ61: =BJ60/Inputs!BJ27 -> -7.999322753e-14 | BK61: =BK60/Inputs!BK27 -> -7.999322753e-14 | BL61: =BL60/Inputs!BL27 -> -7.999322753e-14 | BM61: =BM60/Inputs!BM27 -> -7.999322753e-14 | BN61: =BN60/Inputs!BN27 -> -7.999322753e-14 | BO61: =BO60/Inputs!BO27 -> -7.999322753e-14 | BP61: =BP60/Inputs!BP27 -> -7.999322753e-14 | BQ61: =BQ60/Inputs!BQ27 -> -7.999322753e-14 | BR61: =BR60/Inputs!BR27 -> -7.999322753e-14 | BS61: =BS60/Inputs!BS27 -> -7.999322753e-14 | BT61: =BT60/Inputs!BT27 -> -7.999322753e-14 | BU61: =BU60/Inputs!BU27 -> -7.999322753e-14
A62: ="Nominal NPV at "&ROUND((GEOMEAN(1+Inputs!$D$11:$W$11)-1)*100,2)&"%" -> Nominal NPV at 5.6% | B62: =NPV((GEOMEAN(1+Inputs!$D$11:$W$11)-1),D60:BU60)+C60 -> 164.0549549
A63: ="Real NPV at "&ROUND((GEOMEAN(1+Inputs!$D$13:$W$13)-1)*100,2)&"%" -> Real NPV at 3.53% | B63: =NPV((GEOMEAN(1+Inputs!$D$13:$W$13)-1),D61:BU61)+C61 -> -1.130571055
A65: =RIGHT(Inputs!A5,LEN(Inputs!A5)-3)&" ("&Inputs!B5&")" -> Approach C (perfect estimate of actual)
A66: Revenue | C66: 0 | D66: ='Working | Approach C'!D111 -> 272.1221743 | E66: ='Working | Approach C'!E111 -> 279.862438 | F66: ='Working | Approach C'!F111 -> 291.079735 | G66: ='Working | Approach C'!G111 -> 292.8301838 | H66: ='Working | Approach C'!H111 -> 300.3285365 | I66: ='Working | Approach C'!I247 -> 280.8986033 | J66: ='Working | Approach C'!J247 -> 286.7790693 | K66: ='Working | Approach C'!K247 -> 299.2109596 | L66: ='Working | Approach C'!L247 -> 307.939066 | M66: ='Working | Approach C'!M247 -> 327.3405944 | N66: ='Working | Approach C'!N383 -> 321.1895967 | O66: ='Working | Approach C'!O383 -> 337.4673146 | P66: ='Working | Approach C'!P383 -> 352.2368212 | Q66: ='Working | Approach C'!Q383 -> 371.055084 | R66: ='Working | Approach C'!R383 -> 393.5540828 | S66: ='Working | Approach C'!S519 -> 450.4058097 | T66: ='Working | Approach C'!T519 -> 478.6774228 | U66: ='Working | Approach C'!U519 -> 499.3517595 | V66: ='Working | Approach C'!V519 -> 518.3118215 | W66: ='Working | Approach C'!W519 -> 549.4390366 | X66: ='Working | Approach C'!X519/'Working | Approach C'!X411*Inputs!X27 -> 497.63634 | Y66: ='Working | Approach C'!Y519/'Working | Approach C'!Y411*Inputs!Y27 -> 498.2728565 | Z66: ='Working | Approach C'!Z519/'Working | Approach C'!Z411*Inputs!Z27 -> 497.233143 | AA66: ='Working | Approach C'!AA519/'Working | Approach C'!AA411*Inputs!AA27 -> 492.3872449 | AB66: ='Working | Approach C'!AB519/'Working | Approach C'!AB411*Inputs!AB27 -> 490.3115136 | AC66: ='Working | Approach C'!AC519/'Working | Approach C'!AC411*Inputs!AC27 -> 490.3991061 | AD66: ='Working | Approach C'!AD519/'Working | Approach C'!AD411*Inputs!AD27 -> 493.3644972 | AE66: ='Working | Approach C'!AE519/'Working | Approach C'!AE411*Inputs!AE27 -> 485.6002884 | AF66: ='Working | Approach C'!AF519/'Working | Approach C'!AF411*Inputs!AF27 -> 493.0418168 | AG66: ='Working | Approach C'!AG519/'Working | Approach C'!AG411*Inputs!AG27 -> 501.6302381 | AH66: ='Working | Approach C'!AH519/'Working | Approach C'!AH411*Inputs!AH27 -> 285.6982456 | AI66: ='Working | Approach C'!AI519/'Working | Approach C'!AI411*Inputs!AI27 -> 280.2787917 | AJ66: ='Working | Approach C'!AJ519/'Working | Approach C'!AJ411*Inputs!AJ27 -> 274.9271942 | AK66: ='Working | Approach C'!AK519/'Working | Approach C'!AK411*Inputs!AK27 -> 271.2063437 | AL66: ='Working | Approach C'!AL519/'Working | Approach C'!AL411*Inputs!AL27 -> 264.2445787 | AM66: ='Working | Approach C'!AM519/'Working | Approach C'!AM411*Inputs!AM27 -> 249.7360786 | AN66: ='Working | Approach C'!AN519/'Working | Approach C'!AN411*Inputs!AN27 -> 237.7208516 | AO66: ='Working | Approach C'!AO519/'Working | Approach C'!AO411*Inputs!AO27 -> 228.4121197 | AP66: ='Working | Approach C'!AP519/'Working | Approach C'!AP411*Inputs!AP27 -> 215.8968716 | AQ66: ='Working | Approach C'!AQ519/'Working | Approach C'!AQ411*Inputs!AQ27 -> 202.9713021 | AR66: ='Working | Approach C'!AR519/'Working | Approach C'!AR411*Inputs!AR27 -> 187.2438859 | AS66: ='Working | Approach C'!AS519/'Working | Approach C'!AS411*Inputs!AS27 -> 172.9802681 | AT66: ='Working | Approach C'!AT519/'Working | Approach C'!AT411*Inputs!AT27 -> 160.7253556 | AU66: ='Working | Approach C'!AU519/'Working | Approach C'!AU411*Inputs!AU27 -> 144.6353869 | AV66: ='Working | Approach C'!AV519/'Working | Approach C'!AV411*Inputs!AV27 -> 156.8871649 | AW66: ='Working | Approach C'!AW519/'Working | Approach C'!AW411*Inputs!AW27 -> 104.1206283 | AX66: ='Working | Approach C'!AX519/'Working | Approach C'!AX411*Inputs!AX27 -> 86.16685335 | AY66: ='Working | Approach C'!AY519/'Working | Approach C'!AY411*Inputs!AY27 -> 64.71973064 | AZ66: ='Working | Approach C'!AZ519/'Working | Approach C'!AZ411*Inputs!AZ27 -> 42.79388562 | BA66: ='Working | Approach C'!BA519/'Working | Approach C'!BA411*Inputs!BA27 -> 21.70943586 | BB66: ='Working | Approach C'!BB519/'Working | Approach C'!BB411*Inputs!BB27 -> -3.381147185e-14 | BC66: ='Working | Approach C'!BC519/'Working | Approach C'!BC411*Inputs!BC27 -> -3.492194892e-14 | BD66: ='Working | Approach C'!BD519/'Working | Approach C'!BD411*Inputs!BD27 -> -3.496838166e-14 | BE66: ='Working | Approach C'!BE519/'Working | Approach C'!BE411*Inputs!BE27 -> -3.52676238e-14 | BF66: ='Working | Approach C'!BF519/'Working | Approach C'!BF411*Inputs!BF27 -> -3.641731305e-14 | BG66: ='Working | Approach C'!BG519/'Working | Approach C'!BG411*Inputs!BG27 -> -3.692956404e-14 | BH66: ='Working | Approach C'!BH519/'Working | Approach C'!BH411*Inputs!BH27 -> -3.684149979e-14 | BI66: ='Working | Approach C'!BI519/'Working | Approach C'!BI411*Inputs!BI27 -> -3.846316051e-14 | BJ66: ='Working | Approach C'!BJ519/'Working | Approach C'!BJ411*Inputs!BJ27 -> -3.914459929e-14 | BK66: ='Working | Approach C'!BK519/'Working | Approach C'!BK411*Inputs!BK27 -> -4.069584882e-14 | BL66: ='Working | Approach C'!BL519/'Working | Approach C'!BL411*Inputs!BL27 -> -4.301086683e-14 | BM66: ='Working | Approach C'!BM519/'Working | Approach C'!BM411*Inputs!BM27 -> -4.339106373e-14 | BN66: ='Working | Approach C'!BN519/'Working | Approach C'!BN411*Inputs!BN27 -> -4.504934409e-14 | BO66: ='Working | Approach C'!BO519/'Working | Approach C'!BO411*Inputs!BO27 -> -4.545342547e-14 | BP66: ='Working | Approach C'!BP519/'Working | Approach C'!BP411*Inputs!BP27 -> -4.751428826e-14 | BQ66: ='Working | Approach C'!BQ519/'Working | Approach C'!BQ411*Inputs!BQ27 -> -4.76406476e-14 | BR66: ='Working | Approach C'!BR519/'Working | Approach C'!BR411*Inputs!BR27 -> -4.902171535e-14 | BS66: ='Working | Approach C'!BS519/'Working | Approach C'!BS411*Inputs!BS27 -> -5.158382419e-14 | BT66: ='Working | Approach C'!BT519/'Working | Approach C'!BT411*Inputs!BT27 -> -5.202722239e-14 | BU66: ='Working | Approach C'!BU519/'Working | Approach C'!BU411*Inputs!BU27 -> -5.283302962e-14
A67: Capex | C67: ='Working | Approach C'!D121 -> 3000 | D67: ='Working | Approach C'!D122 -> 102.8252539 | E67: ='Working | Approach C'!E122 -> 107.9498436 | F67: ='Working | Approach C'!F122 -> 114.6122191 | G67: ='Working | Approach C'!G122 -> 117.6999657 | H67: ='Working | Approach C'!H122 -> 123.2249476 | I67: ='Working | Approach C'!I258 -> 129.8768066 | J67: ='Working | Approach C'!J258 -> 134.8982371 | K67: ='Working | Approach C'!K258 -> 143.1901426 | L67: ='Working | Approach C'!L258 -> 149.9260897 | M67: ='Working | Approach C'!M258 -> 162.1395988 | N67: ='Working | Approach C'!N394 -> 168.5724888 | O67: ='Working | Approach C'!O394 -> 179.7280006 | P67: ='Working | Approach C'!P394 -> 190.3608255 | Q67: ='Working | Approach C'!Q394 -> 203.4885661 | R67: ='Working | Approach C'!R394 -> 219.0104543 | S67: ='Working | Approach C'!S530 -> 234.6536574 | T67: ='Working | Approach C'!T530 -> 252.3371069 | U67: ='Working | Approach C'!U530 -> 266.3542257 | V67: ='Working | Approach C'!V530 -> 279.7428225 | W67: ='Working | Approach C'!W530 -> 300.0559076 | X67: 0 | Y67: 0 | Z67: 0 | AA67: 0 | AB67: 0 | AC67: 0 | AD67: 0 | AE67: 0 | AF67: 0 | AG67: 0 | AH67: 0 | AI67: 0 | AJ67: 0 | AK67: 0 | AL67: 0 | AM67: 0 | AN67: 0 | AO67: 0 | AP67: 0 | AQ67: 0 | AR67: 0 | AS67: 0 | AT67: 0 | AU67: 0 | AV67: 0 | AW67: 0 | AX67: 0 | AY67: 0 | AZ67: 0 | BA67: 0 | BB67: 0 | BC67: 0 | BD67: 0 | BE67: 0 | BF67: 0 | BG67: 0 | BH67: 0 | BI67: 0 | BJ67: 0 | BK67: 0 | BL67: 0 | BM67: 0 | BN67: 0 | BO67: 0 | BP67: 0 | BQ67: 0 | BR67: 0 | BS67: 0 | BT67: 0 | BU67: 0
A68: Interest Payments | C68: 0 | D68: =('Working | Approach C'!D121*Inputs!$C$9)*Inputs!D9 -> 90 | E68: =('Working | Approach C'!E121*Inputs!$C$9)*Inputs!E9 -> 91.4488532 | F68: =('Working | Approach C'!F121*Inputs!$C$9)*Inputs!F9 -> 93.97234931 | G68: =('Working | Approach C'!G121*Inputs!$C$9)*Inputs!G9 -> 93.40286901 | H68: =('Working | Approach C'!H121*Inputs!$C$9)*Inputs!H9 -> 94.64467377 | I68: =('Working | Approach C'!I257*Inputs!$C$9)*Inputs!I9 -> 96.97609014 | J68: =('Working | Approach C'!J257*Inputs!$C$9)*Inputs!J9 -> 97.47103676 | K68: =('Working | Approach C'!K257*Inputs!$C$9)*Inputs!K9 -> 100.119616 | L68: =('Working | Approach C'!L257*Inputs!$C$9)*Inputs!L9 -> 101.4424419 | M68: =('Working | Approach C'!M257*Inputs!$C$9)*Inputs!M9 -> 106.1619132 | N68: =('Working | Approach C'!N393*Inputs!$C$9)*Inputs!N9 -> 107.0488656 | O68: =('Working | Approach C'!O393*Inputs!$C$9)*Inputs!O9 -> 110.513805 | P68: =('Working | Approach C'!P393*Inputs!$C$9)*Inputs!P9 -> 113.3405393 | Q68: =('Working | Approach C'!Q393*Inputs!$C$9)*Inputs!Q9 -> 117.3146384 | R68: =('Working | Approach C'!R393*Inputs!$C$9)*Inputs!R9 -> 122.2586902 | S68: =('Working | Approach C'!S529*Inputs!$C$9)*Inputs!S9 -> 126.3019925 | T68: =('Working | Approach C'!T529*Inputs!$C$9)*Inputs!T9 -> 131.3769405 | U68: =('Working | Approach C'!U529*Inputs!$C$9)*Inputs!U9 -> 134.1370745 | V68: =('Working | Approach C'!V529*Inputs!$C$9)*Inputs!V9 -> 136.2693729 | W68: =('Working | Approach C'!W529*Inputs!$C$9)*Inputs!W9 -> 141.3825529 | X68: =('Working | Approach C'!X529*Inputs!$C$9)*Inputs!$W$9 -> 145.5447037 | Y68: =('Working | Approach C'!Y529*Inputs!$C$9)*Inputs!$W$9 -> 138.6082567 | Z68: =('Working | Approach C'!Z529*Inputs!$C$9)*Inputs!$W$9 -> 130.9806345 | AA68: =('Working | Approach C'!AA529*Inputs!$C$9)*Inputs!$W$9 -> 122.1412251 | AB68: =('Working | Approach C'!AB529*Inputs!$C$9)*Inputs!$W$9 -> 113.9068361 | AC68: =('Working | Approach C'!AC529*Inputs!$C$9)*Inputs!$W$9 -> 105.9841743 | AD68: =('Working | Approach C'!AD529*Inputs!$C$9)*Inputs!$W$9 -> 98.40211694 | AE68: =('Working | Approach C'!AE529*Inputs!$C$9)*Inputs!$W$9 -> 88.21493076 | AF68: =('Working | Approach C'!AF529*Inputs!$C$9)*Inputs!$W$9 -> 80.77841723 | AG68: =('Working | Approach C'!AG529*Inputs!$C$9)*Inputs!$W$9 -> 72.88634317 | AH68: =('Working | Approach C'!AH529*Inputs!$C$9)*Inputs!$W$9 -> 64.1791267 | AI68: =('Working | Approach C'!AI529*Inputs!$C$9)*Inputs!$W$9 -> 60.67891678 | AJ68: =('Working | Approach C'!AJ529*Inputs!$C$9)*Inputs!$W$9 -> 56.83791644 | AK68: =('Working | Approach C'!AK529*Inputs!$C$9)*Inputs!$W$9 -> 53.45487373 | AL68: =('Working | Approach C'!AL529*Inputs!$C$9)*Inputs!$W$9 -> 49.42629951 | AM68: =('Working | Approach C'!AM529*Inputs!$C$9)*Inputs!$W$9 -> 44.02651834 | AN68: =('Working | Approach C'!AN529*Inputs!$C$9)*Inputs!$W$9 -> 39.36689353 | AO68: =('Working | Approach C'!AO529*Inputs!$C$9)*Inputs!$W$9 -> 35.39292191 | AP68: =('Working | Approach C'!AP529*Inputs!$C$9)*Inputs!$W$9 -> 31.07140343 | AQ68: =('Working | Approach C'!AQ529*Inputs!$C$9)*Inputs!$W$9 -> 26.90952081 | AR68: =('Working | Approach C'!AR529*Inputs!$C$9)*Inputs!$W$9 -> 22.62126427 | AS68: =('Working | Approach C'!AS529*Inputs!$C$9)*Inputs!$W$9 -> 18.84456789 | AT68: =('Working | Approach C'!AT529*Inputs!$C$9)*Inputs!$W$9 -> 15.62589373 | AU68: =('Working | Approach C'!AU529*Inputs!$C$9)*Inputs!$W$9 -> 12.23600001 | AV68: =('Working | Approach C'!AV529*Inputs!$C$9)*Inputs!$W$9 -> 8.897380237 | AW68: =('Working | Approach C'!AW529*Inputs!$C$9)*Inputs!$W$9 -> 5.797166492 | AX68: =('Working | Approach C'!AX529*Inputs!$C$9)*Inputs!$W$9 -> 3.394782802 | AY68: =('Working | Approach C'!AY529*Inputs!$C$9)*Inputs!$W$9 -> 1.199028866 | AZ68: =('Working | Approach C'!AZ529*Inputs!$C$9)*Inputs!$W$9 -> -0.524789987 | BA68: =('Working | Approach C'!BA529*Inputs!$C$9)*Inputs!$W$9 -> -1.755626534 | BB68: =('Working | Approach C'!BB529*Inputs!$C$9)*Inputs!$W$9 -> -0.08875391561 | BC68: =('Working | Approach C'!BC529*Inputs!$C$9)*Inputs!$W$9 -> -0.002914962973 | BD68: =('Working | Approach C'!BD529*Inputs!$C$9)*Inputs!$W$9 -> -3.875777885e-06 | BE68: =('Working | Approach C'!BE529*Inputs!$C$9)*Inputs!$W$9 -> -3.316699355e-08 | BF68: =('Working | Approach C'!BF529*Inputs!$C$9)*Inputs!$W$9 -> -1.081210805e-09 | BG68: =('Working | Approach C'!BG529*Inputs!$C$9)*Inputs!$W$9 -> -1.520846139e-11 | BH68: =('Working | Approach C'!BH529*Inputs!$C$9)*Inputs!$W$9 -> 3.626692543e-14 | BI68: =('Working | Approach C'!BI529*Inputs!$C$9)*Inputs!$W$9 -> 1.596369549e-15 | BJ68: =('Working | Approach C'!BJ529*Inputs!$C$9)*Inputs!$W$9 -> 2.828233858e-17 | BK68: =('Working | Approach C'!BK529*Inputs!$C$9)*Inputs!$W$9 -> 1.120792269e-18 | BL68: =('Working | Approach C'!BL529*Inputs!$C$9)*Inputs!$W$9 -> 6.375722254e-20 | BM68: =('Working | Approach C'!BM529*Inputs!$C$9)*Inputs!$W$9 -> 5.635854467e-22 | BN68: =('Working | Approach C'!BN529*Inputs!$C$9)*Inputs!$W$9 -> 2.153859787e-23 | BO68: =('Working | Approach C'!BO529*Inputs!$C$9)*Inputs!$W$9 -> 1.931958532e-25 | BP68: =('Working | Approach C'!BP529*Inputs!$C$9)*Inputs!$W$9 -> 8.759519014e-27 | BQ68: =('Working | Approach C'!BQ529*Inputs!$C$9)*Inputs!$W$9 -> 2.329503512e-29 | BR68: =('Working | Approach C'!BR529*Inputs!$C$9)*Inputs!$W$9 -> 6.753061398e-31 | BS68: =('Working | Approach C'!BS529*Inputs!$C$9)*Inputs!$W$9 -> 3.529472226e-32 | BT68: =('Working | Approach C'!BT529*Inputs!$C$9)*Inputs!$W$9 -> 3.033822475e-34 | BU68: =('Working | Approach C'!BU529*Inputs!$C$9)*Inputs!$W$9 -> 4.698840274e-36
A69: Repayment of Debt | C69: =('Working | Approach C'!C121-'Working | Approach C'!D121)*Inputs!$C$9 -> -1800 | D69: =('Working | Approach C'!D121-'Working | Approach C'!E121)*Inputs!$C$9 -> -28.97706393 | E69: =('Working | Approach C'!E121-'Working | Approach C'!F121)*Inputs!$C$9 -> -50.46992218 | F69: =('Working | Approach C'!F121-'Working | Approach C'!G121)*Inputs!$C$9 -> 11.38960592 | G69: =('Working | Approach C'!G121-'Working | Approach C'!H121)*Inputs!$C$9 -> -24.83609516 | H69: =('Working | Approach C'!H121-'Working | Approach C'!I257)*Inputs!$C$9 -> -46.6283274 | I69: =('Working | Approach C'!I257-'Working | Approach C'!J257)*Inputs!$C$9 -> -9.898932488 | J69: =('Working | Approach C'!J257-'Working | Approach C'!K257)*Inputs!$C$9 -> -52.97158526 | K69: =('Working | Approach C'!K257-'Working | Approach C'!L257)*Inputs!$C$9 -> -26.45651665 | L69: =('Working | Approach C'!L257-'Working | Approach C'!M257)*Inputs!$C$9 -> -94.38942649 | M69: =('Working | Approach C'!M257-'Working | Approach C'!N393)*Inputs!$C$9 -> -17.73904806 | N69: =('Working | Approach C'!N393-'Working | Approach C'!O393)*Inputs!$C$9 -> -69.29878888 | O69: =('Working | Approach C'!O393-'Working | Approach C'!P393)*Inputs!$C$9 -> -56.53468548 | P69: =('Working | Approach C'!P393-'Working | Approach C'!Q393)*Inputs!$C$9 -> -79.4819824 | Q69: =('Working | Approach C'!Q393-'Working | Approach C'!R393)*Inputs!$C$9 -> -98.88103629 | R69: =('Working | Approach C'!R393-'Working | Approach C'!S529)*Inputs!$C$9 -> -80.86604529 | S69: =('Working | Approach C'!S529-'Working | Approach C'!T529)*Inputs!$C$9 -> -101.4989597 | T69: =('Working | Approach C'!T529-'Working | Approach C'!U529)*Inputs!$C$9 -> -55.20268064 | U69: =('Working | Approach C'!U529-'Working | Approach C'!V529)*Inputs!$C$9 -> -42.64596801 | V69: =('Working | Approach C'!V529-'Working | Approach C'!W529)*Inputs!$C$9 -> -102.2635993 | W69: =('Working | Approach C'!W529-'Working | Approach C'!X529)*Inputs!$C$9 -> -83.24301691 | X69: =('Working | Approach C'!X529-'Working | Approach C'!Y529)*Inputs!$C$9 -> 138.7289411 | Y69: =('Working | Approach C'!Y529-'Working | Approach C'!Z529)*Inputs!$C$9 -> 152.5524428 | Z69: =('Working | Approach C'!Z529-'Working | Approach C'!AA529)*Inputs!$C$9 -> 176.7881878 | AA69: =('Working | Approach C'!AA529-'Working | Approach C'!AB529)*Inputs!$C$9 -> 164.6877803 | AB69: =('Working | Approach C'!AB529-'Working | Approach C'!AC529)*Inputs!$C$9 -> 158.4532364 | AC69: =('Working | Approach C'!AC529-'Working | Approach C'!AD529)*Inputs!$C$9 -> 151.6411474 | AD69: =('Working | Approach C'!AD529-'Working | Approach C'!AE529)*Inputs!$C$9 -> 203.7437237 | AE69: =('Working | Approach C'!AE529-'Working | Approach C'!AF529)*Inputs!$C$9 -> 148.7302705 | AF69: =('Working | Approach C'!AF529-'Working | Approach C'!AG529)*Inputs!$C$9 -> 157.8414812 | AG69: =('Working | Approach C'!AG529-'Working | Approach C'!AH529)*Inputs!$C$9 -> 174.1443295 | AH69: =('Working | Approach C'!AH529-'Working | Approach C'!AI529)*Inputs!$C$9 -> 70.00419846 | AI69: =('Working | Approach C'!AI529-'Working | Approach C'!AJ529)*Inputs!$C$9 -> 76.82000678 | AJ69: =('Working | Approach C'!AJ529-'Working | Approach C'!AK529)*Inputs!$C$9 -> 67.66085421 | AK69: =('Working | Approach C'!AK529-'Working | Approach C'!AL529)*Inputs!$C$9 -> 80.57148439 | AL69: =('Working | Approach C'!AL529-'Working | Approach C'!AM529)*Inputs!$C$9 -> 107.9956234 | AM69: =('Working | Approach C'!AM529-'Working | Approach C'!AN529)*Inputs!$C$9 -> 93.19249617 | AN69: =('Working | Approach C'!AN529-'Working | Approach C'!AO529)*Inputs!$C$9 -> 79.47943228 | AO69: =('Working | Approach C'!AO529-'Working | Approach C'!AP529)*Inputs!$C$9 -> 86.43036961 | AP69: =('Working | Approach C'!AP529-'Working | Approach C'!AQ529)*Inputs!$C$9 -> 83.23765254 | AQ69: =('Working | Approach C'!AQ529-'Working | Approach C'!AR529)*Inputs!$C$9 -> 85.76513078 | AR69: =('Working | Approach C'!AR529-'Working | Approach C'!AS529)*Inputs!$C$9 -> 75.53392757 | AS69: =('Working | Approach C'!AS529-'Working | Approach C'!AT529)*Inputs!$C$9 -> 64.37348319 | AT69: =('Working | Approach C'!AT529-'Working | Approach C'!AU529)*Inputs!$C$9 -> 67.79787433 | AU69: =('Working | Approach C'!AU529-'Working | Approach C'!AV529)*Inputs!$C$9 -> 66.77239553 | AV69: =('Working | Approach C'!AV529-'Working | Approach C'!AW529)*Inputs!$C$9 -> 62.00427489 | AW69: =('Working | Approach C'!AW529-'Working | Approach C'!AX529)*Inputs!$C$9 -> 48.04767381 | AX69: =('Working | Approach C'!AX529-'Working | Approach C'!AY529)*Inputs!$C$9 -> 43.91507871 | AY69: =('Working | Approach C'!AY529-'Working | Approach C'!AZ529)*Inputs!$C$9 -> 34.47637707 | AZ69: =('Working | Approach C'!AZ529-'Working | Approach C'!BA529)*Inputs!$C$9 -> 24.61673095 | BA69: =('Working | Approach C'!BA529-'Working | Approach C'!BB529)*Inputs!$C$9 -> -33.33745238 | BB69: =('Working | Approach C'!BB529-'Working | Approach C'!BC529)*Inputs!$C$9 -> -1.716779053 | BC69: =('Working | Approach C'!BC529-'Working | Approach C'!BD529)*Inputs!$C$9 -> -0.05822174389 | BD69: =('Working | Approach C'!BD529-'Working | Approach C'!BE529)*Inputs!$C$9 -> -7.685221783e-05 | BE69: =('Working | Approach C'!BE529-'Working | Approach C'!BF529)*Inputs!$C$9 -> -6.41715655e-07 | BF69: =('Working | Approach C'!BF529-'Working | Approach C'!BG529)*Inputs!$C$9 -> -2.132004687e-08 | BG69: =('Working | Approach C'!BG529-'Working | Approach C'!BH529)*Inputs!$C$9 -> -3.048945663e-10 | BH69: =('Working | Approach C'!BH529-'Working | Approach C'!BI529)*Inputs!$C$9 -> 6.934111176e-13 | BI69: =('Working | Approach C'!BI529-'Working | Approach C'!BJ529)*Inputs!$C$9 -> 3.136174421e-14 | BJ69: =('Working | Approach C'!BJ529-'Working | Approach C'!BK529)*Inputs!$C$9 -> 5.432309262e-16 | BK69: =('Working | Approach C'!BK529-'Working | Approach C'!BL529)*Inputs!$C$9 -> 2.114070093e-17 | BL69: =('Working | Approach C'!BL529-'Working | Approach C'!BM529)*Inputs!$C$9 -> 1.263872742e-18 | BM69: =('Working | Approach C'!BM529-'Working | Approach C'!BN529)*Inputs!$C$9 -> 1.084093698e-20 | BN69: =('Working | Approach C'!BN529-'Working | Approach C'!BO529)*Inputs!$C$9 -> 4.269080403e-22 | BO69: =('Working | Approach C'!BO529-'Working | Approach C'!BP529)*Inputs!$C$9 -> 3.688726684e-24 | BP69: =('Working | Approach C'!BP529-'Working | Approach C'!BQ529)*Inputs!$C$9 -> 1.747244796e-25 | BQ69: =('Working | Approach C'!BQ529-'Working | Approach C'!BR529)*Inputs!$C$9 -> 4.523945797e-28 | BR69: =('Working | Approach C'!BR529-'Working | Approach C'!BS529)*Inputs!$C$9 -> 1.280022835e-29 | BS69: =('Working | Approach C'!BS529-'Working | Approach C'!BT529)*Inputs!$C$9 -> 6.998268003e-31 | BT69: =('Working | Approach C'!BT529-'Working | Approach C'!BU529)*Inputs!$C$9 -> 5.973668144e-33 | BU69: =('Working | Approach C'!BU529-'Working | Approach C'!BV529)*Inputs!$C$9 -> 9.397680548e-35
A70: Opex | C70: 0 | D70: ='Working | Approach C'!D102/'Working | Approach C'!D4*Inputs!D27 -> 51.22324445 | E70: ='Working | Approach C'!E102/'Working | Approach C'!E4*Inputs!E27 -> 52.04138794 | F70: ='Working | Approach C'!F102/'Working | Approach C'!F4*Inputs!F27 -> 53.47088046 | G70: ='Working | Approach C'!G102/'Working | Approach C'!G4*Inputs!G27 -> 53.14009315 | H70: ='Working | Approach C'!H102/'Working | Approach C'!H4*Inputs!H27 -> 53.83989174 | I70: ='Working | Approach C'!I238/'Working | Approach C'!I139*Inputs!I27 -> 55.15935504 | J70: ='Working | Approach C'!J238/'Working | Approach C'!J139*Inputs!J27 -> 55.44385421 | K70: ='Working | Approach C'!K238/'Working | Approach C'!K139*Inputs!K27 -> 56.95342171 | L70: ='Working | Approach C'!L238/'Working | Approach C'!L139*Inputs!L27 -> 57.70899016 | M70: ='Working | Approach C'!M238/'Working | Approach C'!M139*Inputs!M27 -> 60.39693718 | N70: ='Working | Approach C'!N374/'Working | Approach C'!N275*Inputs!N27 -> 60.90479648 | O70: ='Working | Approach C'!O374/'Working | Approach C'!O275*Inputs!O27 -> 62.84056794 | P70: ='Working | Approach C'!P374/'Working | Approach C'!P275*Inputs!P27 -> 64.41121607 | Q70: ='Working | Approach C'!Q374/'Working | Approach C'!Q275*Inputs!Q27 -> 66.63209858 | R70: ='Working | Approach C'!R374/'Working | Approach C'!R275*Inputs!R27 -> 69.40134499 | S70: ='Working | Approach C'!S510/'Working | Approach C'!S411*Inputs!S27 -> 71.65610785 | T70: ='Working | Approach C'!T510/'Working | Approach C'!T411*Inputs!T27 -> 74.57041629 | U70: ='Working | Approach C'!U510/'Working | Approach C'!U411*Inputs!U27 -> 76.17362092 | V70: ='Working | Approach C'!V510/'Working | Approach C'!V411*Inputs!V27 -> 77.42184605 | W70: ='Working | Approach C'!W510/'Working | Approach C'!W411*Inputs!W27 -> 80.36488222 | X70: 0 | Y70: 0 | Z70: 0 | AA70: 0 | AB70: 0 | AC70: 0 | AD70: 0 | AE70: 0 | AF70: 0 | AG70: 0 | AH70: 0 | AI70: 0 | AJ70: 0 | AK70: 0 | AL70: 0 | AM70: 0 | AN70: 0 | AO70: 0 | AP70: 0 | AQ70: 0 | AR70: 0 | AS70: 0 | AT70: 0 | AU70: 0 | AV70: 0 | AW70: 0 | AX70: 0 | AY70: 0 | AZ70: 0 | BA70: 0 | BB70: 0 | BC70: 0 | BD70: 0 | BE70: 0 | BF70: 0 | BG70: 0 | BH70: 0 | BI70: 0 | BJ70: 0 | BK70: 0 | BL70: 0 | BM70: 0 | BN70: 0 | BO70: 0 | BP70: 0 | BQ70: 0 | BR70: 0 | BS70: 0 | BT70: 0 | BU70: 0
A71: Tax payable+ gamma | C71: 0 | D71: ='Working | Approach C'!D103/'Working | Approach C'!D4*Inputs!D27 -> 3.917272352 | E71: ='Working | Approach C'!E103/'Working | Approach C'!E4*Inputs!E27 -> 3.769699593 | F71: ='Working | Approach C'!F103/'Working | Approach C'!F4*Inputs!F27 -> 3.718341212 | G71: ='Working | Approach C'!G103/'Working | Approach C'!G4*Inputs!G27 -> 3.5975912 | H71: ='Working | Approach C'!H103/'Working | Approach C'!H4*Inputs!H27 -> 3.598792452 | I71: ='Working | Approach C'!I239/'Working | Approach C'!I139*Inputs!I27 -> 0 | J71: ='Working | Approach C'!J239/'Working | Approach C'!J139*Inputs!J27 -> 0 | K71: ='Working | Approach C'!K239/'Working | Approach C'!K139*Inputs!K27 -> 0 | L71: ='Working | Approach C'!L239/'Working | Approach C'!L139*Inputs!L27 -> 0 | M71: ='Working | Approach C'!M239/'Working | Approach C'!M139*Inputs!M27 -> 0 | N71: ='Working | Approach C'!N375/'Working | Approach C'!N275*Inputs!N27 -> 0 | O71: ='Working | Approach C'!O375/'Working | Approach C'!O275*Inputs!O27 -> 0 | P71: ='Working | Approach C'!P375/'Working | Approach C'!P275*Inputs!P27 -> 0 | Q71: ='Working | Approach C'!Q375/'Working | Approach C'!Q275*Inputs!Q27 -> 0 | R71: ='Working | Approach C'!R375/'Working | Approach C'!R275*Inputs!R27 -> 0 | S71: ='Working | Approach C'!S511/'Working | Approach C'!S411*Inputs!S27 -> 3.884538352 | T71: ='Working | Approach C'!T511/'Working | Approach C'!T411*Inputs!T27 -> 7.855458808 | U71: ='Working | Approach C'!U511/'Working | Approach C'!U411*Inputs!U27 -> 8.640850928 | V71: ='Working | Approach C'!V511/'Working | Approach C'!V411*Inputs!V27 -> 9.446051089 | W71: ='Working | Approach C'!W511/'Working | Approach C'!W411*Inputs!W27 -> 10.53093735 | X71: =SUM('Working | Approach C'!X477:X478)/'Working | Approach C'!X411*Inputs!X27 -> 11.63050627 | Y71: =SUM('Working | Approach C'!Y477:Y478)/'Working | Approach C'!Y411*Inputs!Y27 -> 13.94898945 | Z71: =SUM('Working | Approach C'!Z477:Z478)/'Working | Approach C'!Z411*Inputs!Z27 -> 16.1273551 | AA71: =SUM('Working | Approach C'!AA477:AA478)/'Working | Approach C'!AA411*Inputs!AA27 -> 18.07775779 | AB71: =SUM('Working | Approach C'!AB477:AB478)/'Working | Approach C'!AB411*Inputs!AB27 -> 20.03338812 | AC71: =SUM('Working | Approach C'!AC477:AC478)/'Working | Approach C'!AC411*Inputs!AC27 -> 22.01283175 | AD71: =SUM('Working | Approach C'!AD477:AD478)/'Working | Approach C'!AD411*Inputs!AD27 -> 24.08709339 | AE71: =SUM('Working | Approach C'!AE477:AE478)/'Working | Approach C'!AE411*Inputs!AE27 -> 25.58210974 | AF71: =SUM('Working | Approach C'!AF477:AF478)/'Working | Approach C'!AF411*Inputs!AF27 -> 27.84903981 | AG71: =SUM('Working | Approach C'!AG477:AG478)/'Working | Approach C'!AG411*Inputs!AG27 -> 30.22238734 | AH71: =SUM('Working | Approach C'!AH477:AH478)/'Working | Approach C'!AH411*Inputs!AH27 -> 17.77515697 | AI71: =SUM('Working | Approach C'!AI477:AI478)/'Working | Approach C'!AI411*Inputs!AI27 -> 16.49662021 | AJ71: =SUM('Working | Approach C'!AJ477:AJ478)/'Working | Approach C'!AJ411*Inputs!AJ27 -> 16.84944866 | AK71: =SUM('Working | Approach C'!AK477:AK478)/'Working | Approach C'!AK411*Inputs!AK27 -> 17.17010665 | AL71: =SUM('Working | Approach C'!AL477:AL478)/'Working | Approach C'!AL411*Inputs!AL27 -> 17.33246308 | AM71: =SUM('Working | Approach C'!AM477:AM478)/'Working | Approach C'!AM411*Inputs!AM27 -> 16.86279078 | AN71: =SUM('Working | Approach C'!AN477:AN478)/'Working | Approach C'!AN411*Inputs!AN27 -> 16.41309162 | AO71: =SUM('Working | Approach C'!AO477:AO478)/'Working | Approach C'!AO411*Inputs!AO27 -> 16.15407334 | AP71: =SUM('Working | Approach C'!AP477:AP478)/'Working | Approach C'!AP411*Inputs!AP27 -> 15.49354573 | AQ71: =SUM('Working | Approach C'!AQ477:AQ478)/'Working | Approach C'!AQ411*Inputs!AQ27 -> 14.80506493 | AR71: =SUM('Working | Approach C'!AR477:AR478)/'Working | Approach C'!AR411*Inputs!AR27 -> 13.64722341 | AS71: =SUM('Working | Approach C'!AS477:AS478)/'Working | Approach C'!AS411*Inputs!AS27 -> 12.67452365 | AT71: =SUM('Working | Approach C'!AT477:AT478)/'Working | Approach C'!AT411*Inputs!AT27 -> 11.63861115 | AU71: =SUM('Working | Approach C'!AU477:AU478)/'Working | Approach C'!AU411*Inputs!AU27 -> 10.25851094 | AV71: =SUM('Working | Approach C'!AV477:AV478)/'Working | Approach C'!AV411*Inputs!AV27 -> 39.90514614 | AW71: =SUM('Working | Approach C'!AW477:AW478)/'Working | Approach C'!AW411*Inputs!AW27 -> 6.446990655 | AX71: =SUM('Working | Approach C'!AX477:AX478)/'Working | Approach C'!AX411*Inputs!AX27 -> 4.502454258 | AY71: =SUM('Working | Approach C'!AY477:AY478)/'Working | Approach C'!AY411*Inputs!AY27 -> 2.270810994 | AZ71: =SUM('Working | Approach C'!AZ477:AZ478)/'Working | Approach C'!AZ411*Inputs!AZ27 -> 0 | BA71: =SUM('Working | Approach C'!BA477:BA478)/'Working | Approach C'!BA411*Inputs!BA27 -> 0 | BB71: =SUM('Working | Approach C'!BB477:BB478)/'Working | Approach C'!BB411*Inputs!BB27 -> 0 | BC71: =SUM('Working | Approach C'!BC477:BC478)/'Working | Approach C'!BC411*Inputs!BC27 -> 0 | BD71: =SUM('Working | Approach C'!BD477:BD478)/'Working | Approach C'!BD411*Inputs!BD27 -> 0 | BE71: =SUM('Working | Approach C'!BE477:BE478)/'Working | Approach C'!BE411*Inputs!BE27 -> 0 | BF71: =SUM('Working | Approach C'!BF477:BF478)/'Working | Approach C'!BF411*Inputs!BF27 -> 0 | BG71: =SUM('Working | Approach C'!BG477:BG478)/'Working | Approach C'!BG411*Inputs!BG27 -> 0 | BH71: =SUM('Working | Approach C'!BH477:BH478)/'Working | Approach C'!BH411*Inputs!BH27 -> 0 | BI71: =SUM('Working | Approach C'!BI477:BI478)/'Working | Approach C'!BI411*Inputs!BI27 -> 0 | BJ71: =SUM('Working | Approach C'!BJ477:BJ478)/'Working | Approach C'!BJ411*Inputs!BJ27 -> 0 | BK71: =SUM('Working | Approach C'!BK477:BK478)/'Working | Approach C'!BK411*Inputs!BK27 -> 0 | BL71: =SUM('Working | Approach C'!BL477:BL478)/'Working | Approach C'!BL411*Inputs!BL27 -> 0 | BM71: =SUM('Working | Approach C'!BM477:BM478)/'Working | Approach C'!BM411*Inputs!BM27 -> 0 | BN71: =SUM('Working | Approach C'!BN477:BN478)/'Working | Approach C'!BN411*Inputs!BN27 -> 0 | BO71: =SUM('Working | Approach C'!BO477:BO478)/'Working | Approach C'!BO411*Inputs!BO27 -> 0 | BP71: =SUM('Working | Approach C'!BP477:BP478)/'Working | Approach C'!BP411*Inputs!BP27 -> 0 | BQ71: =SUM('Working | Approach C'!BQ477:BQ478)/'Working | Approach C'!BQ411*Inputs!BQ27 -> 0 | BR71: =SUM('Working | Approach C'!BR477:BR478)/'Working | Approach C'!BR411*Inputs!BR27 -> 0 | BS71: =SUM('Working | Approach C'!BS477:BS478)/'Working | Approach C'!BS411*Inputs!BS27 -> 0 | BT71: =SUM('Working | Approach C'!BT477:BT478)/'Working | Approach C'!BT411*Inputs!BT27 -> 0 | BU71: =SUM('Working | Approach C'!BU477:BU478)/'Working | Approach C'!BU411*Inputs!BU27 -> 0
A72: Returns achieved
A73: Post-tax CF to Equity | B73: =IRR(C73:BU73) -> 0.0635473704 | C73: =C66-C67-C68-C69-C70-C71 -> -1200 | D73: =D66-D67-D68-D69-D70-D71 -> 53.13346752 | E73: =E66-E67-E68-E69-E70-E71 -> 75.12257587 | F73: 13.91633906 | G73: 49.82575985 | H73: 71.64855831 | I73: 8.785284081 | J73: 51.93752651 | K73: 25.40429596 | L73: 93.25097076 | M73: 16.38119328 | N73: 53.96223475 | O73: 40.9196265 | P73: 63.60622277 | Q73: 82.5008172 | R73: 63.74963861 | S73: 115.4084733 | T73: 67.74018097 | U73: 56.69195543 | V73: 117.6953282 | W73: 100.3477735 | X73: 201.7321889 | Y73: 193.1631677 | Z73: 173.3369656 | AA73: 187.4804817 | AB73: 197.9180529 | AC73: 210.7609527 | AD73: 167.1315632 | AE73: 223.0729774 | AF73: 226.5728786 | AG73: 224.3771781 | AH73: 133.7397635 | AI73: 126.2832479 | AJ73: 133.5789749 | AK73: 120.009879 | AL73: 89.49019275 | AM73: 95.65427335 | AN73: 102.4614341 | AO73: 90.43475485 | AP73: 86.09426986 | AQ73: 75.49158554 | AR73: 75.44147063 | AS73: 77.08769332 | AT73: 65.6629764 | AU73: 55.36848043 | AV73: 46.08036369 | AW73: 43.82879733 | AX73: 34.35453758 | AY73: 26.77351371 | AZ73: 18.70194466 | BA73: 56.80251477 | BB73: 1.805532968 | BC73: 0.06113670687 | BD73: 8.072799568e-05 | BE73: 6.748826133e-07 | BF73: 2.240122125e-08 | BG73: 3.200660981e-10 | BH73: -7.665195429e-13 | BI73: -7.142127426e-14 | BJ73: -3.971611256e-14 | BK73: -4.071811031e-14 | BL73: -4.301219446e-14 | BM73: -4.339107514e-14 | BN73: -4.504934453e-14 | BO73: -4.545342547e-14 | BP73: =BP66-BP67-BP68-BP69-BP70-BP71 -> -4.751428826e-14 | BQ73: -4.76406476e-14 | BR73: -4.902171535e-14 | BS73: -5.158382419e-14 | BT73: -5.202722239e-14 | BU73: -5.283302962e-14
A74: Real post-tax CF to Equity | B74: =IRR(C74:BU74) -> 0.03983842969 | C74: =C73/Inputs!C27 -> -1200 | D74: =D73/Inputs!D27 -> 51.8646057 | E74: =E73/Inputs!E27 -> 72.17579973 | F74: =F73/Inputs!F27 -> 13.01300721 | G74: =G73/Inputs!G27 -> 46.88151346 | H74: =H73/Inputs!H27 -> 66.53854233 | I74: =I73/Inputs!I27 -> 7.963548591 | J74: =J73/Inputs!J27 -> 46.83794737 | K74: =K73/Inputs!K27 -> 22.30269507 | L74: =L73/Inputs!L27 -> 80.79414534 | M74: =M73/Inputs!M27 -> 13.56127815 | N74: =N73/Inputs!N27 -> 44.30048032 | O74: =O73/Inputs!O27 -> 32.55828825 | P74: =P73/Inputs!P27 -> 49.37511403 | Q74: =Q73/Inputs!Q27 -> 61.90771337 | R74: =R73/Inputs!R27 -> 45.92824434 | S74: =S73/Inputs!S27 -> 80.52940413 | T74: =T73/Inputs!T27 -> 45.42027813 | U74: =U73/Inputs!U27 -> 37.21232807 | V74: =V73/Inputs!V27 -> 76.00912029 | W74: =W73/Inputs!W27 -> 62.43260159 | X74: =X73/Inputs!X27 -> 121.8628606 | Y74: =Y73/Inputs!Y27 -> 114.549552 | Z74: =Z73/Inputs!Z27 -> 101.1833157 | AA74: =AA73/Inputs!AA27 -> 108.4881064 | AB74: =AB73/Inputs!AB27 -> 112.8271984 | AC74: =AC73/Inputs!AC27 -> 117.7657211 | AD74: =AD73/Inputs!AD27 -> 90.93975716 | AE74: =AE73/Inputs!AE27 -> 120.7308561 | AF74: =AF73/Inputs!AF27 -> 118.1565703 | AG74: =AG73/Inputs!AG27 -> 112.4349894 | AH74: =AH73/Inputs!AH27 -> 64.4285854 | AI74: =AI73/Inputs!AI27 -> 58.70816917 | AJ74: =AJ73/Inputs!AJ27 -> 60.13807577 | AK74: =AK73/Inputs!AK27 -> 51.84447031 | AL74: =AL73/Inputs!AL27 -> 37.4390795 | AM74: =AM73/Inputs!AM27 -> 39.78179923 | AN74: =AN73/Inputs!AN27 -> 41.86172023 | AO74: =AO73/Inputs!AO27 -> 35.78191312 | AP74: =AP73/Inputs!AP27 -> 33.31437266 | AQ74: =AQ73/Inputs!AQ27 -> 28.5280975 | AR74: =AR73/Inputs!AR27 -> 28.10262795 | AS74: =AS73/Inputs!AS27 -> 27.96741051 | AT74: =AT73/Inputs!AT27 -> 22.7480014 | AU74: =AU73/Inputs!AU27 -> 18.5979547 | AV74: =AV73/Inputs!AV27 -> 15.21325489 | AW74: =AW73/Inputs!AW27 -> 14.40553333 | AX74: =AX73/Inputs!AX27 -> 10.80664166 | AY74: =AY73/Inputs!AY27 -> 8.262007912 | AZ74: =AZ73/Inputs!AZ27 -> 5.615981952 | BA74: =BA73/Inputs!BA27 -> 16.8158474 | BB74: =BB73/Inputs!BB27 -> 0.5087896207 | BC74: =BC73/Inputs!BC27 -> 0.01668016973 | BD74: =BD73/Inputs!BD27 -> 2.199609228e-05 | BE74: =BE73/Inputs!BE27 -> 1.823261396e-07 | BF74: =BF73/Inputs!BF27 -> 5.860851165e-09 | BG74: =BG73/Inputs!BG27 -> 8.257762563e-11 | BH74: =BH73/Inputs!BH27 -> -1.982361374e-13 | BI74: =BI73/Inputs!BI27 -> -1.769210564e-14 | BJ74: =BJ73/Inputs!BJ27 -> -9.667001317e-15 | BK74: =BK73/Inputs!BK27 -> -9.533105517e-15 | BL74: =BL73/Inputs!BL27 -> -9.528187657e-15 | BM74: =BM73/Inputs!BM27 -> -9.527896061e-15 | BN74: =BN73/Inputs!BN27 -> -9.527893651e-15 | BO74: =BO73/Inputs!BO27 -> -9.527893557e-15 | BP74: =BP73/Inputs!BP27 -> -9.527893557e-15 | BQ74: =BQ73/Inputs!BQ27 -> -9.527893557e-15 | BR74: =BR73/Inputs!BR27 -> -9.527893557e-15 | BS74: =BS73/Inputs!BS27 -> -9.527893557e-15 | BT74: =BT73/Inputs!BT27 -> -9.527893557e-15 | BU74: =BU73/Inputs!BU27 -> -9.527893557e-15
A75: Nominal cash flows to assets | B75: =IRR(C75:BU75) -> 0.05768355248 | C75: =C66-C67-C70 -> -3000 | D75: =D66-D67-D70 -> 118.0736759 | E75: 119.8712065 | F75: 122.9966355 | G75: 121.9901249 | H75: 123.2636971 | I75: 95.86244173 | J75: 96.43697801 | K75: 99.06739533 | L75: 100.3039861 | M75: 104.8040584 | N75: 91.71231146 | O75: 94.89874605 | P75: 97.46477967 | Q75: 100.9344193 | R75: 105.1422836 | S75: 144.0960445 | T75: 151.7698996 | U75: 156.8239129 | V75: 161.1471529 | W75: 169.0182468 | X75: 497.63634 | Y75: 498.2728565 | Z75: 497.233143 | AA75: 492.3872449 | AB75: 490.3115136 | AC75: 490.3991061 | AD75: 493.3644972 | AE75: 485.6002884 | AF75: 493.0418168 | AG75: 501.6302381 | AH75: 285.6982456 | AI75: 280.2787917 | AJ75: 274.9271942 | AK75: 271.2063437 | AL75: 264.2445787 | AM75: 249.7360786 | AN75: 237.7208516 | AO75: 228.4121197 | AP75: 215.8968716 | AQ75: 202.9713021 | AR75: 187.2438859 | AS75: 172.9802681 | AT75: 160.7253556 | AU75: 144.6353869 | AV75: 156.8871649 | AW75: 104.1206283 | AX75: 86.16685335 | AY75: 64.71973064 | AZ75: 42.79388562 | BA75: 21.70943586 | BB75: -3.381147185e-14 | BC75: -3.492194892e-14 | BD75: -3.496838166e-14 | BE75: -3.52676238e-14 | BF75: -3.641731305e-14 | BG75: -3.692956404e-14 | BH75: -3.684149979e-14 | BI75: -3.846316051e-14 | BJ75: -3.914459929e-14 | BK75: -4.069584882e-14 | BL75: -4.301086683e-14 | BM75: -4.339106373e-14 | BN75: -4.504934409e-14 | BO75: -4.545342547e-14 | BP75: =BP66-BP67-BP70 -> -4.751428826e-14 | BQ75: -4.76406476e-14 | BR75: -4.902171535e-14 | BS75: -5.158382419e-14 | BT75: -5.202722239e-14 | BU75: -5.283302962e-14
A76: Nominal vanilla WACC | B76: =IRR(C76:BU76) -> 0.05564886688 | C76: =C75-C71 -> -3000 | D76: =D75-D71 -> 114.1564036 | E76: 116.1015069 | F76: 119.2782943 | G76: 118.3925337 | H76: 119.6649047 | I76: 95.86244173 | J76: 96.43697801 | K76: 99.06739533 | L76: 100.3039861 | M76: 104.8040584 | N76: 91.71231146 | O76: 94.89874605 | P76: 97.46477967 | Q76: 100.9344193 | R76: 105.1422836 | S76: 140.2115061 | T76: 143.9144408 | U76: 148.1830619 | V76: 151.7011019 | W76: 158.4873094 | X76: 486.0058337 | Y76: 484.3238671 | Z76: 481.1057879 | AA76: 474.3094871 | AB76: 470.2781254 | AC76: 468.3862744 | AD76: 469.2774038 | AE76: 460.0181786 | AF76: 465.192777 | AG76: 471.4078508 | AH76: 267.9230886 | AI76: 263.7821715 | AJ76: 258.0777455 | AK76: 254.0362371 | AL76: 246.9121157 | AM76: 232.8732879 | AN76: 221.3077599 | AO76: 212.2580464 | AP76: 200.4033258 | AQ76: 188.1662371 | AR76: 173.5966625 | AS76: 160.3057444 | AT76: 149.0867445 | AU76: 134.376876 | AV76: 116.9820188 | AW76: 97.67363763 | AX76: 81.66439909 | AY76: 62.44891964 | AZ76: 42.79388562 | BA76: 21.70943586 | BB76: -3.381147185e-14 | BC76: -3.492194892e-14 | BD76: -3.496838166e-14 | BE76: -3.52676238e-14 | BF76: -3.641731305e-14 | BG76: -3.692956404e-14 | BH76: -3.684149979e-14 | BI76: -3.846316051e-14 | BJ76: -3.914459929e-14 | BK76: -4.069584882e-14 | BL76: -4.301086683e-14 | BM76: -4.339106373e-14 | BN76: -4.504934409e-14 | BO76: -4.545342547e-14 | BP76: =BP75-BP71 -> -4.751428826e-14 | BQ76: -4.76406476e-14 | BR76: -4.902171535e-14 | BS76: -5.158382419e-14 | BT76: -5.202722239e-14 | BU76: -5.283302962e-14
A77: Real WACC (real) | B77: =IRR(C77:BU77) -> 0.03191806823 | C77: =C76/Inputs!C27 -> -3000 | D77: =D76/Inputs!D27 -> 111.4302743 | E77: =E76/Inputs!E27 -> 111.5472814 | F77: =F76/Inputs!F27 -> 111.5357492 | G77: =G76/Inputs!G27 -> 111.3966185 | H77: =H76/Inputs!H27 -> 111.1303355 | I77: =I76/Inputs!I27 -> 86.89590521 | J77: =J76/Inputs!J27 -> 86.96814046 | K77: =K76/Inputs!K27 -> 86.97229452 | L77: =L76/Inputs!L27 -> 86.90499163 | M77: =M76/Inputs!M27 -> 86.76272615 | N77: =N76/Inputs!N27 -> 75.2915343 | O77: =O76/Inputs!O27 -> 75.50754962 | P77: =P76/Inputs!P27 -> 75.65823595 | Q77: =Q76/Inputs!Q27 -> 75.74008735 | R77: =R76/Inputs!R27 -> 75.74945671 | S77: =S76/Inputs!S27 -> 97.83639549 | T77: =T76/Inputs!T27 -> 96.49566676 | U77: =U76/Inputs!U27 -> 97.26665225 | V77: =V76/Inputs!V27 -> 97.97047578 | W77: =W76/Inputs!W27 -> 98.60482904 | X77: =X76/Inputs!X27 -> 293.5875602 | Y77: =Y76/Inputs!Y27 -> 287.2135649 | Z77: =Z76/Inputs!Z27 -> 280.8395697 | AA77: =AA76/Inputs!AA27 -> 274.4655745 | AB77: =AB76/Inputs!AB27 -> 268.0915792 | AC77: =AC76/Inputs!AC27 -> 261.717584 | AD77: =AD76/Inputs!AD27 -> 255.3435888 | AE77: =AE76/Inputs!AE27 -> 248.9695936 | AF77: =AF76/Inputs!AF27 -> 242.5955983 | AG77: =AG76/Inputs!AG27 -> 236.2216031 | AH77: =AH76/Inputs!AH27 -> 129.0708548 | AI77: =AI76/Inputs!AI27 -> 122.6304249 | AJ77: =AJ76/Inputs!AJ27 -> 116.1881878 | AK77: =AK76/Inputs!AK27 -> 109.7440833 | AL77: =AL76/Inputs!AL27 -> 103.2980491 | AM77: =AM76/Inputs!AM27 -> 96.85002101 | AN77: =AN76/Inputs!AN27 -> 90.41766407 | AO77: =AO76/Inputs!AO27 -> 83.98318751 | AP77: =AP76/Inputs!AP27 -> 77.5465207 | AQ77: =AQ76/Inputs!AQ27 -> 71.10759062 | AR77: =AR76/Inputs!AR27 -> 64.66632183 | AS77: =AS76/Inputs!AS27 -> 58.15891445 | AT77: =AT76/Inputs!AT27 -> 51.64897569 | AU77: =AU76/Inputs!AU27 -> 45.13642118 | AV77: =AV76/Inputs!AV27 -> 38.62116371 | AW77: =AW76/Inputs!AW27 -> 32.10311321 | AX77: =AX76/Inputs!AX27 -> 25.68853955 | AY77: =AY76/Inputs!AY27 -> 19.27104054 | AZ77: =AZ76/Inputs!AZ27 -> 12.85051869 | BA77: =BA76/Inputs!BA27 -> 6.426873212 | BB77: =BB76/Inputs!BB27 -> -9.527893557e-15 | BC77: =BC76/Inputs!BC27 -> -9.527893557e-15 | BD77: =BD76/Inputs!BD27 -> -9.527893557e-15 | BE77: =BE76/Inputs!BE27 -> -9.527893557e-15 | BF77: =BF76/Inputs!BF27 -> -9.527893557e-15 | BG77: =BG76/Inputs!BG27 -> -9.527893557e-15 | BH77: =BH76/Inputs!BH27 -> -9.527893557e-15 | BI77: =BI76/Inputs!BI27 -> -9.527893557e-15 | BJ77: =BJ76/Inputs!BJ27 -> -9.527893557e-15 | BK77: =BK76/Inputs!BK27 -> -9.527893557e-15 | BL77: =BL76/Inputs!BL27 -> -9.527893557e-15 | BM77: =BM76/Inputs!BM27 -> -9.527893557e-15 | BN77: =BN76/Inputs!BN27 -> -9.527893557e-15 | BO77: =BO76/Inputs!BO27 -> -9.527893557e-15 | BP77: =BP76/Inputs!BP27 -> -9.527893557e-15 | BQ77: =BQ76/Inputs!BQ27 -> -9.527893557e-15 | BR77: =BR76/Inputs!BR27 -> -9.527893557e-15 | BS77: =BS76/Inputs!BS27 -> -9.527893557e-15 | BT77: =BT76/Inputs!BT27 -> -9.527893557e-15 | BU77: =BU76/Inputs!BU27 -> -9.527893557e-15
A78: ="Nominal NPV at "&ROUND((GEOMEAN(1+Inputs!$D$11:$W$11)-1)*100,2)&"%" -> Nominal NPV at 5.6% | B78: =NPV((GEOMEAN(1+Inputs!$D$11:$W$11)-1),D76:BU76)+C76 -> -19.48051448
A79: ="Real NPV at "&ROUND((GEOMEAN(1+Inputs!$D$14:$W$14)-1)*100,2)&"%" -> Real NPV at 3.09% | B79: =NPV((GEOMEAN(1+Inputs!$D$14:$W$14)-1),D77:BU77)+C77 -> 60.18960198
C80: =NPV(B77,D77:BU77)+C77 -> -9.549694369e-12
A81: =RIGHT(Inputs!A6,LEN(Inputs!A6)-3)&" ("&Inputs!B6&")" -> Approach D (unindexed RAB)
A82: Revenue | C82: 0 | D82: ='Working | Approach D'!D111 -> 330.3419475 | E82: ='Working | Approach D'!E111 -> 332.1259815 | F82: ='Working | Approach D'!F111 -> 337.6981286 | G82: ='Working | Approach D'!G111 -> 332.1168946 | H82: ='Working | Approach D'!H111 -> 332.9892195 | I82: ='Working | Approach D'!I247 -> 352.7387863 | J82: ='Working | Approach D'!J247 -> 352.280206 | K82: ='Working | Approach D'!K247 -> 359.5468117 | L82: ='Working | Approach D'!L247 -> 361.9760924 | M82: ='Working | Approach D'!M247 -> 376.4021714 | N82: ='Working | Approach D'!N383 -> 387.0308223 | O82: ='Working | Approach D'!O383 -> 398.9370907 | P82: ='Working | Approach D'!P383 -> 408.5037727 | Q82: ='Working | Approach D'!Q383 -> 422.170928 | R82: ='Working | Approach D'!R383 -> 439.2815641 | S82: ='Working | Approach D'!S519 -> 439.0937828 | T82: ='Working | Approach D'!T519 -> 459.3673434 | U82: ='Working | Approach D'!U519 -> 471.7236256 | V82: ='Working | Approach D'!V519 -> 481.9877795 | W82: ='Working | Approach D'!W519 -> 502.9540325 | X82: ='Working | Approach D'!X519/'Working | Approach D'!X411*Inputs!X27 -> 444.5819781 | Y82: ='Working | Approach D'!Y519/'Working | Approach D'!Y411*Inputs!Y27 -> 429.9338713 | Z82: ='Working | Approach D'!Z519/'Working | Approach D'!Z411*Inputs!Z27 -> 414.2327355 | AA82: ='Working | Approach D'!AA519/'Working | Approach D'!AA411*Inputs!AA27 -> 395.8903961 | AB82: ='Working | Approach D'!AB519/'Working | Approach D'!AB411*Inputs!AB27 -> 380.3079348 | AC82: ='Working | Approach D'!AC519/'Working | Approach D'!AC411*Inputs!AC27 -> 366.7711765 | AD82: ='Working | Approach D'!AD519/'Working | Approach D'!AD411*Inputs!AD27 -> 355.5958151 | AE82: ='Working | Approach D'!AE519/'Working | Approach D'!AE411*Inputs!AE27 -> 337.0880971 | AF82: ='Working | Approach D'!AF519/'Working | Approach D'!AF411*Inputs!AF27 -> 329.4012161 | AG82: ='Working | Approach D'!AG519/'Working | Approach D'!AG411*Inputs!AG27 -> 322.3062094 | AH82: ='Working | Approach D'!AH519/'Working | Approach D'!AH411*Inputs!AH27 -> 214.9598495 | AI82: ='Working | Approach D'!AI519/'Working | Approach D'!AI411*Inputs!AI27 -> 205.1362379 | AJ82: ='Working | Approach D'!AJ519/'Working | Approach D'!AJ411*Inputs!AJ27 -> 196.0726654 | AK82: ='Working | Approach D'!AK519/'Working | Approach D'!AK411*Inputs!AK27 -> 188.4393399 | AL82: ='Working | Approach D'!AL519/'Working | Approach D'!AL411*Inputs!AL27 -> 178.8855055 | AM82: ='Working | Approach D'!AM519/'Working | Approach D'!AM411*Inputs!AM27 -> 164.6837402 | AN82: ='Working | Approach D'!AN519/'Working | Approach D'!AN411*Inputs!AN27 -> 152.8518206 | AO82: ='Working | Approach D'!AO519/'Working | Approach D'!AO411*Inputs!AO27 -> 143.221208 | AP82: ='Working | Approach D'!AP519/'Working | Approach D'!AP411*Inputs!AP27 -> 131.9705418 | AQ82: ='Working | Approach D'!AQ519/'Working | Approach D'!AQ411*Inputs!AQ27 -> 120.9607527 | AR82: ='Working | Approach D'!AR519/'Working | Approach D'!AR411*Inputs!AR27 -> 108.7042975 | AS82: ='Working | Approach D'!AS519/'Working | Approach D'!AS411*Inputs!AS27 -> 98.00135695 | AT82: ='Working | Approach D'!AT519/'Working | Approach D'!AT411*Inputs!AT27 -> 88.81201274 | AU82: ='Working | Approach D'!AU519/'Working | Approach D'!AU411*Inputs!AU27 -> 77.94628183 | AV82: ='Working | Approach D'!AV519/'Working | Approach D'!AV411*Inputs!AV27 -> 95.06556574 | AW82: ='Working | Approach D'!AW519/'Working | Approach D'!AW411*Inputs!AW27 -> 53.2415799 | AX82: ='Working | Approach D'!AX519/'Working | Approach D'!AX411*Inputs!AX27 -> 42.67167544 | AY82: ='Working | Approach D'!AY519/'Working | Approach D'!AY411*Inputs!AY27 -> 31.86951294 | AZ82: ='Working | Approach D'!AZ519/'Working | Approach D'!AZ411*Inputs!AZ27 -> 21.33019089 | BA82: ='Working | Approach D'!BA519/'Working | Approach D'!BA411*Inputs!BA27 -> 10.56924221 | BB82: ='Working | Approach D'!BB519/'Working | Approach D'!BB411*Inputs!BB27 -> -5.760762637e-14 | BC82: ='Working | Approach D'!BC519/'Working | Approach D'!BC411*Inputs!BC27 -> -5.804843454e-14 | BD82: ='Working | Approach D'!BD519/'Working | Approach D'!BD411*Inputs!BD27 -> -5.670791864e-14 | BE82: ='Working | Approach D'!BE519/'Working | Approach D'!BE411*Inputs!BE27 -> -5.579824098e-14 | BF82: ='Working | Approach D'!BF519/'Working | Approach D'!BF411*Inputs!BF27 -> -5.621191006e-14 | BG82: ='Working | Approach D'!BG519/'Working | Approach D'!BG411*Inputs!BG27 -> -5.561228741e-14 | BH82: ='Working | Approach D'!BH519/'Working | Approach D'!BH411*Inputs!BH27 -> -5.41265086e-14 | BI82: ='Working | Approach D'!BI519/'Working | Approach D'!BI411*Inputs!BI27 -> -5.513073903e-14 | BJ82: ='Working | Approach D'!BJ519/'Working | Approach D'!BJ411*Inputs!BJ27 -> -5.473899674e-14 | BK82: ='Working | Approach D'!BK519/'Working | Approach D'!BK411*Inputs!BK27 -> -5.552022628e-14 | BL82: ='Working | Approach D'!BL519/'Working | Approach D'!BL411*Inputs!BL27 -> -5.724735769e-14 | BM82: ='Working | Approach D'!BM519/'Working | Approach D'!BM411*Inputs!BM27 -> -5.634477935e-14 | BN82: ='Working | Approach D'!BN519/'Working | Approach D'!BN411*Inputs!BN27 -> -5.707132982e-14 | BO82: ='Working | Approach D'!BO519/'Working | Approach D'!BO411*Inputs!BO27 -> -5.617877602e-14 | BP82: ='Working | Approach D'!BP519/'Working | Approach D'!BP411*Inputs!BP27 -> -5.729358757e-14 | BQ82: ='Working | Approach D'!BQ519/'Working | Approach D'!BQ411*Inputs!BQ27 -> -5.604483311e-14 | BR82: ='Working | Approach D'!BR519/'Working | Approach D'!BR411*Inputs!BR27 -> -5.626295814e-14 | BS82: ='Working | Approach D'!BS519/'Working | Approach D'!BS411*Inputs!BS27 -> -5.775954038e-14 | BT82: ='Working | Approach D'!BT519/'Working | Approach D'!BT411*Inputs!BT27 -> -5.683514447e-14 | BU82: ='Working | Approach D'!BU519/'Working | Approach D'!BU411*Inputs!BU27 -> -5.630772457e-14
A83: Capex | C83: ='Working | Approach D'!D121 -> 3000 | D83: ='Working | Approach D'!D122 -> 102.4464889 | E83: ='Working | Approach D'!E122 -> 107.5522017 | F83: ='Working | Approach D'!F122 -> 114.1900358 | G83: ='Working | Approach D'!G122 -> 117.2664085 | H83: ='Working | Approach D'!H122 -> 122.7710387 | I83: ='Working | Approach D'!I258 -> 129.9724695 | J83: ='Working | Approach D'!J258 -> 134.9975986 | K83: ='Working | Approach D'!K258 -> 143.2956117 | L83: ='Working | Approach D'!L258 -> 150.0365203 | M83: ='Working | Approach D'!M258 -> 162.2590254 | N83: ='Working | Approach D'!N394 -> 169.0775255 | O83: ='Working | Approach D'!O394 -> 180.2664588 | P83: ='Working | Approach D'!P394 -> 190.9311391 | Q83: ='Working | Approach D'!Q394 -> 204.0982099 | R83: ='Working | Approach D'!R394 -> 219.6666012 | S83: ='Working | Approach D'!S530 -> 234.363404 | T83: ='Working | Approach D'!T530 -> 252.0249801 | U83: ='Working | Approach D'!U530 -> 266.0247605 | V83: ='Working | Approach D'!V530 -> 279.3967964 | W83: ='Working | Approach D'!W530 -> 299.6847553 | X83: 0 | Y83: 0 | Z83: 0 | AA83: 0 | AB83: 0 | AC83: 0 | AD83: 0 | AE83: 0 | AF83: 0 | AG83: 0 | AH83: 0 | AI83: 0 | AJ83: 0 | AK83: 0 | AL83: 0 | AM83: 0 | AN83: 0 | AO83: 0 | AP83: 0 | AQ83: 0 | AR83: 0 | AS83: 0 | AT83: 0 | AU83: 0 | AV83: 0 | AW83: 0 | AX83: 0 | AY83: 0 | AZ83: 0 | BA83: 0 | BB83: 0 | BC83: 0 | BD83: 0 | BE83: 0 | BF83: 0 | BG83: 0 | BH83: 0 | BI83: 0 | BJ83: 0 | BK83: 0 | BL83: 0 | BM83: 0 | BN83: 0 | BO83: 0 | BP83: 0 | BQ83: 0 | BR83: 0 | BS83: 0 | BT83: 0 | BU83: 0
A84: Interest Payments | C84: 0 | D84: =('Working | Approach D'!D121*Inputs!$C$9)*Inputs!D9 -> 90 | E84: =('Working | Approach D'!E121*Inputs!$C$9)*Inputs!E9 -> 90.07339467 | F84: =('Working | Approach D'!F121*Inputs!$C$9)*Inputs!F9 -> 90.19746072 | G84: =('Working | Approach D'!G121*Inputs!$C$9)*Inputs!G9 -> 90.41209721 | H84: =('Working | Approach D'!H121*Inputs!$C$9)*Inputs!H9 -> 90.60403689 | I84: =('Working | Approach D'!I257*Inputs!$C$9)*Inputs!I9 -> 90.83932404 | J84: =('Working | Approach D'!J257*Inputs!$C$9)*Inputs!J9 -> 91.17649682 | K84: =('Working | Approach D'!K257*Inputs!$C$9)*Inputs!K9 -> 91.53438849 | L84: =('Working | Approach D'!L257*Inputs!$C$9)*Inputs!L9 -> 92.00349181 | M84: =('Working | Approach D'!M257*Inputs!$C$9)*Inputs!M9 -> 92.52894472 | N84: =('Working | Approach D'!N393*Inputs!$C$9)*Inputs!N9 -> 93.26656401 | O84: =('Working | Approach D'!O393*Inputs!$C$9)*Inputs!O9 -> 94.06055513 | P84: =('Working | Approach D'!P393*Inputs!$C$9)*Inputs!P9 -> 95.0183549 | Q84: =('Working | Approach D'!Q393*Inputs!$C$9)*Inputs!Q9 -> 96.11406739 | R84: =('Working | Approach D'!R393*Inputs!$C$9)*Inputs!R9 -> 97.41199433 | S84: =('Working | Approach D'!S529*Inputs!$C$9)*Inputs!S9 -> 98.97276814 | T84: =('Working | Approach D'!T529*Inputs!$C$9)*Inputs!T9 -> 100.7631415 | U84: =('Working | Approach D'!U529*Inputs!$C$9)*Inputs!U9 -> 102.8506986 | V84: =('Working | Approach D'!V529*Inputs!$C$9)*Inputs!V9 -> 105.1118197 | W84: =('Working | Approach D'!W529*Inputs!$C$9)*Inputs!W9 -> 107.513092 | X84: =('Working | Approach D'!X529*Inputs!$C$9)*Inputs!$W$9 -> 110.24655 | Y84: =('Working | Approach D'!Y529*Inputs!$C$9)*Inputs!$W$9 -> 103.6966557 | Z84: =('Working | Approach D'!Z529*Inputs!$C$9)*Inputs!$W$9 -> 97.1467613 | AA84: =('Working | Approach D'!AA529*Inputs!$C$9)*Inputs!$W$9 -> 90.59686694 | AB84: =('Working | Approach D'!AB529*Inputs!$C$9)*Inputs!$W$9 -> 84.04697258 | AC84: =('Working | Approach D'!AC529*Inputs!$C$9)*Inputs!$W$9 -> 77.49707822 | AD84: =('Working | Approach D'!AD529*Inputs!$C$9)*Inputs!$W$9 -> 70.94718386 | AE84: =('Working | Approach D'!AE529*Inputs!$C$9)*Inputs!$W$9 -> 64.3972895 | AF84: =('Working | Approach D'!AF529*Inputs!$C$9)*Inputs!$W$9 -> 57.84739514 | AG84: =('Working | Approach D'!AG529*Inputs!$C$9)*Inputs!$W$9 -> 51.29750078 | AH84: =('Working | Approach D'!AH529*Inputs!$C$9)*Inputs!$W$9 -> 44.74760642 | AI84: =('Working | Approach D'!AI529*Inputs!$C$9)*Inputs!$W$9 -> 41.17167576 | AJ84: =('Working | Approach D'!AJ529*Inputs!$C$9)*Inputs!$W$9 -> 37.69735552 | AK84: =('Working | Approach D'!AK529*Inputs!$C$9)*Inputs!$W$9 -> 34.33065766 | AL84: =('Working | Approach D'!AL529*Inputs!$C$9)*Inputs!$W$9 -> 31.07794983 | AM84: =('Working | Approach D'!AM529*Inputs!$C$9)*Inputs!$W$9 -> 27.94597644 | AN84: =('Working | Approach D'!AN529*Inputs!$C$9)*Inputs!$W$9 -> 24.94188096 | AO84: =('Working | Approach D'!AO529*Inputs!$C$9)*Inputs!$W$9 -> 22.06722897 | AP84: =('Working | Approach D'!AP529*Inputs!$C$9)*Inputs!$W$9 -> 19.32967923 | AQ84: =('Working | Approach D'!AQ529*Inputs!$C$9)*Inputs!$W$9 -> 16.73734362 | AR84: =('Working | Approach D'!AR529*Inputs!$C$9)*Inputs!$W$9 -> 14.29881397 | AS84: =('Working | Approach D'!AS529*Inputs!$C$9)*Inputs!$W$9 -> 12.02319047 | AT84: =('Working | Approach D'!AT529*Inputs!$C$9)*Inputs!$W$9 -> 9.919263075 | AU84: =('Working | Approach D'!AU529*Inputs!$C$9)*Inputs!$W$9 -> 7.99719048 | AV84: =('Working | Approach D'!AV529*Inputs!$C$9)*Inputs!$W$9 -> 6.267732424 | AW84: =('Working | Approach D'!AW529*Inputs!$C$9)*Inputs!$W$9 -> 4.742285267 | AX84: =('Working | Approach D'!AX529*Inputs!$C$9)*Inputs!$W$9 -> 3.432919653 | AY84: =('Working | Approach D'!AY529*Inputs!$C$9)*Inputs!$W$9 -> 2.356217582 | AZ84: =('Working | Approach D'!AZ529*Inputs!$C$9)*Inputs!$W$9 -> 1.525944978 | BA84: =('Working | Approach D'!BA529*Inputs!$C$9)*Inputs!$W$9 -> 0.9566822527 | BB84: =('Working | Approach D'!BB529*Inputs!$C$9)*Inputs!$W$9 -> 0 | BC84: =('Working | Approach D'!BC529*Inputs!$C$9)*Inputs!$W$9 -> 0 | BD84: =('Working | Approach D'!BD529*Inputs!$C$9)*Inputs!$W$9 -> 0 | BE84: =('Working | Approach D'!BE529*Inputs!$C$9)*Inputs!$W$9 -> 0 | BF84: =('Working | Approach D'!BF529*Inputs!$C$9)*Inputs!$W$9 -> 0 | BG84: =('Working | Approach D'!BG529*Inputs!$C$9)*Inputs!$W$9 -> 0 | BH84: =('Working | Approach D'!BH529*Inputs!$C$9)*Inputs!$W$9 -> 0 | BI84: =('Working | Approach D'!BI529*Inputs!$C$9)*Inputs!$W$9 -> 0 | BJ84: =('Working | Approach D'!BJ529*Inputs!$C$9)*Inputs!$W$9 -> 0 | BK84: =('Working | Approach D'!BK529*Inputs!$C$9)*Inputs!$W$9 -> 0 | BL84: =('Working | Approach D'!BL529*Inputs!$C$9)*Inputs!$W$9 -> 0 | BM84: =('Working | Approach D'!BM529*Inputs!$C$9)*Inputs!$W$9 -> 0 | BN84: =('Working | Approach D'!BN529*Inputs!$C$9)*Inputs!$W$9 -> 0 | BO84: =('Working | Approach D'!BO529*Inputs!$C$9)*Inputs!$W$9 -> 0 | BP84: =('Working | Approach D'!BP529*Inputs!$C$9)*Inputs!$W$9 -> 0 | BQ84: =('Working | Approach D'!BQ529*Inputs!$C$9)*Inputs!$W$9 -> 0 | BR84: =('Working | Approach D'!BR529*Inputs!$C$9)*Inputs!$W$9 -> 0 | BS84: =('Working | Approach D'!BS529*Inputs!$C$9)*Inputs!$W$9 -> 0 | BT84: =('Working | Approach D'!BT529*Inputs!$C$9)*Inputs!$W$9 -> 0 | BU84: =('Working | Approach D'!BU529*Inputs!$C$9)*Inputs!$W$9 -> 0
A85: Repayment of Debt | C85: =('Working | Approach D'!C121-'Working | Approach D'!D121)*Inputs!$C$9 -> -1800 | D85: =('Working | Approach D'!D121-'Working | Approach D'!E121)*Inputs!$C$9 -> -1.467893338 | E85: =('Working | Approach D'!E121-'Working | Approach D'!F121)*Inputs!$C$9 -> -2.481321046 | F85: =('Working | Approach D'!F121-'Working | Approach D'!G121)*Inputs!$C$9 -> -4.292729825 | G85: =('Working | Approach D'!G121-'Working | Approach D'!H121)*Inputs!$C$9 -> -3.838793689 | H85: =('Working | Approach D'!H121-'Working | Approach D'!I257)*Inputs!$C$9 -> -4.705742902 | I85: =('Working | Approach D'!I257-'Working | Approach D'!J257)*Inputs!$C$9 -> -6.74345565 | J85: =('Working | Approach D'!J257-'Working | Approach D'!K257)*Inputs!$C$9 -> -7.157833294 | K85: =('Working | Approach D'!K257-'Working | Approach D'!L257)*Inputs!$C$9 -> -9.38206655 | L85: =('Working | Approach D'!L257-'Working | Approach D'!M257)*Inputs!$C$9 -> -10.50905814 | M85: =('Working | Approach D'!M257-'Working | Approach D'!N393)*Inputs!$C$9 -> -14.75238572 | N85: =('Working | Approach D'!N393-'Working | Approach D'!O393)*Inputs!$C$9 -> -15.87982245 | O85: =('Working | Approach D'!O393-'Working | Approach D'!P393)*Inputs!$C$9 -> -19.15599542 | P85: =('Working | Approach D'!P393-'Working | Approach D'!Q393)*Inputs!$C$9 -> -21.91424971 | Q85: =('Working | Approach D'!Q393-'Working | Approach D'!R393)*Inputs!$C$9 -> -25.95853883 | R85: =('Working | Approach D'!R393-'Working | Approach D'!S529)*Inputs!$C$9 -> -31.2154763 | S85: =('Working | Approach D'!S529-'Working | Approach D'!T529)*Inputs!$C$9 -> -35.80746748 | T85: =('Working | Approach D'!T529-'Working | Approach D'!U529)*Inputs!$C$9 -> -41.75114229 | U85: =('Working | Approach D'!U529-'Working | Approach D'!V529)*Inputs!$C$9 -> -45.22242122 | V85: =('Working | Approach D'!V529-'Working | Approach D'!W529)*Inputs!$C$9 -> -48.02544517 | W85: =('Working | Approach D'!W529-'Working | Approach D'!X529)*Inputs!$C$9 -> -54.66916128 | X85: =('Working | Approach D'!X529-'Working | Approach D'!Y529)*Inputs!$C$9 -> 130.9978872 | Y85: =('Working | Approach D'!Y529-'Working | Approach D'!Z529)*Inputs!$C$9 -> 130.9978872 | Z85: =('Working | Approach D'!Z529-'Working | Approach D'!AA529)*Inputs!$C$9 -> 130.9978872 | AA85: =('Working | Approach D'!AA529-'Working | Approach D'!AB529)*Inputs!$C$9 -> 130.9978872 | AB85: =('Working | Approach D'!AB529-'Working | Approach D'!AC529)*Inputs!$C$9 -> 130.9978872 | AC85: =('Working | Approach D'!AC529-'Working | Approach D'!AD529)*Inputs!$C$9 -> 130.9978872 | AD85: =('Working | Approach D'!AD529-'Working | Approach D'!AE529)*Inputs!$C$9 -> 130.9978872 | AE85: =('Working | Approach D'!AE529-'Working | Approach D'!AF529)*Inputs!$C$9 -> 130.9978872 | AF85: =('Working | Approach D'!AF529-'Working | Approach D'!AG529)*Inputs!$C$9 -> 130.9978872 | AG85: =('Working | Approach D'!AG529-'Working | Approach D'!AH529)*Inputs!$C$9 -> 130.9978872 | AH85: =('Working | Approach D'!AH529-'Working | Approach D'!AI529)*Inputs!$C$9 -> 71.51861331 | AI85: =('Working | Approach D'!AI529-'Working | Approach D'!AJ529)*Inputs!$C$9 -> 69.48640479 | AJ85: =('Working | Approach D'!AJ529-'Working | Approach D'!AK529)*Inputs!$C$9 -> 67.33395726 | AK85: =('Working | Approach D'!AK529-'Working | Approach D'!AL529)*Inputs!$C$9 -> 65.05415659 | AL85: =('Working | Approach D'!AL529-'Working | Approach D'!AM529)*Inputs!$C$9 -> 62.63946771 | AM85: =('Working | Approach D'!AM529-'Working | Approach D'!AN529)*Inputs!$C$9 -> 60.08190973 | AN85: =('Working | Approach D'!AN529-'Working | Approach D'!AO529)*Inputs!$C$9 -> 57.49303967 | AO85: =('Working | Approach D'!AO529-'Working | Approach D'!AP529)*Inputs!$C$9 -> 54.75099479 | AP85: =('Working | Approach D'!AP529-'Working | Approach D'!AQ529)*Inputs!$C$9 -> 51.84671226 | AQ85: =('Working | Approach D'!AQ529-'Working | Approach D'!AR529)*Inputs!$C$9 -> 48.77059301 | AR85: =('Working | Approach D'!AR529-'Working | Approach D'!AS529)*Inputs!$C$9 -> 45.51247004 | AS85: =('Working | Approach D'!AS529-'Working | Approach D'!AT529)*Inputs!$C$9 -> 42.07854783 | AT85: =('Working | Approach D'!AT529-'Working | Approach D'!AU529)*Inputs!$C$9 -> 38.4414519 | AU85: =('Working | Approach D'!AU529-'Working | Approach D'!AV529)*Inputs!$C$9 -> 34.58916112 | AV85: =('Working | Approach D'!AV529-'Working | Approach D'!AW529)*Inputs!$C$9 -> 30.50894314 | AW85: =('Working | Approach D'!AW529-'Working | Approach D'!AX529)*Inputs!$C$9 -> 26.18731227 | AX85: =('Working | Approach D'!AX529-'Working | Approach D'!AY529)*Inputs!$C$9 -> 21.53404143 | AY85: =('Working | Approach D'!AY529-'Working | Approach D'!AZ529)*Inputs!$C$9 -> 16.60545207 | AZ85: =('Working | Approach D'!AZ529-'Working | Approach D'!BA529)*Inputs!$C$9 -> 11.38525451 | BA85: =('Working | Approach D'!BA529-'Working | Approach D'!BB529)*Inputs!$C$9 -> 19.13364505 | BB85: =('Working | Approach D'!BB529-'Working | Approach D'!BC529)*Inputs!$C$9 -> 0 | BC85: =('Working | Approach D'!BC529-'Working | Approach D'!BD529)*Inputs!$C$9 -> 0 | BD85: =('Working | Approach D'!BD529-'Working | Approach D'!BE529)*Inputs!$C$9 -> 0 | BE85: =('Working | Approach D'!BE529-'Working | Approach D'!BF529)*Inputs!$C$9 -> 0 | BF85: =('Working | Approach D'!BF529-'Working | Approach D'!BG529)*Inputs!$C$9 -> 0 | BG85: =('Working | Approach D'!BG529-'Working | Approach D'!BH529)*Inputs!$C$9 -> 0 | BH85: =('Working | Approach D'!BH529-'Working | Approach D'!BI529)*Inputs!$C$9 -> 0 | BI85: =('Working | Approach D'!BI529-'Working | Approach D'!BJ529)*Inputs!$C$9 -> 0 | BJ85: =('Working | Approach D'!BJ529-'Working | Approach D'!BK529)*Inputs!$C$9 -> 0 | BK85: =('Working | Approach D'!BK529-'Working | Approach D'!BL529)*Inputs!$C$9 -> 0 | BL85: =('Working | Approach D'!BL529-'Working | Approach D'!BM529)*Inputs!$C$9 -> 0 | BM85: =('Working | Approach D'!BM529-'Working | Approach D'!BN529)*Inputs!$C$9 -> 0 | BN85: =('Working | Approach D'!BN529-'Working | Approach D'!BO529)*Inputs!$C$9 -> 0 | BO85: =('Working | Approach D'!BO529-'Working | Approach D'!BP529)*Inputs!$C$9 -> 0 | BP85: =('Working | Approach D'!BP529-'Working | Approach D'!BQ529)*Inputs!$C$9 -> 0 | BQ85: =('Working | Approach D'!BQ529-'Working | Approach D'!BR529)*Inputs!$C$9 -> 0 | BR85: =('Working | Approach D'!BR529-'Working | Approach D'!BS529)*Inputs!$C$9 -> 0 | BS85: =('Working | Approach D'!BS529-'Working | Approach D'!BT529)*Inputs!$C$9 -> 0 | BT85: =('Working | Approach D'!BT529-'Working | Approach D'!BU529)*Inputs!$C$9 -> 0 | BU85: =('Working | Approach D'!BU529-'Working | Approach D'!BV529)*Inputs!$C$9 -> 0
A86: Opex | C86: 0 | D86: ='Working | Approach D'!D102/'Working | Approach D'!D4*Inputs!D27 -> 51.22324445 | E86: ='Working | Approach D'!E102/'Working | Approach D'!E4*Inputs!E27 -> 52.04138794 | F86: ='Working | Approach D'!F102/'Working | Approach D'!F4*Inputs!F27 -> 53.47088046 | G86: ='Working | Approach D'!G102/'Working | Approach D'!G4*Inputs!G27 -> 53.14009315 | H86: ='Working | Approach D'!H102/'Working | Approach D'!H4*Inputs!H27 -> 53.83989174 | I86: ='Working | Approach D'!I238/'Working | Approach D'!I139*Inputs!I27 -> 55.15935504 | J86: ='Working | Approach D'!J238/'Working | Approach D'!J139*Inputs!J27 -> 55.44385421 | K86: ='Working | Approach D'!K238/'Working | Approach D'!K139*Inputs!K27 -> 56.95342171 | L86: ='Working | Approach D'!L238/'Working | Approach D'!L139*Inputs!L27 -> 57.70899016 | M86: ='Working | Approach D'!M238/'Working | Approach D'!M139*Inputs!M27 -> 60.39693718 | N86: ='Working | Approach D'!N374/'Working | Approach D'!N275*Inputs!N27 -> 60.90479648 | O86: ='Working | Approach D'!O374/'Working | Approach D'!O275*Inputs!O27 -> 62.84056794 | P86: ='Working | Approach D'!P374/'Working | Approach D'!P275*Inputs!P27 -> 64.41121607 | Q86: ='Working | Approach D'!Q374/'Working | Approach D'!Q275*Inputs!Q27 -> 66.63209858 | R86: ='Working | Approach D'!R374/'Working | Approach D'!R275*Inputs!R27 -> 69.40134499 | S86: ='Working | Approach D'!S510/'Working | Approach D'!S411*Inputs!S27 -> 71.65610785 | T86: ='Working | Approach D'!T510/'Working | Approach D'!T411*Inputs!T27 -> 74.57041629 | U86: ='Working | Approach D'!U510/'Working | Approach D'!U411*Inputs!U27 -> 76.17362092 | V86: ='Working | Approach D'!V510/'Working | Approach D'!V411*Inputs!V27 -> 77.42184605 | W86: ='Working | Approach D'!W510/'Working | Approach D'!W411*Inputs!W27 -> 80.36488222 | X86: 0 | Y86: 0 | Z86: 0 | AA86: 0 | AB86: 0 | AC86: 0 | AD86: 0 | AE86: 0 | AF86: 0 | AG86: 0 | AH86: 0 | AI86: 0 | AJ86: 0 | AK86: 0 | AL86: 0 | AM86: 0 | AN86: 0 | AO86: 0 | AP86: 0 | AQ86: 0 | AR86: 0 | AS86: 0 | AT86: 0 | AU86: 0 | AV86: 0 | AW86: 0 | AX86: 0 | AY86: 0 | AZ86: 0 | BA86: 0 | BB86: 0 | BC86: 0 | BD86: 0 | BE86: 0 | BF86: 0 | BG86: 0 | BH86: 0 | BI86: 0 | BJ86: 0 | BK86: 0 | BL86: 0 | BM86: 0 | BN86: 0 | BO86: 0 | BP86: 0 | BQ86: 0 | BR86: 0 | BS86: 0 | BT86: 0 | BU86: 0
A87: Tax payable+ gamma | C87: 0 | D87: ='Working | Approach D'!D103/'Working | Approach D'!D4*Inputs!D27 -> 11.0861568 | E87: ='Working | Approach D'!E103/'Working | Approach D'!E4*Inputs!E27 -> 10.5305713 | F87: ='Working | Approach D'!F103/'Working | Approach D'!F4*Inputs!F27 -> 10.14228609 | G87: ='Working | Approach D'!G103/'Working | Approach D'!G4*Inputs!G27 -> 9.475167466 | H87: ='Working | Approach D'!H103/'Working | Approach D'!H4*Inputs!H27 -> 9.052148984 | I87: ='Working | Approach D'!I239/'Working | Approach D'!I139*Inputs!I27 -> 9.248333452 | J87: ='Working | Approach D'!J239/'Working | Approach D'!J139*Inputs!J27 -> 8.824979358 | K87: ='Working | Approach D'!K239/'Working | Approach D'!K139*Inputs!K27 -> 8.636160559 | L87: ='Working | Approach D'!L239/'Working | Approach D'!L139*Inputs!L27 -> 8.367542536 | M87: ='Working | Approach D'!M239/'Working | Approach D'!M139*Inputs!M27 -> 8.40652477 | N87: ='Working | Approach D'!N375/'Working | Approach D'!N275*Inputs!N27 -> 8.279006629 | O87: ='Working | Approach D'!O375/'Working | Approach D'!O275*Inputs!O27 -> 8.261353114 | P87: ='Working | Approach D'!P375/'Working | Approach D'!P275*Inputs!P27 -> 8.224549159 | Q87: ='Working | Approach D'!Q375/'Working | Approach D'!Q275*Inputs!Q27 -> 8.299643681 | R87: ='Working | Approach D'!R375/'Working | Approach D'!R275*Inputs!R27 -> 8.469713654 | S87: ='Working | Approach D'!S511/'Working | Approach D'!S411*Inputs!S27 -> 8.586222214 | T87: ='Working | Approach D'!T511/'Working | Approach D'!T411*Inputs!T27 -> 8.81677386 | U87: ='Working | Approach D'!U511/'Working | Approach D'!U411*Inputs!U27 -> 8.926619162 | V87: ='Working | Approach D'!V511/'Working | Approach D'!V411*Inputs!V27 -> 9.031784365 | W87: ='Working | Approach D'!W511/'Working | Approach D'!W411*Inputs!W27 -> 9.371727275 | X87: =SUM('Working | Approach D'!X477:X478)/'Working | Approach D'!X411*Inputs!X27 -> 9.687234742 | Y87: =SUM('Working | Approach D'!Y477:Y478)/'Working | Approach D'!Y411*Inputs!Y27 -> 10.22714826 | Z87: =SUM('Working | Approach D'!Z477:Z478)/'Working | Approach D'!Z411*Inputs!Z27 -> 10.63676551 | AA87: =SUM('Working | Approach D'!AA477:AA478)/'Working | Approach D'!AA411*Inputs!AA27 -> 10.87432809 | AB87: =SUM('Working | Approach D'!AB477:AB478)/'Working | Approach D'!AB411*Inputs!AB27 -> 11.09115375 | AC87: =SUM('Working | Approach D'!AC477:AC478)/'Working | Approach D'!AC411*Inputs!AC27 -> 11.28595443 | AD87: =SUM('Working | Approach D'!AD477:AD478)/'Working | Approach D'!AD411*Inputs!AD27 -> 11.48440941 | AE87: =SUM('Working | Approach D'!AE477:AE478)/'Working | Approach D'!AE411*Inputs!AE27 -> 11.37485123 | AF87: =SUM('Working | Approach D'!AF477:AF478)/'Working | Approach D'!AF411*Inputs!AF27 -> 11.56884417 | AG87: =SUM('Working | Approach D'!AG477:AG478)/'Working | Approach D'!AG411*Inputs!AG27 -> 11.74169739 | AH87: =SUM('Working | Approach D'!AH477:AH478)/'Working | Approach D'!AH411*Inputs!AH27 -> 11.98138729 | AI87: =SUM('Working | Approach D'!AI477:AI478)/'Working | Approach D'!AI411*Inputs!AI27 -> 10.17745108 | AJ87: =SUM('Working | Approach D'!AJ477:AJ478)/'Working | Approach D'!AJ411*Inputs!AJ27 -> 9.999177436 | AK87: =SUM('Working | Approach D'!AK477:AK478)/'Working | Approach D'!AK411*Inputs!AK27 -> 9.774079628 | AL87: =SUM('Working | Approach D'!AL477:AL478)/'Working | Approach D'!AL411*Inputs!AL27 -> 9.504448021 | AM87: =SUM('Working | Approach D'!AM477:AM478)/'Working | Approach D'!AM411*Inputs!AM27 -> 8.879482408 | AN87: =SUM('Working | Approach D'!AN477:AN478)/'Working | Approach D'!AN411*Inputs!AN27 -> 8.28366199 | AO87: =SUM('Working | Approach D'!AO477:AO478)/'Working | Approach D'!AO411*Inputs!AO27 -> 7.835116436 | AP87: =SUM('Working | Approach D'!AP477:AP478)/'Working | Approach D'!AP411*Inputs!AP27 -> 7.155155761 | AQ87: =SUM('Working | Approach D'!AQ477:AQ478)/'Working | Approach D'!AQ411*Inputs!AQ27 -> 6.520164474 | AR87: =SUM('Working | Approach D'!AR477:AR478)/'Working | Approach D'!AR411*Inputs!AR27 -> 5.599225742 | AS87: =SUM('Working | Approach D'!AS477:AS478)/'Working | Approach D'!AS411*Inputs!AS27 -> 4.884640934 | AT87: =SUM('Working | Approach D'!AT477:AT478)/'Working | Approach D'!AT411*Inputs!AT27 -> 4.080214677 | AU87: =SUM('Working | Approach D'!AU477:AU478)/'Working | Approach D'!AU411*Inputs!AU27 -> 3.176675367 | AV87: =SUM('Working | Approach D'!AV477:AV478)/'Working | Approach D'!AV411*Inputs!AV27 -> 31.2829148 | AW87: =SUM('Working | Approach D'!AW477:AW478)/'Working | Approach D'!AW411*Inputs!AW27 -> 0.982846017 | AX87: =SUM('Working | Approach D'!AX477:AX478)/'Working | Approach D'!AX411*Inputs!AX27 -> 0 | AY87: =SUM('Working | Approach D'!AY477:AY478)/'Working | Approach D'!AY411*Inputs!AY27 -> 0 | AZ87: =SUM('Working | Approach D'!AZ477:AZ478)/'Working | Approach D'!AZ411*Inputs!AZ27 -> 0 | BA87: =SUM('Working | Approach D'!BA477:BA478)/'Working | Approach D'!BA411*Inputs!BA27 -> 0 | BB87: =SUM('Working | Approach D'!BB477:BB478)/'Working | Approach D'!BB411*Inputs!BB27 -> 0 | BC87: =SUM('Working | Approach D'!BC477:BC478)/'Working | Approach D'!BC411*Inputs!BC27 -> 0 | BD87: =SUM('Working | Approach D'!BD477:BD478)/'Working | Approach D'!BD411*Inputs!BD27 -> 0 | BE87: =SUM('Working | Approach D'!BE477:BE478)/'Working | Approach D'!BE411*Inputs!BE27 -> 0 | BF87: =SUM('Working | Approach D'!BF477:BF478)/'Working | Approach D'!BF411*Inputs!BF27 -> 0 | BG87: =SUM('Working | Approach D'!BG477:BG478)/'Working | Approach D'!BG411*Inputs!BG27 -> 0 | BH87: =SUM('Working | Approach D'!BH477:BH478)/'Working | Approach D'!BH411*Inputs!BH27 -> 0 | BI87: =SUM('Working | Approach D'!BI477:BI478)/'Working | Approach D'!BI411*Inputs!BI27 -> 0 | BJ87: =SUM('Working | Approach D'!BJ477:BJ478)/'Working | Approach D'!BJ411*Inputs!BJ27 -> 0 | BK87: =SUM('Working | Approach D'!BK477:BK478)/'Working | Approach D'!BK411*Inputs!BK27 -> 0 | BL87: =SUM('Working | Approach D'!BL477:BL478)/'Working | Approach D'!BL411*Inputs!BL27 -> 0 | BM87: =SUM('Working | Approach D'!BM477:BM478)/'Working | Approach D'!BM411*Inputs!BM27 -> 0 | BN87: =SUM('Working | Approach D'!BN477:BN478)/'Working | Approach D'!BN411*Inputs!BN27 -> 0 | BO87: =SUM('Working | Approach D'!BO477:BO478)/'Working | Approach D'!BO411*Inputs!BO27 -> 0 | BP87: =SUM('Working | Approach D'!BP477:BP478)/'Working | Approach D'!BP411*Inputs!BP27 -> 0 | BQ87: =SUM('Working | Approach D'!BQ477:BQ478)/'Working | Approach D'!BQ411*Inputs!BQ27 -> 0 | BR87: =SUM('Working | Approach D'!BR477:BR478)/'Working | Approach D'!BR411*Inputs!BR27 -> 0 | BS87: =SUM('Working | Approach D'!BS477:BS478)/'Working | Approach D'!BS411*Inputs!BS27 -> 0 | BT87: =SUM('Working | Approach D'!BT477:BT478)/'Working | Approach D'!BT411*Inputs!BT27 -> 0 | BU87: =SUM('Working | Approach D'!BU477:BU478)/'Working | Approach D'!BU411*Inputs!BU27 -> 0
A88: Returns achieved
A89: Post-tax CF to Equity | B89: =IRR(C89:BU89) -> 0.06396293966 | C89: =C82-C83-C84-C85-C86-C87 -> -1200 | D89: =D82-D83-D84-D85-D86-D87 -> 77.05395065 | E89: 74.40974691 | F89: 73.99019534 | G89: 65.6619219 | H89: 61.42784609 | I89: 74.26275991 | J89: 68.99511028 | K89: 68.50929578 | L89: 64.36860571 | M89: 67.56312501 | N89: 71.38275213 | O89: 72.66415117 | P89: 71.83276315 | Q89: 72.98544723 | R89: 75.54738626 | S89: 61.32274807 | T89: 64.94317399 | U89: 62.97034756 | V89: 59.05097818 | W89: 60.68873696 | X89: 193.6503062 | Y89: 185.0121802 | Z89: 175.4513215 | AA89: 163.4213139 | AB89: 154.1719213 | AC89: 146.9902566 | AD89: 142.1663346 | AE89: 130.3180692 | AF89: 128.9870896 | AG89: 128.269124 | AH89: 86.71224249 | AI89: 84.30070626 | AJ89: 81.04217521 | AK89: 79.28044601 | AL89: 75.66363993 | AM89: 67.77637161 | AN89: 62.133238 | AO89: 58.56786776 | AP89: 53.63899451 | AQ89: 48.9326516 | AR89: 43.29378778 | AS89: 39.01497772 | AT89: 36.37108309 | AU89: 32.18325486 | AV89: 27.00597537 | AW89: 21.32913635 | AX89: 17.70471435 | AY89: 12.90784328 | AZ89: 8.418991403 | BA89: -9.521085095 | BB89: -5.760762637e-14 | BC89: -5.804843454e-14 | BD89: -5.670791864e-14 | BE89: -5.579824098e-14 | BF89: -5.621191006e-14 | BG89: -5.561228741e-14 | BH89: -5.41265086e-14 | BI89: -5.513073903e-14 | BJ89: -5.473899674e-14 | BK89: -5.552022628e-14 | BL89: -5.724735769e-14 | BM89: -5.634477935e-14 | BN89: -5.707132982e-14 | BO89: -5.617877602e-14 | BP89: =BP82-BP83-BP84-BP85-BP86-BP87 -> -5.729358757e-14 | BQ89: -5.604483311e-14 | BR89: -5.626295814e-14 | BS89: -5.775954038e-14 | BT89: -5.683514447e-14 | BU89: -5.630772457e-14
A90: Real post-tax CF to Equity | B90: =IRR(C90:BU90) -> 0.04077238844 | C90: =C89/Inputs!C27 -> -1200 | D90: =D89/Inputs!D27 -> 75.21385211 | E90: =E89/Inputs!E27 -> 71.49093236 | F90: =F89/Inputs!F27 -> 69.1873733 | G90: =G89/Inputs!G27 -> 61.78190328 | H90: =H89/Inputs!H27 -> 57.04677712 | I90: =I89/Inputs!I27 -> 67.31655932 | J90: =J89/Inputs!J27 -> 62.2207017 | K90: =K89/Inputs!K27 -> 60.14502178 | L90: =L89/Inputs!L27 -> 55.76999834 | M90: =M89/Inputs!M27 -> 55.93257553 | N90: =N89/Inputs!N27 -> 58.60191336 | O90: =O89/Inputs!O27 -> 57.81627502 | P90: =P89/Inputs!P27 -> 55.76106735 | Q90: =Q89/Inputs!Q27 -> 54.76748353 | R90: =R89/Inputs!R27 -> 54.42789781 | S90: =S89/Inputs!S27 -> 42.7896169 | T90: =T89/Inputs!T27 -> 43.54486485 | U90: =U89/Inputs!U27 -> 41.33343459 | V90: =V89/Inputs!V27 -> 38.13586294 | W90: =W89/Inputs!W27 -> 37.7582442 | X90: =X89/Inputs!X27 -> 116.9807376 | Y90: =Y89/Inputs!Y27 -> 109.7158564 | Z90: =Z89/Inputs!Z27 -> 102.4175449 | AA90: =AA89/Inputs!AA27 -> 94.56594484 | AB90: =AB89/Inputs!AB27 -> 87.88882924 | AC90: =AC89/Inputs!AC27 -> 82.13292521 | AD90: =AD89/Inputs!AD27 -> 77.35565741 | AE90: =AE89/Inputs!AE27 -> 70.53033603 | AF90: =AF89/Inputs!AF27 -> 67.26609208 | AG90: =AG89/Inputs!AG27 -> 64.27542106 | AH90: =AH89/Inputs!AH27 -> 41.77326903 | AI90: =AI89/Inputs!AI27 -> 39.19078901 | AJ90: =AJ89/Inputs!AJ27 -> 36.48568555 | AK90: =AK89/Inputs!AK27 -> 34.24928651 | AL90: =AL89/Inputs!AL27 -> 31.65460866 | AM90: =AM89/Inputs!AM27 -> 28.18761686 | AN90: =AN89/Inputs!AN27 -> 25.38520223 | AO90: =AO89/Inputs!AO27 -> 23.17328508 | AP90: =AP89/Inputs!AP27 -> 20.75573038 | AQ90: =AQ89/Inputs!AQ27 -> 18.49153712 | AR90: =AR89/Inputs!AR27 -> 16.12732626 | AS90: =AS89/Inputs!AS27 -> 14.15463157 | AT90: =AT89/Inputs!AT27 -> 12.60024285 | AU90: =AU89/Inputs!AU27 -> 10.81017054 | AV90: =AV89/Inputs!AV27 -> 8.915918929 | AW90: =AW89/Inputs!AW27 -> 7.010404193 | AX90: =AX89/Inputs!AX27 -> 5.569235308 | AY90: =AY89/Inputs!AY27 -> 3.983216565 | AZ90: =AZ89/Inputs!AZ27 -> 2.52812767 | BA90: =BA89/Inputs!BA27 -> -2.818627215 | BB90: =BB89/Inputs!BB27 -> -1.623352378e-14 | BC90: =BC89/Inputs!BC27 -> -1.583758417e-14 | BD90: =BD89/Inputs!BD27 -> -1.545130163e-14 | BE90: =BE89/Inputs!BE27 -> -1.507444062e-14 | BF90: =BF89/Inputs!BF27 -> -1.470677133e-14 | BG90: =BG89/Inputs!BG27 -> -1.434806959e-14 | BH90: =BH89/Inputs!BH27 -> -1.399811668e-14 | BI90: =BI89/Inputs!BI27 -> -1.36566992e-14 | BJ90: =BJ89/Inputs!BJ27 -> -1.332360897e-14 | BK90: =BK89/Inputs!BK27 -> -1.29986429e-14 | BL90: =BL89/Inputs!BL27 -> -1.268160283e-14 | BM90: =BM89/Inputs!BM27 -> -1.237229544e-14 | BN90: =BN89/Inputs!BN27 -> -1.207053214e-14 | BO90: =BO89/Inputs!BO27 -> -1.177612892e-14 | BP90: =BP89/Inputs!BP27 -> -1.148890626e-14 | BQ90: =BQ89/Inputs!BQ27 -> -1.120868903e-14 | BR90: =BR89/Inputs!BR27 -> -1.093530637e-14 | BS90: =BS89/Inputs!BS27 -> -1.066859158e-14 | BT90: =BT89/Inputs!BT27 -> -1.040838203e-14 | BU90: =BU89/Inputs!BU27 -> -1.015451906e-14
A91: Nominal cash flows to assets | B91: =IRR(C91:BU91) -> 0.05896068116 | C91: =C82-C83-C86 -> -3000 | D91: =D82-D83-D86 -> 176.6722141 | E91: 172.5323918 | F91: 170.0372123 | G91: 161.7103929 | H91: 156.3782891 | I91: 167.6069617 | J91: 161.8387532 | K91: 159.2977783 | L91: 154.2305819 | M91: 153.7462088 | N91: 157.0485003 | O91: 155.830064 | P91: 153.1614175 | Q91: 151.4406195 | R91: 150.2136179 | S91: 133.074271 | T91: 132.7719471 | U91: 129.5252441 | V91: 125.1691371 | W91: 122.9043949 | X91: 444.5819781 | Y91: 429.9338713 | Z91: 414.2327355 | AA91: 395.8903961 | AB91: 380.3079348 | AC91: 366.7711765 | AD91: 355.5958151 | AE91: 337.0880971 | AF91: 329.4012161 | AG91: 322.3062094 | AH91: 214.9598495 | AI91: 205.1362379 | AJ91: 196.0726654 | AK91: 188.4393399 | AL91: 178.8855055 | AM91: 164.6837402 | AN91: 152.8518206 | AO91: 143.221208 | AP91: 131.9705418 | AQ91: 120.9607527 | AR91: 108.7042975 | AS91: 98.00135695 | AT91: 88.81201274 | AU91: 77.94628183 | AV91: 95.06556574 | AW91: 53.2415799 | AX91: 42.67167544 | AY91: 31.86951294 | AZ91: 21.33019089 | BA91: 10.56924221 | BB91: -5.760762637e-14 | BC91: -5.804843454e-14 | BD91: -5.670791864e-14 | BE91: -5.579824098e-14 | BF91: -5.621191006e-14 | BG91: -5.561228741e-14 | BH91: -5.41265086e-14 | BI91: -5.513073903e-14 | BJ91: -5.473899674e-14 | BK91: -5.552022628e-14 | BL91: -5.724735769e-14 | BM91: -5.634477935e-14 | BN91: -5.707132982e-14 | BO91: -5.617877602e-14 | BP91: =BP82-BP83-BP86 -> -5.729358757e-14 | BQ91: -5.604483311e-14 | BR91: -5.626295814e-14 | BS91: -5.775954038e-14 | BT91: -5.683514447e-14 | BU91: -5.630772457e-14
A92: Nominal vanilla WACC | B92: =IRR(C92:BU92) -> 0.05562819576 | C92: =C91-C87 -> -3000 | D92: =D91-D87 -> 165.5860573 | E92: 162.0018205 | F92: 159.8949262 | G92: 152.2352254 | H92: 147.3261401 | I92: 158.3586283 | J92: 153.0137738 | K92: 150.6616177 | L92: 145.8630394 | M92: 145.339684 | N92: 148.7694937 | O92: 147.5687109 | P92: 144.9368683 | Q92: 143.1409758 | R92: 141.7439043 | S92: 124.4880487 | T92: 123.9551732 | U92: 120.598625 | V92: 116.1373527 | W92: 113.5326676 | X92: 434.8947434 | Y92: 419.7067231 | Z92: 403.59597 | AA92: 385.016068 | AB92: 369.2167811 | AC92: 355.485222 | AD92: 344.1114056 | AE92: 325.7132459 | AF92: 317.8323719 | AG92: 310.564512 | AH92: 202.9784622 | AI92: 194.9587868 | AJ92: 186.073488 | AK92: 178.6652602 | AL92: 169.3810575 | AM92: 155.8042578 | AN92: 144.5681586 | AO92: 135.3860915 | AP92: 124.815386 | AQ92: 114.4405882 | AR92: 103.1050718 | AS92: 93.11671602 | AT92: 84.73179807 | AU92: 74.76960646 | AV92: 63.78265094 | AW92: 52.25873388 | AX92: 42.67167544 | AY92: 31.86951294 | AZ92: 21.33019089 | BA92: 10.56924221 | BB92: -5.760762637e-14 | BC92: -5.804843454e-14 | BD92: -5.670791864e-14 | BE92: -5.579824098e-14 | BF92: -5.621191006e-14 | BG92: -5.561228741e-14 | BH92: -5.41265086e-14 | BI92: -5.513073903e-14 | BJ92: -5.473899674e-14 | BK92: -5.552022628e-14 | BL92: -5.724735769e-14 | BM92: -5.634477935e-14 | BN92: -5.707132982e-14 | BO92: -5.617877602e-14 | BP92: =BP91-BP87 -> -5.729358757e-14 | BQ92: -5.604483311e-14 | BR92: -5.626295814e-14 | BS92: -5.775954038e-14 | BT92: -5.683514447e-14 | BU92: -5.630772457e-14
A93: Real WACC (real) | B93: =IRR(C93:BU93) -> 0.03242356241 | C93: =C92/Inputs!C27 -> -3000 | D93: =D92/Inputs!D27 -> 161.6317544 | E93: =E92/Inputs!E27 -> 155.6470983 | F93: =F92/Inputs!F27 -> 149.5158906 | G93: =G92/Inputs!G27 -> 143.2395169 | H93: =H92/Inputs!H27 -> 136.8187559 | I93: =I92/Inputs!I27 -> 143.5464829 | J93: =J92/Inputs!J27 -> 137.9898421 | K93: =K92/Inputs!K27 -> 132.2673978 | L93: =L92/Inputs!L27 -> 126.3780903 | M93: =M92/Inputs!M27 -> 120.3204093 | N93: =N92/Inputs!N27 -> 122.1328223 | O93: =O92/Inputs!O27 -> 117.4151633 | P93: =P92/Inputs!P27 -> 112.5090296 | Q93: =Q92/Inputs!Q27 -> 107.411427 | R93: =R92/Inputs!R27 -> 102.1189894 | S93: =S92/Inputs!S27 -> 86.86492504 | T93: =T92/Inputs!T27 -> 83.1128344 | U93: =U92/Inputs!U27 -> 79.16035992 | V93: =V92/Inputs!V27 -> 75.00296017 | W93: =W92/Inputs!W27 -> 70.63574568 | X93: =X92/Inputs!X27 -> 262.7122511 | Y93: =Y92/Inputs!Y27 -> 248.8943295 | Z93: =Z92/Inputs!Z27 -> 235.5941695 | AA93: =AA92/Inputs!AA27 -> 222.7947346 | AB93: =AB92/Inputs!AB27 -> 210.4795111 | AC93: =AC92/Inputs!AC27 -> 198.6324932 | AD93: =AD92/Inputs!AD27 -> 187.2381678 | AE93: =AE92/Inputs!AE27 -> 176.2814998 | AF93: =AF92/Inputs!AF27 -> 165.7479184 | AG93: =AG92/Inputs!AG27 -> 155.6233032 | AH93: =AH92/Inputs!AH27 -> 97.78404603 | AI93: =AI92/Inputs!AI27 -> 90.6349308 | AJ93: =AJ92/Inputs!AJ27 -> 83.77142833 | AK93: =AK92/Inputs!AK27 -> 77.18369403 | AL93: =AL92/Inputs!AL27 -> 70.86218814 | AM93: =AM92/Inputs!AM27 -> 64.79766649 | AN93: =AN92/Inputs!AN27 -> 59.06487511 | AO93: =AO92/Inputs!AO27 -> 53.56760653 | AP93: =AP92/Inputs!AP27 -> 48.29759623 | AQ93: =AQ92/Inputs!AQ27 -> 43.24683654 | AR93: =AR92/Inputs!AR27 -> 38.40756878 | AS93: =AS92/Inputs!AS27 -> 33.78273898 | AT93: =AT92/Inputs!AT27 -> 29.35412262 | AU93: =AU92/Inputs!AU27 -> 25.11468155 | AV93: =AV92/Inputs!AV27 -> 21.05759696 | AW93: =AW92/Inputs!AW27 -> 17.17626261 | AX93: =AX92/Inputs!AX27 -> 13.4228995 | AY93: =AY92/Inputs!AY27 -> 9.834576473 | AZ93: =AZ92/Inputs!AZ27 -> 6.405214499 | BA93: =BA92/Inputs!BA27 -> 3.128924219 | BB93: =BB92/Inputs!BB27 -> -1.623352378e-14 | BC93: =BC92/Inputs!BC27 -> -1.583758417e-14 | BD93: =BD92/Inputs!BD27 -> -1.545130163e-14 | BE93: =BE92/Inputs!BE27 -> -1.507444062e-14 | BF93: =BF92/Inputs!BF27 -> -1.470677133e-14 | BG93: =BG92/Inputs!BG27 -> -1.434806959e-14 | BH93: =BH92/Inputs!BH27 -> -1.399811668e-14 | BI93: =BI92/Inputs!BI27 -> -1.36566992e-14 | BJ93: =BJ92/Inputs!BJ27 -> -1.332360897e-14 | BK93: =BK92/Inputs!BK27 -> -1.29986429e-14 | BL93: =BL92/Inputs!BL27 -> -1.268160283e-14 | BM93: =BM92/Inputs!BM27 -> -1.237229544e-14 | BN93: =BN92/Inputs!BN27 -> -1.207053214e-14 | BO93: =BO92/Inputs!BO27 -> -1.177612892e-14 | BP93: =BP92/Inputs!BP27 -> -1.148890626e-14 | BQ93: =BQ92/Inputs!BQ27 -> -1.120868903e-14 | BR93: =BR92/Inputs!BR27 -> -1.093530637e-14 | BS93: =BS92/Inputs!BS27 -> -1.066859158e-14 | BT93: =BT92/Inputs!BT27 -> -1.040838203e-14 | BU93: =BU92/Inputs!BU27 -> -1.015451906e-14
A94: ="Nominal NPV at "&ROUND((GEOMEAN(1+Inputs!$D$11:$W$11)-1)*100,2)&"%" -> Nominal NPV at 5.6% | B94: =NPV((GEOMEAN(1+Inputs!$D$11:$W$11)-1),D92:BU92)+C92 -> -17.09637812
A95: ="Real NPV at "&ROUND((GEOMEAN(1+Inputs!$D$15:$W$15)-1)*100,2)&"%" -> Real NPV at 3.02% | B95: =NPV((GEOMEAN(1+Inputs!$D$15:$W$15)-1),D93:BU93)+C93 -> 103.6855357
A97: =RIGHT(Inputs!A7,LEN(Inputs!A7)-3)&" ("&Inputs!B7&")" -> Approach E (consistent lag)
A98: Revenue | C98: 0 | D98: ='Working | Approach E'!D111 -> 247.4029596 | E98: ='Working | Approach E'!E111 -> 254.8464467 | F98: ='Working | Approach E'!F111 -> 265.4843663 | G98: ='Working | Approach E'!G111 -> 267.5074195 | H98: ='Working | Approach E'!H111 -> 274.7954913 | I98: ='Working | Approach E'!I247 -> 285.3474026 | J98: ='Working | Approach E'!J247 -> 291.4753809 | K98: ='Working | Approach E'!K247 -> 304.2720134 | L98: ='Working | Approach E'!L247 -> 313.3136984 | M98: ='Working | Approach E'!M247 -> 333.2303468 | N98: ='Working | Approach E'!N383 -> 342.0823203 | O98: ='Working | Approach E'!O383 -> 359.3012225 | P98: ='Working | Approach E'!P383 -> 374.9035497 | Q98: ='Working | Approach E'!Q383 -> 394.8035106 | R98: ='Working | Approach E'!R383 -> 418.6054341 | S98: ='Working | Approach E'!S519 -> 441.2443852 | T98: ='Working | Approach E'!T519 -> 468.0908553 | U98: ='Working | Approach E'!U519 -> 487.4227566 | V98: ='Working | Approach E'!V519 -> 505.0127415 | W98: ='Working | Approach E'!W519 -> 534.3708234 | X98: ='Working | Approach E'!X519/'Working | Approach E'!X411*Inputs!X27 -> 479.0491787 | Y98: ='Working | Approach E'!Y519/'Working | Approach E'!Y411*Inputs!Y27 -> 480.4376763 | Z98: ='Working | Approach E'!Z519/'Working | Approach E'!Z411*Inputs!Z27 -> 480.2218901 | AA98: ='Working | Approach E'!AA519/'Working | Approach E'!AA411*Inputs!AA27 -> 476.3363972 | AB98: ='Working | Approach E'!AB519/'Working | Approach E'!AB411*Inputs!AB27 -> 475.1382114 | AC98: ='Working | Approach E'!AC519/'Working | Approach E'!AC411*Inputs!AC27 -> 476.0548708 | AD98: ='Working | Approach E'!AD519/'Working | Approach E'!AD411*Inputs!AD27 -> 479.7954358 | AE98: ='Working | Approach E'!AE519/'Working | Approach E'!AE411*Inputs!AE27 -> 473.1210946 | AF98: ='Working | Approach E'!AF519/'Working | Approach E'!AF411*Inputs!AF27 -> 481.2930114 | AG98: ='Working | Approach E'!AG519/'Working | Approach E'!AG411*Inputs!AG27 -> 490.6505775 | AH98: ='Working | Approach E'!AH519/'Working | Approach E'!AH411*Inputs!AH27 -> 276.8344145 | AI98: ='Working | Approach E'!AI519/'Working | Approach E'!AI411*Inputs!AI27 -> 271.9024895 | AJ98: ='Working | Approach E'!AJ519/'Working | Approach E'!AJ411*Inputs!AJ27 -> 266.9900861 | AK98: ='Working | Approach E'!AK519/'Working | Approach E'!AK411*Inputs!AK27 -> 263.7190585 | AL98: ='Working | Approach E'!AL519/'Working | Approach E'!AL411*Inputs!AL27 -> 257.1912807 | AM98: ='Working | Approach E'!AM519/'Working | Approach E'!AM411*Inputs!AM27 -> 243.3651183 | AN98: ='Working | Approach E'!AN519/'Working | Approach E'!AN411*Inputs!AN27 -> 231.9230324 | AO98: ='Working | Approach E'!AO519/'Working | Approach E'!AO411*Inputs!AO27 -> 223.0194179 | AP98: ='Working | Approach E'!AP519/'Working | Approach E'!AP411*Inputs!AP27 -> 211.0580651 | AQ98: ='Working | Approach E'!AQ519/'Working | Approach E'!AQ411*Inputs!AQ27 -> 198.5675406 | AR98: ='Working | Approach E'!AR519/'Working | Approach E'!AR411*Inputs!AR27 -> 183.4672746 | AS98: ='Working | Approach E'!AS519/'Working | Approach E'!AS411*Inputs!AS27 -> 169.7817437 | AT98: ='Working | Approach E'!AT519/'Working | Approach E'!AT411*Inputs!AT27 -> 158.1955757 | AU98: ='Working | Approach E'!AU519/'Working | Approach E'!AU411*Inputs!AU27 -> 142.7555275 | AV98: ='Working | Approach E'!AV519/'Working | Approach E'!AV411*Inputs!AV27 -> 153.5621004 | AW98: ='Working | Approach E'!AW519/'Working | Approach E'!AW411*Inputs!AW27 -> 103.6614852 | AX98: ='Working | Approach E'!AX519/'Working | Approach E'!AX411*Inputs!AX27 -> 85.95228366 | AY98: ='Working | Approach E'!AY519/'Working | Approach E'!AY411*Inputs!AY27 -> 64.73411777 | AZ98: ='Working | Approach E'!AZ519/'Working | Approach E'!AZ411*Inputs!AZ27 -> 42.82919011 | BA98: ='Working | Approach E'!BA519/'Working | Approach E'!BA411*Inputs!BA27 -> 21.62897542 | BB98: ='Working | Approach E'!BB519/'Working | Approach E'!BB411*Inputs!BB27 -> 1.688065215e-13 | BC98: ='Working | Approach E'!BC519/'Working | Approach E'!BC411*Inputs!BC27 -> 1.743506686e-13 | BD98: ='Working | Approach E'!BD519/'Working | Approach E'!BD411*Inputs!BD27 -> 1.745824878e-13 | BE98: ='Working | Approach E'!BE519/'Working | Approach E'!BE411*Inputs!BE27 -> 1.760764785e-13 | BF98: ='Working | Approach E'!BF519/'Working | Approach E'!BF411*Inputs!BF27 -> 1.818163956e-13 | BG98: ='Working | Approach E'!BG519/'Working | Approach E'!BG411*Inputs!BG27 -> 1.843738503e-13 | BH98: ='Working | Approach E'!BH519/'Working | Approach E'!BH411*Inputs!BH27 -> 1.839341823e-13 | BI98: ='Working | Approach E'!BI519/'Working | Approach E'!BI411*Inputs!BI27 -> 1.920304553e-13 | BJ98: ='Working | Approach E'!BJ519/'Working | Approach E'!BJ411*Inputs!BJ27 -> 1.954325938e-13 | BK98: ='Working | Approach E'!BK519/'Working | Approach E'!BK411*Inputs!BK27 -> 2.031773332e-13 | BL98: ='Working | Approach E'!BL519/'Working | Approach E'!BL411*Inputs!BL27 -> 2.147352488e-13 | BM98: ='Working | Approach E'!BM519/'Working | Approach E'!BM411*Inputs!BM27 -> 2.166334127e-13 | BN98: ='Working | Approach E'!BN519/'Working | Approach E'!BN411*Inputs!BN27 -> 2.249125121e-13 | BO98: ='Working | Approach E'!BO519/'Working | Approach E'!BO411*Inputs!BO27 -> 2.269299213e-13 | BP98: ='Working | Approach E'!BP519/'Working | Approach E'!BP411*Inputs!BP27 -> 2.372189463e-13 | BQ98: ='Working | Approach E'!BQ519/'Working | Approach E'!BQ411*Inputs!BQ27 -> 2.378498056e-13 | BR98: ='Working | Approach E'!BR519/'Working | Approach E'!BR411*Inputs!BR27 -> 2.447448986e-13 | BS98: ='Working | Approach E'!BS519/'Working | Approach E'!BS411*Inputs!BS27 -> 2.575364352e-13 | BT98: ='Working | Approach E'!BT519/'Working | Approach E'!BT411*Inputs!BT27 -> 2.597501368e-13 | BU98: ='Working | Approach E'!BU519/'Working | Approach E'!BU411*Inputs!BU27 -> 2.637731949e-13
A99: Capex | C99: ='Working | Approach E'!D121 -> 3000 | D99: ='Working | Approach E'!D122 -> 102.4464889 | E99: ='Working | Approach E'!E122 -> 107.5522017 | F99: ='Working | Approach E'!F122 -> 114.1900358 | G99: ='Working | Approach E'!G122 -> 117.2664085 | H99: ='Working | Approach E'!H122 -> 122.7710387 | I99: ='Working | Approach E'!I258 -> 129.9724695 | J99: ='Working | Approach E'!J258 -> 134.9975986 | K99: ='Working | Approach E'!K258 -> 143.2956117 | L99: ='Working | Approach E'!L258 -> 150.0365203 | M99: ='Working | Approach E'!M258 -> 162.2590254 | N99: ='Working | Approach E'!N394 -> 169.0775255 | O99: ='Working | Approach E'!O394 -> 180.2664588 | P99: ='Working | Approach E'!P394 -> 190.9311391 | Q99: ='Working | Approach E'!Q394 -> 204.0982099 | R99: ='Working | Approach E'!R394 -> 219.6666012 | S99: ='Working | Approach E'!S530 -> 234.363404 | T99: ='Working | Approach E'!T530 -> 252.0249801 | U99: ='Working | Approach E'!U530 -> 266.0247605 | V99: ='Working | Approach E'!V530 -> 279.3967964 | W99: ='Working | Approach E'!W530 -> 299.6847553 | X99: 0 | Y99: 0 | Z99: 0 | AA99: 0 | AB99: 0 | AC99: 0 | AD99: 0 | AE99: 0 | AF99: 0 | AG99: 0 | AH99: 0 | AI99: 0 | AJ99: 0 | AK99: 0 | AL99: 0 | AM99: 0 | AN99: 0 | AO99: 0 | AP99: 0 | AQ99: 0 | AR99: 0 | AS99: 0 | AT99: 0 | AU99: 0 | AV99: 0 | AW99: 0 | AX99: 0 | AY99: 0 | AZ99: 0 | BA99: 0 | BB99: 0 | BC99: 0 | BD99: 0 | BE99: 0 | BF99: 0 | BG99: 0 | BH99: 0 | BI99: 0 | BJ99: 0 | BK99: 0 | BL99: 0 | BM99: 0 | BN99: 0 | BO99: 0 | BP99: 0 | BQ99: 0 | BR99: 0 | BS99: 0 | BT99: 0 | BU99: 0
A100: Interest Payments | C100: 0 | D100: =('Working | Approach E'!D121*Inputs!$C$9)*Inputs!D9 -> 90 | E100: =('Working | Approach E'!E121*Inputs!$C$9)*Inputs!E9 -> 92.20184001 | F100: =('Working | Approach E'!F121*Inputs!$C$9)*Inputs!F9 -> 93.67449829 | G100: =('Working | Approach E'!G121*Inputs!$C$9)*Inputs!G9 -> 96.24758482 | H100: =('Working | Approach E'!H121*Inputs!$C$9)*Inputs!H9 -> 95.65216767 | I100: =('Working | Approach E'!I257*Inputs!$C$9)*Inputs!I9 -> 96.91180513 | J100: =('Working | Approach E'!J257*Inputs!$C$9)*Inputs!J9 -> 99.28683907 | K100: =('Working | Approach E'!K257*Inputs!$C$9)*Inputs!K9 -> 99.79893758 | L100: =('Working | Approach E'!L257*Inputs!$C$9)*Inputs!L9 -> 102.5161591 | M100: =('Working | Approach E'!M257*Inputs!$C$9)*Inputs!M9 -> 103.8761823 | N100: =('Working | Approach E'!N393*Inputs!$C$9)*Inputs!N9 -> 108.7144869 | O100: =('Working | Approach E'!O393*Inputs!$C$9)*Inputs!O9 -> 109.6286337 | P100: =('Working | Approach E'!P393*Inputs!$C$9)*Inputs!P9 -> 113.1130223 | Q100: =('Working | Approach E'!Q393*Inputs!$C$9)*Inputs!Q9 -> 115.9401889 | R100: =('Working | Approach E'!R393*Inputs!$C$9)*Inputs!R9 -> 119.9377774 | S100: =('Working | Approach E'!S529*Inputs!$C$9)*Inputs!S9 -> 124.922421 | T100: =('Working | Approach E'!T529*Inputs!$C$9)*Inputs!T9 -> 128.9809941 | U100: =('Working | Approach E'!U529*Inputs!$C$9)*Inputs!U9 -> 134.2267493 | V100: =('Working | Approach E'!V529*Inputs!$C$9)*Inputs!V9 -> 137.1125177 | W100: =('Working | Approach E'!W529*Inputs!$C$9)*Inputs!W9 -> 139.3593229 | X100: =('Working | Approach E'!X529*Inputs!$C$9)*Inputs!$W$9 -> 144.656788 | Y100: =('Working | Approach E'!Y529*Inputs!$C$9)*Inputs!$W$9 -> 137.7870703 | Z100: =('Working | Approach E'!Z529*Inputs!$C$9)*Inputs!$W$9 -> 130.2312378 | AA100: =('Working | Approach E'!AA529*Inputs!$C$9)*Inputs!$W$9 -> 121.4714535 | AB100: =('Working | Approach E'!AB529*Inputs!$C$9)*Inputs!$W$9 -> 113.3139206 | AC100: =('Working | Approach E'!AC529*Inputs!$C$9)*Inputs!$W$9 -> 105.4675248 | AD100: =('Working | Approach E'!AD529*Inputs!$C$9)*Inputs!$W$9 -> 97.96161195 | AE100: =('Working | Approach E'!AE529*Inputs!$C$9)*Inputs!$W$9 -> 87.86453446 | AF100: =('Working | Approach E'!AF529*Inputs!$C$9)*Inputs!$W$9 -> 80.50773792 | AG100: =('Working | Approach E'!AG529*Inputs!$C$9)*Inputs!$W$9 -> 72.70113051 | AH100: =('Working | Approach E'!AH529*Inputs!$C$9)*Inputs!$W$9 -> 64.08688546 | AI100: =('Working | Approach E'!AI529*Inputs!$C$9)*Inputs!$W$9 -> 60.63940577 | AJ100: =('Working | Approach E'!AJ529*Inputs!$C$9)*Inputs!$W$9 -> 56.85275113 | AK100: =('Working | Approach E'!AK529*Inputs!$C$9)*Inputs!$W$9 -> 53.52514506 | AL100: =('Working | Approach E'!AL529*Inputs!$C$9)*Inputs!$W$9 -> 49.55314271 | AM100: =('Working | Approach E'!AM529*Inputs!$C$9)*Inputs!$W$9 -> 44.20713347 | AN100: =('Working | Approach E'!AN529*Inputs!$C$9)*Inputs!$W$9 -> 39.60093235 | AO100: =('Working | Approach E'!AO529*Inputs!$C$9)*Inputs!$W$9 -> 35.6836594 | AP100: =('Working | Approach E'!AP529*Inputs!$C$9)*Inputs!$W$9 -> 31.41721079 | AQ100: =('Working | Approach E'!AQ529*Inputs!$C$9)*Inputs!$W$9 -> 27.31096088 | AR100: =('Working | Approach E'!AR529*Inputs!$C$9)*Inputs!$W$9 -> 23.07459257 | AS100: =('Working | Approach E'!AS529*Inputs!$C$9)*Inputs!$W$9 -> 19.35425916 | AT100: =('Working | Approach E'!AT529*Inputs!$C$9)*Inputs!$W$9 -> 16.1971366 | AU100: =('Working | Approach E'!AU529*Inputs!$C$9)*Inputs!$W$9 -> 12.85582526 | AV100: =('Working | Approach E'!AV529*Inputs!$C$9)*Inputs!$W$9 -> 9.550457881 | AW100: =('Working | Approach E'!AW529*Inputs!$C$9)*Inputs!$W$9 -> 6.466388325 | AX100: =('Working | Approach E'!AX529*Inputs!$C$9)*Inputs!$W$9 -> 4.097327423 | AY100: =('Working | Approach E'!AY529*Inputs!$C$9)*Inputs!$W$9 -> 1.917970114 | AZ100: =('Working | Approach E'!AZ529*Inputs!$C$9)*Inputs!$W$9 -> 0.2161965672 | BA100: =('Working | Approach E'!BA529*Inputs!$C$9)*Inputs!$W$9 -> -1.002493822 | BB100: =('Working | Approach E'!BB529*Inputs!$C$9)*Inputs!$W$9 -> -0.05068005655 | BC100: =('Working | Approach E'!BC529*Inputs!$C$9)*Inputs!$W$9 -> -0.001664495445 | BD100: =('Working | Approach E'!BD529*Inputs!$C$9)*Inputs!$W$9 -> -2.213137764e-06 | BE100: =('Working | Approach E'!BE529*Inputs!$C$9)*Inputs!$W$9 -> -1.89389403e-08 | BF100: =('Working | Approach E'!BF529*Inputs!$C$9)*Inputs!$W$9 -> -6.173905044e-10 | BG100: =('Working | Approach E'!BG529*Inputs!$C$9)*Inputs!$W$9 -> -8.684300606e-12 | BH100: =('Working | Approach E'!BH529*Inputs!$C$9)*Inputs!$W$9 -> 2.070905626e-14 | BI100: =('Working | Approach E'!BI529*Inputs!$C$9)*Inputs!$W$9 -> 9.115552644e-16 | BJ100: =('Working | Approach E'!BJ529*Inputs!$C$9)*Inputs!$W$9 -> 1.614971586e-17 | BK100: =('Working | Approach E'!BK529*Inputs!$C$9)*Inputs!$W$9 -> 6.399922209e-19 | BL100: =('Working | Approach E'!BL529*Inputs!$C$9)*Inputs!$W$9 -> 3.640650242e-20 | BM100: =('Working | Approach E'!BM529*Inputs!$C$9)*Inputs!$W$9 -> 3.218172642e-22 | BN100: =('Working | Approach E'!BN529*Inputs!$C$9)*Inputs!$W$9 -> 1.229892057e-23 | BO100: =('Working | Approach E'!BO529*Inputs!$C$9)*Inputs!$W$9 -> 1.103182513e-25 | BP100: =('Working | Approach E'!BP529*Inputs!$C$9)*Inputs!$W$9 -> 5.00184038e-27 | BQ100: =('Working | Approach E'!BQ529*Inputs!$C$9)*Inputs!$W$9 -> 1.330187732e-29 | BR100: =('Working | Approach E'!BR529*Inputs!$C$9)*Inputs!$W$9 -> 3.856117572e-31 | BS100: =('Working | Approach E'!BS529*Inputs!$C$9)*Inputs!$W$9 -> 2.015391104e-32 | BT100: =('Working | Approach E'!BT529*Inputs!$C$9)*Inputs!$W$9 -> 1.732366325e-34 | BU100: =('Working | Approach E'!BU529*Inputs!$C$9)*Inputs!$W$9 -> 2.683120955e-36
A101: Repayment of Debt | C101: =('Working | Approach E'!C121-'Working | Approach E'!D121)*Inputs!$C$9 -> -1800 | D101: =('Working | Approach E'!D121-'Working | Approach E'!E121)*Inputs!$C$9 -> -44.03680015 | E101: =('Working | Approach E'!E121-'Working | Approach E'!F121)*Inputs!$C$9 -> -29.4531657 | F101: =('Working | Approach E'!F121-'Working | Approach E'!G121)*Inputs!$C$9 -> -51.46173057 | G101: =('Working | Approach E'!G121-'Working | Approach E'!H121)*Inputs!$C$9 -> 11.90834301 | H101: =('Working | Approach E'!H121-'Working | Approach E'!I257)*Inputs!$C$9 -> -25.19274927 | I101: =('Working | Approach E'!I257-'Working | Approach E'!J257)*Inputs!$C$9 -> -47.50067867 | J101: =('Working | Approach E'!J257-'Working | Approach E'!K257)*Inputs!$C$9 -> -10.24197027 | K101: =('Working | Approach E'!K257-'Working | Approach E'!L257)*Inputs!$C$9 -> -54.34442992 | L101: =('Working | Approach E'!L257-'Working | Approach E'!M257)*Inputs!$C$9 -> -27.20046404 | M101: =('Working | Approach E'!M257-'Working | Approach E'!N393)*Inputs!$C$9 -> -96.76609277 | N101: =('Working | Approach E'!N393-'Working | Approach E'!O393)*Inputs!$C$9 -> -18.28293482 | O101: =('Working | Approach E'!O393-'Working | Approach E'!P393)*Inputs!$C$9 -> -69.68777278 | P101: =('Working | Approach E'!P393-'Working | Approach E'!Q393)*Inputs!$C$9 -> -56.54333266 | Q101: =('Working | Approach E'!Q393-'Working | Approach E'!R393)*Inputs!$C$9 -> -79.95177012 | R101: =('Working | Approach E'!R393-'Working | Approach E'!S529)*Inputs!$C$9 -> -99.69287092 | S101: =('Working | Approach E'!S529-'Working | Approach E'!T529)*Inputs!$C$9 -> -81.17146293 | T101: =('Working | Approach E'!T529-'Working | Approach E'!U529)*Inputs!$C$9 -> -104.915104 | U101: =('Working | Approach E'!U529-'Working | Approach E'!V529)*Inputs!$C$9 -> -57.71536658 | V101: =('Working | Approach E'!V529-'Working | Approach E'!W529)*Inputs!$C$9 -> -44.93610445 | W101: =('Working | Approach E'!W529-'Working | Approach E'!X529)*Inputs!$C$9 -> -105.9493021 | X101: =('Working | Approach E'!X529-'Working | Approach E'!Y529)*Inputs!$C$9 -> 137.3943533 | Y101: =('Working | Approach E'!Y529-'Working | Approach E'!Z529)*Inputs!$C$9 -> 151.1166508 | Z101: =('Working | Approach E'!Z529-'Working | Approach E'!AA529)*Inputs!$C$9 -> 175.1956867 | AA101: =('Working | Approach E'!AA529-'Working | Approach E'!AB529)*Inputs!$C$9 -> 163.1506577 | AB101: =('Working | Approach E'!AB529-'Working | Approach E'!AC529)*Inputs!$C$9 -> 156.927915 | AC101: =('Working | Approach E'!AC529-'Working | Approach E'!AD529)*Inputs!$C$9 -> 150.1182574 | AD101: =('Working | Approach E'!AD529-'Working | Approach E'!AE529)*Inputs!$C$9 -> 201.9415497 | AE101: =('Working | Approach E'!AE529-'Working | Approach E'!AF529)*Inputs!$C$9 -> 147.1359307 | AF101: =('Working | Approach E'!AF529-'Working | Approach E'!AG529)*Inputs!$C$9 -> 156.1321483 | AG101: =('Working | Approach E'!AG529-'Working | Approach E'!AH529)*Inputs!$C$9 -> 172.284901 | AH101: =('Working | Approach E'!AH529-'Working | Approach E'!AI529)*Inputs!$C$9 -> 68.94959396 | AI101: =('Working | Approach E'!AI529-'Working | Approach E'!AJ529)*Inputs!$C$9 -> 75.73309278 | AJ101: =('Working | Approach E'!AJ529-'Working | Approach E'!AK529)*Inputs!$C$9 -> 66.55212133 | AK101: =('Working | Approach E'!AK529-'Working | Approach E'!AL529)*Inputs!$C$9 -> 79.44004692 | AL101: =('Working | Approach E'!AL529-'Working | Approach E'!AM529)*Inputs!$C$9 -> 106.9201849 | AM101: =('Working | Approach E'!AM529-'Working | Approach E'!AN529)*Inputs!$C$9 -> 92.12402231 | AN101: =('Working | Approach E'!AN529-'Working | Approach E'!AO529)*Inputs!$C$9 -> 78.34545906 | AO101: =('Working | Approach E'!AO529-'Working | Approach E'!AP529)*Inputs!$C$9 -> 85.32897229 | AP101: =('Working | Approach E'!AP529-'Working | Approach E'!AQ529)*Inputs!$C$9 -> 82.12499805 | AQ101: =('Working | Approach E'!AQ529-'Working | Approach E'!AR529)*Inputs!$C$9 -> 84.7273662 | AR101: =('Working | Approach E'!AR529-'Working | Approach E'!AS529)*Inputs!$C$9 -> 74.40666815 | AS101: =('Working | Approach E'!AS529-'Working | Approach E'!AT529)*Inputs!$C$9 -> 63.1424513 | AT101: =('Working | Approach E'!AT529-'Working | Approach E'!AU529)*Inputs!$C$9 -> 66.82622688 | AU101: =('Working | Approach E'!AU529-'Working | Approach E'!AV529)*Inputs!$C$9 -> 66.10734749 | AV101: =('Working | Approach E'!AV529-'Working | Approach E'!AW529)*Inputs!$C$9 -> 61.68139113 | AW101: =('Working | Approach E'!AW529-'Working | Approach E'!AX529)*Inputs!$C$9 -> 47.38121803 | AX101: =('Working | Approach E'!AX529-'Working | Approach E'!AY529)*Inputs!$C$9 -> 43.58714618 | AY101: =('Working | Approach E'!AY529-'Working | Approach E'!AZ529)*Inputs!$C$9 -> 34.03547093 | AZ101: =('Working | Approach E'!AZ529-'Working | Approach E'!BA529)*Inputs!$C$9 -> 24.37380778 | BA101: =('Working | Approach E'!BA529-'Working | Approach E'!BB529)*Inputs!$C$9 -> -19.0362753 | BB101: =('Working | Approach E'!BB529-'Working | Approach E'!BC529)*Inputs!$C$9 -> -0.9803112221 | BC101: =('Working | Approach E'!BC529-'Working | Approach E'!BD529)*Inputs!$C$9 -> -0.03324564615 | BD101: =('Working | Approach E'!BD529-'Working | Approach E'!BE529)*Inputs!$C$9 -> -4.388397648e-05 | BE101: =('Working | Approach E'!BE529-'Working | Approach E'!BF529)*Inputs!$C$9 -> -3.664309959e-07 | BF101: =('Working | Approach E'!BF529-'Working | Approach E'!BG529)*Inputs!$C$9 -> -1.217412408e-08 | BG101: =('Working | Approach E'!BG529-'Working | Approach E'!BH529)*Inputs!$C$9 -> -1.741001933e-10 | BH101: =('Working | Approach E'!BH529-'Working | Approach E'!BI529)*Inputs!$C$9 -> 3.959500199e-13 | BI101: =('Working | Approach E'!BI529-'Working | Approach E'!BJ529)*Inputs!$C$9 -> 1.790811097e-14 | BJ101: =('Working | Approach E'!BJ529-'Working | Approach E'!BK529)*Inputs!$C$9 -> 3.101944727e-16 | BK101: =('Working | Approach E'!BK529-'Working | Approach E'!BL529)*Inputs!$C$9 -> 1.207171437e-17 | BL101: =('Working | Approach E'!BL529-'Working | Approach E'!BM529)*Inputs!$C$9 -> 7.216937032e-19 | BM101: =('Working | Approach E'!BM529-'Working | Approach E'!BN529)*Inputs!$C$9 -> 6.190366873e-21 | BN101: =('Working | Approach E'!BN529-'Working | Approach E'!BO529)*Inputs!$C$9 -> 2.437720463e-22 | BO101: =('Working | Approach E'!BO529-'Working | Approach E'!BP529)*Inputs!$C$9 -> 2.106328218e-24 | BP101: =('Working | Approach E'!BP529-'Working | Approach E'!BQ529)*Inputs!$C$9 -> 9.977077004e-26 | BQ101: =('Working | Approach E'!BQ529-'Working | Approach E'!BR529)*Inputs!$C$9 -> 2.583253113e-28 | BR101: =('Working | Approach E'!BR529-'Working | Approach E'!BS529)*Inputs!$C$9 -> 7.309156923e-30 | BS101: =('Working | Approach E'!BS529-'Working | Approach E'!BT529)*Inputs!$C$9 -> 3.996134882e-31 | BT101: =('Working | Approach E'!BT529-'Working | Approach E'!BU529)*Inputs!$C$9 -> 3.41107023e-33 | BU101: =('Working | Approach E'!BU529-'Working | Approach E'!BV529)*Inputs!$C$9 -> 5.36624191e-35
A102: Opex | C102: 0 | D102: ='Working | Approach E'!D102/'Working | Approach E'!D4*Inputs!D27 -> 51.22324445 | E102: ='Working | Approach E'!E102/'Working | Approach E'!E4*Inputs!E27 -> 52.04138794 | F102: ='Working | Approach E'!F102/'Working | Approach E'!F4*Inputs!F27 -> 53.47088046 | G102: ='Working | Approach E'!G102/'Working | Approach E'!G4*Inputs!G27 -> 53.14009315 | H102: ='Working | Approach E'!H102/'Working | Approach E'!H4*Inputs!H27 -> 53.83989174 | I102: ='Working | Approach E'!I238/'Working | Approach E'!I139*Inputs!I27 -> 55.15935504 | J102: ='Working | Approach E'!J238/'Working | Approach E'!J139*Inputs!J27 -> 55.44385421 | K102: ='Working | Approach E'!K238/'Working | Approach E'!K139*Inputs!K27 -> 56.95342171 | L102: ='Working | Approach E'!L238/'Working | Approach E'!L139*Inputs!L27 -> 57.70899016 | M102: ='Working | Approach E'!M238/'Working | Approach E'!M139*Inputs!M27 -> 60.39693718 | N102: ='Working | Approach E'!N374/'Working | Approach E'!N275*Inputs!N27 -> 60.90479648 | O102: ='Working | Approach E'!O374/'Working | Approach E'!O275*Inputs!O27 -> 62.84056794 | P102: ='Working | Approach E'!P374/'Working | Approach E'!P275*Inputs!P27 -> 64.41121607 | Q102: ='Working | Approach E'!Q374/'Working | Approach E'!Q275*Inputs!Q27 -> 66.63209858 | R102: ='Working | Approach E'!R374/'Working | Approach E'!R275*Inputs!R27 -> 69.40134499 | S102: ='Working | Approach E'!S510/'Working | Approach E'!S411*Inputs!S27 -> 71.65610785 | T102: ='Working | Approach E'!T510/'Working | Approach E'!T411*Inputs!T27 -> 74.57041629 | U102: ='Working | Approach E'!U510/'Working | Approach E'!U411*Inputs!U27 -> 76.17362092 | V102: ='Working | Approach E'!V510/'Working | Approach E'!V411*Inputs!V27 -> 77.42184605 | W102: ='Working | Approach E'!W510/'Working | Approach E'!W411*Inputs!W27 -> 80.36488222 | X102: 0 | Y102: 0 | Z102: 0 | AA102: 0 | AB102: 0 | AC102: 0 | AD102: 0 | AE102: 0 | AF102: 0 | AG102: 0 | AH102: 0 | AI102: 0 | AJ102: 0 | AK102: 0 | AL102: 0 | AM102: 0 | AN102: 0 | AO102: 0 | AP102: 0 | AQ102: 0 | AR102: 0 | AS102: 0 | AT102: 0 | AU102: 0 | AV102: 0 | AW102: 0 | AX102: 0 | AY102: 0 | AZ102: 0 | BA102: 0 | BB102: 0 | BC102: 0 | BD102: 0 | BE102: 0 | BF102: 0 | BG102: 0 | BH102: 0 | BI102: 0 | BJ102: 0 | BK102: 0 | BL102: 0 | BM102: 0 | BN102: 0 | BO102: 0 | BP102: 0 | BQ102: 0 | BR102: 0 | BS102: 0 | BT102: 0 | BU102: 0
A103: Tax payable+ gamma | C103: 0 | D103: ='Working | Approach E'!D103/'Working | Approach E'!D4*Inputs!D27 -> 0.7817161847 | E103: ='Working | Approach E'!E103/'Working | Approach E'!E4*Inputs!E27 -> 0.6913320294 | F103: ='Working | Approach E'!F103/'Working | Approach E'!F4*Inputs!F27 -> 0.6673638018 | G103: ='Working | Approach E'!G103/'Working | Approach E'!G4*Inputs!G27 -> 0.6777314371 | H103: ='Working | Approach E'!H103/'Working | Approach E'!H4*Inputs!H27 -> 0.7545710727 | I103: ='Working | Approach E'!I239/'Working | Approach E'!I139*Inputs!I27 -> 0.1215289643 | J103: ='Working | Approach E'!J239/'Working | Approach E'!J139*Inputs!J27 -> 0.3135315348 | K103: ='Working | Approach E'!K239/'Working | Approach E'!K139*Inputs!K27 -> 0.5616860731 | L103: ='Working | Approach E'!L239/'Working | Approach E'!L139*Inputs!L27 -> 0.8523232192 | M103: ='Working | Approach E'!M239/'Working | Approach E'!M139*Inputs!M27 -> 1.22766386 | N103: ='Working | Approach E'!N375/'Working | Approach E'!N275*Inputs!N27 -> 1.580074975 | O103: ='Working | Approach E'!O375/'Working | Approach E'!O275*Inputs!O27 -> 2.048271863 | P103: ='Working | Approach E'!P375/'Working | Approach E'!P275*Inputs!P27 -> 2.56278848 | Q103: ='Working | Approach E'!Q375/'Working | Approach E'!Q275*Inputs!Q27 -> 3.164445742 | R103: ='Working | Approach E'!R375/'Working | Approach E'!R275*Inputs!R27 -> 3.864072923 | S103: ='Working | Approach E'!S511/'Working | Approach E'!S411*Inputs!S27 -> 5.195253259 | T103: ='Working | Approach E'!T511/'Working | Approach E'!T411*Inputs!T27 -> 6.044375414 | U103: ='Working | Approach E'!U511/'Working | Approach E'!U411*Inputs!U27 -> 6.861057739 | V103: ='Working | Approach E'!V511/'Working | Approach E'!V411*Inputs!V27 -> 7.705793269 | W103: ='Working | Approach E'!W511/'Working | Approach E'!W411*Inputs!W27 -> 8.793207694 | X103: =SUM('Working | Approach E'!X477:X478)/'Working | Approach E'!X411*Inputs!X27 -> 9.908943457 | Y103: =SUM('Working | Approach E'!Y477:Y478)/'Working | Approach E'!Y411*Inputs!Y27 -> 12.37168046 | Z103: =SUM('Working | Approach E'!Z477:Z478)/'Working | Approach E'!Z411*Inputs!Z27 -> 14.69546879 | AA103: =SUM('Working | Approach E'!AA477:AA478)/'Working | Approach E'!AA411*Inputs!AA27 -> 16.7976528 | AB103: =SUM('Working | Approach E'!AB477:AB478)/'Working | Approach E'!AB411*Inputs!AB27 -> 18.89399679 | AC103: =SUM('Working | Approach E'!AC477:AC478)/'Working | Approach E'!AC411*Inputs!AC27 -> 21.0075659 | AD103: =SUM('Working | Approach E'!AD477:AD478)/'Working | Approach E'!AD411*Inputs!AD27 -> 23.21074255 | AE103: =SUM('Working | Approach E'!AE477:AE478)/'Working | Approach E'!AE411*Inputs!AE27 -> 24.85309282 | AF103: =SUM('Working | Approach E'!AF477:AF478)/'Working | Approach E'!AF411*Inputs!AF27 -> 27.24592616 | AG103: =SUM('Working | Approach E'!AG477:AG478)/'Working | Approach E'!AG411*Inputs!AG27 -> 29.75054055 | AH103: =SUM('Working | Approach E'!AH477:AH478)/'Working | Approach E'!AH411*Inputs!AH27 -> 17.09347958 | AI103: =SUM('Working | Approach E'!AI477:AI478)/'Working | Approach E'!AI411*Inputs!AI27 -> 15.94417308 | AJ103: =SUM('Working | Approach E'!AJ477:AJ478)/'Working | Approach E'!AJ411*Inputs!AJ27 -> 16.33400538 | AK103: =SUM('Working | Approach E'!AK477:AK478)/'Working | Approach E'!AK411*Inputs!AK27 -> 16.75242008 | AL103: =SUM('Working | Approach E'!AL477:AL478)/'Working | Approach E'!AL411*Inputs!AL27 -> 16.91447247 | AM103: =SUM('Working | Approach E'!AM477:AM478)/'Working | Approach E'!AM411*Inputs!AM27 -> 16.52027526 | AN103: =SUM('Working | Approach E'!AN477:AN478)/'Working | Approach E'!AN411*Inputs!AN27 -> 16.16114547 | AO103: =SUM('Working | Approach E'!AO477:AO478)/'Working | Approach E'!AO411*Inputs!AO27 -> 15.90330641 | AP103: =SUM('Working | Approach E'!AP477:AP478)/'Working | Approach E'!AP411*Inputs!AP27 -> 15.34134677 | AQ103: =SUM('Working | Approach E'!AQ477:AQ478)/'Working | Approach E'!AQ411*Inputs!AQ27 -> 14.64370105 | AR103: =SUM('Working | Approach E'!AR477:AR478)/'Working | Approach E'!AR411*Inputs!AR27 -> 13.63948604 | AS103: =SUM('Working | Approach E'!AS477:AS478)/'Working | Approach E'!AS411*Inputs!AS27 -> 12.65235394 | AT103: =SUM('Working | Approach E'!AT477:AT478)/'Working | Approach E'!AT411*Inputs!AT27 -> 11.74304528 | AU103: =SUM('Working | Approach E'!AU477:AU478)/'Working | Approach E'!AU411*Inputs!AU27 -> 10.41782145 | AV103: =SUM('Working | Approach E'!AV477:AV478)/'Working | Approach E'!AV411*Inputs!AV27 -> 38.00328519 | AW103: =SUM('Working | Approach E'!AW477:AW478)/'Working | Approach E'!AW411*Inputs!AW27 -> 6.802518084 | AX103: =SUM('Working | Approach E'!AX477:AX478)/'Working | Approach E'!AX411*Inputs!AX27 -> 4.877391783 | AY103: =SUM('Working | Approach E'!AY477:AY478)/'Working | Approach E'!AY411*Inputs!AY27 -> 2.664425109 | AZ103: =SUM('Working | Approach E'!AZ477:AZ478)/'Working | Approach E'!AZ411*Inputs!AZ27 -> 0.2450794985 | BA103: =SUM('Working | Approach E'!BA477:BA478)/'Working | Approach E'!BA411*Inputs!BA27 -> 0 | BB103: =SUM('Working | Approach E'!BB477:BB478)/'Working | Approach E'!BB411*Inputs!BB27 -> 0 | BC103: =SUM('Working | Approach E'!BC477:BC478)/'Working | Approach E'!BC411*Inputs!BC27 -> 0 | BD103: =SUM('Working | Approach E'!BD477:BD478)/'Working | Approach E'!BD411*Inputs!BD27 -> 0 | BE103: =SUM('Working | Approach E'!BE477:BE478)/'Working | Approach E'!BE411*Inputs!BE27 -> 0 | BF103: =SUM('Working | Approach E'!BF477:BF478)/'Working | Approach E'!BF411*Inputs!BF27 -> 0 | BG103: =SUM('Working | Approach E'!BG477:BG478)/'Working | Approach E'!BG411*Inputs!BG27 -> 0 | BH103: =SUM('Working | Approach E'!BH477:BH478)/'Working | Approach E'!BH411*Inputs!BH27 -> 0 | BI103: =SUM('Working | Approach E'!BI477:BI478)/'Working | Approach E'!BI411*Inputs!BI27 -> 0 | BJ103: =SUM('Working | Approach E'!BJ477:BJ478)/'Working | Approach E'!BJ411*Inputs!BJ27 -> 0 | BK103: =SUM('Working | Approach E'!BK477:BK478)/'Working | Approach E'!BK411*Inputs!BK27 -> 0 | BL103: =SUM('Working | Approach E'!BL477:BL478)/'Working | Approach E'!BL411*Inputs!BL27 -> 0 | BM103: =SUM('Working | Approach E'!BM477:BM478)/'Working | Approach E'!BM411*Inputs!BM27 -> 0 | BN103: =SUM('Working | Approach E'!BN477:BN478)/'Working | Approach E'!BN411*Inputs!BN27 -> 0 | BO103: =SUM('Working | Approach E'!BO477:BO478)/'Working | Approach E'!BO411*Inputs!BO27 -> 0 | BP103: =SUM('Working | Approach E'!BP477:BP478)/'Working | Approach E'!BP411*Inputs!BP27 -> 0 | BQ103: =SUM('Working | Approach E'!BQ477:BQ478)/'Working | Approach E'!BQ411*Inputs!BQ27 -> 0 | BR103: =SUM('Working | Approach E'!BR477:BR478)/'Working | Approach E'!BR411*Inputs!BR27 -> 0 | BS103: =SUM('Working | Approach E'!BS477:BS478)/'Working | Approach E'!BS411*Inputs!BS27 -> 0 | BT103: =SUM('Working | Approach E'!BT477:BT478)/'Working | Approach E'!BT411*Inputs!BT27 -> 0 | BU103: =SUM('Working | Approach E'!BU477:BU478)/'Working | Approach E'!BU411*Inputs!BU27 -> 0
A104: Returns achieved
A105: Post-tax CF to Equity | B105: =IRR(C105:BU105) -> 0.05935769281 | C105: =C98-C99-C100-C101-C102-C103 -> -1200 | D105: =D98-D99-D100-D101-D102-D103 -> 46.98831025 | E105: =E98-E99-E100-E101-E102-E103 -> 31.81285071 | F105: =F98-F99-F100-F101-F102-F103 -> 54.94331846 | G105: -11.73274146 | H105: 26.97057145 | I105: 50.68292268 | J105: 11.67552776 | K105: 58.00678625 | L105: 29.40016967 | M105: 102.2366309 | N105: 20.08837126 | O105: 74.20506305 | P105: 60.42871636 | Q105: 84.92033756 | R105: 105.4285084 | S105: 86.27866204 | T105: 111.3851934 | U105: 61.85193465 | V105: 48.3118926 | W105: 112.1179574 | X105: 187.089094 | Y105: 179.1622747 | Z105: 160.0994968 | AA105: 174.9166333 | AB105: 186.0023791 | AC105: 199.4615227 | AD105: 156.6815315 | AE105: 213.2675366 | AF105: 217.407199 | AG105: 215.9140055 | AH105: 126.7044555 | AI105: 119.5858179 | AJ105: 127.2512082 | AK105: 114.0014465 | AL105: 83.8034806 | AM105: 90.51368724 | AN105: 97.8154955 | AO105: 86.10347984 | AP105: 82.17450946 | AQ105: 71.88551243 | AR105: 72.34652779 | AS105: 74.63267934 | AT105: 63.42916695 | AU105: 53.37453333 | AV105: 44.3269662 | AW105: 43.01136078 | AX105: 33.39041827 | AY105: 26.11625161 | AZ105: 17.99410627 | BA105: 41.66774454 | BB105: 1.030991279 | BC105: 0.0349101416 | BD105: 4.609711442e-05 | BE105: 3.853701122e-07 | BF105: 1.27916964e-08 | BG105: 1.829688677e-10 | BH105: -2.327248939e-13 | BI105: 1.73210789e-13 | BJ105: 1.951062496e-13 | BK105: 2.031646214e-13 | BL105: 2.147344907e-13 | BM105: 2.166334062e-13 | BN105: 2.249125119e-13 | BO105: 2.269299213e-13 | BP105: 2.372189463e-13 | BQ105: =BQ98-BQ99-BQ100-BQ101-BQ102-BQ103 -> 2.378498056e-13 | BR105: =BR98-BR99-BR100-BR101-BR102-BR103 -> 2.447448986e-13 | BS105: =BS98-BS99-BS100-BS101-BS102-BS103 -> 2.575364352e-13 | BT105: =BT98-BT99-BT100-BT101-BT102-BT103 -> 2.597501368e-13 | BU105: =BU98-BU99-BU100-BU101-BU102-BU103 -> 2.637731949e-13
A106: Real post-tax CF to Equity | B106: =IRR(C106:BU106) -> 0.03558024381 | C106: =C105/Inputs!C27 -> -1200 | D106: =D105/Inputs!D27 -> 45.86619879 | E106: =E105/Inputs!E27 -> 30.56495221 | F106: =F105/Inputs!F27 -> 51.3768597 | G106: =G105/Inputs!G27 -> -11.03944382 | H106: =H105/Inputs!H27 -> 25.04701493 | I106: =I105/Inputs!I27 -> 45.94227275 | J106: =J105/Inputs!J27 -> 10.52914513 | K106: =K105/Inputs!K27 -> 50.92475966 | L106: =L105/Inputs!L27 -> 25.47278127 | M106: =M105/Inputs!M27 -> 84.63726446 | N106: =N105/Inputs!N27 -> 16.49161677 | O106: =O105/Inputs!O27 -> 59.04232367 | P106: =P105/Inputs!P27 -> 46.90853553 | Q106: =Q105/Inputs!Q27 -> 63.72329506 | R106: =R105/Inputs!R27 -> 75.95566661 | S106: =S105/Inputs!S27 -> 60.20328527 | T106: =T105/Inputs!T27 -> 74.68457261 | U106: =U105/Inputs!U27 -> 40.59931371 | V106: =V105/Inputs!V27 -> 31.20042667 | W106: =W105/Inputs!W27 -> 69.7555663 | X106: =X105/Inputs!X27 -> 113.017225 | Y106: =Y105/Inputs!Y27 -> 106.2467475 | Z106: =Z105/Inputs!Z27 -> 93.45610661 | AA106: =AA105/Inputs!AA27 -> 101.2178663 | AB106: =AB105/Inputs!AB27 -> 106.034427 | AC106: =AC105/Inputs!AC27 -> 111.4520017 | AD106: =AD105/Inputs!AD27 -> 85.25367774 | AE106: =AE105/Inputs!AE27 -> 115.4239862 | AF106: =AF105/Inputs!AF27 -> 113.3767164 | AG106: =AG105/Inputs!AG27 -> 108.1941093 | AH106: =AH105/Inputs!AH27 -> 61.03935449 | AI106: =AI105/Inputs!AI27 -> 55.59458234 | AJ106: =AJ105/Inputs!AJ27 -> 57.28927633 | AK106: =AK105/Inputs!AK27 -> 49.24881731 | AL106: =AL105/Inputs!AL27 -> 35.05998898 | AM106: =AM105/Inputs!AM27 -> 37.64387316 | AN106: =AN105/Inputs!AN27 -> 39.96357206 | AO106: =AO105/Inputs!AO27 -> 34.068177 | AP106: =AP105/Inputs!AP27 -> 31.7976125 | AQ106: =AQ105/Inputs!AQ27 -> 27.16537072 | AR106: =AR105/Inputs!AR27 -> 26.94973384 | AS106: =AS105/Inputs!AS27 -> 27.07673159 | AT106: =AT105/Inputs!AT27 -> 21.97412999 | AU106: =AU105/Inputs!AU27 -> 17.92819932 | AV106: =AV105/Inputs!AV27 -> 14.63437745 | AW106: =AW105/Inputs!AW27 -> 14.13686044 | AX106: =AX105/Inputs!AX27 -> 10.50336609 | AY106: =AY105/Inputs!AY27 -> 8.059184154 | AZ106: =AZ105/Inputs!AZ27 -> 5.403426108 | BA106: =BA105/Inputs!BA27 -> 12.33534178 | BB106: =BB105/Inputs!BB27 -> 0.2905278778 | BC106: =BC105/Inputs!BC27 -> 0.009524672118 | BD106: =BD105/Inputs!BD27 -> 1.256015802e-05 | BE106: =BE105/Inputs!BE27 -> 1.041115055e-07 | BF106: =BF105/Inputs!BF27 -> 3.346702748e-09 | BG106: =BG105/Inputs!BG27 -> 4.720629504e-11 | BH106: =BH105/Inputs!BH27 -> -6.018696387e-14 | BI106: =BI105/Inputs!BI27 -> 4.290687346e-14 | BJ106: =BJ105/Inputs!BJ27 -> 4.748935006e-14 | BK106: =BK105/Inputs!BK27 -> 4.756580693e-14 | BL106: =BL105/Inputs!BL27 -> 4.756861511e-14 | BM106: =BM105/Inputs!BM27 -> 4.756878162e-14 | BN106: =BN105/Inputs!BN27 -> 4.756878299e-14 | BO106: =BO105/Inputs!BO27 -> 4.756878305e-14 | BP106: =BP105/Inputs!BP27 -> 4.756878305e-14 | BQ106: =BQ105/Inputs!BQ27 -> 4.756878305e-14 | BR106: =BR105/Inputs!BR27 -> 4.756878305e-14 | BS106: =BS105/Inputs!BS27 -> 4.756878305e-14 | BT106: =BT105/Inputs!BT27 -> 4.756878305e-14 | BU106: =BU105/Inputs!BU27 -> 4.756878305e-14
A107: Nominal cash flows to assets | B107: =IRR(C107:BU107) -> 0.05580986371 | C107: =C98-C99-C102 -> -3000 | D107: =D98-D99-D102 -> 93.73322629 | E107: 95.25285704 | F107: 97.82344998 | G107: 97.10091781 | H107: 98.18456092 | I107: 100.2155781 | J107: 101.0339281 | K107: 104.02298 | L107: 105.5681879 | M107: 110.5743843 | N107: 112.0999983 | O107: 116.1941958 | P107: 119.5611945 | Q107: 124.0732021 | R107: 129.5374879 | S107: 135.2248734 | T107: 141.4954589 | U107: 145.2243751 | V107: 148.1940991 | W107: 154.3211858 | X107: 479.0491787 | Y107: 480.4376763 | Z107: 480.2218901 | AA107: 476.3363972 | AB107: 475.1382114 | AC107: 476.0548708 | AD107: 479.7954358 | AE107: 473.1210946 | AF107: 481.2930114 | AG107: 490.6505775 | AH107: 276.8344145 | AI107: 271.9024895 | AJ107: 266.9900861 | AK107: 263.7190585 | AL107: 257.1912807 | AM107: 243.3651183 | AN107: 231.9230324 | AO107: 223.0194179 | AP107: 211.0580651 | AQ107: 198.5675406 | AR107: 183.4672746 | AS107: 169.7817437 | AT107: 158.1955757 | AU107: 142.7555275 | AV107: 153.5621004 | AW107: 103.6614852 | AX107: 85.95228366 | AY107: 64.73411777 | AZ107: 42.82919011 | BA107: 21.62897542 | BB107: 1.688065215e-13 | BC107: 1.743506686e-13 | BD107: 1.745824878e-13 | BE107: 1.760764785e-13 | BF107: 1.818163956e-13 | BG107: 1.843738503e-13 | BH107: 1.839341823e-13 | BI107: 1.920304553e-13 | BJ107: 1.954325938e-13 | BK107: 2.031773332e-13 | BL107: 2.147352488e-13 | BM107: 2.166334127e-13 | BN107: 2.249125121e-13 | BO107: 2.269299213e-13 | BP107: =BP98-BP99-BP102 -> 2.372189463e-13 | BQ107: 2.378498056e-13 | BR107: 2.447448986e-13 | BS107: 2.575364352e-13 | BT107: 2.597501368e-13 | BU107: 2.637731949e-13
A108: Nominal vanilla WACC | B108: =IRR(C108:BU108) -> 0.05391982793 | C108: =C107-C103 -> -3000 | D108: =D107-D103 -> 92.95151011 | E108: 94.56152501 | F108: 97.15608618 | G108: 96.42318637 | H108: 97.42998984 | I108: 100.0940491 | J108: 100.7203966 | K108: 103.4612939 | L108: 104.7158647 | M108: 109.3467204 | N108: 110.5199234 | O108: 114.1459239 | P108: 116.998406 | Q108: 120.9087564 | R108: 125.673415 | S108: 130.0296201 | T108: 135.4510835 | U108: 138.3633174 | V108: 140.4883058 | W108: 145.5279781 | X108: 469.1402353 | Y108: 468.0659958 | Z108: 465.5264213 | AA108: 459.5387444 | AB108: 456.2442146 | AC108: 455.0473049 | AD108: 456.5846932 | AE108: 448.2680018 | AF108: 454.0470852 | AG108: 460.900037 | AH108: 259.7409349 | AI108: 255.9583164 | AJ108: 250.6560807 | AK108: 246.9666384 | AL108: 240.2768082 | AM108: 226.844843 | AN108: 215.7618869 | AO108: 207.1161115 | AP108: 195.7167183 | AQ108: 183.9238395 | AR108: 169.8277885 | AS108: 157.1293898 | AT108: 146.4525304 | AU108: 132.3377061 | AV108: 115.5588152 | AW108: 96.85896714 | AX108: 81.07489188 | AY108: 62.06969266 | AZ108: 42.58411061 | BA108: 21.62897542 | BB108: 1.688065215e-13 | BC108: 1.743506686e-13 | BD108: 1.745824878e-13 | BE108: 1.760764785e-13 | BF108: 1.818163956e-13 | BG108: 1.843738503e-13 | BH108: 1.839341823e-13 | BI108: 1.920304553e-13 | BJ108: 1.954325938e-13 | BK108: 2.031773332e-13 | BL108: 2.147352488e-13 | BM108: 2.166334127e-13 | BN108: 2.249125121e-13 | BO108: 2.269299213e-13 | BP108: =BP107-BP103 -> 2.372189463e-13 | BQ108: 2.378498056e-13 | BR108: 2.447448986e-13 | BS108: 2.575364352e-13 | BT108: 2.597501368e-13 | BU108: 2.637731949e-13
A109: Real WACC (real) | B109: =IRR(C109:BU109) -> 0.03024390197 | C109: =C108/Inputs!C27 -> -3000 | D109: =D108/Inputs!D27 -> 90.73176749 | E109: =E108/Inputs!E27 -> 90.852232 | F109: =F108/Inputs!F27 -> 90.84952908 | G109: =G108/Inputs!G27 -> 90.72545855 | H109: =H108/Inputs!H27 -> 90.48122748 | I109: =I108/Inputs!I27 -> 90.73170732 | J109: =J108/Inputs!J27 -> 90.83098387 | K109: =K108/Inputs!K27 -> 90.82974367 | L109: =L108/Inputs!L27 -> 90.7275144 | M109: =M108/Inputs!M27 -> 90.52339862 | N109: =N108/Inputs!N27 -> 90.73170732 | O109: =O108/Inputs!O27 -> 90.821843 | P109: =P108/Inputs!P27 -> 90.82145403 | Q109: =Q108/Inputs!Q27 -> 90.728612 | R109: =R108/Inputs!R27 -> 90.54105146 | S109: =S108/Inputs!S27 -> 90.73170732 | T109: =T108/Inputs!T27 -> 90.82092487 | U109: =U108/Inputs!U27 -> 90.82101896 | V109: =V108/Inputs!V27 -> 90.72911135 | W109: =W108/Inputs!W27 -> 90.54202167 | X109: =X108/Inputs!X27 -> 283.3993494 | Y109: =Y108/Inputs!Y27 -> 277.572328 | Z109: =Z108/Inputs!Z27 -> 271.7453066 | AA109: =AA108/Inputs!AA27 -> 265.9182852 | AB109: =AB108/Inputs!AB27 -> 260.0912639 | AC109: =AC108/Inputs!AC27 -> 254.2642425 | AD109: =AD108/Inputs!AD27 -> 248.4372211 | AE109: =AE108/Inputs!AE27 -> 242.6101998 | AF109: =AF108/Inputs!AF27 -> 236.7831784 | AG109: =AG108/Inputs!AG27 -> 230.956157 | AH109: =AH108/Inputs!AH27 -> 125.1291357 | AI109: =AI108/Inputs!AI27 -> 118.9931712 | AJ109: =AJ108/Inputs!AJ27 -> 112.8469086 | AK109: =AK108/Inputs!AK27 -> 106.6900047 | AL109: =AL108/Inputs!AL27 -> 100.5221047 | AM109: =AM108/Inputs!AM27 -> 94.34284205 | AN109: =AN108/Inputs!AN27 -> 88.15183803 | AO109: =AO108/Inputs!AO27 -> 81.94870126 | AP109: =AP108/Inputs!AP27 -> 75.73302731 | AQ109: =AQ108/Inputs!AQ27 -> 69.50439827 | AR109: =AR108/Inputs!AR27 -> 63.26238231 | AS109: =AS108/Inputs!AS27 -> 57.00653319 | AT109: =AT108/Inputs!AT27 -> 50.73638982 | AU109: =AU108/Inputs!AU27 -> 44.45147571 | AV109: =AV108/Inputs!AV27 -> 38.15129852 | AW109: =AW108/Inputs!AW27 -> 31.83534946 | AX109: =AX108/Inputs!AX27 -> 25.50310281 | AY109: =AY108/Inputs!AY27 -> 19.15401532 | AZ109: =AZ108/Inputs!AZ27 -> 12.78752563 | BA109: =BA108/Inputs!BA27 -> 6.403053658 | BB109: =BB108/Inputs!BB27 -> 4.756878305e-14 | BC109: =BC108/Inputs!BC27 -> 4.756878305e-14 | BD109: =BD108/Inputs!BD27 -> 4.756878305e-14 | BE109: =BE108/Inputs!BE27 -> 4.756878305e-14 | BF109: =BF108/Inputs!BF27 -> 4.756878305e-14 | BG109: =BG108/Inputs!BG27 -> 4.756878305e-14 | BH109: =BH108/Inputs!BH27 -> 4.756878305e-14 | BI109: =BI108/Inputs!BI27 -> 4.756878305e-14 | BJ109: =BJ108/Inputs!BJ27 -> 4.756878305e-14 | BK109: =BK108/Inputs!BK27 -> 4.756878305e-14 | BL109: =BL108/Inputs!BL27 -> 4.756878305e-14 | BM109: =BM108/Inputs!BM27 -> 4.756878305e-14 | BN109: =BN108/Inputs!BN27 -> 4.756878305e-14 | BO109: =BO108/Inputs!BO27 -> 4.756878305e-14 | BP109: =BP108/Inputs!BP27 -> 4.756878305e-14 | BQ109: =BQ108/Inputs!BQ27 -> 4.756878305e-14 | BR109: =BR108/Inputs!BR27 -> 4.756878305e-14 | BS109: =BS108/Inputs!BS27 -> 4.756878305e-14 | BT109: =BT108/Inputs!BT27 -> 4.756878305e-14 | BU109: =BU108/Inputs!BU27 -> 4.756878305e-14
A110: ="Nominal NPV at "&ROUND((GEOMEAN(1+Inputs!$D$11:$W$11)-1)*100,2)&"%" -> Nominal NPV at 5.6% | B110: =NPV((GEOMEAN(1+Inputs!$D$11:$W$11)-1),D108:BU108)+C108 -> -115.686563
A111: ="Real NPV at "&ROUND((GEOMEAN(1+Inputs!$D$16:$W$16)-1)*100,2)&"%" -> Real NPV at 3.02% | B111: =NPV((GEOMEAN(1+Inputs!$D$16:$W$16)-1),D109:BU109)+C109 -> -2.700401228e-05
C112: =NPV(B109,D109:BU109)+C109 -> -2.228262019e-11
A113: Customer impact | B113: Year | C113: 0 | D113: 1 | E113: 2 | F113: 3 | G113: 4 | H113: 5 | I113: 6 | J113: 7 | K113: 8 | L113: 9 | M113: 10 | N113: 11 | O113: 12 | P113: 13 | Q113: 14 | R113: 15 | S113: 16 | T113: 17 | U113: 18 | V113: 19 | W113: 20 | X113: 21 | Y113: 22 | Z113: 23 | AA113: 24 | AB113: 25 | AC113: 26 | AD113: 27 | AE113: 28 | AF113: 29 | AG113: 30 | AH113: 31 | AI113: 32 | AJ113: 33 | AK113: 34 | AL113: 35 | AM113: 36 | AN113: 37 | AO113: 38 | AP113: 39 | AQ113: 40 | AR113: 41 | AS113: 42 | AT113: 43 | AU113: 44 | AV113: 45 | AW113: 46 | AX113: 47 | AY113: 48 | AZ113: 49 | BA113: 50 | BB113: 51 | BC113: 52 | BD113: 53 | BE113: 54 | BF113: 55 | BG113: 56 | BH113: 57 | BI113: 58 | BJ113: 59 | BK113: 60 | BL113: 61 | BM113: 62 | BN113: 63 | BO113: 64 | BP113: 65 | BQ113: 66 | BR113: 67 | BS113: 68 | BT113: 69 | BU113: 70
A114: Price index (nominal)
A115: =A4 -> Base case | C115: 1 | D115: =C115*(D19/C19) -> 1.031383852 | E115: 1.062414574 | F115: 1.10676238 | G115: 1.115196169 | H115: 1.145578989 | I115: 1.189571967 | J115: 1.215116341 | K115: 1.268461167 | L115: 1.30615205 | M115: 1.389178597 | N115: 1.428551576 | O115: 1.501170637 | P115: 1.567101007 | Q115: 1.651066303 | R115: 1.751436679 | S115: 1.842648742 | T115: 1.954112872 | U115: 2.034142697 | V115: 2.106852226 | W115: 2.228592185
A116: =A5 -> Approach B (alternate estimate) | C116: 1 | D116: =C116*(D20/C20) -> 1.099350371 | E116: 1.13118996 | F116: 1.177122425 | G116: 1.184797793 | H116: 1.215748465 | I116: 1.262739391 | J116: 1.288311597 | K116: 1.343260608 | L116: 1.381519078 | M116: 1.467578301 | N116: 1.509247962 | O116: 1.584056395 | P116: 1.651632698 | Q116: 1.738028529 | R116: 1.841461878 | S116: 1.937816366 | T116: 2.052552995 | U116: 2.134031465 | V116: 2.207639456 | W116: 2.332380191
A117: =A6 -> Approach C (perfect estimate of actual) | C117: 1 | D117: =C117*(D21/C21) -> 1.133842393 | E117: 1.166093492 | F117: 1.212832229 | G117: 1.220125766 | H117: 1.251368902 | I117: 1.170410847 | J117: 1.194912789 | K117: 1.246712332 | L117: 1.283079442 | M117: 1.363919143 | N117: 1.338289986 | O117: 1.406113811 | P117: 1.467653422 | Q117: 1.54606285 | R117: 1.639808679 | S117: 1.876690874 | T117: 1.994489262 | U117: 2.080632331 | V117: 2.15963259 | W117: 2.289329319
A118: =A7 -> Approach D (unindexed RAB) | C118: 1 | D118: =C118*(D22/C22) -> 1.376424781 | E118: 1.383858256 | F118: 1.407075536 | G118: 1.383820394 | H118: 1.387455081 | I118: 1.469744943 | J118: 1.467834192 | K118: 1.498111715 | L118: 1.508233718 | M118: 1.568342381 | N118: 1.612628426 | O118: 1.662237878 | P118: 1.702099053 | Q118: 1.759045533 | R118: 1.83033985 | S118: 1.829557428 | T118: 1.914030598 | U118: 1.965515107 | V118: 2.008282415 | W118: 2.095641802
A119: =A8 -> Approach E (consistent lag) | C119: 1 | D119: =C119*(D23/C23) -> 1.030845665 | E119: 1.061860195 | F119: 1.106184859 | G119: 1.114614248 | H119: 1.144981214 | I119: 1.188947511 | J119: 1.214480754 | K119: 1.267800056 | L119: 1.305473743 | M119: 1.388459779 | N119: 1.425343001 | O119: 1.497088427 | P119: 1.562098124 | Q119: 1.645014628 | R119: 1.744189309 | S119: 1.838518272 | T119: 1.950378564 | U119: 2.030928152 | V119: 2.104219756 | W119: 2.226545097
A121: Price index (real)
A122: =A115 -> Base case | C122: =C115/Inputs!C$27 -> 1 | D122: =D115/Inputs!D$27 -> 1.006753734 | E122: =E115/Inputs!E$27 -> 1.020740045 | F122: =F115/Inputs!F$27 -> 1.034920662 | G122: =G115/Inputs!G$27 -> 1.049298282 | H122: =H115/Inputs!H$27 -> 1.063875643 | I122: =I115/Inputs!I$27 -> 1.078304819 | J122: =J115/Inputs!J$27 -> 1.095807965 | K122: =K115/Inputs!K$27 -> 1.113595223 | L122: =L115/Inputs!L$27 -> 1.131671206 | M122: =M115/Inputs!M$27 -> 1.1500406 | N122: =N115/Inputs!N$27 -> 1.172774279 | O122: =O115/Inputs!O$27 -> 1.194427968 | P122: =P115/Inputs!P$27 -> 1.216481463 | Q122: =Q115/Inputs!Q$27 -> 1.238942145 | R122: =R115/Inputs!R$27 -> 1.261817534 | S122: =S115/Inputs!S$27 -> 1.285758324 | T122: =T115/Inputs!T$27 -> 1.310246723 | U122: =U115/Inputs!U$27 -> 1.335201525 | V122: =V115/Inputs!V$27 -> 1.360631614 | W122: =W115/Inputs!W$27 -> 1.386546041
A123: =A116 -> Approach B (alternate estimate) | C123: =C116/Inputs!C$27 -> 1 | D123: =D116/Inputs!D$27 -> 1.073097168 | E123: =E116/Inputs!E$27 -> 1.086817632 | F123: =F116/Inputs!F$27 -> 1.100713524 | G123: =G116/Inputs!G$27 -> 1.114787087 | H123: =H116/Inputs!H$27 -> 1.129040592 | I123: =I116/Inputs!I$27 -> 1.144628496 | J123: =J116/Inputs!J$27 -> 1.161816414 | K123: =K116/Inputs!K$27 -> 1.179262429 | L123: =L116/Inputs!L$27 -> 1.196970415 | M123: =M116/Inputs!M$27 -> 1.214944308 | N123: =N116/Inputs!N$27 -> 1.239022253 | O123: =O116/Inputs!O$27 -> 1.260377211 | P123: =P116/Inputs!P$27 -> 1.28210023 | Q123: =Q116/Inputs!Q$27 -> 1.304197651 | R123: =R116/Inputs!R$27 -> 1.32667593 | S123: =S116/Inputs!S$27 -> 1.352164124 | T123: =T116/Inputs!T$27 -> 1.376251533 | U123: =U116/Inputs!U$27 -> 1.400768034 | V123: =V116/Inputs!V$27 -> 1.425721272 | W123: =W116/Inputs!W$27 -> 1.451119025
A124: =A117 -> Approach C (perfect estimate of actual) | C124: =C117/Inputs!C$27 -> 1 | D124: =D117/Inputs!D$27 -> 1.106765498 | E124: =E117/Inputs!E$27 -> 1.120352029 | F124: =F117/Inputs!F$27 -> 1.134105348 | G124: =G117/Inputs!G$27 -> 1.1480275 | H124: =H117/Inputs!H$27 -> 1.162120559 | I124: =I117/Inputs!I$27 -> 1.060935943 | J124: =J117/Inputs!J$27 -> 1.077588135 | K124: =K117/Inputs!K$27 -> 1.094501695 | L124: =L117/Inputs!L$27 -> 1.111680726 | M124: =M117/Inputs!M$27 -> 1.129129395 | N124: =N117/Inputs!N$27 -> 1.09867372 | O124: =O117/Inputs!O$27 -> 1.118794639 | P124: =P117/Inputs!P$27 -> 1.13928405 | Q124: =Q117/Inputs!Q$27 -> 1.160148699 | R124: =R117/Inputs!R$27 -> 1.181395461 | S124: =S117/Inputs!S$27 -> 1.309512148 | T124: =T117/Inputs!T$27 -> 1.337319383 | U124: =U117/Inputs!U$27 -> 1.365717099 | V124: =V117/Inputs!V$27 -> 1.394717835 | W124: =W117/Inputs!W$27 -> 1.424334396
A125: =A118 -> Approach D (unindexed RAB) | C125: =C118/Inputs!C$27 -> 1 | D125: =D118/Inputs!D$27 -> 1.343554861 | E125: =E118/Inputs!E$27 -> 1.329574701 | F125: =F118/Inputs!F$27 -> 1.31574001 | G125: =G118/Inputs!G$27 -> 1.302049274 | H125: =H118/Inputs!H$27 -> 1.288500995 | I125: =I118/Inputs!I$27 -> 1.33227169 | J125: =J118/Inputs!J$27 -> 1.32371226 | K125: =K118/Inputs!K$27 -> 1.315207823 | L125: =L118/Inputs!L$27 -> 1.306758023 | M125: =M118/Inputs!M$27 -> 1.298362511 | N125: =N118/Inputs!N$27 -> 1.323892796 | O125: =O118/Inputs!O$27 -> 1.32258343 | P125: =P118/Inputs!P$27 -> 1.321275359 | Q125: =Q118/Inputs!Q$27 -> 1.319968582 | R125: =R118/Inputs!R$27 -> 1.318663097 | S125: =S118/Inputs!S$27 -> 1.276623503 | T125: =T118/Inputs!T$27 -> 1.28337127 | U125: =U118/Inputs!U$27 -> 1.290154704 | V125: =V118/Inputs!V$27 -> 1.296973992 | W125: =W118/Inputs!W$27 -> 1.303829325
A126: =A119 -> Approach E (consistent lag) | C126: =C119/Inputs!C$27 -> 1 | D126: =D119/Inputs!D$27 -> 1.006228399 | E126: =E119/Inputs!E$27 -> 1.020207413 | F126: =F119/Inputs!F$27 -> 1.034380629 | G126: =G119/Inputs!G$27 -> 1.048750747 | H126: =H119/Inputs!H$27 -> 1.063320502 | I126: =I119/Inputs!I$27 -> 1.077738772 | J126: =J119/Inputs!J$27 -> 1.095234784 | K126: =K119/Inputs!K$27 -> 1.113014827 | L126: =L119/Inputs!L$27 -> 1.13108351 | M126: =M119/Inputs!M$27 -> 1.149445521 | N126: =N119/Inputs!N$27 -> 1.170140189 | O126: =O119/Inputs!O$27 -> 1.191179899 | P126: =P119/Inputs!P$27 -> 1.212597913 | Q126: =Q119/Inputs!Q$27 -> 1.234401034 | R126: =R119/Inputs!R$27 -> 1.256596186 | S126: =S119/Inputs!S$27 -> 1.282876175 | T126: =T119/Inputs!T$27 -> 1.307742843 | U126: =U119/Inputs!U$27 -> 1.333091514 | V126: =V119/Inputs!V$27 -> 1.358931532 | W126: =W119/Inputs!W$27 -> 1.38527242
A128: Bill inputs
A129: Starting bill | B129: 2000
A130: Network proportion | B130: 0.3
A132: Customer bill (nominal)
A133: =A115 -> Base case | C133: =($B$129*(1-$B$130)*Inputs!C$27)+(($B$129*$B$130)*C115) -> 2000 | D133: =($B$129*(1-$B$130)*Inputs!D$27)+(($B$129*$B$130)*D115) -> 2053.081156 | E133: =($B$129*(1-$B$130)*Inputs!E$27)+(($B$129*$B$130)*E115) -> 2094.607607 | F133: =($B$129*(1-$B$130)*Inputs!F$27)+(($B$129*$B$130)*F115) -> 2161.242081 | G133: =($B$129*(1-$B$130)*Inputs!G$27)+(($B$129*$B$130)*G115) -> 2157.04031 | H133: =($B$129*(1-$B$130)*Inputs!H$27)+(($B$129*$B$130)*H115) -> 2194.864362 | I133: =($B$129*(1-$B$130)*Inputs!I$27)+(($B$129*$B$130)*I115) -> 2258.205121 | J133: =($B$129*(1-$B$130)*Inputs!J$27)+(($B$129*$B$130)*J115) -> 2281.497723 | K133: =($B$129*(1-$B$130)*Inputs!K$27)+(($B$129*$B$130)*K115) -> 2355.772508 | L133: =($B$129*(1-$B$130)*Inputs!L$27)+(($B$129*$B$130)*L115) -> 2399.542954 | M133: =($B$129*(1-$B$130)*Inputs!M$27)+(($B$129*$B$130)*M115) -> 2524.621399 | N133: =($B$129*(1-$B$130)*Inputs!N$27)+(($B$129*$B$130)*N115) -> 2562.465247 | O133: =($B$129*(1-$B$130)*Inputs!O$27)+(($B$129*$B$130)*O115) -> 2660.238285 | P133: =($B$129*(1-$B$130)*Inputs!P$27)+(($B$129*$B$130)*P115) -> 2743.774654 | Q133: =($B$129*(1-$B$130)*Inputs!Q$27)+(($B$129*$B$130)*Q115) -> 2856.338542 | R133: =($B$129*(1-$B$130)*Inputs!R$27)+(($B$129*$B$130)*R115) -> 2994.099667 | S133: =($B$129*(1-$B$130)*Inputs!S$27)+(($B$129*$B$130)*S115) -> 3111.960265 | T133: =($B$129*(1-$B$130)*Inputs!T$27)+(($B$129*$B$130)*T115) -> 3260.439379 | U133: =($B$129*(1-$B$130)*Inputs!U$27)+(($B$129*$B$130)*U115) -> 3353.347004 | V133: =($B$129*(1-$B$130)*Inputs!V$27)+(($B$129*$B$130)*V115) -> 3431.923025 | W133: =($B$129*(1-$B$130)*Inputs!W$27)+(($B$129*$B$130)*W115) -> 3587.372013
A134: =A116 -> Approach B (alternate estimate) | C134: =($B$129*(1-$B$130)*Inputs!C$27)+(($B$129*$B$130)*C116) -> 2000 | D134: =($B$129*(1-$B$130)*Inputs!D$27)+(($B$129*$B$130)*D116) -> 2093.861067 | E134: =($B$129*(1-$B$130)*Inputs!E$27)+(($B$129*$B$130)*E116) -> 2135.872839 | F134: =($B$129*(1-$B$130)*Inputs!F$27)+(($B$129*$B$130)*F116) -> 2203.458108 | G134: =($B$129*(1-$B$130)*Inputs!G$27)+(($B$129*$B$130)*G116) -> 2198.801284 | H134: =($B$129*(1-$B$130)*Inputs!H$27)+(($B$129*$B$130)*H116) -> 2236.966048 | I134: =($B$129*(1-$B$130)*Inputs!I$27)+(($B$129*$B$130)*I116) -> 2302.105576 | J134: =($B$129*(1-$B$130)*Inputs!J$27)+(($B$129*$B$130)*J116) -> 2325.414876 | K134: =($B$129*(1-$B$130)*Inputs!K$27)+(($B$129*$B$130)*K116) -> 2400.652173 | L134: =($B$129*(1-$B$130)*Inputs!L$27)+(($B$129*$B$130)*L116) -> 2444.763171 | M134: =($B$129*(1-$B$130)*Inputs!M$27)+(($B$129*$B$130)*M116) -> 2571.661222 | N134: =($B$129*(1-$B$130)*Inputs!N$27)+(($B$129*$B$130)*N116) -> 2610.883079 | O134: =($B$129*(1-$B$130)*Inputs!O$27)+(($B$129*$B$130)*O116) -> 2709.96974 | P134: =($B$129*(1-$B$130)*Inputs!P$27)+(($B$129*$B$130)*P116) -> 2794.493669 | Q134: =($B$129*(1-$B$130)*Inputs!Q$27)+(($B$129*$B$130)*Q116) -> 2908.515878 | R134: =($B$129*(1-$B$130)*Inputs!R$27)+(($B$129*$B$130)*R116) -> 3048.114786 | S134: =($B$129*(1-$B$130)*Inputs!S$27)+(($B$129*$B$130)*S116) -> 3169.060839 | T134: =($B$129*(1-$B$130)*Inputs!T$27)+(($B$129*$B$130)*T116) -> 3319.503453 | U134: =($B$129*(1-$B$130)*Inputs!U$27)+(($B$129*$B$130)*U116) -> 3413.280265 | V134: =($B$129*(1-$B$130)*Inputs!V$27)+(($B$129*$B$130)*V116) -> 3492.395363 | W134: =($B$129*(1-$B$130)*Inputs!W$27)+(($B$129*$B$130)*W116) -> 3649.644817
A135: =A117 -> Approach C (perfect estimate of actual) | C135: =($B$129*(1-$B$130)*Inputs!C$27)+(($B$129*$B$130)*C117) -> 2000 | D135: =($B$129*(1-$B$130)*Inputs!D$27)+(($B$129*$B$130)*D117) -> 2114.55628 | E135: =($B$129*(1-$B$130)*Inputs!E$27)+(($B$129*$B$130)*E117) -> 2156.814957 | F135: =($B$129*(1-$B$130)*Inputs!F$27)+(($B$129*$B$130)*F117) -> 2224.88399 | G135: =($B$129*(1-$B$130)*Inputs!G$27)+(($B$129*$B$130)*G117) -> 2219.998068 | H135: =($B$129*(1-$B$130)*Inputs!H$27)+(($B$129*$B$130)*H117) -> 2258.33831 | I135: =($B$129*(1-$B$130)*Inputs!I$27)+(($B$129*$B$130)*I117) -> 2246.708449 | J135: =($B$129*(1-$B$130)*Inputs!J$27)+(($B$129*$B$130)*J117) -> 2269.375591 | K135: =($B$129*(1-$B$130)*Inputs!K$27)+(($B$129*$B$130)*K117) -> 2342.723207 | L135: =($B$129*(1-$B$130)*Inputs!L$27)+(($B$129*$B$130)*L117) -> 2385.699389 | M135: =($B$129*(1-$B$130)*Inputs!M$27)+(($B$129*$B$130)*M117) -> 2509.465727 | N135: =($B$129*(1-$B$130)*Inputs!N$27)+(($B$129*$B$130)*N117) -> 2508.308293 | O135: =($B$129*(1-$B$130)*Inputs!O$27)+(($B$129*$B$130)*O117) -> 2603.204189 | P135: =($B$129*(1-$B$130)*Inputs!P$27)+(($B$129*$B$130)*P117) -> 2684.106103 | Q135: =($B$129*(1-$B$130)*Inputs!Q$27)+(($B$129*$B$130)*Q117) -> 2793.33647 | R135: =($B$129*(1-$B$130)*Inputs!R$27)+(($B$129*$B$130)*R117) -> 2927.122867 | S135: =($B$129*(1-$B$130)*Inputs!S$27)+(($B$129*$B$130)*S117) -> 3132.385544 | T135: =($B$129*(1-$B$130)*Inputs!T$27)+(($B$129*$B$130)*T117) -> 3284.665213 | U135: =($B$129*(1-$B$130)*Inputs!U$27)+(($B$129*$B$130)*U117) -> 3381.240785 | V135: =($B$129*(1-$B$130)*Inputs!V$27)+(($B$129*$B$130)*V117) -> 3463.591243 | W135: =($B$129*(1-$B$130)*Inputs!W$27)+(($B$129*$B$130)*W117) -> 3623.814294
A136: =A118 -> Approach D (unindexed RAB) | C136: =($B$129*(1-$B$130)*Inputs!C$27)+(($B$129*$B$130)*C118) -> 2000 | D136: =($B$129*(1-$B$130)*Inputs!D$27)+(($B$129*$B$130)*D118) -> 2260.105713 | E136: =($B$129*(1-$B$130)*Inputs!E$27)+(($B$129*$B$130)*E118) -> 2287.473816 | F136: =($B$129*(1-$B$130)*Inputs!F$27)+(($B$129*$B$130)*F118) -> 2341.429974 | G136: =($B$129*(1-$B$130)*Inputs!G$27)+(($B$129*$B$130)*G118) -> 2318.214845 | H136: =($B$129*(1-$B$130)*Inputs!H$27)+(($B$129*$B$130)*H118) -> 2339.990017 | I136: =($B$129*(1-$B$130)*Inputs!I$27)+(($B$129*$B$130)*I118) -> 2426.308907 | J136: =($B$129*(1-$B$130)*Inputs!J$27)+(($B$129*$B$130)*J118) -> 2433.128433 | K136: =($B$129*(1-$B$130)*Inputs!K$27)+(($B$129*$B$130)*K118) -> 2493.562837 | L136: =($B$129*(1-$B$130)*Inputs!L$27)+(($B$129*$B$130)*L118) -> 2520.791955 | M136: =($B$129*(1-$B$130)*Inputs!M$27)+(($B$129*$B$130)*M118) -> 2632.119669 | N136: =($B$129*(1-$B$130)*Inputs!N$27)+(($B$129*$B$130)*N118) -> 2672.911357 | O136: =($B$129*(1-$B$130)*Inputs!O$27)+(($B$129*$B$130)*O118) -> 2756.878629 | P136: =($B$129*(1-$B$130)*Inputs!P$27)+(($B$129*$B$130)*P118) -> 2824.773482 | Q136: =($B$129*(1-$B$130)*Inputs!Q$27)+(($B$129*$B$130)*Q118) -> 2921.12608 | R136: =($B$129*(1-$B$130)*Inputs!R$27)+(($B$129*$B$130)*R118) -> 3041.44157 | S136: =($B$129*(1-$B$130)*Inputs!S$27)+(($B$129*$B$130)*S118) -> 3104.105477 | T136: =($B$129*(1-$B$130)*Inputs!T$27)+(($B$129*$B$130)*T118) -> 3236.390015 | U136: =($B$129*(1-$B$130)*Inputs!U$27)+(($B$129*$B$130)*U118) -> 3312.17045 | V136: =($B$129*(1-$B$130)*Inputs!V$27)+(($B$129*$B$130)*V118) -> 3372.781138 | W136: =($B$129*(1-$B$130)*Inputs!W$27)+(($B$129*$B$130)*W118) -> 3507.601783
A137: =A119 -> Approach E (consistent lag) | C137: =($B$129*(1-$B$130)*Inputs!C$27)+(($B$129*$B$130)*C119) -> 2000 | D137: =($B$129*(1-$B$130)*Inputs!D$27)+(($B$129*$B$130)*D119) -> 2052.758244 | E137: =($B$129*(1-$B$130)*Inputs!E$27)+(($B$129*$B$130)*E119) -> 2094.274979 | F137: =($B$129*(1-$B$130)*Inputs!F$27)+(($B$129*$B$130)*F119) -> 2160.895568 | G137: =($B$129*(1-$B$130)*Inputs!G$27)+(($B$129*$B$130)*G119) -> 2156.691157 | H137: =($B$129*(1-$B$130)*Inputs!H$27)+(($B$129*$B$130)*H119) -> 2194.505697 | I137: =($B$129*(1-$B$130)*Inputs!I$27)+(($B$129*$B$130)*I119) -> 2257.830448 | J137: =($B$129*(1-$B$130)*Inputs!J$27)+(($B$129*$B$130)*J119) -> 2281.11637 | K137: =($B$129*(1-$B$130)*Inputs!K$27)+(($B$129*$B$130)*K119) -> 2355.375841 | L137: =($B$129*(1-$B$130)*Inputs!L$27)+(($B$129*$B$130)*L119) -> 2399.13597 | M137: =($B$129*(1-$B$130)*Inputs!M$27)+(($B$129*$B$130)*M119) -> 2524.190108 | N137: =($B$129*(1-$B$130)*Inputs!N$27)+(($B$129*$B$130)*N119) -> 2560.540102 | O137: =($B$129*(1-$B$130)*Inputs!O$27)+(($B$129*$B$130)*O119) -> 2657.788959 | P137: =($B$129*(1-$B$130)*Inputs!P$27)+(($B$129*$B$130)*P119) -> 2740.772924 | Q137: =($B$129*(1-$B$130)*Inputs!Q$27)+(($B$129*$B$130)*Q119) -> 2852.707537 | R137: =($B$129*(1-$B$130)*Inputs!R$27)+(($B$129*$B$130)*R119) -> 2989.751245 | S137: =($B$129*(1-$B$130)*Inputs!S$27)+(($B$129*$B$130)*S119) -> 3109.481983 | T137: =($B$129*(1-$B$130)*Inputs!T$27)+(($B$129*$B$130)*T119) -> 3258.198794 | U137: =($B$129*(1-$B$130)*Inputs!U$27)+(($B$129*$B$130)*U119) -> 3351.418277 | V137: =($B$129*(1-$B$130)*Inputs!V$27)+(($B$129*$B$130)*V119) -> 3430.343543 | W137: =($B$129*(1-$B$130)*Inputs!W$27)+(($B$129*$B$130)*W119) -> 3586.143761
A139: Customer bill (real)
A140: =A133 -> Base case | C140: =($B$129*(1-$B$130))+(($B$129*$B$130)*C122) -> 2000 | D140: 2004.05224 | E140: 2012.444027 | F140: 2020.952397 | G140: 2029.578969 | H140: 2038.325386 | I140: 2046.982892 | J140: 2057.484779 | K140: 2068.157134 | L140: 2079.002724 | M140: 2090.02436 | N140: 2103.664568 | O140: 2116.656781 | P140: 2129.888878 | Q140: 2143.365287 | R140: 2157.09052 | S140: 2171.454994 | T140: 2186.148034 | U140: 2201.120915 | V140: 2216.378968 | W140: 2231.927624
A141: =A134 -> Approach B (alternate estimate) | C141: =($B$129*(1-$B$130))+(($B$129*$B$130)*C123) -> 2000 | D141: 2043.858301 | E141: 2052.090579 | F141: 2060.428114 | G141: 2068.872252 | H141: 2077.424355 | I141: 2086.777097 | J141: 2097.089848 | K141: 2107.557457 | L141: 2118.182249 | M141: 2128.966585 | N141: 2143.413352 | O141: 2156.226327 | P141: 2169.260138 | Q141: 2182.518591 | R141: 2196.005558 | S141: 2211.298474 | T141: 2225.75092 | U141: 2240.460821 | V141: 2255.432763 | W141: 2270.671415
A142: =A135 -> Approach C (perfect estimate of actual) | C142: =($B$129*(1-$B$130))+(($B$129*$B$130)*C124) -> 2000 | D142: 2064.059299 | E142: 2072.211218 | F142: 2080.463209 | G142: 2088.8165 | H142: 2097.272336 | I142: 2036.561566 | J142: 2046.552881 | K142: 2056.701017 | L142: 2067.008436 | M142: 2077.477637 | N142: 2059.204232 | O142: 2071.276784 | P142: 2083.57043 | Q142: 2096.08922 | R142: 2108.837276 | S142: 2185.707289 | T142: 2202.39163 | U142: 2219.430259 | V142: 2236.830701 | W142: 2254.600638
A143: =A136 -> Approach D (unindexed RAB) | C143: =($B$129*(1-$B$130))+(($B$129*$B$130)*C125) -> 2000 | D143: 2206.132916 | E143: 2197.744821 | F143: 2189.444006 | G143: 2181.229564 | H143: 2173.100597 | I143: 2199.363014 | J143: 2194.227356 | K143: 2189.124694 | L143: 2184.054814 | M143: 2179.017507 | N143: 2194.335678 | O143: 2193.550058 | P143: 2192.765215 | Q143: 2191.981149 | R143: 2191.197858 | S143: 2165.974102 | T143: 2170.022762 | U143: 2174.092822 | V143: 2178.184395 | W143: 2182.297595
A144: =A137 -> Approach E (consistent lag) | C144: =($B$129*(1-$B$130))+(($B$129*$B$130)*C126) -> 2000 | D144: 2003.737039 | E144: 2012.124448 | F144: 2020.628378 | G144: 2029.250448 | H144: 2037.992301 | I144: 2046.643263 | J144: 2057.14087 | K144: 2067.808896 | L144: 2078.650106 | M144: 2089.667313 | N144: 2102.084113 | O144: 2114.707939 | P144: 2127.558748 | Q144: 2140.64062 | R144: 2153.957712 | S144: 2169.725705 | T144: 2184.645706 | U144: 2199.854908 | V144: 2215.358919 | W144: 2231.163452

Sheet Output | Charts
A2: Charts
A3: Opening RAB
B4: Nominal | J4: Real
A21: Allowed revenues
B22: Nominal | J22: Real
A40: Rate of return
C42: Expected | D42: Achieved
A43: =Inputs!$A$3 -> Base case | B43: Real | C43: =GEOMEAN(1+Inputs!$D$12:$W$12)-1 -> 0.03024390244 | D43: =IRR('Output | General'!C45:BU45) -> 0.03059853127
B44: Nominal | C44: =GEOMEAN(1+Inputs!$D$11:$W$11)-1 -> 0.056 | D44: =IRR('Output | General'!C44:BU44) -> 0.05427921719
A45: Approach B | B45: Real | C45: =GEOMEAN(1+Inputs!$D$13:$W$13)-1 -> 0.03529411765 | D45: =IRR('Output | General'!C61:BU61) -> 0.03527329515
B46: Nominal | C46: =GEOMEAN(1+Inputs!$D$11:$W$11)-1 -> 0.056 | D46: =IRR('Output | General'!C60:BU60) -> 0.05893318939
A47: Approach C | B47: Real | C47: =GEOMEAN(1+Inputs!$D$14:$W$14)-1 -> 0.03086239519 | D47: =IRR('Output | General'!C77:BU77) -> 0.03191806823
B48: Nominal | C48: =GEOMEAN(1+Inputs!$D$11:$W$11)-1 -> 0.056 | D48: =IRR('Output | General'!C76:BU76) -> 0.05564886688
A49: Approach D | B49: Real | C49: =GEOMEAN(1+Inputs!$D$15:$W$15)-1 -> 0.03024390244 | D49: =IRR('Output | General'!C93:BU93) -> 0.03242356241
B50: Nominal | C50: =GEOMEAN(1+Inputs!$D$11:$W$11)-1 -> 0.056 | D50: =IRR('Output | General'!C92:BU92) -> 0.05562819576
A51: Approach E | B51: Real | C51: =GEOMEAN(1+Inputs!$D$16:$W$16)-1 -> 0.03024390244 | D51: =IRR('Output | General'!C109:BU109) -> 0.03024390197
B52: Nominal | C52: =GEOMEAN(1+Inputs!$D$11:$W$11)-1 -> 0.056 | D52: =IRR('Output | General'!C108:BU108) -> 0.05391982793
A59: Customer Bill
B60: Nominal | J60: Real

Sheet Working | Base case
C1: Year | D1: 1 | E1: 2 | F1: 3 | G1: 4 | H1: 5 | I1: 6 | J1: 7 | K1: 8 | L1: 9 | M1: 10 | N1: 11 | O1: 12 | P1: 13 | Q1: 14 | R1: 15 | S1: 16 | T1: 17 | U1: 18 | V1: 19 | W1: 20 | X1: 21 | Y1: 22 | Z1: 23 | AA1: 24 | AB1: 25 | AC1: 26 | AD1: 27 | AE1: 28 | AF1: 29 | AG1: 30 | AH1: 31 | AI1: 32 | AJ1: 33 | AK1: 34 | AL1: 35 | AM1: 36 | AN1: 37 | AO1: 38 | AP1: 39 | AQ1: 40 | AR1: 41 | AS1: 42 | AT1: 43 | AU1: 44 | AV1: 45 | AW1: 46 | AX1: 47 | AY1: 48 | AZ1: 49 | BA1: 50 | BB1: 51 | BC1: 52 | BD1: 53 | BE1: 54 | BF1: 55 | BG1: 56 | BH1: 57 | BI1: 58 | BJ1: 59 | BK1: 60 | BL1: 61 | BM1: 62 | BN1: 63 | BO1: 64 | BP1: 65 | BQ1: 66 | BR1: 67 | BS1: 68 | BT1: 69 | BU1: 70
A2: First period
A3: PTRM 1
A4: Cumulative Inflation Index (CPI end period) | C4: 1 | D4: =C4*(1+Inputs!D$3) -> 1.025 | E4: =D4*(1+Inputs!E$3) -> 1.050625 | F4: =E4*(1+Inputs!F$3) -> 1.076890625 | G4: =F4*(1+Inputs!G$3) -> 1.103812891 | H4: =G4*(1+Inputs!$H$3) -> 1.131408213 | I4: =H4*(1+Inputs!$H$3) -> 1.159693418 | J4: =I4*(1+Inputs!$H$3) -> 1.188685754 | K4: =J4*(1+Inputs!$H$3) -> 1.218402898 | L4: =K4*(1+Inputs!$H$3) -> 1.24886297 | M4: =L4*(1+Inputs!$H$3) -> 1.280084544 | N4: =M4*(1+Inputs!$H$3) -> 1.312086658 | O4: =N4*(1+Inputs!$H$3) -> 1.344888824 | P4: =O4*(1+Inputs!$H$3) -> 1.378511045 | Q4: =P4*(1+Inputs!$H$3) -> 1.412973821 | R4: =Q4*(1+Inputs!$H$3) -> 1.448298166 | S4: =R4*(1+Inputs!$H$3) -> 1.484505621 | T4: =S4*(1+Inputs!$H$3) -> 1.521618261 | U4: =T4*(1+Inputs!$H$3) -> 1.559658718 | V4: =U4*(1+Inputs!$H$3) -> 1.598650186 | W4: =V4*(1+Inputs!$H$3) -> 1.63861644 | X4: =W4*(1+Inputs!$H$3) -> 1.679581851 | Y4: =X4*(1+Inputs!$H$3) -> 1.721571398 | Z4: =Y4*(1+Inputs!$H$3) -> 1.764610683 | AA4: =Z4*(1+Inputs!$H$3) -> 1.80872595 | AB4: =AA4*(1+Inputs!$H$3) -> 1.853944098 | AC4: =AB4*(1+Inputs!$H$3) -> 1.900292701 | AD4: =AC4*(1+Inputs!$H$3) -> 1.947800018 | AE4: =AD4*(1+Inputs!$H$3) -> 1.996495019 | AF4: =AE4*(1+Inputs!$H$3) -> 2.046407394 | AG4: =AF4*(1+Inputs!$H$3) -> 2.097567579 | AH4: =AG4*(1+Inputs!$H$3) -> 2.150006769 | AI4: =AH4*(1+Inputs!$H$3) -> 2.203756938 | AJ4: =AI4*(1+Inputs!$H$3) -> 2.258850861 | AK4: =AJ4*(1+Inputs!$H$3) -> 2.315322133 | AL4: =AK4*(1+Inputs!$H$3) -> 2.373205186 | AM4: =AL4*(1+Inputs!$H$3) -> 2.432535316 | AN4: =AM4*(1+Inputs!$H$3) -> 2.493348699 | AO4: =AN4*(1+Inputs!$H$3) -> 2.555682416 | AP4: =AO4*(1+Inputs!$H$3) -> 2.619574476 | AQ4: =AP4*(1+Inputs!$H$3) -> 2.685063838 | AR4: =AQ4*(1+Inputs!$H$3) -> 2.752190434 | AS4: =AR4*(1+Inputs!$H$3) -> 2.820995195 | AT4: =AS4*(1+Inputs!$H$3) -> 2.891520075 | AU4: =AT4*(1+Inputs!$H$3) -> 2.963808077 | AV4: =AU4*(1+Inputs!$H$3) -> 3.037903279 | AW4: =AV4*(1+Inputs!$H$3) -> 3.113850861 | AX4: =AW4*(1+Inputs!$H$3) -> 3.191697132 | AY4: =AX4*(1+Inputs!$H$3) -> 3.271489561 | AZ4: =AY4*(1+Inputs!$H$3) -> 3.3532768 | BA4: =AZ4*(1+Inputs!$H$3) -> 3.43710872 | BB4: =BA4*(1+Inputs!$H$3) -> 3.523036438 | BC4: =BB4*(1+Inputs!$H$3) -> 3.611112349 | BD4: =BC4*(1+Inputs!$H$3) -> 3.701390157 | BE4: =BD4*(1+Inputs!$H$3) -> 3.793924911 | BF4: =BE4*(1+Inputs!$H$3) -> 3.888773034
A5: Cumulative discount rate | C5: 1 | D5: =C5*(1+Inputs!D$11) -> 1.056 | E5: =D5*(1+Inputs!E$11) -> 1.115136 | F5: =E5*(1+Inputs!F$11) -> 1.177583616 | G5: =F5*(1+Inputs!G$11) -> 1.243528298 | H5: =G5*(1+Inputs!$H$11) -> 1.313165883 | I5: =H5*(1+Inputs!$H$11) -> 1.386703173 | J5: =I5*(1+Inputs!$H$11) -> 1.46435855 | K5: =J5*(1+Inputs!$H$11) -> 1.546362629 | L5: =K5*(1+Inputs!$H$11) -> 1.632958936 | M5: =L5*(1+Inputs!$H$11) -> 1.724404637 | N5: =M5*(1+Inputs!$H$11) -> 1.820971296 | O5: =N5*(1+Inputs!$H$11) -> 1.922945689 | P5: =O5*(1+Inputs!$H$11) -> 2.030630648 | Q5: =P5*(1+Inputs!$H$11) -> 2.144345964 | R5: =Q5*(1+Inputs!$H$11) -> 2.264429338 | S5: =R5*(1+Inputs!$H$11) -> 2.391237381 | T5: =S5*(1+Inputs!$H$11) -> 2.525146674 | U5: =T5*(1+Inputs!$H$11) -> 2.666554888 | V5: =U5*(1+Inputs!$H$11) -> 2.815881962 | W5: =V5*(1+Inputs!$H$11) -> 2.973571352 | X5: =W5*(1+Inputs!$H$11) -> 3.140091347 | Y5: =X5*(1+Inputs!$H$11) -> 3.315936463 | Z5: =Y5*(1+Inputs!$H$11) -> 3.501628905 | AA5: =Z5*(1+Inputs!$H$11) -> 3.697720123 | AB5: =AA5*(1+Inputs!$H$11) -> 3.90479245 | AC5: =AB5*(1+Inputs!$H$11) -> 4.123460827 | AD5: =AC5*(1+Inputs!$H$11) -> 4.354374634 | AE5: =AD5*(1+Inputs!$H$11) -> 4.598219613 | AF5: =AE5*(1+Inputs!$H$11) -> 4.855719911 | AG5: =AF5*(1+Inputs!$H$11) -> 5.127640227 | AH5: =AG5*(1+Inputs!$H$11) -> 5.414788079 | AI5: =AH5*(1+Inputs!$H$11) -> 5.718016212 | AJ5: =AI5*(1+Inputs!$H$11) -> 6.038225119 | AK5: =AJ5*(1+Inputs!$H$11) -> 6.376365726 | AL5: =AK5*(1+Inputs!$H$11) -> 6.733442207 | AM5: =AL5*(1+Inputs!$H$11) -> 7.11051497 | AN5: =AM5*(1+Inputs!$H$11) -> 7.508703809 | AO5: =AN5*(1+Inputs!$H$11) -> 7.929191222 | AP5: =AO5*(1+Inputs!$H$11) -> 8.373225931 | AQ5: =AP5*(1+Inputs!$H$11) -> 8.842126583 | AR5: =AQ5*(1+Inputs!$H$11) -> 9.337285671 | AS5: =AR5*(1+Inputs!$H$11) -> 9.860173669 | AT5: =AS5*(1+Inputs!$H$11) -> 10.41234339 | AU5: =AT5*(1+Inputs!$H$11) -> 10.99543462 | AV5: =AU5*(1+Inputs!$H$11) -> 11.61117896 | AW5: =AV5*(1+Inputs!$H$11) -> 12.26140499 | AX5: =AW5*(1+Inputs!$H$11) -> 12.94804366 | AY5: =AX5*(1+Inputs!$H$11) -> 13.67313411 | AZ5: =AY5*(1+Inputs!$H$11) -> 14.43882962 | BA5: =AZ5*(1+Inputs!$H$11) -> 15.24740408 | BB5: =BA5*(1+Inputs!$H$11) -> 16.10125871 | BC5: =BB5*(1+Inputs!$H$11) -> 17.00292919 | BD5: =BC5*(1+Inputs!$H$11) -> 17.95509323 | BE5: =BD5*(1+Inputs!$H$11) -> 18.96057845 | BF5: =BE5*(1+Inputs!$H$11) -> 20.02237084
A7: Assets (real)
A8: Real Net Capital Expenditure (capex) | D8: =Inputs!D$20*(1+Inputs!D$12)^0.5 -> 100 | E8: =Inputs!E$20*(1+Inputs!E$12)^0.5 -> 103.3333333 | F8: =Inputs!F$20*(1+Inputs!F$12)^0.5 -> 106.7777778 | G8: =Inputs!G$20*(1+Inputs!G$12)^0.5 -> 110.337037 | H8: =Inputs!H$20*(1+Inputs!H$12)^0.5 -> 114.0149383 | I8: 0 | J8: 0 | K8: 0 | L8: 0 | M8: 0 | N8: 0 | O8: 0 | P8: 0 | Q8: 0 | R8: 0 | S8: 0 | T8: 0 | U8: 0 | V8: 0 | W8: 0 | X8: 0 | Y8: 0 | Z8: 0 | AA8: 0 | AB8: 0 | AC8: 0 | AD8: 0 | AE8: 0 | AF8: 0 | AG8: 0 | AH8: 0 | AI8: 0 | AJ8: 0 | AK8: 0 | AL8: 0 | AM8: 0 | AN8: 0 | AO8: 0 | AP8: 0 | AQ8: 0 | AR8: 0 | AS8: 0 | AT8: 0 | AU8: 0 | AV8: 0 | AW8: 0 | AX8: 0 | AY8: 0 | AZ8: 0 | BA8: 0 | BB8: 0 | BC8: 0 | BD8: 0 | BE8: 0 | BF8: 0
A9: Real Straight-line Depreciation | D9: =SUM(D10:D15) -> 100 | E9: =SUM(E10:E15) -> 103.3333333 | F9: 106.7777778 | G9: 110.337037 | H9: 114.0149383 | I9: 117.8154362 | J9: 117.8154362 | K9: 117.8154362 | L9: 117.8154362 | M9: 117.8154362 | N9: 117.8154362 | O9: 117.8154362 | P9: 117.8154362 | Q9: 117.8154362 | R9: 117.8154362 | S9: 117.8154362 | T9: 117.8154362 | U9: 117.8154362 | V9: 117.8154362 | W9: 117.8154362 | X9: =SUM(X10:X15) -> 117.8154362 | Y9: 117.8154362 | Z9: 117.8154362 | AA9: 117.8154362 | AB9: 117.8154362 | AC9: 117.8154362 | AD9: 117.8154362 | AE9: 117.8154362 | AF9: 117.8154362 | AG9: 117.8154362 | AH9: 17.81543621 | AI9: 14.48210288 | AJ9: 11.03765844 | AK9: 7.478399177 | AL9: 3.800497942 | AM9: 0 | AN9: 0 | AO9: 0 | AP9: 0 | AQ9: 0 | AR9: 0 | AS9: 0 | AT9: 0 | AU9: 0 | AV9: 0 | AW9: 0 | AX9: 0 | AY9: 0 | AZ9: 0 | BA9: 0 | BB9: 0 | BC9: 0 | BD9: 0 | BE9: 0 | BF9: 0
A10: Opening RAB | D10: =IF(COUNTA($C10:C10)<Inputs!$D$19,Inputs!$D$18/Inputs!$D$19,0) -> 100 | E10: =IF(COUNTA($C10:D10)<Inputs!$D$19,Inputs!$D$18/Inputs!$D$19,0) -> 100 | F10: =IF(COUNTA($C10:E10)<Inputs!$D$19,Inputs!$D$18/Inputs!$D$19,0) -> 100 | G10: =IF(COUNTA($C10:F10)<Inputs!$D$19,Inputs!$D$18/Inputs!$D$19,0) -> 100 | H10: =IF(COUNTA($C10:G10)<Inputs!$D$19,Inputs!$D$18/Inputs!$D$19,0) -> 100 | I10: =IF(COUNTA($C10:H10)<Inputs!$D$19,Inputs!$D$18/Inputs!$D$19,0) -> 100 | J10: =IF(COUNTA($C10:I10)<Inputs!$D$19,Inputs!$D$18/Inputs!$D$19,0) -> 100 | K10: =IF(COUNTA($C10:J10)<Inputs!$D$19,Inputs!$D$18/Inputs!$D$19,0) -> 100 | L10: =IF(COUNTA($C10:K10)<Inputs!$D$19,Inputs!$D$18/Inputs!$D$19,0) -> 100 | M10: =IF(COUNTA($C10:L10)<Inputs!$D$19,Inputs!$D$18/Inputs!$D$19,0) -> 100 | N10: =IF(COUNTA($C10:M10)<Inputs!$D$19,Inputs!$D$18/Inputs!$D$19,0) -> 100 | O10: =IF(COUNTA($C10:N10)<Inputs!$D$19,Inputs!$D$18/Inputs!$D$19,0) -> 100 | P10: =IF(COUNTA($C10:O10)<Inputs!$D$19,Inputs!$D$18/Inputs!$D$19,0) -> 100 | Q10: =IF(COUNTA($C10:P10)<Inputs!$D$19,Inputs!$D$18/Inputs!$D$19,0) -> 100 | R10: =IF(COUNTA($C10:Q10)<Inputs!$D$19,Inputs!$D$18/Inputs!$D$19,0) -> 100 | S10: =IF(COUNTA($C10:R10)<Inputs!$D$19,Inputs!$D$18/Inputs!$D$19,0) -> 100 | T10: =IF(COUNTA($C10:S10)<Inputs!$D$19,Inputs!$D$18/Inputs!$D$19,0) -> 100 | U10: =IF(COUNTA($C10:T10)<Inputs!$D$19,Inputs!$D$18/Inputs!$D$19,0) -> 100 | V10: =IF(COUNTA($C10:U10)<Inputs!$D$19,Inputs!$D$18/Inputs!$D$19,0) -> 100 | W10: =IF(COUNTA($C10:V10)<Inputs!$D$19,Inputs!$D$18/Inputs!$D$19,0) -> 100 | X10: =IF(COUNTA($C10:W10)<Inputs!$D$19,Inputs!$D$18/Inputs!$D$19,0) -> 100 | Y10: =IF(COUNTA($C10:X10)<Inputs!$D$19,Inputs!$D$18/Inputs!$D$19,0) -> 100 | Z10: =IF(COUNTA($C10:Y10)<Inputs!$D$19,Inputs!$D$18/Inputs!$D$19,0) -> 100 | AA10: =IF(COUNTA($C10:Z10)<Inputs!$D$19,Inputs!$D$18/Inputs!$D$19,0) -> 100 | AB10: =IF(COUNTA($C10:AA10)<Inputs!$D$19,Inputs!$D$18/Inputs!$D$19,0) -> 100 | AC10: =IF(COUNTA($C10:AB10)<Inputs!$D$19,Inputs!$D$18/Inputs!$D$19,0) -> 100 | AD10: =IF(COUNTA($C10:AC10)<Inputs!$D$19,Inputs!$D$18/Inputs!$D$19,0) -> 100 | AE10: =IF(COUNTA($C10:AD10)<Inputs!$D$19,Inputs!$D$18/Inputs!$D$19,0) -> 100 | AF10: =IF(COUNTA($C10:AE10)<Inputs!$D$19,Inputs!$D$18/Inputs!$D$19,0) -> 100 | AG10: =IF(COUNTA($C10:AF10)<Inputs!$D$19,Inputs!$D$18/Inputs!$D$19,0) -> 100 | AH10: =IF(COUNTA($C10:AG10)<Inputs!$D$19,Inputs!$D$18/Inputs!$D$19,0) -> 0 | AI10: =IF(COUNTA($C10:AH10)<Inputs!$D$19,Inputs!$D$18/Inputs!$D$19,0) -> 0 | AJ10: =IF(COUNTA($C10:AI10)<Inputs!$D$19,Inputs!$D$18/Inputs!$D$19,0) -> 0 | AK10: =IF(COUNTA($C10:AJ10)<Inputs!$D$19,Inputs!$D$18/Inputs!$D$19,0) -> 0 | AL10: =IF(COUNTA($C10:AK10)<Inputs!$D$19,Inputs!$D$18/Inputs!$D$19,0) -> 0 | AM10: =IF(COUNTA($C10:AL10)<Inputs!$D$19,Inputs!$D$18/Inputs!$D$19,0) -> 0 | AN10: =IF(COUNTA($C10:AM10)<Inputs!$D$19,Inputs!$D$18/Inputs!$D$19,0) -> 0 | AO10: =IF(COUNTA($C10:AN10)<Inputs!$D$19,Inputs!$D$18/Inputs!$D$19,0) -> 0 | AP10: =IF(COUNTA($C10:AO10)<Inputs!$D$19,Inputs!$D$18/Inputs!$D$19,0) -> 0 | AQ10: =IF(COUNTA($C10:AP10)<Inputs!$D$19,Inputs!$D$18/Inputs!$D$19,0) -> 0 | AR10: =IF(COUNTA($C10:AQ10)<Inputs!$D$19,Inputs!$D$18/Inputs!$D$19,0) -> 0 | AS10: =IF(COUNTA($C10:AR10)<Inputs!$D$19,Inputs!$D$18/Inputs!$D$19,0) -> 0 | AT10: =IF(COUNTA($C10:AS10)<Inputs!$D$19,Inputs!$D$18/Inputs!$D$19,0) -> 0 | AU10: =IF(COUNTA($C10:AT10)<Inputs!$D$19,Inputs!$D$18/Inputs!$D$19,0) -> 0 | AV10: =IF(COUNTA($C10:AU10)<Inputs!$D$19,Inputs!$D$18/Inputs!$D$19,0) -> 0 | AW10: =IF(COUNTA($C10:AV10)<Inputs!$D$19,Inputs!$D$18/Inputs!$D$19,0) -> 0 | AX10: =IF(COUNTA($C10:AW10)<Inputs!$D$19,Inputs!$D$18/Inputs!$D$19,0) -> 0 | AY10: =IF(COUNTA($C10:AX10)<Inputs!$D$19,Inputs!$D$18/Inputs!$D$19,0) -> 0 | AZ10: =IF(COUNTA($C10:AY10)<Inputs!$D$19,Inputs!$D$18/Inputs!$D$19,0) -> 0 | BA10: =IF(COUNTA($C10:AZ10)<Inputs!$D$19,Inputs!$D$18/Inputs!$D$19,0) -> 0 | BB10: =IF(COUNTA($C10:BA10)<Inputs!$D$19,Inputs!$D$18/Inputs!$D$19,0) -> 0 | BC10: =IF(COUNTA($C10:BB10)<Inputs!$D$19,Inputs!$D$18/Inputs!$D$19,0) -> 0 | BD10: =IF(COUNTA($C10:BC10)<Inputs!$D$19,Inputs!$D$18/Inputs!$D$19,0) -> 0 | BE10: =IF(COUNTA($C10:BD10)<Inputs!$D$19,Inputs!$D$18/Inputs!$D$19,0) -> 0 | BF10: =IF(COUNTA($C10:BE10)<Inputs!$D$19,Inputs!$D$18/Inputs!$D$19,0) -> 0
A11: 1 | E11: =IFERROR(IF(COUNTA($D11:D11)<INDEX(Inputs!$D$21:$W$21,1,$A11),(INDEX(Inputs!$D$20:$W$20,1,$A11)*((1+INDEX(Inputs!$D$12:$W$12,1,$A11))^0.5))/INDEX(Inputs!$D$21:$W$21,1,$A11),0),0) -> 3.333333333 | F11: =IFERROR(IF(COUNTA($D11:E11)<INDEX(Inputs!$D$21:$W$21,1,$A11),(INDEX(Inputs!$D$20:$W$20,1,$A11)*((1+INDEX(Inputs!$D$12:$W$12,1,$A11))^0.5))/INDEX(Inputs!$D$21:$W$21,1,$A11),0),0) -> 3.333333333 | G11: =IFERROR(IF(COUNTA($D11:F11)<INDEX(Inputs!$D$21:$W$21,1,$A11),(INDEX(Inputs!$D$20:$W$20,1,$A11)*((1+INDEX(Inputs!$D$12:$W$12,1,$A11))^0.5))/INDEX(Inputs!$D$21:$W$21,1,$A11),0),0) -> 3.333333333 | H11: =IFERROR(IF(COUNTA($D11:G11)<INDEX(Inputs!$D$21:$W$21,1,$A11),(INDEX(Inputs!$D$20:$W$20,1,$A11)*((1+INDEX(Inputs!$D$12:$W$12,1,$A11))^0.5))/INDEX(Inputs!$D$21:$W$21,1,$A11),0),0) -> 3.333333333 | I11: =IFERROR(IF(COUNTA($D11:H11)<INDEX(Inputs!$D$21:$W$21,1,$A11),(INDEX(Inputs!$D$20:$W$20,1,$A11)*((1+INDEX(Inputs!$D$12:$W$12,1,$A11))^0.5))/INDEX(Inputs!$D$21:$W$21,1,$A11),0),0) -> 3.333333333 | J11: =IFERROR(IF(COUNTA($D11:I11)<INDEX(Inputs!$D$21:$W$21,1,$A11),(INDEX(Inputs!$D$20:$W$20,1,$A11)*((1+INDEX(Inputs!$D$12:$W$12,1,$A11))^0.5))/INDEX(Inputs!$D$21:$W$21,1,$A11),0),0) -> 3.333333333 | K11: =IFERROR(IF(COUNTA($D11:J11)<INDEX(Inputs!$D$21:$W$21,1,$A11),(INDEX(Inputs!$D$20:$W$20,1,$A11)*((1+INDEX(Inputs!$D$12:$W$12,1,$A11))^0.5))/INDEX(Inputs!$D$21:$W$21,1,$A11),0),0) -> 3.333333333 | L11: =IFERROR(IF(COUNTA($D11:K11)<INDEX(Inputs!$D$21:$W$21,1,$A11),(INDEX(Inputs!$D$20:$W$20,1,$A11)*((1+INDEX(Inputs!$D$12:$W$12,1,$A11))^0.5))/INDEX(Inputs!$D$21:$W$21,1,$A11),0),0) -> 3.333333333 | M11: =IFERROR(IF(COUNTA($D11:L11)<INDEX(Inputs!$D$21:$W$21,1,$A11),(INDEX(Inputs!$D$20:$W$20,1,$A11)*((1+INDEX(Inputs!$D$12:$W$12,1,$A11))^0.5))/INDEX(Inputs!$D$21:$W$21,1,$A11),0),0) -> 3.333333333 | N11: =IFERROR(IF(COUNTA($D11:M11)<INDEX(Inputs!$D$21:$W$21,1,$A11),(INDEX(Inputs!$D$20:$W$20,1,$A11)*((1+INDEX(Inputs!$D$12:$W$12,1,$A11))^0.5))/INDEX(Inputs!$D$21:$W$21,1,$A11),0),0) -> 3.333333333 | O11: =IFERROR(IF(COUNTA($D11:N11)<INDEX(Inputs!$D$21:$W$21,1,$A11),(INDEX(Inputs!$D$20:$W$20,1,$A11)*((1+INDEX(Inputs!$D$12:$W$12,1,$A11))^0.5))/INDEX(Inputs!$D$21:$W$21,1,$A11),0),0) -> 3.333333333 | P11: =IFERROR(IF(COUNTA($D11:O11)<INDEX(Inputs!$D$21:$W$21,1,$A11),(INDEX(Inputs!$D$20:$W$20,1,$A11)*((1+INDEX(Inputs!$D$12:$W$12,1,$A11))^0.5))/INDEX(Inputs!$D$21:$W$21,1,$A11),0),0) -> 3.333333333 | Q11: =IFERROR(IF(COUNTA($D11:P11)<INDEX(Inputs!$D$21:$W$21,1,$A11),(INDEX(Inputs!$D$20:$W$20,1,$A11)*((1+INDEX(Inputs!$D$12:$W$12,1,$A11))^0.5))/INDEX(Inputs!$D$21:$W$21,1,$A11),0),0) -> 3.333333333 | R11: =IFERROR(IF(COUNTA($D11:Q11)<INDEX(Inputs!$D$21:$W$21,1,$A11),(INDEX(Inputs!$D$20:$W$20,1,$A11)*((1+INDEX(Inputs!$D$12:$W$12,1,$A11))^0.5))/INDEX(Inputs!$D$21:$W$21,1,$A11),0),0) -> 3.333333333 | S11: =IFERROR(IF(COUNTA($D11:R11)<INDEX(Inputs!$D$21:$W$21,1,$A11),(INDEX(Inputs!$D$20:$W$20,1,$A11)*((1+INDEX(Inputs!$D$12:$W$12,1,$A11))^0.5))/INDEX(Inputs!$D$21:$W$21,1,$A11),0),0) -> 3.333333333 | T11: =IFERROR(IF(COUNTA($D11:S11)<INDEX(Inputs!$D$21:$W$21,1,$A11),(INDEX(Inputs!$D$20:$W$20,1,$A11)*((1+INDEX(Inputs!$D$12:$W$12,1,$A11))^0.5))/INDEX(Inputs!$D$21:$W$21,1,$A11),0),0) -> 3.333333333 | U11: =IFERROR(IF(COUNTA($D11:T11)<INDEX(Inputs!$D$21:$W$21,1,$A11),(INDEX(Inputs!$D$20:$W$20,1,$A11)*((1+INDEX(Inputs!$D$12:$W$12,1,$A11))^0.5))/INDEX(Inputs!$D$21:$W$21,1,$A11),0),0) -> 3.333333333 | V11: =IFERROR(IF(COUNTA($D11:U11)<INDEX(Inputs!$D$21:$W$21,1,$A11),(INDEX(Inputs!$D$20:$W$20,1,$A11)*((1+INDEX(Inputs!$D$12:$W$12,1,$A11))^0.5))/INDEX(Inputs!$D$21:$W$21,1,$A11),0),0) -> 3.333333333 | W11: =IFERROR(IF(COUNTA($D11:V11)<INDEX(Inputs!$D$21:$W$21,1,$A11),(INDEX(Inputs!$D$20:$W$20,1,$A11)*((1+INDEX(Inputs!$D$12:$W$12,1,$A11))^0.5))/INDEX(Inputs!$D$21:$W$21,1,$A11),0),0) -> 3.333333333 | X11: =IFERROR(IF(COUNTA($D11:W11)<INDEX(Inputs!$D$21:$W$21,1,$A11),(INDEX(Inputs!$D$20:$W$20,1,$A11)*((1+INDEX(Inputs!$D$12:$W$12,1,$A11))^0.5))/INDEX(Inputs!$D$21:$W$21,1,$A11),0),0) -> 3.333333333 | Y11: =IFERROR(IF(COUNTA($D11:X11)<INDEX(Inputs!$D$21:$W$21,1,$A11),(INDEX(Inputs!$D$20:$W$20,1,$A11)*((1+INDEX(Inputs!$D$12:$W$12,1,$A11))^0.5))/INDEX(Inputs!$D$21:$W$21,1,$A11),0),0) -> 3.333333333 | Z11: =IFERROR(IF(COUNTA($D11:Y11)<INDEX(Inputs!$D$21:$W$21,1,$A11),(INDEX(Inputs!$D$20:$W$20,1,$A11)*((1+INDEX(Inputs!$D$12:$W$12,1,$A11))^0.5))/INDEX(Inputs!$D$21:$W$21,1,$A11),0),0) -> 3.333333333 | AA11: =IFERROR(IF(COUNTA($D11:Z11)<INDEX(Inputs!$D$21:$W$21,1,$A11),(INDEX(Inputs!$D$20:$W$20,1,$A11)*((1+INDEX(Inputs!$D$12:$W$12,1,$A11))^0.5))/INDEX(Inputs!$D$21:$W$21,1,$A11),0),0) -> 3.333333333 | AB11: =IFERROR(IF(COUNTA($D11:AA11)<INDEX(Inputs!$D$21:$W$21,1,$A11),(INDEX(Inputs!$D$20:$W$20,1,$A11)*((1+INDEX(Inputs!$D$12:$W$12,1,$A11))^0.5))/INDEX(Inputs!$D$21:$W$21,1,$A11),0),0) -> 3.333333333 | AC11: =IFERROR(IF(COUNTA($D11:AB11)<INDEX(Inputs!$D$21:$W$21,1,$A11),(INDEX(Inputs!$D$20:$W$20,1,$A11)*((1+INDEX(Inputs!$D$12:$W$12,1,$A11))^0.5))/INDEX(Inputs!$D$21:$W$21,1,$A11),0),0) -> 3.333333333 | AD11: =IFERROR(IF(COUNTA($D11:AC11)<INDEX(Inputs!$D$21:$W$21,1,$A11),(INDEX(Inputs!$D$20:$W$20,1,$A11)*((1+INDEX(Inputs!$D$12:$W$12,1,$A11))^0.5))/INDEX(Inputs!$D$21:$W$21,1,$A11),0),0) -> 3.333333333 | AE11: =IFERROR(IF(COUNTA($D11:AD11)<INDEX(Inputs!$D$21:$W$21,1,$A11),(INDEX(Inputs!$D$20:$W$20,1,$A11)*((1+INDEX(Inputs!$D$12:$W$12,1,$A11))^0.5))/INDEX(Inputs!$D$21:$W$21,1,$A11),0),0) -> 3.333333333 | AF11: =IFERROR(IF(COUNTA($D11:AE11)<INDEX(Inputs!$D$21:$W$21,1,$A11),(INDEX(Inputs!$D$20:$W$20,1,$A11)*((1+INDEX(Inputs!$D$12:$W$12,1,$A11))^0.5))/INDEX(Inputs!$D$21:$W$21,1,$A11),0),0) -> 3.333333333 | AG11: =IFERROR(IF(COUNTA($D11:AF11)<INDEX(Inputs!$D$21:$W$21,1,$A11),(INDEX(Inputs!$D$20:$W$20,1,$A11)*((1+INDEX(Inputs!$D$12:$W$12,1,$A11))^0.5))/INDEX(Inputs!$D$21:$W$21,1,$A11),0),0) -> 3.333333333 | AH11: =IFERROR(IF(COUNTA($D11:AG11)<INDEX(Inputs!$D$21:$W$21,1,$A11),(INDEX(Inputs!$D$20:$W$20,1,$A11)*((1+INDEX(Inputs!$D$12:$W$12,1,$A11))^0.5))/INDEX(Inputs!$D$21:$W$21,1,$A11),0),0) -> 3.333333333 | AI11: =IFERROR(IF(COUNTA($D11:AH11)<INDEX(Inputs!$D$21:$W$21,1,$A11),(INDEX(Inputs!$D$20:$W$20,1,$A11)*((1+INDEX(Inputs!$D$12:$W$12,1,$A11))^0.5))/INDEX(Inputs!$D$21:$W$21,1,$A11),0),0) -> 0 | AJ11: =IFERROR(IF(COUNTA($D11:AI11)<INDEX(Inputs!$D$21:$W$21,1,$A11),(INDEX(Inputs!$D$20:$W$20,1,$A11)*((1+INDEX(Inputs!$D$12:$W$12,1,$A11))^0.5))/INDEX(Inputs!$D$21:$W$21,1,$A11),0),0) -> 0 | AK11: =IFERROR(IF(COUNTA($D11:AJ11)<INDEX(Inputs!$D$21:$W$21,1,$A11),(INDEX(Inputs!$D$20:$W$20,1,$A11)*((1+INDEX(Inputs!$D$12:$W$12,1,$A11))^0.5))/INDEX(Inputs!$D$21:$W$21,1,$A11),0),0) -> 0 | AL11: =IFERROR(IF(COUNTA($D11:AK11)<INDEX(Inputs!$D$21:$W$21,1,$A11),(INDEX(Inputs!$D$20:$W$20,1,$A11)*((1+INDEX(Inputs!$D$12:$W$12,1,$A11))^0.5))/INDEX(Inputs!$D$21:$W$21,1,$A11),0),0) -> 0 | AM11: =IFERROR(IF(COUNTA($D11:AL11)<INDEX(Inputs!$D$21:$W$21,1,$A11),(INDEX(Inputs!$D$20:$W$20,1,$A11)*((1+INDEX(Inputs!$D$12:$W$12,1,$A11))^0.5))/INDEX(Inputs!$D$21:$W$21,1,$A11),0),0) -> 0 | AN11: =IFERROR(IF(COUNTA($D11:AM11)<INDEX(Inputs!$D$21:$W$21,1,$A11),(INDEX(Inputs!$D$20:$W$20,1,$A11)*((1+INDEX(Inputs!$D$12:$W$12,1,$A11))^0.5))/INDEX(Inputs!$D$21:$W$21,1,$A11),0),0) -> 0 | AO11: =IFERROR(IF(COUNTA($D11:AN11)<INDEX(Inputs!$D$21:$W$21,1,$A11),(INDEX(Inputs!$D$20:$W$20,1,$A11)*((1+INDEX(Inputs!$D$12:$W$12,1,$A11))^0.5))/INDEX(Inputs!$D$21:$W$21,1,$A11),0),0) -> 0 | AP11: =IFERROR(IF(COUNTA($D11:AO11)<INDEX(Inputs!$D$21:$W$21,1,$A11),(INDEX(Inputs!$D$20:$W$20,1,$A11)*((1+INDEX(Inputs!$D$12:$W$12,1,$A11))^0.5))/INDEX(Inputs!$D$21:$W$21,1,$A11),0),0) -> 0 | AQ11: =IFERROR(IF(COUNTA($D11:AP11)<INDEX(Inputs!$D$21:$W$21,1,$A11),(INDEX(Inputs!$D$20:$W$20,1,$A11)*((1+INDEX(Inputs!$D$12:$W$12,1,$A11))^0.5))/INDEX(Inputs!$D$21:$W$21,1,$A11),0),0) -> 0 | AR11: =IFERROR(IF(COUNTA($D11:AQ11)<INDEX(Inputs!$D$21:$W$21,1,$A11),(INDEX(Inputs!$D$20:$W$20,1,$A11)*((1+INDEX(Inputs!$D$12:$W$12,1,$A11))^0.5))/INDEX(Inputs!$D$21:$W$21,1,$A11),0),0) -> 0 | AS11: =IFERROR(IF(COUNTA($D11:AR11)<INDEX(Inputs!$D$21:$W$21,1,$A11),(INDEX(Inputs!$D$20:$W$20,1,$A11)*((1+INDEX(Inputs!$D$12:$W$12,1,$A11))^0.5))/INDEX(Inputs!$D$21:$W$21,1,$A11),0),0) -> 0 | AT11: =IFERROR(IF(COUNTA($D11:AS11)<INDEX(Inputs!$D$21:$W$21,1,$A11),(INDEX(Inputs!$D$20:$W$20,1,$A11)*((1+INDEX(Inputs!$D$12:$W$12,1,$A11))^0.5))/INDEX(Inputs!$D$21:$W$21,1,$A11),0),0) -> 0 | AU11: =IFERROR(IF(COUNTA($D11:AT11)<INDEX(Inputs!$D$21:$W$21,1,$A11),(INDEX(Inputs!$D$20:$W$20,1,$A11)*((1+INDEX(Inputs!$D$12:$W$12,1,$A11))^0.5))/INDEX(Inputs!$D$21:$W$21,1,$A11),0),0) -> 0 | AV11: =IFERROR(IF(COUNTA($D11:AU11)<INDEX(Inputs!$D$21:$W$21,1,$A11),(INDEX(Inputs!$D$20:$W$20,1,$A11)*((1+INDEX(Inputs!$D$12:$W$12,1,$A11))^0.5))/INDEX(Inputs!$D$21:$W$21,1,$A11),0),0) -> 0 | AW11: =IFERROR(IF(COUNTA($D11:AV11)<INDEX(Inputs!$D$21:$W$21,1,$A11),(INDEX(Inputs!$D$20:$W$20,1,$A11)*((1+INDEX(Inputs!$D$12:$W$12,1,$A11))^0.5))/INDEX(Inputs!$D$21:$W$21,1,$A11),0),0) -> 0 | AX11: =IFERROR(IF(COUNTA($D11:AW11)<INDEX(Inputs!$D$21:$W$21,1,$A11),(INDEX(Inputs!$D$20:$W$20,1,$A11)*((1+INDEX(Inputs!$D$12:$W$12,1,$A11))^0.5))/INDEX(Inputs!$D$21:$W$21,1,$A11),0),0) -> 0 | AY11: =IFERROR(IF(COUNTA($D11:AX11)<INDEX(Inputs!$D$21:$W$21,1,$A11),(INDEX(Inputs!$D$20:$W$20,1,$A11)*((1+INDEX(Inputs!$D$12:$W$12,1,$A11))^0.5))/INDEX(Inputs!$D$21:$W$21,1,$A11),0),0) -> 0 | AZ11: =IFERROR(IF(COUNTA($D11:AY11)<INDEX(Inputs!$D$21:$W$21,1,$A11),(INDEX(Inputs!$D$20:$W$20,1,$A11)*((1+INDEX(Inputs!$D$12:$W$12,1,$A11))^0.5))/INDEX(Inputs!$D$21:$W$21,1,$A11),0),0) -> 0 | BA11: =IFERROR(IF(COUNTA($D11:AZ11)<INDEX(Inputs!$D$21:$W$21,1,$A11),(INDEX(Inputs!$D$20:$W$20,1,$A11)*((1+INDEX(Inputs!$D$12:$W$12,1,$A11))^0.5))/INDEX(Inputs!$D$21:$W$21,1,$A11),0),0) -> 0 | BB11: =IFERROR(IF(COUNTA($D11:BA11)<INDEX(Inputs!$D$21:$W$21,1,$A11),(INDEX(Inputs!$D$20:$W$20,1,$A11)*((1+INDEX(Inputs!$D$12:$W$12,1,$A11))^0.5))/INDEX(Inputs!$D$21:$W$21,1,$A11),0),0) -> 0 | BC11: =IFERROR(IF(COUNTA($D11:BB11)<INDEX(Inputs!$D$21:$W$21,1,$A11),(INDEX(Inputs!$D$20:$W$20,1,$A11)*((1+INDEX(Inputs!$D$12:$W$12,1,$A11))^0.5))/INDEX(Inputs!$D$21:$W$21,1,$A11),0),0) -> 0 | BD11: =IFERROR(IF(COUNTA($D11:BC11)<INDEX(Inputs!$D$21:$W$21,1,$A11),(INDEX(Inputs!$D$20:$W$20,1,$A11)*((1+INDEX(Inputs!$D$12:$W$12,1,$A11))^0.5))/INDEX(Inputs!$D$21:$W$21,1,$A11),0),0) -> 0 | BE11: =IFERROR(IF(COUNTA($D11:BD11)<INDEX(Inputs!$D$21:$W$21,1,$A11),(INDEX(Inputs!$D$20:$W$20,1,$A11)*((1+INDEX(Inputs!$D$12:$W$12,1,$A11))^0.5))/INDEX(Inputs!$D$21:$W$21,1,$A11),0),0) -> 0 | BF11: =IFERROR(IF(COUNTA($D11:BE11)<INDEX(Inputs!$D$21:$W$21,1,$A11),(INDEX(Inputs!$D$20:$W$20,1,$A11)*((1+INDEX(Inputs!$D$12:$W$12,1,$A11))^0.5))/INDEX(Inputs!$D$21:$W$21,1,$A11),0),0) -> 0
A12: 2 | F12: =IFERROR(IF(COUNTA($D12:E12)<INDEX(Inputs!$D$21:$W$21,1,$A12),(INDEX(Inputs!$D$20:$W$20,1,$A12)*((1+INDEX(Inputs!$D$12:$W$12,1,$A12))^0.5))/INDEX(Inputs!$D$21:$W$21,1,$A12),0),0) -> 3.444444444 | G12: =IFERROR(IF(COUNTA($D12:F12)<INDEX(Inputs!$D$21:$W$21,1,$A12),(INDEX(Inputs!$D$20:$W$20,1,$A12)*((1+INDEX(Inputs!$D$12:$W$12,1,$A12))^0.5))/INDEX(Inputs!$D$21:$W$21,1,$A12),0),0) -> 3.444444444 | H12: =IFERROR(IF(COUNTA($D12:G12)<INDEX(Inputs!$D$21:$W$21,1,$A12),(INDEX(Inputs!$D$20:$W$20,1,$A12)*((1+INDEX(Inputs!$D$12:$W$12,1,$A12))^0.5))/INDEX(Inputs!$D$21:$W$21,1,$A12),0),0) -> 3.444444444 | I12: =IFERROR(IF(COUNTA($D12:H12)<INDEX(Inputs!$D$21:$W$21,1,$A12),(INDEX(Inputs!$D$20:$W$20,1,$A12)*((1+INDEX(Inputs!$D$12:$W$12,1,$A12))^0.5))/INDEX(Inputs!$D$21:$W$21,1,$A12),0),0) -> 3.444444444 | J12: =IFERROR(IF(COUNTA($D12:I12)<INDEX(Inputs!$D$21:$W$21,1,$A12),(INDEX(Inputs!$D$20:$W$20,1,$A12)*((1+INDEX(Inputs!$D$12:$W$12,1,$A12))^0.5))/INDEX(Inputs!$D$21:$W$21,1,$A12),0),0) -> 3.444444444 | K12: =IFERROR(IF(COUNTA($D12:J12)<INDEX(Inputs!$D$21:$W$21,1,$A12),(INDEX(Inputs!$D$20:$W$20,1,$A12)*((1+INDEX(Inputs!$D$12:$W$12,1,$A12))^0.5))/INDEX(Inputs!$D$21:$W$21,1,$A12),0),0) -> 3.444444444 | L12: =IFERROR(IF(COUNTA($D12:K12)<INDEX(Inputs!$D$21:$W$21,1,$A12),(INDEX(Inputs!$D$20:$W$20,1,$A12)*((1+INDEX(Inputs!$D$12:$W$12,1,$A12))^0.5))/INDEX(Inputs!$D$21:$W$21,1,$A12),0),0) -> 3.444444444 | M12: =IFERROR(IF(COUNTA($D12:L12)<INDEX(Inputs!$D$21:$W$21,1,$A12),(INDEX(Inputs!$D$20:$W$20,1,$A12)*((1+INDEX(Inputs!$D$12:$W$12,1,$A12))^0.5))/INDEX(Inputs!$D$21:$W$21,1,$A12),0),0) -> 3.444444444 | N12: =IFERROR(IF(COUNTA($D12:M12)<INDEX(Inputs!$D$21:$W$21,1,$A12),(INDEX(Inputs!$D$20:$W$20,1,$A12)*((1+INDEX(Inputs!$D$12:$W$12,1,$A12))^0.5))/INDEX(Inputs!$D$21:$W$21,1,$A12),0),0) -> 3.444444444 | O12: =IFERROR(IF(COUNTA($D12:N12)<INDEX(Inputs!$D$21:$W$21,1,$A12),(INDEX(Inputs!$D$20:$W$20,1,$A12)*((1+INDEX(Inputs!$D$12:$W$12,1,$A12))^0.5))/INDEX(Inputs!$D$21:$W$21,1,$A12),0),0) -> 3.444444444 | P12: =IFERROR(IF(COUNTA($D12:O12)<INDEX(Inputs!$D$21:$W$21,1,$A12),(INDEX(Inputs!$D$20:$W$20,1,$A12)*((1+INDEX(Inputs!$D$12:$W$12,1,$A12))^0.5))/INDEX(Inputs!$D$21:$W$21,1,$A12),0),0) -> 3.444444444 | Q12: =IFERROR(IF(COUNTA($D12:P12)<INDEX(Inputs!$D$21:$W$21,1,$A12),(INDEX(Inputs!$D$20:$W$20,1,$A12)*((1+INDEX(Inputs!$D$12:$W$12,1,$A12))^0.5))/INDEX(Inputs!$D$21:$W$21,1,$A12),0),0) -> 3.444444444 | R12: =IFERROR(IF(COUNTA($D12:Q12)<INDEX(Inputs!$D$21:$W$21,1,$A12),(INDEX(Inputs!$D$20:$W$20,1,$A12)*((1+INDEX(Inputs!$D$12:$W$12,1,$A12))^0.5))/INDEX(Inputs!$D$21:$W$21,1,$A12),0),0) -> 3.444444444 | S12: =IFERROR(IF(COUNTA($D12:R12)<INDEX(Inputs!$D$21:$W$21,1,$A12),(INDEX(Inputs!$D$20:$W$20,1,$A12)*((1+INDEX(Inputs!$D$12:$W$12,1,$A12))^0.5))/INDEX(Inputs!$D$21:$W$21,1,$A12),0),0) -> 3.444444444 | T12: =IFERROR(IF(COUNTA($D12:S12)<INDEX(Inputs!$D$21:$W$21,1,$A12),(INDEX(Inputs!$D$20:$W$20,1,$A12)*((1+INDEX(Inputs!$D$12:$W$12,1,$A12))^0.5))/INDEX(Inputs!$D$21:$W$21,1,$A12),0),0) -> 3.444444444 | U12: =IFERROR(IF(COUNTA($D12:T12)<INDEX(Inputs!$D$21:$W$21,1,$A12),(INDEX(Inputs!$D$20:$W$20,1,$A12)*((1+INDEX(Inputs!$D$12:$W$12,1,$A12))^0.5))/INDEX(Inputs!$D$21:$W$21,1,$A12),0),0) -> 3.444444444 | V12: =IFERROR(IF(COUNTA($D12:U12)<INDEX(Inputs!$D$21:$W$21,1,$A12),(INDEX(Inputs!$D$20:$W$20,1,$A12)*((1+INDEX(Inputs!$D$12:$W$12,1,$A12))^0.5))/INDEX(Inputs!$D$21:$W$21,1,$A12),0),0) -> 3.444444444 | W12: =IFERROR(IF(COUNTA($D12:V12)<INDEX(Inputs!$D$21:$W$21,1,$A12),(INDEX(Inputs!$D$20:$W$20,1,$A12)*((1+INDEX(Inputs!$D$12:$W$12,1,$A12))^0.5))/INDEX(Inputs!$D$21:$W$21,1,$A12),0),0) -> 3.444444444 | X12: =IFERROR(IF(COUNTA($D12:W12)<INDEX(Inputs!$D$21:$W$21,1,$A12),(INDEX(Inputs!$D$20:$W$20,1,$A12)*((1+INDEX(Inputs!$D$12:$W$12,1,$A12))^0.5))/INDEX(Inputs!$D$21:$W$21,1,$A12),0),0) -> 3.444444444 | Y12: =IFERROR(IF(COUNTA($D12:X12)<INDEX(Inputs!$D$21:$W$21,1,$A12),(INDEX(Inputs!$D$20:$W$20,1,$A12)*((1+INDEX(Inputs!$D$12:$W$12,1,$A12))^0.5))/INDEX(Inputs!$D$21:$W$21,1,$A12),0),0) -> 3.444444444 | Z12: =IFERROR(IF(COUNTA($D12:Y12)<INDEX(Inputs!$D$21:$W$21,1,$A12),(INDEX(Inputs!$D$20:$W$20,1,$A12)*((1+INDEX(Inputs!$D$12:$W$12,1,$A12))^0.5))/INDEX(Inputs!$D$21:$W$21,1,$A12),0),0) -> 3.444444444 | AA12: =IFERROR(IF(COUNTA($D12:Z12)<INDEX(Inputs!$D$21:$W$21,1,$A12),(INDEX(Inputs!$D$20:$W$20,1,$A12)*((1+INDEX(Inputs!$D$12:$W$12,1,$A12))^0.5))/INDEX(Inputs!$D$21:$W$21,1,$A12),0),0) -> 3.444444444 | AB12: =IFERROR(IF(COUNTA($D12:AA12)<INDEX(Inputs!$D$21:$W$21,1,$A12),(INDEX(Inputs!$D$20:$W$20,1,$A12)*((1+INDEX(Inputs!$D$12:$W$12,1,$A12))^0.5))/INDEX(Inputs!$D$21:$W$21,1,$A12),0),0) -> 3.444444444 | AC12: =IFERROR(IF(COUNTA($D12:AB12)<INDEX(Inputs!$D$21:$W$21,1,$A12),(INDEX(Inputs!$D$20:$W$20,1,$A12)*((1+INDEX(Inputs!$D$12:$W$12,1,$A12))^0.5))/INDEX(Inputs!$D$21:$W$21,1,$A12),0),0) -> 3.444444444 | AD12: =IFERROR(IF(COUNTA($D12:AC12)<INDEX(Inputs!$D$21:$W$21,1,$A12),(INDEX(Inputs!$D$20:$W$20,1,$A12)*((1+INDEX(Inputs!$D$12:$W$12,1,$A12))^0.5))/INDEX(Inputs!$D$21:$W$21,1,$A12),0),0) -> 3.444444444 | AE12: =IFERROR(IF(COUNTA($D12:AD12)<INDEX(Inputs!$D$21:$W$21,1,$A12),(INDEX(Inputs!$D$20:$W$20,1,$A12)*((1+INDEX(Inputs!$D$12:$W$12,1,$A12))^0.5))/INDEX(Inputs!$D$21:$W$21,1,$A12),0),0) -> 3.444444444 | AF12: =IFERROR(IF(COUNTA($D12:AE12)<INDEX(Inputs!$D$21:$W$21,1,$A12),(INDEX(Inputs!$D$20:$W$20,1,$A12)*((1+INDEX(Inputs!$D$12:$W$12,1,$A12))^0.5))/INDEX(Inputs!$D$21:$W$21,1,$A12),0),0) -> 3.444444444 | AG12: =IFERROR(IF(COUNTA($D12:AF12)<INDEX(Inputs!$D$21:$W$21,1,$A12),(INDEX(Inputs!$D$20:$W$20,1,$A12)*((1+INDEX(Inputs!$D$12:$W$12,1,$A12))^0.5))/INDEX(Inputs!$D$21:$W$21,1,$A12),0),0) -> 3.444444444 | AH12: =IFERROR(IF(COUNTA($D12:AG12)<INDEX(Inputs!$D$21:$W$21,1,$A12),(INDEX(Inputs!$D$20:$W$20,1,$A12)*((1+INDEX(Inputs!$D$12:$W$12,1,$A12))^0.5))/INDEX(Inputs!$D$21:$W$21,1,$A12),0),0) -> 3.444444444 | AI12: =IFERROR(IF(COUNTA($D12:AH12)<INDEX(Inputs!$D$21:$W$21,1,$A12),(INDEX(Inputs!$D$20:$W$20,1,$A12)*((1+INDEX(Inputs!$D$12:$W$12,1,$A12))^0.5))/INDEX(Inputs!$D$21:$W$21,1,$A12),0),0) -> 3.444444444 | AJ12: =IFERROR(IF(COUNTA($D12:AI12)<INDEX(Inputs!$D$21:$W$21,1,$A12),(INDEX(Inputs!$D$20:$W$20,1,$A12)*((1+INDEX(Inputs!$D$12:$W$12,1,$A12))^0.5))/INDEX(Inputs!$D$21:$W$21,1,$A12),0),0) -> 0 | AK12: =IFERROR(IF(COUNTA($D12:AJ12)<INDEX(Inputs!$D$21:$W$21,1,$A12),(INDEX(Inputs!$D$20:$W$20,1,$A12)*((1+INDEX(Inputs!$D$12:$W$12,1,$A12))^0.5))/INDEX(Inputs!$D$21:$W$21,1,$A12),0),0) -> 0 | AL12: =IFERROR(IF(COUNTA($D12:AK12)<INDEX(Inputs!$D$21:$W$21,1,$A12),(INDEX(Inputs!$D$20:$W$20,1,$A12)*((1+INDEX(Inputs!$D$12:$W$12,1,$A12))^0.5))/INDEX(Inputs!$D$21:$W$21,1,$A12),0),0) -> 0 | AM12: =IFERROR(IF(COUNTA($D12:AL12)<INDEX(Inputs!$D$21:$W$21,1,$A12),(INDEX(Inputs!$D$20:$W$20,1,$A12)*((1+INDEX(Inputs!$D$12:$W$12,1,$A12))^0.5))/INDEX(Inputs!$D$21:$W$21,1,$A12),0),0) -> 0 | AN12: =IFERROR(IF(COUNTA($D12:AM12)<INDEX(Inputs!$D$21:$W$21,1,$A12),(INDEX(Inputs!$D$20:$W$20,1,$A12)*((1+INDEX(Inputs!$D$12:$W$12,1,$A12))^0.5))/INDEX(Inputs!$D$21:$W$21,1,$A12),0),0) -> 0 | AO12: =IFERROR(IF(COUNTA($D12:AN12)<INDEX(Inputs!$D$21:$W$21,1,$A12),(INDEX(Inputs!$D$20:$W$20,1,$A12)*((1+INDEX(Inputs!$D$12:$W$12,1,$A12))^0.5))/INDEX(Inputs!$D$21:$W$21,1,$A12),0),0) -> 0 | AP12: =IFERROR(IF(COUNTA($D12:AO12)<INDEX(Inputs!$D$21:$W$21,1,$A12),(INDEX(Inputs!$D$20:$W$20,1,$A12)*((1+INDEX(Inputs!$D$12:$W$12,1,$A12))^0.5))/INDEX(Inputs!$D$21:$W$21,1,$A12),0),0) -> 0 | AQ12: =IFERROR(IF(COUNTA($D12:AP12)<INDEX(Inputs!$D$21:$W$21,1,$A12),(INDEX(Inputs!$D$20:$W$20,1,$A12)*((1+INDEX(Inputs!$D$12:$W$12,1,$A12))^0.5))/INDEX(Inputs!$D$21:$W$21,1,$A12),0),0) -> 0 | AR12: =IFERROR(IF(COUNTA($D12:AQ12)<INDEX(Inputs!$D$21:$W$21,1,$A12),(INDEX(Inputs!$D$20:$W$20,1,$A12)*((1+INDEX(Inputs!$D$12:$W$12,1,$A12))^0.5))/INDEX(Inputs!$D$21:$W$21,1,$A12),0),0) -> 0 | AS12: =IFERROR(IF(COUNTA($D12:AR12)<INDEX(Inputs!$D$21:$W$21,1,$A12),(INDEX(Inputs!$D$20:$W$20,1,$A12)*((1+INDEX(Inputs!$D$12:$W$12,1,$A12))^0.5))/INDEX(Inputs!$D$21:$W$21,1,$A12),0),0) -> 0 | AT12: =IFERROR(IF(COUNTA($D12:AS12)<INDEX(Inputs!$D$21:$W$21,1,$A12),(INDEX(Inputs!$D$20:$W$20,1,$A12)*((1+INDEX(Inputs!$D$12:$W$12,1,$A12))^0.5))/INDEX(Inputs!$D$21:$W$21,1,$A12),0),0) -> 0 | AU12: =IFERROR(IF(COUNTA($D12:AT12)<INDEX(Inputs!$D$21:$W$21,1,$A12),(INDEX(Inputs!$D$20:$W$20,1,$A12)*((1+INDEX(Inputs!$D$12:$W$12,1,$A12))^0.5))/INDEX(Inputs!$D$21:$W$21,1,$A12),0),0) -> 0 | AV12: =IFERROR(IF(COUNTA($D12:AU12)<INDEX(Inputs!$D$21:$W$21,1,$A12),(INDEX(Inputs!$D$20:$W$20,1,$A12)*((1+INDEX(Inputs!$D$12:$W$12,1,$A12))^0.5))/INDEX(Inputs!$D$21:$W$21,1,$A12),0),0) -> 0 | AW12: =IFERROR(IF(COUNTA($D12:AV12)<INDEX(Inputs!$D$21:$W$21,1,$A12),(INDEX(Inputs!$D$20:$W$20,1,$A12)*((1+INDEX(Inputs!$D$12:$W$12,1,$A12))^0.5))/INDEX(Inputs!$D$21:$W$21,1,$A12),0),0) -> 0 | AX12: =IFERROR(IF(COUNTA($D12:AW12)<INDEX(Inputs!$D$21:$W$21,1,$A12),(INDEX(Inputs!$D$20:$W$20,1,$A12)*((1+INDEX(Inputs!$D$12:$W$12,1,$A12))^0.5))/INDEX(Inputs!$D$21:$W$21,1,$A12),0),0) -> 0 | AY12: =IFERROR(IF(COUNTA($D12:AX12)<INDEX(Inputs!$D$21:$W$21,1,$A12),(INDEX(Inputs!$D$20:$W$20,1,$A12)*((1+INDEX(Inputs!$D$12:$W$12,1,$A12))^0.5))/INDEX(Inputs!$D$21:$W$21,1,$A12),0),0) -> 0 | AZ12: =IFERROR(IF(COUNTA($D12:AY12)<INDEX(Inputs!$D$21:$W$21,1,$A12),(INDEX(Inputs!$D$20:$W$20,1,$A12)*((1+INDEX(Inputs!$D$12:$W$12,1,$A12))^0.5))/INDEX(Inputs!$D$21:$W$21,1,$A12),0),0) -> 0 | BA12: =IFERROR(IF(COUNTA($D12:AZ12)<INDEX(Inputs!$D$21:$W$21,1,$A12),(INDEX(Inputs!$D$20:$W$20,1,$A12)*((1+INDEX(Inputs!$D$12:$W$12,1,$A12))^0.5))/INDEX(Inputs!$D$21:$W$21,1,$A12),0),0) -> 0 | BB12: =IFERROR(IF(COUNTA($D12:BA12)<INDEX(Inputs!$D$21:$W$21,1,$A12),(INDEX(Inputs!$D$20:$W$20,1,$A12)*((1+INDEX(Inputs!$D$12:$W$12,1,$A12))^0.5))/INDEX(Inputs!$D$21:$W$21,1,$A12),0),0) -> 0 | BC12: =IFERROR(IF(COUNTA($D12:BB12)<INDEX(Inputs!$D$21:$W$21,1,$A12),(INDEX(Inputs!$D$20:$W$20,1,$A12)*((1+INDEX(Inputs!$D$12:$W$12,1,$A12))^0.5))/INDEX(Inputs!$D$21:$W$21,1,$A12),0),0) -> 0 | BD12: =IFERROR(IF(COUNTA($D12:BC12)<INDEX(Inputs!$D$21:$W$21,1,$A12),(INDEX(Inputs!$D$20:$W$20,1,$A12)*((1+INDEX(Inputs!$D$12:$W$12,1,$A12))^0.5))/INDEX(Inputs!$D$21:$W$21,1,$A12),0),0) -> 0 | BE12: =IFERROR(IF(COUNTA($D12:BD12)<INDEX(Inputs!$D$21:$W$21,1,$A12),(INDEX(Inputs!$D$20:$W$20,1,$A12)*((1+INDEX(Inputs!$D$12:$W$12,1,$A12))^0.5))/INDEX(Inputs!$D$21:$W$21,1,$A12),0),0) -> 0 | BF12: =IFERROR(IF(COUNTA($D12:BE12)<INDEX(Inputs!$D$21:$W$21,1,$A12),(INDEX(Inputs!$D$20:$W$20,1,$A12)*((1+INDEX(Inputs!$D$12:$W$12,1,$A12))^0.5))/INDEX(Inputs!$D$21:$W$21,1,$A12),0),0) -> 0
